Workbook

Sheet Portada

Sheet Notas Precios

Sheet Tabla de Contenido
D84: 26 | H84: 27 | N84: 26

Sheet Tabla Check (hidden)
A1: GRUPOS QUE DEBEN IR EN LA TABLA DE CONTENIDO
A5: A | B5: B | C5: C | D5: D
A6: 11141 | B6: 1114 | C6: ACCESORIOS HD PARA REDES DE ACUEDUCTO | D6: =COUNTIF($B6:B$6,B6) -> 1
A7: 11142 | B7: 1114 | C7: ACCESORIOS HD PARA REDES DE ACUEDUCTO | D7: =COUNTIF($B$6:B7,B7) -> 2
A8: 11143 | B8: 1114 | C8: ACCESORIOS HD PARA REDES DE ACUEDUCTO | D8: =COUNTIF($B$6:B8,B8) -> 3
A9: 11144 | B9: 1114 | C9: ACCESORIOS HD PARA REDES DE ACUEDUCTO | D9: =COUNTIF($B$6:B9,B9) -> 4
A10: 11145 | B10: 1114 | C10: ACCESORIOS HD PARA REDES DE ACUEDUCTO | D10: =COUNTIF($B$6:B10,B10) -> 5
A11: 11146 | B11: 1114 | C11: ACCESORIOS HD PARA REDES DE ACUEDUCTO | D11: =COUNTIF($B$6:B11,B11) -> 6
A12: 11147 | B12: 1114 | C12: ACCESORIOS HD PARA REDES DE ACUEDUCTO | D12: =COUNTIF($B$6:B12,B12) -> 7
A13: 11148 | B13: 1114 | C13: ACCESORIOS HD PARA REDES DE ACUEDUCTO | D13: =COUNTIF($B$6:B13,B13) -> 8
A14: 11149 | B14: 1114 | C14: ACCESORIOS HD PARA REDES DE ACUEDUCTO | D14: =COUNTIF($B$6:B14,B14) -> 9
A15: 111410 | B15: 1114 | C15: ACCESORIOS HD PARA REDES DE ACUEDUCTO | D15: =COUNTIF($B$6:B15,B15) -> 10
A16: 111411 | B16: 1114 | C16: ACCESORIOS HD PARA REDES DE ACUEDUCTO | D16: =COUNTIF($B$6:B16,B16) -> 11
A17: 111412 | B17: 1114 | C17: ACCESORIOS HD PARA REDES DE ACUEDUCTO | D17: =COUNTIF($B$6:B17,B17) -> 12
A18: 111413 | B18: 1114 | C18: ACCESORIOS HD PARA REDES DE ACUEDUCTO | D18: =COUNTIF($B$6:B18,B18) -> 13
A19: 111414 | B19: 1114 | C19: ACCESORIOS HD PARA REDES DE ACUEDUCTO | D19: =COUNTIF($B$6:B19,B19) -> 14
A20: 11611 | B20: 1161 | C20: ACTIVIDADES A TODO COSTO | D20: =COUNTIF($B$6:B20,B20) -> 1
A21: 11612 | B21: 1161 | C21: ACTIVIDADES A TODO COSTO | D21: =COUNTIF($B$6:B21,B21) -> 2
A22: 11613 | B22: 1161 | C22: ACTIVIDADES A TODO COSTO | D22: =COUNTIF($B$6:B22,B22) -> 3
A23: 11614 | B23: 1161 | C23: ACTIVIDADES A TODO COSTO | D23: =COUNTIF($B$6:B23,B23) -> 4
A24: 11615 | B24: 1161 | C24: ACTIVIDADES A TODO COSTO | D24: =COUNTIF($B$6:B24,B24) -> 5
A25: 11616 | B25: 1161 | C25: ACTIVIDADES A TODO COSTO | D25: =COUNTIF($B$6:B25,B25) -> 6
A26: 11617 | B26: 1161 | C26: ACTIVIDADES A TODO COSTO | D26: =COUNTIF($B$6:B26,B26) -> 7
A27: 11618 | B27: 1161 | C27: ACTIVIDADES A TODO COSTO | D27: =COUNTIF($B$6:B27,B27) -> 8
A28: 11619 | B28: 1161 | C28: ACTIVIDADES A TODO COSTO | D28: =COUNTIF($B$6:B28,B28) -> 9
A29: 116110 | B29: 1161 | C29: ACTIVIDADES A TODO COSTO | D29: =COUNTIF($B$6:B29,B29) -> 10
A30: 116111 | B30: 1161 | C30: ACTIVIDADES A TODO COSTO | D30: =COUNTIF($B$6:B30,B30) -> 11
A31: 116112 | B31: 1161 | C31: ACTIVIDADES A TODO COSTO | D31: =COUNTIF($B$6:B31,B31) -> 12
A32: 116113 | B32: 1161 | C32: ACTIVIDADES A TODO COSTO | D32: =COUNTIF($B$6:B32,B32) -> 13
A33: 116114 | B33: 1161 | C33: ACTIVIDADES A TODO COSTO | D33: =COUNTIF($B$6:B33,B33) -> 14
A34: 116115 | B34: 1161 | C34: ACTIVIDADES A TODO COSTO | D34: =COUNTIF($B$6:B34,B34) -> 15
A35: 11021 | B35: 1102 | C35: AGREGADOS PETREOS, BASES Y SUBBASES GRANULARES | D35: =COUNTIF($B$6:B35,B35) -> 1
A36: 11022 | B36: 1102 | C36: AGREGADOS PETREOS, BASES Y SUBBASES GRANULARES | D36: =COUNTIF($B$6:B36,B36) -> 2
A37: 11023 | B37: 1102 | C37: AGREGADOS PETREOS, BASES Y SUBBASES GRANULARES | D37: =COUNTIF($B$6:B37,B37) -> 3
A38: 11024 | B38: 1102 | C38: AGREGADOS PETREOS, BASES Y SUBBASES GRANULARES | D38: =COUNTIF($B$6:B38,B38) -> 4
A39: 11025 | B39: 1102 | C39: AGREGADOS PETREOS, BASES Y SUBBASES GRANULARES | D39: =COUNTIF($B$6:B39,B39) -> 5
A40: 11026 | B40: 1102 | C40: AGREGADOS PETREOS, BASES Y SUBBASES GRANULARES | D40: =COUNTIF($B$6:B40,B40) -> 6
A41: 11027 | B41: 1102 | C41: AGREGADOS PETREOS, BASES Y SUBBASES GRANULARES | D41: =COUNTIF($B$6:B41,B41) -> 7
A42: 11028 | B42: 1102 | C42: AGREGADOS PETREOS, BASES Y SUBBASES GRANULARES | D42: =COUNTIF($B$6:B42,B42) -> 8
A43: 11029 | B43: 1102 | C43: AGREGADOS PETREOS, BASES Y SUBBASES GRANULARES | D43: =COUNTIF($B$6:B43,B43) -> 9
A44: 110210 | B44: 1102 | C44: AGREGADOS PETREOS, BASES Y SUBBASES GRANULARES | D44: =COUNTIF($B$6:B44,B44) -> 10
A45: 110211 | B45: 1102 | C45: AGREGADOS PETREOS, BASES Y SUBBASES GRANULARES | D45: =COUNTIF($B$6:B45,B45) -> 11
A46: 110212 | B46: 1102 | C46: AGREGADOS PETREOS, BASES Y SUBBASES GRANULARES | D46: =COUNTIF($B$6:B46,B46) -> 12
A47: 110213 | B47: 1102 | C47: AGREGADOS PETREOS, BASES Y SUBBASES GRANULARES | D47: =COUNTIF($B$6:B47,B47) -> 13
A48: 110214 | B48: 1102 | C48: AGREGADOS PETREOS, BASES Y SUBBASES GRANULARES | D48: =COUNTIF($B$6:B48,B48) -> 14
A49: 110215 | B49: 1102 | C49: AGREGADOS PETREOS, BASES Y SUBBASES GRANULARES | D49: =COUNTIF($B$6:B49,B49) -> 15
A50: 110216 | B50: 1102 | C50: AGREGADOS PETREOS, BASES Y SUBBASES GRANULARES | D50: =COUNTIF($B$6:B50,B50) -> 16
A51: 110217 | B51: 1102 | C51: AGREGADOS PETREOS, BASES Y SUBBASES GRANULARES | D51: =COUNTIF($B$6:B51,B51) -> 17
A52: 11471 | B52: 1147 | C52: ARBOLES, GRAMAS, VEGETACION Y PLANTACION PAISAJISTICA | D52: =COUNTIF($B$6:B52,B52) -> 1
A53: 11472 | B53: 1147 | C53: ARBOLES, GRAMAS, VEGETACION Y PLANTACION PAISAJISTICA | D53: =COUNTIF($B$6:B53,B53) -> 2
A54: 11271 | B54: 1127 | C54: BORDILLOS Y LOSETAS | D54: =COUNTIF($B$6:B54,B54) -> 1
A55: 11272 | B55: 1127 | C55: BORDILLOS Y LOSETAS | D55: =COUNTIF($B$6:B55,B55) -> 2
A56: 11273 | B56: 1127 | C56: BORDILLOS Y LOSETAS | D56: =COUNTIF($B$6:B56,B56) -> 3
A57: 11274 | B57: 1127 | C57: BORDILLOS Y LOSETAS | D57: =COUNTIF($B$6:B57,B57) -> 4
A58: 11275 | B58: 1127 | C58: BORDILLOS Y LOSETAS | D58: =COUNTIF($B$6:B58,B58) -> 5
A59: 11276 | B59: 1127 | C59: BORDILLOS Y LOSETAS | D59: =COUNTIF($B$6:B59,B59) -> 6
A60: 11277 | B60: 1127 | C60: BORDILLOS Y LOSETAS | D60: =COUNTIF($B$6:B60,B60) -> 7
A61: 11278 | B61: 1127 | C61: BORDILLOS Y LOSETAS | D61: =COUNTIF($B$6:B61,B61) -> 8
A62: 11279 | B62: 1127 | C62: BORDILLOS Y LOSETAS | D62: =COUNTIF($B$6:B62,B62) -> 9
A63: 11211 | B63: 1121 | C63: CABLES Y ACCESORIOS ELECTRICOS | D63: =COUNTIF($B$6:B63,B63) -> 1
A64: 11212 | B64: 1121 | C64: CABLES Y ACCESORIOS ELECTRICOS | D64: =COUNTIF($B$6:B64,B64) -> 2
A65: 11213 | B65: 1121 | C65: CABLES Y ACCESORIOS ELECTRICOS | D65: =COUNTIF($B$6:B65,B65) -> 3
A66: 11214 | B66: 1121 | C66: CABLES Y ACCESORIOS ELECTRICOS | D66: =COUNTIF($B$6:B66,B66) -> 4
A67: 11215 | B67: 1121 | C67: CABLES Y ACCESORIOS ELECTRICOS | D67: =COUNTIF($B$6:B67,B67) -> 5
A68: 11216 | B68: 1121 | C68: CABLES Y ACCESORIOS ELECTRICOS | D68: =COUNTIF($B$6:B68,B68) -> 6
A69: 11217 | B69: 1121 | C69: CABLES Y ACCESORIOS ELECTRICOS | D69: =COUNTIF($B$6:B69,B69) -> 7
A70: 11218 | B70: 1121 | C70: CABLES Y ACCESORIOS ELECTRICOS | D70: =COUNTIF($B$6:B70,B70) -> 8
A71: 11219 | B71: 1121 | C71: CABLES Y ACCESORIOS ELECTRICOS | D71: =COUNTIF($B$6:B71,B71) -> 9
A72: 112110 | B72: 1121 | C72: CABLES Y ACCESORIOS ELECTRICOS | D72: =COUNTIF($B$6:B72,B72) -> 10
A73: 112111 | B73: 1121 | C73: CABLES Y ACCESORIOS ELECTRICOS | D73: =COUNTIF($B$6:B73,B73) -> 11
A74: 112112 | B74: 1121 | C74: CABLES Y ACCESORIOS ELECTRICOS | D74: =COUNTIF($B$6:B74,B74) -> 12
A75: 112113 | B75: 1121 | C75: CABLES Y ACCESORIOS ELECTRICOS | D75: =COUNTIF($B$6:B75,B75) -> 13
A76: 112114 | B76: 1121 | C76: CABLES Y ACCESORIOS ELECTRICOS | D76: =COUNTIF($B$6:B76,B76) -> 14
A77: 112115 | B77: 1121 | C77: CABLES Y ACCESORIOS ELECTRICOS | D77: =COUNTIF($B$6:B77,B77) -> 15
A78: 112116 | B78: 1121 | C78: CABLES Y ACCESORIOS ELECTRICOS | D78: =COUNTIF($B$6:B78,B78) -> 16
A79: 112117 | B79: 1121 | C79: CABLES Y ACCESORIOS ELECTRICOS | D79: =COUNTIF($B$6:B79,B79) -> 17
A80: 112118 | B80: 1121 | C80: CABLES Y ACCESORIOS ELECTRICOS | D80: =COUNTIF($B$6:B80,B80) -> 18
A81: 112119 | B81: 1121 | C81: CABLES Y ACCESORIOS ELECTRICOS | D81: =COUNTIF($B$6:B81,B81) -> 19
A82: 112120 | B82: 1121 | C82: CABLES Y ACCESORIOS ELECTRICOS | D82: =COUNTIF($B$6:B82,B82) -> 20
A83: 112121 | B83: 1121 | C83: CABLES Y ACCESORIOS ELECTRICOS | D83: =COUNTIF($B$6:B83,B83) -> 21
A84: 112122 | B84: 1121 | C84: CABLES Y ACCESORIOS ELECTRICOS | D84: =COUNTIF($B$6:B84,B84) -> 22
A85: 112123 | B85: 1121 | C85: CABLES Y ACCESORIOS ELECTRICOS | D85: =COUNTIF($B$6:B85,B85) -> 23
A86: 112124 | B86: 1121 | C86: CABLES Y ACCESORIOS ELECTRICOS | D86: =COUNTIF($B$6:B86,B86) -> 24
A87: 112125 | B87: 1121 | C87: CABLES Y ACCESORIOS ELECTRICOS | D87: =COUNTIF($B$6:B87,B87) -> 25
A88: 112126 | B88: 1121 | C88: CABLES Y ACCESORIOS ELECTRICOS | D88: =COUNTIF($B$6:B88,B88) -> 26
A89: 112127 | B89: 1121 | C89: CABLES Y ACCESORIOS ELECTRICOS | D89: =COUNTIF($B$6:B89,B89) -> 27
A90: 112128 | B90: 1121 | C90: CABLES Y ACCESORIOS ELECTRICOS | D90: =COUNTIF($B$6:B90,B90) -> 28
A91: 112129 | B91: 1121 | C91: CABLES Y ACCESORIOS ELECTRICOS | D91: =COUNTIF($B$6:B91,B91) -> 29
A92: 112130 | B92: 1121 | C92: CABLES Y ACCESORIOS ELECTRICOS | D92: =COUNTIF($B$6:B92,B92) -> 30
A93: 112131 | B93: 1121 | C93: CABLES Y ACCESORIOS ELECTRICOS | D93: =COUNTIF($B$6:B93,B93) -> 31
A94: 112132 | B94: 1121 | C94: CABLES Y ACCESORIOS ELECTRICOS | D94: =COUNTIF($B$6:B94,B94) -> 32
A95: 112133 | B95: 1121 | C95: CABLES Y ACCESORIOS ELECTRICOS | D95: =COUNTIF($B$6:B95,B95) -> 33
A96: 112134 | B96: 1121 | C96: CABLES Y ACCESORIOS ELECTRICOS | D96: =COUNTIF($B$6:B96,B96) -> 34
A97: 112135 | B97: 1121 | C97: CABLES Y ACCESORIOS ELECTRICOS | D97: =COUNTIF($B$6:B97,B97) -> 35
A98: 112136 | B98: 1121 | C98: CABLES Y ACCESORIOS ELECTRICOS | D98: =COUNTIF($B$6:B98,B98) -> 36
A99: 112137 | B99: 1121 | C99: CABLES Y ACCESORIOS ELECTRICOS | D99: =COUNTIF($B$6:B99,B99) -> 37
A100: 11951 | B100: 1195 | C100: CARPINTERIA METALICA | D100: =COUNTIF($B$6:B100,B100) -> 1
A101: 11952 | B101: 1195 | C101: CARPINTERIA METALICA | D101: =COUNTIF($B$6:B101,B101) -> 2
A102: 11953 | B102: 1195 | C102: CARPINTERIA METALICA | D102: =COUNTIF($B$6:B102,B102) -> 3
A103: 11954 | B103: 1195 | C103: CARPINTERIA METALICA | D103: =COUNTIF($B$6:B103,B103) -> 4
A104: 11301 | B104: 1130 | C104: COMBUSTIBLES Y LUBRICANTES | D104: =COUNTIF($B$6:B104,B104) -> 1
A105: 11031 | B105: 1103 | C105: CONCRETOS Y MORTEROS PREMEZCLADOS | D105: =COUNTIF($B$6:B105,B105) -> 1
A106: 11032 | B106: 1103 | C106: CONCRETOS Y MORTEROS PREMEZCLADOS | D106: =COUNTIF($B$6:B106,B106) -> 2
A107: 11033 | B107: 1103 | C107: CONCRETOS Y MORTEROS PREMEZCLADOS | D107: =COUNTIF($B$6:B107,B107) -> 3
A108: 11034 | B108: 1103 | C108: CONCRETOS Y MORTEROS PREMEZCLADOS | D108: =COUNTIF($B$6:B108,B108) -> 4
A109: 11035 | B109: 1103 | C109: CONCRETOS Y MORTEROS PREMEZCLADOS | D109: =COUNTIF($B$6:B109,B109) -> 5
A110: 11036 | B110: 1103 | C110: CONCRETOS Y MORTEROS PREMEZCLADOS | D110: =COUNTIF($B$6:B110,B110) -> 6
A111: 11037 | B111: 1103 | C111: CONCRETOS Y MORTEROS PREMEZCLADOS | D111: =COUNTIF($B$6:B111,B111) -> 7
A112: 12001 | B112: 1200 | C112: CUBIERTA, CIELO RASO, CORTASOL TIPO TRANSMILENIO | D112: =COUNTIF($B$6:B112,B112) -> 1
A113: 12002 | B113: 1200 | C113: CUBIERTA, CIELO RASO, CORTASOL TIPO TRANSMILENIO | D113: =COUNTIF($B$6:B113,B113) -> 2
A114: 12003 | B114: 1200 | C114: CUBIERTA, CIELO RASO, CORTASOL TIPO TRANSMILENIO | D114: =COUNTIF($B$6:B114,B114) -> 3
A115: 11941 | B115: 1194 | C115: DESMONTE Y TRASLADO DE ELEMENTOS METALICOS | D115: =COUNTIF($B$6:B115,B115) -> 1
A116: 11481 | B116: 1148 | C116: DOTACION (EPP) Y EQUIPO Y HERRAMIENTA SEGURIDAD INDUSTRIAL | D116: =COUNTIF($B$6:B116,B116) -> 1
A117: 11482 | B117: 1148 | C117: DOTACION (EPP) Y EQUIPO Y HERRAMIENTA SEGURIDAD INDUSTRIAL | D117: =COUNTIF($B$6:B117,B117) -> 2
A118: 11483 | B118: 1148 | C118: DOTACION (EPP) Y EQUIPO Y HERRAMIENTA SEGURIDAD INDUSTRIAL | D118: =COUNTIF($B$6:B118,B118) -> 3
A119: 11484 | B119: 1148 | C119: DOTACION (EPP) Y EQUIPO Y HERRAMIENTA SEGURIDAD INDUSTRIAL | D119: =COUNTIF($B$6:B119,B119) -> 4
A120: 11485 | B120: 1148 | C120: DOTACION (EPP) Y EQUIPO Y HERRAMIENTA SEGURIDAD INDUSTRIAL | D120: =COUNTIF($B$6:B120,B120) -> 5
A121: 11486 | B121: 1148 | C121: DOTACION (EPP) Y EQUIPO Y HERRAMIENTA SEGURIDAD INDUSTRIAL | D121: =COUNTIF($B$6:B121,B121) -> 6
A122: 11487 | B122: 1148 | C122: DOTACION (EPP) Y EQUIPO Y HERRAMIENTA SEGURIDAD INDUSTRIAL | D122: =COUNTIF($B$6:B122,B122) -> 7
A123: 11488 | B123: 1148 | C123: DOTACION (EPP) Y EQUIPO Y HERRAMIENTA SEGURIDAD INDUSTRIAL | D123: =COUNTIF($B$6:B123,B123) -> 8
A124: 11489 | B124: 1148 | C124: DOTACION (EPP) Y EQUIPO Y HERRAMIENTA SEGURIDAD INDUSTRIAL | D124: =COUNTIF($B$6:B124,B124) -> 9
A125: 114810 | B125: 1148 | C125: DOTACION (EPP) Y EQUIPO Y HERRAMIENTA SEGURIDAD INDUSTRIAL | D125: =COUNTIF($B$6:B125,B125) -> 10
A126: 114811 | B126: 1148 | C126: DOTACION (EPP) Y EQUIPO Y HERRAMIENTA SEGURIDAD INDUSTRIAL | D126: =COUNTIF($B$6:B126,B126) -> 11
A127: 114812 | B127: 1148 | C127: DOTACION (EPP) Y EQUIPO Y HERRAMIENTA SEGURIDAD INDUSTRIAL | D127: =COUNTIF($B$6:B127,B127) -> 12
A128: 114813 | B128: 1148 | C128: DOTACION (EPP) Y EQUIPO Y HERRAMIENTA SEGURIDAD INDUSTRIAL | D128: =COUNTIF($B$6:B128,B128) -> 13
A129: 114814 | B129: 1148 | C129: DOTACION (EPP) Y EQUIPO Y HERRAMIENTA SEGURIDAD INDUSTRIAL | D129: =COUNTIF($B$6:B129,B129) -> 14
A130: 114815 | B130: 1148 | C130: DOTACION (EPP) Y EQUIPO Y HERRAMIENTA SEGURIDAD INDUSTRIAL | D130: =COUNTIF($B$6:B130,B130) -> 15
A131: 114816 | B131: 1148 | C131: DOTACION (EPP) Y EQUIPO Y HERRAMIENTA SEGURIDAD INDUSTRIAL | D131: =COUNTIF($B$6:B131,B131) -> 16
A132: 114817 | B132: 1148 | C132: DOTACION (EPP) Y EQUIPO Y HERRAMIENTA SEGURIDAD INDUSTRIAL | D132: =COUNTIF($B$6:B132,B132) -> 17
A133: 114818 | B133: 1148 | C133: DOTACION (EPP) Y EQUIPO Y HERRAMIENTA SEGURIDAD INDUSTRIAL | D133: =COUNTIF($B$6:B133,B133) -> 18
A134: 114819 | B134: 1148 | C134: DOTACION (EPP) Y EQUIPO Y HERRAMIENTA SEGURIDAD INDUSTRIAL | D134: =COUNTIF($B$6:B134,B134) -> 19
A135: 114820 | B135: 1148 | C135: DOTACION (EPP) Y EQUIPO Y HERRAMIENTA SEGURIDAD INDUSTRIAL | D135: =COUNTIF($B$6:B135,B135) -> 20
A136: 114821 | B136: 1148 | C136: DOTACION (EPP) Y EQUIPO Y HERRAMIENTA SEGURIDAD INDUSTRIAL | D136: =COUNTIF($B$6:B136,B136) -> 21
A137: 114822 | B137: 1148 | C137: DOTACION (EPP) Y EQUIPO Y HERRAMIENTA SEGURIDAD INDUSTRIAL | D137: =COUNTIF($B$6:B137,B137) -> 22
A138: 114823 | B138: 1148 | C138: DOTACION (EPP) Y EQUIPO Y HERRAMIENTA SEGURIDAD INDUSTRIAL | D138: =COUNTIF($B$6:B138,B138) -> 23
A139: 114824 | B139: 1148 | C139: DOTACION (EPP) Y EQUIPO Y HERRAMIENTA SEGURIDAD INDUSTRIAL | D139: =COUNTIF($B$6:B139,B139) -> 24
A140: 114825 | B140: 1148 | C140: DOTACION (EPP) Y EQUIPO Y HERRAMIENTA SEGURIDAD INDUSTRIAL | D140: =COUNTIF($B$6:B140,B140) -> 25
A141: 114826 | B141: 1148 | C141: DOTACION (EPP) Y EQUIPO Y HERRAMIENTA SEGURIDAD INDUSTRIAL | D141: =COUNTIF($B$6:B141,B141) -> 26
A142: 114827 | B142: 1148 | C142: DOTACION (EPP) Y EQUIPO Y HERRAMIENTA SEGURIDAD INDUSTRIAL | D142: =COUNTIF($B$6:B142,B142) -> 27
A143: 114828 | B143: 1148 | C143: DOTACION (EPP) Y EQUIPO Y HERRAMIENTA SEGURIDAD INDUSTRIAL | D143: =COUNTIF($B$6:B143,B143) -> 28
A144: 114829 | B144: 1148 | C144: DOTACION (EPP) Y EQUIPO Y HERRAMIENTA SEGURIDAD INDUSTRIAL | D144: =COUNTIF($B$6:B144,B144) -> 29
A145: 114830 | B145: 1148 | C145: DOTACION (EPP) Y EQUIPO Y HERRAMIENTA SEGURIDAD INDUSTRIAL | D145: =COUNTIF($B$6:B145,B145) -> 30
A146: 11111 | B146: 1111 | C146: DUCTOS PVC - ELECTRICOS/TELEFONICOS TIPO TDP-DB-EB | D146: =COUNTIF($B$6:B146,B146) -> 1
A147: 11112 | B147: 1111 | C147: DUCTOS PVC - ELECTRICOS/TELEFONICOS TIPO TDP-DB-EB | D147: =COUNTIF($B$6:B147,B147) -> 2
A148: 11113 | B148: 1111 | C148: DUCTOS PVC - ELECTRICOS/TELEFONICOS TIPO TDP-DB-EB | D148: =COUNTIF($B$6:B148,B148) -> 3
A149: 11114 | B149: 1111 | C149: DUCTOS PVC - ELECTRICOS/TELEFONICOS TIPO TDP-DB-EB | D149: =COUNTIF($B$6:B149,B149) -> 4
A150: 11115 | B150: 1111 | C150: DUCTOS PVC - ELECTRICOS/TELEFONICOS TIPO TDP-DB-EB | D150: =COUNTIF($B$6:B150,B150) -> 5
A151: 11116 | B151: 1111 | C151: DUCTOS PVC - ELECTRICOS/TELEFONICOS TIPO TDP-DB-EB | D151: =COUNTIF($B$6:B151,B151) -> 6
A152: 11041 | B152: 1104 | C152: EMULSIONES Y MEZCLAS ASFALTICAS | D152: =COUNTIF($B$6:B152,B152) -> 1
A153: 11042 | B153: 1104 | C153: EMULSIONES Y MEZCLAS ASFALTICAS | D153: =COUNTIF($B$6:B153,B153) -> 2
A154: 11043 | B154: 1104 | C154: EMULSIONES Y MEZCLAS ASFALTICAS | D154: =COUNTIF($B$6:B154,B154) -> 3
A155: 11044 | B155: 1104 | C155: EMULSIONES Y MEZCLAS ASFALTICAS | D155: =COUNTIF($B$6:B155,B155) -> 4
A156: 11045 | B156: 1104 | C156: EMULSIONES Y MEZCLAS ASFALTICAS | D156: =COUNTIF($B$6:B156,B156) -> 5
A157: 11046 | B157: 1104 | C157: EMULSIONES Y MEZCLAS ASFALTICAS | D157: =COUNTIF($B$6:B157,B157) -> 6
A158: 11047 | B158: 1104 | C158: EMULSIONES Y MEZCLAS ASFALTICAS | D158: =COUNTIF($B$6:B158,B158) -> 7
A159: 11731 | B159: 1173 | C159: ENSAYO CAMPO - DIAGNOSTICO DE PAVIMENTOS | D159: =COUNTIF($B$6:B159,B159) -> 1
A160: 11732 | B160: 1173 | C160: ENSAYO CAMPO - DIAGNOSTICO DE PAVIMENTOS | D160: =COUNTIF($B$6:B160,B160) -> 2
A161: 11733 | B161: 1173 | C161: ENSAYO CAMPO - DIAGNOSTICO DE PAVIMENTOS | D161: =COUNTIF($B$6:B161,B161) -> 3
A162: 11734 | B162: 1173 | C162: ENSAYO CAMPO - DIAGNOSTICO DE PAVIMENTOS | D162: =COUNTIF($B$6:B162,B162) -> 4
A163: 11735 | B163: 1173 | C163: ENSAYO CAMPO - DIAGNOSTICO DE PAVIMENTOS | D163: =COUNTIF($B$6:B163,B163) -> 5
A164: 11736 | B164: 1173 | C164: ENSAYO CAMPO - DIAGNOSTICO DE PAVIMENTOS | D164: =COUNTIF($B$6:B164,B164) -> 6
A165: 11737 | B165: 1173 | C165: ENSAYO CAMPO - DIAGNOSTICO DE PAVIMENTOS | D165: =COUNTIF($B$6:B165,B165) -> 7
A166: 11738 | B166: 1173 | C166: ENSAYO CAMPO - DIAGNOSTICO DE PAVIMENTOS | D166: =COUNTIF($B$6:B166,B166) -> 8
A167: 11739 | B167: 1173 | C167: ENSAYO CAMPO - DIAGNOSTICO DE PAVIMENTOS | D167: =COUNTIF($B$6:B167,B167) -> 9
A168: 117310 | B168: 1173 | C168: ENSAYO CAMPO - DIAGNOSTICO DE PAVIMENTOS | D168: =COUNTIF($B$6:B168,B168) -> 10
A169: 117311 | B169: 1173 | C169: ENSAYO CAMPO - DIAGNOSTICO DE PAVIMENTOS | D169: =COUNTIF($B$6:B169,B169) -> 11
A170: 12241 | B170: 1224 | C170: ENSAYO CAMPO - RECUBRIMIENTO DE ESTRUCTURA METALICA | D170: =COUNTIF($B$6:B170,B170) -> 1
A171: 12242 | B171: 1224 | C171: ENSAYO CAMPO - RECUBRIMIENTO DE ESTRUCTURA METALICA | D171: =COUNTIF($B$6:B171,B171) -> 2
A172: 12243 | B172: 1224 | C172: ENSAYO CAMPO - RECUBRIMIENTO DE ESTRUCTURA METALICA | D172: =COUNTIF($B$6:B172,B172) -> 3
A173: 12251 | B173: 1225 | C173: ENSAYO CAMPO - SOLDADURAS | D173: =COUNTIF($B$6:B173,B173) -> 1
A174: 12252 | B174: 1225 | C174: ENSAYO CAMPO - SOLDADURAS | D174: =COUNTIF($B$6:B174,B174) -> 2
A175: 12253 | B175: 1225 | C175: ENSAYO CAMPO - SOLDADURAS | D175: =COUNTIF($B$6:B175,B175) -> 3
A176: 12254 | B176: 1225 | C176: ENSAYO CAMPO - SOLDADURAS | D176: =COUNTIF($B$6:B176,B176) -> 4
A177: 12255 | B177: 1225 | C177: ENSAYO CAMPO - SOLDADURAS | D177: =COUNTIF($B$6:B177,B177) -> 5
A178: 12121 | B178: 1212 | C178: ENSAYO DE LABORATORIO - ACERO DE REFUERZO Y ACERO PRETENSADO | D178: =COUNTIF($B$6:B178,B178) -> 1
A179: 12122 | B179: 1212 | C179: ENSAYO DE LABORATORIO - ACERO DE REFUERZO Y ACERO PRETENSADO | D179: =COUNTIF($B$6:B179,B179) -> 2
A180: 12123 | B180: 1212 | C180: ENSAYO DE LABORATORIO - ACERO DE REFUERZO Y ACERO PRETENSADO | D180: =COUNTIF($B$6:B180,B180) -> 3
A181: 12124 | B181: 1212 | C181: ENSAYO DE LABORATORIO - ACERO DE REFUERZO Y ACERO PRETENSADO | D181: =COUNTIF($B$6:B181,B181) -> 4
A182: 12125 | B182: 1212 | C182: ENSAYO DE LABORATORIO - ACERO DE REFUERZO Y ACERO PRETENSADO | D182: =COUNTIF($B$6:B182,B182) -> 5
A183: 12126 | B183: 1212 | C183: ENSAYO DE LABORATORIO - ACERO DE REFUERZO Y ACERO PRETENSADO | D183: =COUNTIF($B$6:B183,B183) -> 6
A184: 12141 | B184: 1214 | C184: ENSAYO DE LABORATORIO - ALUMINIO | D184: =COUNTIF($B$6:B184,B184) -> 1
A185: 12151 | B185: 1215 | C185: ENSAYO DE LABORATORIO - CONCRETO PRETENSADO | D185: =COUNTIF($B$6:B185,B185) -> 1
A186: 12152 | B186: 1215 | C186: ENSAYO DE LABORATORIO - CONCRETO PRETENSADO | D186: =COUNTIF($B$6:B186,B186) -> 2
A187: 12153 | B187: 1215 | C187: ENSAYO DE LABORATORIO - CONCRETO PRETENSADO | D187: =COUNTIF($B$6:B187,B187) -> 3
A188: 12181 | B188: 1218 | C188: ENSAYO DE LABORATORIO - NEOPRENO | D188: =COUNTIF($B$6:B188,B188) -> 1
A189: 12182 | B189: 1218 | C189: ENSAYO DE LABORATORIO - NEOPRENO | D189: =COUNTIF($B$6:B189,B189) -> 2
A190: 12183 | B190: 1218 | C190: ENSAYO DE LABORATORIO - NEOPRENO | D190: =COUNTIF($B$6:B190,B190) -> 3
A191: 12184 | B191: 1218 | C191: ENSAYO DE LABORATORIO - NEOPRENO | D191: =COUNTIF($B$6:B191,B191) -> 4
A192: 12191 | B192: 1219 | C192: ENSAYO DE LABORATORIO - PERNOS | D192: =COUNTIF($B$6:B192,B192) -> 1
A193: 12192 | B193: 1219 | C193: ENSAYO DE LABORATORIO - PERNOS | D193: =COUNTIF($B$6:B193,B193) -> 2
A194: 12193 | B194: 1219 | C194: ENSAYO DE LABORATORIO - PERNOS | D194: =COUNTIF($B$6:B194,B194) -> 3
A195: 12201 | B195: 1220 | C195: ENSAYO DE LABORATORIO - PINTURA | D195: =COUNTIF($B$6:B195,B195) -> 1
A196: 12202 | B196: 1220 | C196: ENSAYO DE LABORATORIO - PINTURA | D196: =COUNTIF($B$6:B196,B196) -> 2
A197: 12203 | B197: 1220 | C197: ENSAYO DE LABORATORIO - PINTURA | D197: =COUNTIF($B$6:B197,B197) -> 3
A198: 12211 | B198: 1221 | C198: ENSAYO DE LABORATORIO - PLASTICO RÍGIDO | D198: =COUNTIF($B$6:B198,B198) -> 1
A199: 12212 | B199: 1221 | C199: ENSAYO DE LABORATORIO - PLASTICO RÍGIDO | D199: =COUNTIF($B$6:B199,B199) -> 2
A200: 12213 | B200: 1221 | C200: ENSAYO DE LABORATORIO - PLASTICO RÍGIDO | D200: =COUNTIF($B$6:B200,B200) -> 3
A201: 12214 | B201: 1221 | C201: ENSAYO DE LABORATORIO - PLASTICO RÍGIDO | D201: =COUNTIF($B$6:B201,B201) -> 4
A202: 12215 | B202: 1221 | C202: ENSAYO DE LABORATORIO - PLASTICO RÍGIDO | D202: =COUNTIF($B$6:B202,B202) -> 5
C203: ENSAYO DE VALIDACIÓN EN CAMPO - SOLDADURAS | D203: =COUNTIF($B$6:B203,B203) -> 1 | F203: 1210 | G203: COD | H203: SE BORRARÁ
... 504 more rows

Sheet Hoja1 (hidden)
B3: CODIGO GRUPO | C3: GRUPO DE INSUMOS | D3: CANTIDAD DE PROVEEDORES (TOTAL)
B4: 1114 | C4: ACCESORIOS HD PARA REDES DE ACUEDUCTO | D4: =COUNTIF('LISTA TOTAL PROVEEDORES'!$B$3:$B$9969,Hoja1!B4) -> 13
B5: 1161 | C5: ACTIVIDADES A TODO COSTO | D5: =COUNTIF('LISTA TOTAL PROVEEDORES'!$B$3:$B$9969,Hoja1!B5) -> 14
B6: 1102 | C6: AGREGADOS PETREOS, BASES Y SUBBASES GRANULARES | D6: =COUNTIF('LISTA TOTAL PROVEEDORES'!$B$3:$B$9969,Hoja1!B6) -> 17
B7: 1147 | C7: ARBOLES, GRAMAS, VEGETACION Y PLANTACION PAISAJISTICA | D7: =COUNTIF('LISTA TOTAL PROVEEDORES'!$B$3:$B$9969,Hoja1!B7) -> 3
B8: 1127 | C8: BORDILLOS Y LOSETAS | D8: =COUNTIF('LISTA TOTAL PROVEEDORES'!$B$3:$B$9969,Hoja1!B8) -> 8
B9: 1121 | C9: CABLES Y ACCESORIOS ELECTRICOS | D9: =COUNTIF('LISTA TOTAL PROVEEDORES'!$B$3:$B$9969,Hoja1!B9) -> 36
B10: 1195 | C10: CARPINTERIA METALICA | D10: =COUNTIF('LISTA TOTAL PROVEEDORES'!$B$3:$B$9969,Hoja1!B10) -> 3
B11: 1130 | C11: COMBUSTIBLES Y LUBRICANTES | D11: =COUNTIF('LISTA TOTAL PROVEEDORES'!$B$3:$B$9969,Hoja1!B11) -> 1
B12: 1103 | C12: CONCRETOS Y MORTEROS PREMEZCLADOS | D12: =COUNTIF('LISTA TOTAL PROVEEDORES'!$B$3:$B$9969,Hoja1!B12) -> 6
B13: 1200 | C13: CUBIERTA, CIELO RASO, CORTASOL TIPO TRANSMILENIO | D13: =COUNTIF('LISTA TOTAL PROVEEDORES'!$B$3:$B$9969,Hoja1!B13) -> 2
B14: 1194 | C14: DESMONTE Y TRASLADO DE ELEMENTOS METALICOS | D14: =COUNTIF('LISTA TOTAL PROVEEDORES'!$B$3:$B$9969,Hoja1!B14) -> 1
B15: 1148 | C15: DOTACION (EPP) Y EQUIPO Y HERRAMIENTA SEGURIDAD INDUSTRIAL | D15: =COUNTIF('LISTA TOTAL PROVEEDORES'!$B$3:$B$9969,Hoja1!B15) -> 30
B16: 1111 | C16: DUCTOS PVC - ELECTRICOS/TELEFONICOS TIPO TDP-DB-EB | D16: =COUNTIF('LISTA TOTAL PROVEEDORES'!$B$3:$B$9969,Hoja1!B16) -> 6
B17: 1104 | C17: EMULSIONES Y MEZCLAS ASFALTICAS | D17: =COUNTIF('LISTA TOTAL PROVEEDORES'!$B$3:$B$9969,Hoja1!B17) -> 7
B18: 1173 | C18: ENSAYO CAMPO - DIAGNOSTICO DE PAVIMENTOS | D18: =COUNTIF('LISTA TOTAL PROVEEDORES'!$B$3:$B$9969,Hoja1!B18) -> 11
B19: 1224 | C19: ENSAYO CAMPO - RECUBRIMIENTO DE ESTRUCTURA METALICA | D19: =COUNTIF('LISTA TOTAL PROVEEDORES'!$B$3:$B$9969,Hoja1!B19) -> 3
B20: 1225 | C20: ENSAYO CAMPO - SOLDADURAS | D20: =COUNTIF('LISTA TOTAL PROVEEDORES'!$B$3:$B$9969,Hoja1!B20) -> 6
B21: 1212 | C21: ENSAYO DE LABORATORIO - ACERO DE REFUERZO Y ACERO PRETENSADO | D21: =COUNTIF('LISTA TOTAL PROVEEDORES'!$B$3:$B$9969,Hoja1!B21) -> 6
B22: 1214 | C22: ENSAYO DE LABORATORIO - ALUMINIO | D22: =COUNTIF('LISTA TOTAL PROVEEDORES'!$B$3:$B$9969,Hoja1!B22) -> 1
B23: 1215 | C23: ENSAYO DE LABORATORIO - CONCRETO PRETENSADO | D23: =COUNTIF('LISTA TOTAL PROVEEDORES'!$B$3:$B$9969,Hoja1!B23) -> 9
B24: 1218 | C24: ENSAYO DE LABORATORIO - NEOPRENO | D24: =COUNTIF('LISTA TOTAL PROVEEDORES'!$B$3:$B$9969,Hoja1!B24) -> 6
B25: 1219 | C25: ENSAYO DE LABORATORIO - PERNOS | D25: =COUNTIF('LISTA TOTAL PROVEEDORES'!$B$3:$B$9969,Hoja1!B25) -> 3
B26: 1220 | C26: ENSAYO DE LABORATORIO - PINTURA | D26: =COUNTIF('LISTA TOTAL PROVEEDORES'!$B$3:$B$9969,Hoja1!B26) -> 4
B27: 1221 | C27: ENSAYO DE LABORATORIO - PLASTICO RÍGIDO | D27: =COUNTIF('LISTA TOTAL PROVEEDORES'!$B$3:$B$9969,Hoja1!B27) -> 6
A28: 1210 | B28: 1210 | C28: ENSAYO DE VALIDACIÓN EN CAMPO - SOLDADURAS | D28: =5+5 -> 10
B29: 1172 | C29: ENSAYO DIAGNOSTICO ELEMENTO ESTRUCTURALES CONCRETO | D29: =COUNTIF('LISTA TOTAL PROVEEDORES'!$B$3:$B$9969,Hoja1!B29) -> 10
B30: 1211 | C30: ENSAYO LABORATORIO - ABRASIVOS | D30: =COUNTIF('LISTA TOTAL PROVEEDORES'!$B$3:$B$9969,Hoja1!B30) -> 1
B31: 1213 | C31: ENSAYO LABORATORIO - ACERO ESTRUCTURAL | D31: =COUNTIF('LISTA TOTAL PROVEEDORES'!$B$3:$B$9969,Hoja1!B31) -> 1
B32: 1171 | C32: ENSAYO LABORATORIO - AGREGADOS PETREOS | D32: =COUNTIF('LISTA TOTAL PROVEEDORES'!$B$3:$B$9969,Hoja1!B32) -> 16
B33: 1183 | C33: ENSAYO LABORATORIO - AIRE | D33: =COUNTIF('LISTA TOTAL PROVEEDORES'!$B$3:$B$9969,Hoja1!B33) -> 3
B34: 1177 | C34: ENSAYO LABORATORIO - ANÁLISIS DE AGUAS | D34: =COUNTIF('LISTA TOTAL PROVEEDORES'!$B$3:$B$9969,Hoja1!B34) -> 9
B35: 1169 | C35: ENSAYO LABORATORIO - CEMENTOS HIDRÁULICOS | D35: =COUNTIF('LISTA TOTAL PROVEEDORES'!$B$3:$B$9969,Hoja1!B35) -> 20
B36: 1181 | C36: ENSAYO LABORATORIO - COMPONENTE DE ESPACIO PÚBLICO | D36: =COUNTIF('LISTA TOTAL PROVEEDORES'!$B$3:$B$9969,Hoja1!B36) -> 11
B37: 1182 | C37: ENSAYO LABORATORIO - GEOTEXTILES | D37: =COUNTIF('LISTA TOTAL PROVEEDORES'!$B$3:$B$9969,Hoja1!B37) -> 4
B38: 1216 | C38: ENSAYO LABORATORIO - LUBRICANTE ADHESIVO | D38: =COUNTIF('LISTA TOTAL PROVEEDORES'!$B$3:$B$9969,Hoja1!B38) -> 1
B39: 1175 | C39: ENSAYO LABORATORIO - MATERIALES BITUMINOSOS | D39: =COUNTIF('LISTA TOTAL PROVEEDORES'!$B$3:$B$9969,Hoja1!B39) -> 9
B40: 1176 | C40: ENSAYO LABORATORIO - MEZCLAS ASFALTICAS | D40: =COUNTIF('LISTA TOTAL PROVEEDORES'!$B$3:$B$9969,Hoja1!B40) -> 15
B41: 1217 | C41: ENSAYO LABORATORIO - MORTERO | D41: =COUNTIF('LISTA TOTAL PROVEEDORES'!$B$3:$B$9969,Hoja1!B41) -> 4
B42: 1222 | C42: ENSAYO LABORATORIO - RESINA | D42: =COUNTIF('LISTA TOTAL PROVEEDORES'!$B$3:$B$9969,Hoja1!B42) -> 2
B43: 1178 | C43: ENSAYO LABORATORIO - ROCA | D43: =COUNTIF('LISTA TOTAL PROVEEDORES'!$B$3:$B$9969,Hoja1!B43) -> 7
B44: 1203 | C44: ENSAYO LABORATORIO - RUIDO | D44: =COUNTIF('LISTA TOTAL PROVEEDORES'!$B$3:$B$9969,Hoja1!B44) -> 3
B45: 1170 | C45: ENSAYO LABORATORIO - SUELOS | D45: =COUNTIF('LISTA TOTAL PROVEEDORES'!$B$3:$B$9969,Hoja1!B45) -> 20
B46: 1116 | C46: EQUIPO LIVIANO Y HERRAMIENTAS | D46: =COUNTIF('LISTA TOTAL PROVEEDORES'!$B$3:$B$9969,Hoja1!B46) -> 7
B47: 1115 | C47: EQUIPO PESADO | D47: =COUNTIF('LISTA TOTAL PROVEEDORES'!$B$3:$B$9969,Hoja1!B47) -> 7
B48: 1146 | C48: ESTRUCTURAS EN ACERO (CONVENCIONALES TIPO TRANSMILENIO) | D48: =COUNTIF('LISTA TOTAL PROVEEDORES'!$B$3:$B$9969,Hoja1!B48) -> 17
B49: 1158 | C49: EXAMENES MEDICOS | D49: =COUNTIF('LISTA TOTAL PROVEEDORES'!$B$3:$B$9969,Hoja1!B49) -> 3
B50: 1134 | C50: FORMALETAS, ANDAMIOS Y ACCESORIOS | D50: =COUNTIF('LISTA TOTAL PROVEEDORES'!$B$3:$B$9969,Hoja1!B50) -> 7
B51: 1123 | C51: GEOSINTETICOS | D51: =COUNTIF('LISTA TOTAL PROVEEDORES'!$B$3:$B$9969,Hoja1!B51) -> 12
B52: 1167 | C52: GESTION SOCIAL ELEMENTOS DE PUBLICIDAD | D52: =COUNTIF('LISTA TOTAL PROVEEDORES'!$B$3:$B$9969,Hoja1!B52) -> 7
B53: 1125 | C53: LADRILLOS, BLOQUES Y ADOQUINES | D53: =COUNTIF('LISTA TOTAL PROVEEDORES'!$B$3:$B$9969,Hoja1!B53) -> 15
B54: 1133 | C54: MADERAS | D54: =COUNTIF('LISTA TOTAL PROVEEDORES'!$B$3:$B$9969,Hoja1!B54) -> 3
B55: 1122 | C55: MALLAS Y ACEROS PARA REFUERZO | D55: =COUNTIF('LISTA TOTAL PROVEEDORES'!$B$3:$B$9969,Hoja1!B55) -> 9
B56: 1139 | C56: MARCOS, TAPAS, REJILLAS, HERRAJES Y CAJILLAS | D56: =COUNTIF('LISTA TOTAL PROVEEDORES'!$B$3:$B$9969,Hoja1!B56) -> 12
B57: 1206 | C57: MATERIALES BÁSICOS | D57: =COUNTIF('LISTA TOTAL PROVEEDORES'!$B$3:$B$9969,Hoja1!B57) -> 2
B58: 1137 | C58: MATERIALES DE FERRETERIA Y OTROS | D58: =COUNTIF('LISTA TOTAL PROVEEDORES'!$B$3:$B$9969,Hoja1!B58) -> 66
B59: 1196 | C59: MOBILIARIO METÁLICO TIPO TRANSMILENIO | D59: =COUNTIF('LISTA TOTAL PROVEEDORES'!$B$3:$B$9969,Hoja1!B59) -> 1
B60: 1126 | C60: MOBILIARIO URBANO Y DE PARQUES | D60: =COUNTIF('LISTA TOTAL PROVEEDORES'!$B$3:$B$9969,Hoja1!B60) -> 12
B61: 1156 | C61: MUEBLES - EQUIPOS Y ELEMENTOS DE OFICINA | D61: =COUNTIF('LISTA TOTAL PROVEEDORES'!$B$3:$B$9969,Hoja1!B61) -> 15
B62: 1205 | C62: NEOPRENOS | D62: =COUNTIF('LISTA TOTAL PROVEEDORES'!$B$3:$B$9969,Hoja1!B62) -> 4
B63: 1129 | C63: PINTURAS | D63: =COUNTIF('LISTA TOTAL PROVEEDORES'!$B$3:$B$9969,Hoja1!B63) -> 13
B64: 1188 | C64: PISOS (CONVENCIONALES Y TIPO TRANSMILENIO) | D64: =COUNTIF('LISTA TOTAL PROVEEDORES'!$B$3:$B$9969,Hoja1!B64) -> 0
B65: 1120 | C65: POSTES Y ALUMBRADO PUBLICO | D65: =COUNTIF('LISTA TOTAL PROVEEDORES'!$B$3:$B$9969,Hoja1!B65) -> 13
B66: 1117 | C66: POZOS Y COMPONENTES - ALCANTARILLADO | D66: =COUNTIF('LISTA TOTAL PROVEEDORES'!$B$3:$B$9969,Hoja1!B66) -> 5
B67: 1201 | C67: PRODUCTOS QUÍMICOS - PESTICIDAS - FITOSANITARIOS | D67: =COUNTIF('LISTA TOTAL PROVEEDORES'!$B$3:$B$9969,Hoja1!B67) -> 7
B68: 1124 | C68: SELLANTES - IMPERMEABILIZANTES Y ADITIVOS - CONCRETOS | D68: =COUNTIF('LISTA TOTAL PROVEEDORES'!$B$3:$B$9969,Hoja1!B68) -> 16
B69: 1166 | C69: SEMAFORIZACION | D69: =COUNTIF('LISTA TOTAL PROVEEDORES'!$B$3:$B$9969,Hoja1!B69) -> 6
B70: 1128 | C70: SEÑALES, BARRERAS Y DEMARCACION VIAL | D70: =COUNTIF('LISTA TOTAL PROVEEDORES'!$B$3:$B$9969,Hoja1!B70) -> 12
B71: 1197 | C71: SERV. DIAGNÓSTICO-INSPECCIÓN REDES HIDROSANITARIAS | D71: =COUNTIF('LISTA TOTAL PROVEEDORES'!$B$3:$B$9969,Hoja1!B71) -> 1
B72: 1204 | C72: SISTEMAS CONTRA INCENDIO | D72: =COUNTIF('LISTA TOTAL PROVEEDORES'!$B$3:$B$9969,Hoja1!B72) -> 2
B73: 1140 | C73: SOLDADURA Y PEGANTES | D73: =COUNTIF('LISTA TOTAL PROVEEDORES'!$B$3:$B$9969,Hoja1!B73) -> 16
B74: 1118 | C74: SUMIDEROS Y COMPONENTES | D74: =COUNTIF('LISTA TOTAL PROVEEDORES'!$B$3:$B$9969,Hoja1!B74) -> 2
B75: 182 | C75: TRANSPORTE DE MATERIALES Y ACARREOS | D75: =COUNTIF('LISTA TOTAL PROVEEDORES'!$B$3:$B$9969,Hoja1!B75) -> 6
B76: 1113 | C76: TUBERÍA Y ACCESORIOS CONDUIT GALVANIZADAS | D76: =COUNTIF('LISTA TOTAL PROVEEDORES'!$B$3:$B$9969,Hoja1!B76) -> 8
B77: 1105 | C77: TUBERÍA Y ACCESORIOS DE CONCRETO | D77: =COUNTIF('LISTA TOTAL PROVEEDORES'!$B$3:$B$9969,Hoja1!B77) -> 2
B78: 1109 | C78: TUBERÍA Y ACCESORIOS DE PVC PARA ALCANTARILLADO | D78: =COUNTIF('LISTA TOTAL PROVEEDORES'!$B$3:$B$9969,Hoja1!B78) -> 3
B79: 1162 | C79: TUBERÍA Y ACCESORIOS EN ACERO | D79: =COUNTIF('LISTA TOTAL PROVEEDORES'!$B$3:$B$9969,Hoja1!B79) -> 1
B80: 1159 | C80: TUBERIA Y ACCESORIOS EN ACERO GALVANIZADO | D80: =COUNTIF('LISTA TOTAL PROVEEDORES'!$B$3:$B$9969,Hoja1!B80) -> 7
B81: 1153 | C81: TUBERÍA Y ACCESORIOS EN GRP | D81: =COUNTIF('LISTA TOTAL PROVEEDORES'!$B$3:$B$9969,Hoja1!B81) -> 2
B82: 1107 | C82: TUBERIAS DE PVC - ACUEDUCTO | D82: =COUNTIF('LISTA TOTAL PROVEEDORES'!$B$3:$B$9969,Hoja1!B82) -> 6

Sheet grupos (hidden)
A1: Grupos Nuevos - BASE CONSTRUPLAN 2019 - I
A2: fecha de verificacion | B2: 2019-06-28
A4: Codigo | B4: Nombre | C4: UM | D4: Precio | F4: Fecha | H4: Proveedor | I4: CREAR LOS QUE NO EXISTEN | J4: BORRAR PQ YA NO EXISTE
A5: 1114 | B5: ACCESORIOS HD PARA REDES DE ACUEDUCTO | I5: =VLOOKUP(A5,'BD VIEJA'!$B$3:$B$10000,1,FALSE) -> 1114 | J5: =VLOOKUP(A5,'LISTA TOTAL PROVEEDORES'!$B$3:$B$9970,1,FALSE) -> 1114
A6: 1161 | B6: ACTIVIDADES A TODO COSTO | I6: =VLOOKUP(A6,'BD VIEJA'!$B$3:$B$10000,1,FALSE) -> 1161 | J6: =VLOOKUP(A6,'LISTA TOTAL PROVEEDORES'!$B$3:$B$9970,1,FALSE) -> 1161
A7: 1102 | B7: AGREGADOS PÉTREOS, BASES Y SUBBASES GRANULARES | I7: =VLOOKUP(A7,'BD VIEJA'!$B$3:$B$10000,1,FALSE) -> 1102 | J7: =VLOOKUP(A7,'LISTA TOTAL PROVEEDORES'!$B$3:$B$9970,1,FALSE) -> 1102
A8: 1157 | B8: ALQUILER | I8: =VLOOKUP(A8,'BD VIEJA'!$B$3:$B$10000,1,FALSE) ->  | J8: =VLOOKUP(A8,'LISTA TOTAL PROVEEDORES'!$B$3:$B$9970,1,FALSE) -> 
A9: 1147 | B9: ARBOLES-GRAMAS-VEGETACIÓN Y PLANTACIÓN PAISAJÍSTIC | I9: =VLOOKUP(A9,'BD VIEJA'!$B$3:$B$10000,1,FALSE) -> 1147 | J9: =VLOOKUP(A9,'LISTA TOTAL PROVEEDORES'!$B$3:$B$9970,1,FALSE) -> 1147
A10: 1127 | B10: BORDILLOS Y LOSETAS | I10: =VLOOKUP(A10,'BD VIEJA'!$B$3:$B$10000,1,FALSE) -> 1127 | J10: =VLOOKUP(A10,'LISTA TOTAL PROVEEDORES'!$B$3:$B$9970,1,FALSE) -> 1127
A11: 1121 | B11: CABLES Y ACCESORIOS ELECTRICOS | I11: =VLOOKUP(A11,'BD VIEJA'!$B$3:$B$10000,1,FALSE) -> 1121 | J11: =VLOOKUP(A11,'LISTA TOTAL PROVEEDORES'!$B$3:$B$9970,1,FALSE) -> 1121
A12: 1195 | B12: CARPINTERÍA METÁLICA | I12: =VLOOKUP(A12,'BD VIEJA'!$B$3:$B$10000,1,FALSE) -> 1195 | J12: =VLOOKUP(A12,'LISTA TOTAL PROVEEDORES'!$B$3:$B$9970,1,FALSE) -> 1195
A13: 1130 | B13: COMBUSTIBLES Y LUBRICANTES | I13: =VLOOKUP(A13,'BD VIEJA'!$B$3:$B$10000,1,FALSE) -> 1130 | J13: =VLOOKUP(A13,'LISTA TOTAL PROVEEDORES'!$B$3:$B$9970,1,FALSE) -> 1130
A14: 1103 | B14: CONCRETOS Y MORTEROS PREMEZCLADOS | I14: =VLOOKUP(A14,'BD VIEJA'!$B$3:$B$10000,1,FALSE) -> 1103 | J14: =VLOOKUP(A14,'LISTA TOTAL PROVEEDORES'!$B$3:$B$9970,1,FALSE) -> 1103
A15: 1168 | B15: CONSULTORIA | I15: =VLOOKUP(A15,'BD VIEJA'!$B$3:$B$10000,1,FALSE) -> 1168 | J15: =VLOOKUP(A15,'LISTA TOTAL PROVEEDORES'!$B$3:$B$9970,1,FALSE) -> 
A16: 1200 | B16: CUBIERTA - CIELO RASO - CORTASOL TIPO TRANSMILENIO | I16: =VLOOKUP(A16,'BD VIEJA'!$B$3:$B$10000,1,FALSE) -> 1200 | J16: =VLOOKUP(A16,'LISTA TOTAL PROVEEDORES'!$B$3:$B$9970,1,FALSE) -> 1200
A17: 1194 | B17: DESMONTE Y TRASLADOS DE ELEMENTOS METÁLICOS | I17: =VLOOKUP(A17,'BD VIEJA'!$B$3:$B$10000,1,FALSE) -> 1194 | J17: =VLOOKUP(A17,'LISTA TOTAL PROVEEDORES'!$B$3:$B$9970,1,FALSE) -> 1194
A18: 1148 | B18: DOTACIÓN (EPP) Y EQUIP. Y HERRAM. SEGUR. INDUSTR. | I18: =VLOOKUP(A18,'BD VIEJA'!$B$3:$B$10000,1,FALSE) -> 1148 | J18: =VLOOKUP(A18,'LISTA TOTAL PROVEEDORES'!$B$3:$B$9970,1,FALSE) -> 1148
A19: 1111 | B19: DUCTOS PVC - ELECTRICOS/TELEFONICOS TIPO TDP-DB-EB | I19: =VLOOKUP(A19,'BD VIEJA'!$B$3:$B$10000,1,FALSE) -> 1111 | J19: =VLOOKUP(A19,'LISTA TOTAL PROVEEDORES'!$B$3:$B$9970,1,FALSE) -> 1111
A20: 1104 | B20: EMULSIONES Y MEZCLAS ASFÁLTICAS | I20: =VLOOKUP(A20,'BD VIEJA'!$B$3:$B$10000,1,FALSE) -> 1104 | J20: =VLOOKUP(A20,'LISTA TOTAL PROVEEDORES'!$B$3:$B$9970,1,FALSE) -> 1104
A21: 1223 | B21: ENSAYO DE CAMPO - DIAGNOSTICO DE PAVIMENTOS | I21: =VLOOKUP(A21,'BD VIEJA'!$B$3:$B$10000,1,FALSE) ->  | J21: =VLOOKUP(A21,'LISTA TOTAL PROVEEDORES'!$B$3:$B$9970,1,FALSE) -> 
A22: 1225 | B22: ENSAYO DE CAMPO - SOLDADURAS | I22: =VLOOKUP(A22,'BD VIEJA'!$B$3:$B$10000,1,FALSE) ->  | J22: =VLOOKUP(A22,'LISTA TOTAL PROVEEDORES'!$B$3:$B$9970,1,FALSE) -> 1225
A23: 1224 | B23: ENSAYO DE CAMPO -RECUBRIMIENTO ESTRUCTURA METÁLICA | I23: =VLOOKUP(A23,'BD VIEJA'!$B$3:$B$10000,1,FALSE) ->  | J23: =VLOOKUP(A23,'LISTA TOTAL PROVEEDORES'!$B$3:$B$9970,1,FALSE) -> 1224
A24: 1172 | B24: ENSAYO DIAGNOSTICO ELEMENTO ESTRUCTURALES CONCRETO | I24: =VLOOKUP(A24,'BD VIEJA'!$B$3:$B$10000,1,FALSE) ->  | J24: =VLOOKUP(A24,'LISTA TOTAL PROVEEDORES'!$B$3:$B$9970,1,FALSE) -> 1172
A25: 1211 | B25: ENSAYO LABORATORIO - ABRASIVO | I25: =VLOOKUP(A25,'BD VIEJA'!$B$3:$B$10000,1,FALSE) ->  | J25: =VLOOKUP(A25,'LISTA TOTAL PROVEEDORES'!$B$3:$B$9970,1,FALSE) -> 1211
A26: 1213 | B26: ENSAYO LABORATORIO - ACERO ESTRUCTURAL | I26: =VLOOKUP(A26,'BD VIEJA'!$B$3:$B$10000,1,FALSE) ->  | J26: =VLOOKUP(A26,'LISTA TOTAL PROVEEDORES'!$B$3:$B$9970,1,FALSE) -> 1213
A27: 1212 | B27: ENSAYO LABORATORIO - ACERO REFUERZO Y PRETENSADO | I27: =VLOOKUP(A27,'BD VIEJA'!$B$3:$B$10000,1,FALSE) ->  | J27: =VLOOKUP(A27,'LISTA TOTAL PROVEEDORES'!$B$3:$B$9970,1,FALSE) -> 1212
A28: 1171 | B28: ENSAYO LABORATORIO - AGREGADOS PETREOS | I28: =VLOOKUP(A28,'BD VIEJA'!$B$3:$B$10000,1,FALSE) ->  | J28: =VLOOKUP(A28,'LISTA TOTAL PROVEEDORES'!$B$3:$B$9970,1,FALSE) -> 1171
A29: 1183 | B29: ENSAYO LABORATORIO - AIRE | I29: =VLOOKUP(A29,'BD VIEJA'!$B$3:$B$10000,1,FALSE) ->  | J29: =VLOOKUP(A29,'LISTA TOTAL PROVEEDORES'!$B$3:$B$9970,1,FALSE) -> 1183
A30: 1214 | B30: ENSAYO LABORATORIO - ALUMINIO | I30: =VLOOKUP(A30,'BD VIEJA'!$B$3:$B$10000,1,FALSE) ->  | J30: =VLOOKUP(A30,'LISTA TOTAL PROVEEDORES'!$B$3:$B$9970,1,FALSE) -> 1214
A31: 1177 | B31: ENSAYO LABORATORIO - ANÁLISIS DE AGUAS | I31: =VLOOKUP(A31,'BD VIEJA'!$B$3:$B$10000,1,FALSE) ->  | J31: =VLOOKUP(A31,'LISTA TOTAL PROVEEDORES'!$B$3:$B$9970,1,FALSE) -> 1177
A32: 1169 | B32: ENSAYO LABORATORIO - CEMENTOS HIDRÁULICOS | I32: =VLOOKUP(A32,'BD VIEJA'!$B$3:$B$10000,1,FALSE) ->  | J32: =VLOOKUP(A32,'LISTA TOTAL PROVEEDORES'!$B$3:$B$9970,1,FALSE) -> 1169
A33: 1181 | B33: ENSAYO LABORATORIO - COMPONENTE DE ESPACIO PÚBLICO | I33: =VLOOKUP(A33,'BD VIEJA'!$B$3:$B$10000,1,FALSE) ->  | J33: =VLOOKUP(A33,'LISTA TOTAL PROVEEDORES'!$B$3:$B$9970,1,FALSE) -> 1181
A34: 1215 | B34: ENSAYO LABORATORIO - CONCRETO PRETENSADO | I34: =VLOOKUP(A34,'BD VIEJA'!$B$3:$B$10000,1,FALSE) ->  | J34: =VLOOKUP(A34,'LISTA TOTAL PROVEEDORES'!$B$3:$B$9970,1,FALSE) -> 1215
A35: 1174 | B35: ENSAYO LABORATORIO - CONCRETOS HIDRÁULICOS | I35: =VLOOKUP(A35,'BD VIEJA'!$B$3:$B$10000,1,FALSE) ->  | J35: =VLOOKUP(A35,'LISTA TOTAL PROVEEDORES'!$B$3:$B$9970,1,FALSE) -> 
A36: 1173 | B36: ENSAYO LABORATORIO - DIAGNOSTICO DE PAVIMENTOS | I36: =VLOOKUP(A36,'BD VIEJA'!$B$3:$B$10000,1,FALSE) ->  | J36: =VLOOKUP(A36,'LISTA TOTAL PROVEEDORES'!$B$3:$B$9970,1,FALSE) -> 1173
A37: 1182 | B37: ENSAYO LABORATORIO - GEOTEXTILES | I37: =VLOOKUP(A37,'BD VIEJA'!$B$3:$B$10000,1,FALSE) ->  | J37: =VLOOKUP(A37,'LISTA TOTAL PROVEEDORES'!$B$3:$B$9970,1,FALSE) -> 1182
A38: 1216 | B38: ENSAYO LABORATORIO - LUBRICANTE ADHESIVO | I38: =VLOOKUP(A38,'BD VIEJA'!$B$3:$B$10000,1,FALSE) ->  | J38: =VLOOKUP(A38,'LISTA TOTAL PROVEEDORES'!$B$3:$B$9970,1,FALSE) -> 1216
A39: 1175 | B39: ENSAYO LABORATORIO - MATERIALES BITUMINOSOS | I39: =VLOOKUP(A39,'BD VIEJA'!$B$3:$B$10000,1,FALSE) ->  | J39: =VLOOKUP(A39,'LISTA TOTAL PROVEEDORES'!$B$3:$B$9970,1,FALSE) -> 1175
A40: 1176 | B40: ENSAYO LABORATORIO - MEZCLAS ASFALTICAS | I40: =VLOOKUP(A40,'BD VIEJA'!$B$3:$B$10000,1,FALSE) ->  | J40: =VLOOKUP(A40,'LISTA TOTAL PROVEEDORES'!$B$3:$B$9970,1,FALSE) -> 1176
A41: 1217 | B41: ENSAYO LABORATORIO - MORTERO | I41: =VLOOKUP(A41,'BD VIEJA'!$B$3:$B$10000,1,FALSE) ->  | J41: =VLOOKUP(A41,'LISTA TOTAL PROVEEDORES'!$B$3:$B$9970,1,FALSE) -> 1217
A42: 1218 | B42: ENSAYO LABORATORIO - NEOPRENO | I42: =VLOOKUP(A42,'BD VIEJA'!$B$3:$B$10000,1,FALSE) ->  | J42: =VLOOKUP(A42,'LISTA TOTAL PROVEEDORES'!$B$3:$B$9970,1,FALSE) -> 1218
A43: 1207 | B43: ENSAYO LABORATORIO - PERFORACIONES | I43: =VLOOKUP(A43,'BD VIEJA'!$B$3:$B$10000,1,FALSE) ->  | J43: =VLOOKUP(A43,'LISTA TOTAL PROVEEDORES'!$B$3:$B$9970,1,FALSE) -> 
A44: 1219 | B44: ENSAYO LABORATORIO - PERNOS | I44: =VLOOKUP(A44,'BD VIEJA'!$B$3:$B$10000,1,FALSE) ->  | J44: =VLOOKUP(A44,'LISTA TOTAL PROVEEDORES'!$B$3:$B$9970,1,FALSE) -> 1219
A45: 1220 | B45: ENSAYO LABORATORIO - PINTURA | I45: =VLOOKUP(A45,'BD VIEJA'!$B$3:$B$10000,1,FALSE) ->  | J45: =VLOOKUP(A45,'LISTA TOTAL PROVEEDORES'!$B$3:$B$9970,1,FALSE) -> 1220
A46: 1221 | B46: ENSAYO LABORATORIO - PLÁSTICO RÍGIDO | I46: =VLOOKUP(A46,'BD VIEJA'!$B$3:$B$10000,1,FALSE) ->  | J46: =VLOOKUP(A46,'LISTA TOTAL PROVEEDORES'!$B$3:$B$9970,1,FALSE) -> 1221
A47: 1222 | B47: ENSAYO LABORATORIO - RESINA | I47: =VLOOKUP(A47,'BD VIEJA'!$B$3:$B$10000,1,FALSE) ->  | J47: =VLOOKUP(A47,'LISTA TOTAL PROVEEDORES'!$B$3:$B$9970,1,FALSE) -> 1222
A48: 1178 | B48: ENSAYO LABORATORIO - ROCA | I48: =VLOOKUP(A48,'BD VIEJA'!$B$3:$B$10000,1,FALSE) ->  | J48: =VLOOKUP(A48,'LISTA TOTAL PROVEEDORES'!$B$3:$B$9970,1,FALSE) -> 1178
A49: 1203 | B49: ENSAYO LABORATORIO - RUIDO | I49: =VLOOKUP(A49,'BD VIEJA'!$B$3:$B$10000,1,FALSE) ->  | J49: =VLOOKUP(A49,'LISTA TOTAL PROVEEDORES'!$B$3:$B$9970,1,FALSE) -> 1203
A50: 1170 | B50: ENSAYO LABORATORIO - SUELOS | I50: =VLOOKUP(A50,'BD VIEJA'!$B$3:$B$10000,1,FALSE) ->  | J50: =VLOOKUP(A50,'LISTA TOTAL PROVEEDORES'!$B$3:$B$9970,1,FALSE) -> 1170
A51: 1116 | B51: EQUIPO LIVIANO Y HERRAMIENTAS | I51: =VLOOKUP(A51,'BD VIEJA'!$B$3:$B$10000,1,FALSE) -> 1116 | J51: =VLOOKUP(A51,'LISTA TOTAL PROVEEDORES'!$B$3:$B$9970,1,FALSE) -> 1116
A52: 1115 | B52: EQUIPO PESADO | I52: =VLOOKUP(A52,'BD VIEJA'!$B$3:$B$10000,1,FALSE) -> 1115 | J52: =VLOOKUP(A52,'LISTA TOTAL PROVEEDORES'!$B$3:$B$9970,1,FALSE) -> 1115
A53: 1146 | B53: ESTRUCTURAS EN ACERO (CONVENCIONALES TIPO TRANSM) | I53: =VLOOKUP(A53,'BD VIEJA'!$B$3:$B$10000,1,FALSE) -> 1146 | J53: =VLOOKUP(A53,'LISTA TOTAL PROVEEDORES'!$B$3:$B$9970,1,FALSE) -> 1146
A54: 1158 | B54: EXÁMENES MÉDICOS | I54: =VLOOKUP(A54,'BD VIEJA'!$B$3:$B$10000,1,FALSE) -> 1158 | J54: =VLOOKUP(A54,'LISTA TOTAL PROVEEDORES'!$B$3:$B$9970,1,FALSE) -> 1158
A55: 1134 | B55: FORMALETAS, ANDAMIOS Y ACCESORIOS | I55: =VLOOKUP(A55,'BD VIEJA'!$B$3:$B$10000,1,FALSE) -> 1134 | J55: =VLOOKUP(A55,'LISTA TOTAL PROVEEDORES'!$B$3:$B$9970,1,FALSE) -> 1134
A56: 1123 | B56: GEOSINTETICOS | I56: =VLOOKUP(A56,'BD VIEJA'!$B$3:$B$10000,1,FALSE) -> 1123 | J56: =VLOOKUP(A56,'LISTA TOTAL PROVEEDORES'!$B$3:$B$9970,1,FALSE) -> 1123
A57: 1198 | B57: GESTIÓN SOCIAL ELEMENTOS DE IDENTIFICACIÓN EN OBRA | I57: =VLOOKUP(A57,'BD VIEJA'!$B$3:$B$10000,1,FALSE) ->  | J57: =VLOOKUP(A57,'LISTA TOTAL PROVEEDORES'!$B$3:$B$9970,1,FALSE) -> 
A58: 1167 | B58: GESTIÓN SOCIAL ELEMENTOS DE PUBLICIDAD | I58: =VLOOKUP(A58,'BD VIEJA'!$B$3:$B$10000,1,FALSE) -> 1167 | J58: =VLOOKUP(A58,'LISTA TOTAL PROVEEDORES'!$B$3:$B$9970,1,FALSE) -> 1167
A59: 1125 | B59: LADRILLOS, BLOQUES Y ADOQUINES | I59: =VLOOKUP(A59,'BD VIEJA'!$B$3:$B$10000,1,FALSE) -> 1125 | J59: =VLOOKUP(A59,'LISTA TOTAL PROVEEDORES'!$B$3:$B$9970,1,FALSE) -> 1125
A60: 1208 | B60: LEVANTAMIENTO TOPOGRÁFICO | I60: =VLOOKUP(A60,'BD VIEJA'!$B$3:$B$10000,1,FALSE) ->  | J60: =VLOOKUP(A60,'LISTA TOTAL PROVEEDORES'!$B$3:$B$9970,1,FALSE) -> 
A61: 1133 | B61: MADERAS | I61: =VLOOKUP(A61,'BD VIEJA'!$B$3:$B$10000,1,FALSE) -> 1133 | J61: =VLOOKUP(A61,'LISTA TOTAL PROVEEDORES'!$B$3:$B$9970,1,FALSE) -> 1133
A62: 1122 | B62: MALLAS Y ACEROS PARA REFUERZO | I62: =VLOOKUP(A62,'BD VIEJA'!$B$3:$B$10000,1,FALSE) -> 1122 | J62: =VLOOKUP(A62,'LISTA TOTAL PROVEEDORES'!$B$3:$B$9970,1,FALSE) -> 1122
A63: 1139 | B63: MARCOS, TAPAS, REJILLAS, HERRAJES Y CAJILLAS | I63: =VLOOKUP(A63,'BD VIEJA'!$B$3:$B$10000,1,FALSE) -> 1139 | J63: =VLOOKUP(A63,'LISTA TOTAL PROVEEDORES'!$B$3:$B$9970,1,FALSE) -> 1139
A64: 1206 | B64: MATERIALES BÁSICOS | I64: =VLOOKUP(A64,'BD VIEJA'!$B$3:$B$10000,1,FALSE) ->  | J64: =VLOOKUP(A64,'LISTA TOTAL PROVEEDORES'!$B$3:$B$9970,1,FALSE) -> 1206
A65: 1137 | B65: MATERIALES DE FERRETERÍA Y OTROS | I65: =VLOOKUP(A65,'BD VIEJA'!$B$3:$B$10000,1,FALSE) -> 1137 | J65: =VLOOKUP(A65,'LISTA TOTAL PROVEEDORES'!$B$3:$B$9970,1,FALSE) -> 1137
A66: 1196 | B66: MOBILIARIO METÁLICO TIPO TRANSMILENIO | I66: =VLOOKUP(A66,'BD VIEJA'!$B$3:$B$10000,1,FALSE) ->  | J66: =VLOOKUP(A66,'LISTA TOTAL PROVEEDORES'!$B$3:$B$9970,1,FALSE) -> 1196
A67: 1126 | B67: MOBILIARIO URBANO Y DE PARQUES | I67: =VLOOKUP(A67,'BD VIEJA'!$B$3:$B$10000,1,FALSE) -> 1126 | J67: =VLOOKUP(A67,'LISTA TOTAL PROVEEDORES'!$B$3:$B$9970,1,FALSE) -> 1126
A68: 1156 | B68: MUEBLES - EQUIPOS Y ELEMENTOS OFICINA | I68: =VLOOKUP(A68,'BD VIEJA'!$B$3:$B$10000,1,FALSE) -> 1156 | J68: =VLOOKUP(A68,'LISTA TOTAL PROVEEDORES'!$B$3:$B$9970,1,FALSE) -> 1156
A69: 1205 | B69: NEOPRENOS | I69: =VLOOKUP(A69,'BD VIEJA'!$B$3:$B$10000,1,FALSE) ->  | J69: =VLOOKUP(A69,'LISTA TOTAL PROVEEDORES'!$B$3:$B$9970,1,FALSE) -> 1205
A70: 1129 | B70: PINTURAS | I70: =VLOOKUP(A70,'BD VIEJA'!$B$3:$B$10000,1,FALSE) -> 1129 | J70: =VLOOKUP(A70,'LISTA TOTAL PROVEEDORES'!$B$3:$B$9970,1,FALSE) -> 1129
A71: 1188 | B71: PISOS (CONVENCIONALES Y TIPO TRANSMILENIO) | I71: =VLOOKUP(A71,'BD VIEJA'!$B$3:$B$10000,1,FALSE) -> 1188 | J71: =VLOOKUP(A71,'LISTA TOTAL PROVEEDORES'!$B$3:$B$9970,1,FALSE) -> 
A72: 1120 | B72: POSTES Y ALUMBRADO PUBLICO | I72: =VLOOKUP(A72,'BD VIEJA'!$B$3:$B$10000,1,FALSE) -> 1120 | J72: =VLOOKUP(A72,'LISTA TOTAL PROVEEDORES'!$B$3:$B$9970,1,FALSE) -> 1120
A73: 1117 | B73: POZOS Y COMPONENTES - ALCANTARILLADO | I73: =VLOOKUP(A73,'BD VIEJA'!$B$3:$B$10000,1,FALSE) -> 1117 | J73: =VLOOKUP(A73,'LISTA TOTAL PROVEEDORES'!$B$3:$B$9970,1,FALSE) -> 1117
A74: 1201 | B74: PRODUCTOS QUÍMICOS - PESTICIDAS - FITOSANITARIOS | I74: =VLOOKUP(A74,'BD VIEJA'!$B$3:$B$10000,1,FALSE) -> 1201 | J74: =VLOOKUP(A74,'LISTA TOTAL PROVEEDORES'!$B$3:$B$9970,1,FALSE) -> 1201
A75: 1192 | B75: PROYECTO ESPECÍFICO | I75: =VLOOKUP(A75,'BD VIEJA'!$B$3:$B$10000,1,FALSE) -> 1192 | J75: =VLOOKUP(A75,'LISTA TOTAL PROVEEDORES'!$B$3:$B$9970,1,FALSE) -> 
A76: 1189 | B76: PRUEBAS DE CARGA PARA PUENTES | I76: =VLOOKUP(A76,'BD VIEJA'!$B$3:$B$10000,1,FALSE) ->  | J76: =VLOOKUP(A76,'LISTA TOTAL PROVEEDORES'!$B$3:$B$9970,1,FALSE) -> 
A77: 1124 | B77: SELLANTES-IMPERMEABILIZANTES Y ADITIVOS CONCRETOS | I77: =VLOOKUP(A77,'BD VIEJA'!$B$3:$B$10000,1,FALSE) -> 1124 | J77: =VLOOKUP(A77,'LISTA TOTAL PROVEEDORES'!$B$3:$B$9970,1,FALSE) -> 1124
A78: 1166 | B78: SEMAFORIZACION | I78: =VLOOKUP(A78,'BD VIEJA'!$B$3:$B$10000,1,FALSE) -> 1166 | J78: =VLOOKUP(A78,'LISTA TOTAL PROVEEDORES'!$B$3:$B$9970,1,FALSE) -> 1166
A79: 1128 | B79: SEÑALES, BARRERAS Y DEMARCACIÓN VIAL | I79: =VLOOKUP(A79,'BD VIEJA'!$B$3:$B$10000,1,FALSE) -> 1128 | J79: =VLOOKUP(A79,'LISTA TOTAL PROVEEDORES'!$B$3:$B$9970,1,FALSE) -> 1128
A80: 1197 | B80: SERV. DIAGNÓSTICO-INSPECCIÓN REDES HIDROSANITARIAS | I80: =VLOOKUP(A80,'BD VIEJA'!$B$3:$B$10000,1,FALSE) -> 1197 | J80: =VLOOKUP(A80,'LISTA TOTAL PROVEEDORES'!$B$3:$B$9970,1,FALSE) -> 1197
A81: 1204 | B81: SISTEMAS CONTRA INCENDIO | I81: =VLOOKUP(A81,'BD VIEJA'!$B$3:$B$10000,1,FALSE) ->  | J81: =VLOOKUP(A81,'LISTA TOTAL PROVEEDORES'!$B$3:$B$9970,1,FALSE) -> 1204
A82: 1140 | B82: SOLDADURA Y PEGANTES | I82: =VLOOKUP(A82,'BD VIEJA'!$B$3:$B$10000,1,FALSE) -> 1140 | J82: =VLOOKUP(A82,'LISTA TOTAL PROVEEDORES'!$B$3:$B$9970,1,FALSE) -> 1140
A83: 177 | B83: SUELDOS Y JORNALES | I83: =VLOOKUP(A83,'BD VIEJA'!$B$3:$B$10000,1,FALSE) -> 177 | J83: =VLOOKUP(A83,'LISTA TOTAL PROVEEDORES'!$B$3:$B$9970,1,FALSE) -> 
A84: 1118 | B84: SUMIDEROS Y COMPONENTES | I84: =VLOOKUP(A84,'BD VIEJA'!$B$3:$B$10000,1,FALSE) -> 1118 | J84: =VLOOKUP(A84,'LISTA TOTAL PROVEEDORES'!$B$3:$B$9970,1,FALSE) -> 1118
A85: 182 | B85: TRANSPORTES DE MATERIALES Y ACARREOS | I85: =VLOOKUP(A85,'BD VIEJA'!$B$3:$B$10000,1,FALSE) -> 182 | J85: =VLOOKUP(A85,'LISTA TOTAL PROVEEDORES'!$B$3:$B$9970,1,FALSE) -> 182
A86: 1154 | B86: TUBERÍA Y ACCESORIOS ACERO AL CARBÓN | I86: =VLOOKUP(A86,'BD VIEJA'!$B$3:$B$10000,1,FALSE) ->  | J86: =VLOOKUP(A86,'LISTA TOTAL PROVEEDORES'!$B$3:$B$9970,1,FALSE) -> 
A87: 1113 | B87: TUBERÍA Y ACCESORIOS CONDUIT GALVANIZADAS | I87: =VLOOKUP(A87,'BD VIEJA'!$B$3:$B$10000,1,FALSE) ->  | J87: =VLOOKUP(A87,'LISTA TOTAL PROVEEDORES'!$B$3:$B$9970,1,FALSE) -> 1113
A88: 1105 | B88: TUBERÍA Y ACCESORIOS DE CONCRETO | I88: =VLOOKUP(A88,'BD VIEJA'!$B$3:$B$10000,1,FALSE) ->  | J88: =VLOOKUP(A88,'LISTA TOTAL PROVEEDORES'!$B$3:$B$9970,1,FALSE) -> 1105
A89: 1109 | B89: TUBERÍA Y ACCESORIOS DE PVC PARA ALCANTARILLADO | I89: =VLOOKUP(A89,'BD VIEJA'!$B$3:$B$10000,1,FALSE) ->  | J89: =VLOOKUP(A89,'LISTA TOTAL PROVEEDORES'!$B$3:$B$9970,1,FALSE) -> 1109
A90: 1162 | B90: TUBERÍA Y ACCESORIOS EN ACERO | I90: =VLOOKUP(A90,'BD VIEJA'!$B$3:$B$10000,1,FALSE) ->  | J90: =VLOOKUP(A90,'LISTA TOTAL PROVEEDORES'!$B$3:$B$9970,1,FALSE) -> 1162
A91: 1159 | B91: TUBERIA Y ACCESORIOS EN ACERO GALVANIZADO | I91: =VLOOKUP(A91,'BD VIEJA'!$B$3:$B$10000,1,FALSE) ->  | J91: =VLOOKUP(A91,'LISTA TOTAL PROVEEDORES'!$B$3:$B$9970,1,FALSE) -> 1159
A92: 1153 | B92: TUBERÍA Y ACCESORIOS EN GRP | I92: =VLOOKUP(A92,'BD VIEJA'!$B$3:$B$10000,1,FALSE) ->  | J92: =VLOOKUP(A92,'LISTA TOTAL PROVEEDORES'!$B$3:$B$9970,1,FALSE) -> 1153
A93: 1193 | B93: TUBERÍA Y ACCESORIOS EN POLIETILENO | I93: =VLOOKUP(A93,'BD VIEJA'!$B$3:$B$10000,1,FALSE) ->  | J93: =VLOOKUP(A93,'LISTA TOTAL PROVEEDORES'!$B$3:$B$9970,1,FALSE) -> 
A94: 1107 | B94: TUBERIAS DE PVC - ACUEDUCTO | I94: =VLOOKUP(A94,'BD VIEJA'!$B$3:$B$10000,1,FALSE) ->  | J94: =VLOOKUP(A94,'LISTA TOTAL PROVEEDORES'!$B$3:$B$9970,1,FALSE) -> 1107
A95: 1227 | B95: CANAL DE DRENAJE | F95: NUEVO

Sheet Hoja3 (hidden)
A3: Etiquetas de fila
A4: 4GA SAS Agregados de calidad
A5: AB SEÑALIZACIÓN
A6: ABASTECE.COM.CO
A7: ABC TRANSFORMADORES E INGENIERIA ELECTROMECÁNICA
A8: ACCESA
A9: ACCESORIOS Y ACABADOS SAS
A10: ACERAS & SARDINELES DE COLOMBIA
A11: ACEROS PENSILVANIA S.A.S.
A12: ACO SOLUCIONES DE DRENAJE SAS
A13: ACONSTRUCTORAS.COM
A14: ADL DRYWALL
A15: ADRENALINA SAFETY VIRTUAL STORE
A16: AFM DOTACIONES
A17: AGQ LABS
A18: AGREGADOS ARENAS Y GRAVAS SAS
A19: AGREGADOS EL VINCULO SAS
A20: AGREGADOS, ARENAS Y GRAVAS SAS
A21: AGROFÁCIL
A22: ALFAGRES S.A.
A23: ALMACÉN CANAIMA
A24: ALMACEN ENTRE MAYORISTAS
A25: ALMACEN INDUSTRIAL DE TORNILLOS LTDA
A26: ALMACEN SIGMONSHOP
A27: ALMACENES ALKOSTO
A28: ALMACENES EXITO
A29: ALMACENES FALABELLA
A30: ALMACENES JUMBO
A31: ALMACENES KTRONIX
A32: ALMASA S.A.
A33: ALQUILER DE COMPUTADORES S.A.S.
A34: AMVAR WORLD SAS
A35: ANALQUIM LTDA
A36: ANDAMIOS R&S LTDA
A37: ANDES TV
A38: ANPATEC
A39: APOLO AVA
A40: APSA SAS
A41: ARCILLAS DE COLOMBIA S.A.
A42: ARCILLAS DE LA SABANA
A43: ARENAS Y AGREGADOS IVONE SAS
A44: ASOCRETO
A45: ASTROEQUIPOS S.A.
A46: ATLAS LIMITED SAS
A47: AUROS
A48: AUTO GRUAS LA SEXTA
A49: B.M.G
A50: B.M.G. TRANSPORTE DE AGUA POTABLE E. U.
A51: BAC Engineering Consultancy Group S.A.S.
A52: Baños Portatiles SAS
A53: BARNES DE COLOMBIA S.A.
A54: BCD SAS
A55: BELLTEC HERRAMIENTAS Y EQUIPOS
A56: BELPLASTICOS
A57: BIOFRACTAL ARQUITECTURA MEDIANA
A58: BIOQUILAB
A59: BORNA DESDE 1984
A60: CABLES Y GUAYAS ALGOFER
A61: CAELCA
A62: CANECAS DE RECICLAJE
A63: CANECAS URBANAS
A64: CANECAS.COM
A65: CARPAS E INGENIERÍA
A66: CEB IMPORTADORA SAS
A67: CEBA – PRODUCTOS Y SERVICIOS VETERINARIOS
A68: CEI ELECTRICA INTERNACIONAL SAS
A69: CELTA
A70: CEMENTOS ARGOS - AGREGADOS PETREOS
A71: CEMEX DE COLOMBIA S.A.
A72: CENTELSA
A73: CENTRAL DE DOTACIONES LTDA
A74: CENTRAL DE SUMINISTROS - GSPATH
A75: CENTRO COPIAS FELIPE
A76: CERAMICA ITALIA
A77: CHEMILAB
A78: CIDEMAT - U. Antioquia
A79: CIELO RASOS & DIVISIONES
A80: CIELOS RASOS & DIVISIONES
A81: CIMA
A82: COLEMPLAST LTDA
A83: COLPEATON SAS
A84: COMERCIALIZADORA GOYJUL S.A.S
A85: COMERCIALIZADORA GOYJUL SAS
A86: COMERCIALIZADORA IMPERIO
A87: COMFAMA
A88: COMPAÑÍA DE TRABAJOS URBANOS S.A.S
A89: COMPAÑÍA ELÉCTRICA LTDA
A90: COMPAÑÍA MINERA NACIONAL LTDA
A91: CONCRELAB
A92: CONCRELAB SAS
A93: Concreservicios S.A.S.
A94: CONCRESERVICIOS SAS
A95: CONCRETCOL CONCRETO ESTAMPADO DE COLOMBIA
A96: CONCRETERA TREMIX SAS
A97: CONCRETOS ARGOS S.A.
A98: CORONA
A99: CORPACERO
A100: CORPORACIÓN AUTÓNOMA REGIONAL DE CUNDINAMARCA - CAR
A101: CORTEACEROS S.A.S
A102: COVAL
A103: COVAL COMERCIAL S. A.
A104: CREAR SEÑALIZACION
A105: CRUZ ROJA COLONBIANA
A106: CU CONECTORES
A107: DECORCERÁMICA
A108: DEKO
A109: DISATEC
A110: DISELEC LTDA
A111: DISTRIBUCIONES IMAGEN BOGOTÁ
A112: DISTRIBUCIONES Y DOTACIONES R.A.C
A113: DISTRIBUIDORA TODO ASEO
A114: DOBLE A INGENIERIA S.A.
A115: DOTA FUERTE
A116: DOTACIONES CALDERON SAS
A117: DOTACIONES ONLINE
A118: DROMOS PAVIMENTOS S.A.
A119: DURMAN COLOMBIA S.A.
A120: DYA INSUMOS FERRETEROS SAS
A121: DYCON MATERIALES ELÉCTRICOS
A122: DYNATEST COLOMBIA S.A.S.
A123: EASY
A124: ECHEVERRY ENSAYOS SAS
A125: ECHEVERRY INGENIERIA Y ENSAYOS SAS
A126: ECONOMIZADORES.NET
A127: ECOPRADOS SOLUCIONES AMBIENTALES
A128: EDELCO
A129: EIMPSA
A130: EL CONDOR PREFABRICADOS
A131: EL CONDOR PREFABRICADOS S.A.S.
A132: ELECTRICOS JS
A133: ELECTROMANFER
A134: ELECTROPINTAMOS
A135: ELEMENTOS PREFABRICADOS DE CONCRETO EL PRECON
A136: EMPRESA DE ACUEDUCTO Y ALCANTARILLADO DE BOGOTÁ
A137: ENZIPAN LABORATORIOS S.A.
A138: EQUINORTE
A139: ESCOBAR Y MARTÍNEZ SAS
A140: ESCUELA COLOMBIANA DE INGENIERIA
A141: ESCUELA COLOMBIANA DE INGENIERIA JULIO GARAVITO
A142: ESTAHL INGENIERÍA SAS
A143: EUREKA.COM
A144: EZ STREET ASFALTO
A145: FABRIURBANOS
A146: FANNY I. TEQUIA Y CIA SAS
A147: FERCON
A148: FERREMETÁLICAS COLOMBIA
A149: FERRETERIA MEGACOL
A150: FERRETERIA RHINO
A151: FERRETERÍA SAMIR
A152: FERRETERIA TÉCNICA
A153: FERRETERIA TÉCNICA
A154: FERRICENTRO
A155: FERRICENTROS S.A.
A156: FIGMALLAS SAS
A157: FIGURADOS Y MALLAS
A158: FORMAS DE CONCRETO LTDA
A159: Gama Dotaciones
A160: GAVAR. Soluciones en recubrimientos
A161: GECAB COLOMBIA
A162: GECOLSA - CAT RENTAL STORE
A163: GEOMATRIX Soluciones de Alta Tenacidad
A164: GEOSISTEMAS PAVCO
A165: GERFOR
A166: GIM INGENIERIA ELÉCTRICA LTDA
A167: GRABADO Y CORTE LASER BOGOTA
A168: GRAVILLERA ALBANIA S.A.
A169: GRECO
A170: GRIVAL
A171: GRIVAL SA
A172: GRUAS, EQUIPOS Y TRANSPORTES FENIX SAS
A173: GRUPO MASHALI
A174: GRUPO VIKINGO
A175: HACEB
A176: HB SADELEC Estructuras Metálicas
A177: HELBERT Y CIA
A178: HERLOZ SUMINISTROS
A179: HERNANDO OROZCO Y CIA
A180: HIDROEQUIPO
A181: HIERROS Y CONCRETOS S.A.S.
A182: HOME ELEMENTS
A183: HOMECENTER
A184: HOMESENTRY
A185: HORMIGON ANDINO S.A.
A186: ICIPC
A187: IDEAS PIXEL
A188: IE INTERNACIONAL DE ELÉCTRICOS
A189: IMPRIMASCOL
A190: INCOLMALLAS S.A.
A191: INCOMINERIA S.A.S.
A192: INDUSTRIA MILITAR - INDUMIL
A193: INDUSTRIA MILITAR – INDUMIL
A194: INETEL
A195: INGENIERÍA AMBIENTAL Y SANITARIA DE COLOMBIA - IASCOL S.A.S
A196: INGENIERIA DE ESTRUCTURAS Y MATERIALES LTDA. INGEYMA LTDA
A197: INGENIERIA Y SEÑALIZACION SEÑALVIAL SAS
A198: INGENIEROS GF SAS
A199: INGEYMA
A200: INSERCOR SAS
A201: INSPEQ INGENIERIA LTDA
A202: INSTITUTO DE DESARROLLO URBANO - IDU
... 157 more rows

Sheet LISTA TOTAL PROVEEDORES (hidden)
B2: CODIGO GRUPO | C2: GRUPO BASE DE DATOS | D2: NOMBRE PROVEEDOR | E2: UBICACIÓN | F2: DIRECCION | G2: TELEFONO | H2: CORREO ELECTRONICO
A3: =+B3&COUNTIF($B$3:B3,B3) -> 11141 | B3: 1114 | C3: ACCESORIOS HD PARA REDES DE ACUEDUCTO | D3: APOLO AVA | E3: Bogotá | F3: Cra. 27 No. 17-74, Paloquemao | G3: 360 70 53 360 70 23 | H3: apolo.bogota@apolo.net.co | I3: 1
A4: =+B4&COUNTIF($B$3:B4,B4) -> 11142 | B4: 1114 | C4: ACCESORIOS HD PARA REDES DE ACUEDUCTO | D4: BARNES DE COLOMBIA S.A. | E4: Funza, Cundinamarca | F4: Celta Trade Park - Bodegas 86 y 93 Autopista Bogota Medellin Km 7 Costado Occidental Antes de Peaje de Siberia. | G4: 743 9090 ext 8311-8312-8403-8402-8502 | H4: distribucion@barnes.com.co industria@barnes.com.co construccion@barnes.com.co exportaciones@barnes.com.co | I4: 2
A5: =+B5&COUNTIF($B$3:B5,B5) -> 11143 | B5: 1114 | C5: ACCESORIOS HD PARA REDES DE ACUEDUCTO | D5: COVAL COMERCIAL S. A. | E5: =VLOOKUP(D5,'BD VIEJA'!$D$3:$H$594,2,FALSE) -> Bogota | F5: =VLOOKUP(D5,'BD VIEJA'!$D$3:$H$594,3,FALSE) -> Avda. Ciudad de Cali 5 A 92 Sur | G5: =VLOOKUP(D5,'BD VIEJA'!$D$3:$H$594,4,FALSE) -> 3152358446 8759100 Ext. 144 - 145 7454671 | H5: =VLOOKUP(D5,'BD VIEJA'!$D$3:$H$594,5,FALSE) -> info@coval.com.co | I5: 3
A6: =+B6&COUNTIF($B$3:B6,B6) -> 11144 | B6: 1114 | C6: ACCESORIOS HD PARA REDES DE ACUEDUCTO | D6: DURMAN COLOMBIA S.A. | E6: =VLOOKUP(D6,'BD VIEJA'!$D$3:$H$594,2,FALSE) -> Madrid - Cund. | F6: =VLOOKUP(D6,'BD VIEJA'!$D$3:$H$594,3,FALSE) -> Km 27 Vía Fontibon Facatativa Los Alpes | G6: =VLOOKUP(D6,'BD VIEJA'!$D$3:$H$594,4,FALSE) -> 8200200 | H6: =VLOOKUP(D6,'BD VIEJA'!$D$3:$H$594,5,FALSE) -> colombia@durman.com | I6: 4
A7: =+B7&COUNTIF($B$3:B7,B7) -> 11145 | B7: 1114 | C7: ACCESORIOS HD PARA REDES DE ACUEDUCTO | D7: EASY | E7: =VLOOKUP(D7,'BD VIEJA'!$D$3:$H$594,2,FALSE) -> Bogota | F7: =VLOOKUP(D7,'BD VIEJA'!$D$3:$H$594,3,FALSE) -> Avda. Americas 68 94 | G7: =VLOOKUP(D7,'BD VIEJA'!$D$3:$H$594,4,FALSE) -> 4191400 | H7: =VLOOKUP(D7,'BD VIEJA'!$D$3:$H$594,5,FALSE) -> www.easy.com.co | I7: 5
A8: =+B8&COUNTIF($B$3:B8,B8) -> 11146 | B8: 1114 | C8: ACCESORIOS HD PARA REDES DE ACUEDUCTO | D8: GRIVAL SA | E8: Bogotá | F8: Av. Carrera 45 No. 149-09 Mazuren | G8: 6140241 3138697904 | H8: contactenoscorona@corona.com.co | I8: 6
A9: =+B9&COUNTIF($B$3:B9,B9) -> 11147 | B9: 1114 | C9: ACCESORIOS HD PARA REDES DE ACUEDUCTO | D9: HELBERT Y CIA | E9: =VLOOKUP(D9,'BD VIEJA'!$D$3:$H$594,2,FALSE) -> Bogota | F9: =VLOOKUP(D9,'BD VIEJA'!$D$3:$H$594,3,FALSE) -> Av Cr 40 # 20 - 73 | G9: =VLOOKUP(D9,'BD VIEJA'!$D$3:$H$594,4,FALSE) -> 368 10 77 | H9: =VLOOKUP(D9,'BD VIEJA'!$D$3:$H$594,5,FALSE) -> ventas@helbertycia.com | I9: 7
A10: =+B10&COUNTIF($B$3:B10,B10) -> 11148 | B10: 1114 | C10: ACCESORIOS HD PARA REDES DE ACUEDUCTO | D10: HIDROEQUIPO | E10: =VLOOKUP(D10,'BD VIEJA'!$D$3:$H$594,2,FALSE) -> Cali - Valle | F10: =VLOOKUP(D10,'BD VIEJA'!$D$3:$H$594,3,FALSE) -> Av. 3 Bis Norte No. 23 CN-35 | G10: =VLOOKUP(D10,'BD VIEJA'!$D$3:$H$594,4,FALSE) -> 653 0033 315 471 8248 | H10: =VLOOKUP(D10,'BD VIEJA'!$D$3:$H$594,5,FALSE) -> info@hidroequipos.com.co | I10: 8
A11: =+B11&COUNTIF($B$3:B11,B11) -> 11149 | B11: 1114 | C11: ACCESORIOS HD PARA REDES DE ACUEDUCTO | D11: HOMECENTER | E11: =VLOOKUP(D11,'BD VIEJA'!$D$3:$H$594,2,FALSE) -> Bogota | F11: =VLOOKUP(D11,'BD VIEJA'!$D$3:$H$594,3,FALSE) -> Avda. 68 37 37 Sur | G11: =VLOOKUP(D11,'BD VIEJA'!$D$3:$H$594,4,FALSE) -> 3077115 | H11: =VLOOKUP(D11,'BD VIEJA'!$D$3:$H$594,5,FALSE) -> www.homecenter.com.co | I11: 9
A12: =+B12&COUNTIF($B$3:B12,B12) -> 111410 | B12: 1114 | C12: ACCESORIOS HD PARA REDES DE ACUEDUCTO | D12: METACOL Soluciones integrales en ingeniería y fundición | E12: =VLOOKUP(D12,'BD VIEJA'!$D$3:$H$594,2,FALSE) -> Bogota | F12: =VLOOKUP(D12,'BD VIEJA'!$D$3:$H$594,3,FALSE) -> Diagonal 34 Bis 17 58 | G12: =VLOOKUP(D12,'BD VIEJA'!$D$3:$H$594,4,FALSE) -> 5116262 Ext. 211 | H12: =VLOOKUP(D12,'BD VIEJA'!$D$3:$H$594,5,FALSE) -> mercadeo@metacol.com | I12: 10
A13: =+B13&COUNTIF($B$3:B13,B13) -> 111411 | B13: 1114 | C13: ACCESORIOS HD PARA REDES DE ACUEDUCTO | D13: PCP | E13: Bogotá | F13: Carrera 20 No. 16 – 25 | G13: 7428373 Ext. 200 | H13: servicioalcliente@pcpplasticos.com | I13: 11
A14: =+B14&COUNTIF($B$3:B14,B14) -> 111412 | B14: 1114 | C14: ACCESORIOS HD PARA REDES DE ACUEDUCTO | D14: TUBOS COLMENA | E14: =VLOOKUP(D14,'BD VIEJA'!$D$3:$H$594,2,FALSE) -> Bogota | F14: =VLOOKUP(D14,'BD VIEJA'!$D$3:$H$594,3,FALSE) -> Calle 45 A Sur # 60-57 | G14: =VLOOKUP(D14,'BD VIEJA'!$D$3:$H$594,4,FALSE) -> 7280211 | H14: =VLOOKUP(D14,'BD VIEJA'!$D$3:$H$594,5,FALSE) -> servicioalcliente@tuboscolmena.com www.tuboscolmena.com | I14: 12
A15: =+B15&COUNTIF($B$3:B15,B15) -> 111413 | B15: 1114 | C15: ACCESORIOS HD PARA REDES DE ACUEDUCTO | D15: TUVALREP SAS | E15: =VLOOKUP(D15,'BD VIEJA'!$D$3:$H$594,2,FALSE) -> Bogotá | F15: =VLOOKUP(D15,'BD VIEJA'!$D$3:$H$594,3,FALSE) -> Av. Calle 13 No. 22-72 | G15: =VLOOKUP(D15,'BD VIEJA'!$D$3:$H$594,4,FALSE) -> 2015415 3713386 | H15: =VLOOKUP(D15,'BD VIEJA'!$D$3:$H$594,5,FALSE) -> tuvalrep@tuvalrep.com.co | I15: 13
A16: =+B16&COUNTIF($B$3:B16,B16) -> 11611 | B16: 1161 | C16: ACTIVIDADES A TODO COSTO | D16: AMVAR WORLD SAS | E16: =VLOOKUP(D16,'BD VIEJA'!$D$3:$H$594,2,FALSE) -> Bogotá | F16: =VLOOKUP(D16,'BD VIEJA'!$D$3:$H$594,3,FALSE) -> Av. 30 - 7 de agosto 68-125 local 35 | G16: =VLOOKUP(D16,'BD VIEJA'!$D$3:$H$594,4,FALSE) -> 3810603 EXT 101-102 | H16: =VLOOKUP(D16,'BD VIEJA'!$D$3:$H$594,5,FALSE) -> ventas@anvarworld.com | I16: 14
A17: =+B17&COUNTIF($B$3:B17,B17) -> 11612 | B17: 1161 | C17: ACTIVIDADES A TODO COSTO | D17: CABLES Y GUAYAS ALGOFER | E17: =VLOOKUP(D17,'BD VIEJA'!$D$3:$H$594,2,FALSE) -> Bogota | F17: =VLOOKUP(D17,'BD VIEJA'!$D$3:$H$594,3,FALSE) -> Cra. 109 A 66 33 | G17: =VLOOKUP(D17,'BD VIEJA'!$D$3:$H$594,4,FALSE) -> 3133184817 3214983819 4345598 | H17: =VLOOKUP(D17,'BD VIEJA'!$D$3:$H$594,5,FALSE) -> servicioalcliente@cablesyguayasalgofer.com | I17: 15
A18: =+B18&COUNTIF($B$3:B18,B18) -> 11613 | B18: 1161 | C18: ACTIVIDADES A TODO COSTO | D18: CARPAS E INGENIERÍA | E18: =VLOOKUP(D18,'BD VIEJA'!$D$3:$H$594,2,FALSE) -> Bogota | F18: =VLOOKUP(D18,'BD VIEJA'!$D$3:$H$594,3,FALSE) -> Calle 9 32 A 41 | G18: =VLOOKUP(D18,'BD VIEJA'!$D$3:$H$594,4,FALSE) -> 3102360339 5618623 | H18: =VLOOKUP(D18,'BD VIEJA'!$D$3:$H$594,5,FALSE) -> ventas@carpascolombia.com | I18: 16
A19: =+B19&COUNTIF($B$3:B19,B19) -> 11614 | B19: 1161 | C19: ACTIVIDADES A TODO COSTO | D19: CIELO RASOS & DIVISIONES | E19: Bogotá | F19: Cra 14 #75-58 | G19: 248 18 60 310 577 4471 | H19: ventas@cielosrasos.com | I19: 17
A20: =+B20&COUNTIF($B$3:B20,B20) -> 11615 | B20: 1161 | C20: ACTIVIDADES A TODO COSTO | D20: COVAL COMERCIAL S. A. | E20: =VLOOKUP(D20,'BD VIEJA'!$D$3:$H$594,2,FALSE) -> Bogota | F20: =VLOOKUP(D20,'BD VIEJA'!$D$3:$H$594,3,FALSE) -> Avda. Ciudad de Cali 5 A 92 Sur | G20: =VLOOKUP(D20,'BD VIEJA'!$D$3:$H$594,4,FALSE) -> 3152358446 8759100 Ext. 144 - 145 7454671 | H20: =VLOOKUP(D20,'BD VIEJA'!$D$3:$H$594,5,FALSE) -> info@coval.com.co | I20: 18
A21: =+B21&COUNTIF($B$3:B21,B21) -> 11616 | B21: 1161 | C21: ACTIVIDADES A TODO COSTO | D21: GRABADO Y CORTE LASER BOGOTA | E21: =VLOOKUP(D21,'BD VIEJA'!$D$3:$H$594,2,FALSE) -> Bogota | F21: =VLOOKUP(D21,'BD VIEJA'!$D$3:$H$594,3,FALSE) -> Carrera 27B No. 24B - 23 | G21: =VLOOKUP(D21,'BD VIEJA'!$D$3:$H$594,4,FALSE) -> 310 760 3311 560 2421 | H21: =VLOOKUP(D21,'BD VIEJA'!$D$3:$H$594,5,FALSE) -> ventas@grabadoycortelaser.com | I21: 19
A22: =+B22&COUNTIF($B$3:B22,B22) -> 11617 | B22: 1161 | C22: ACTIVIDADES A TODO COSTO | D22: HB SADELEC Estructuras Metálicas | E22: =VLOOKUP(D22,'BD VIEJA'!$D$3:$H$594,2,FALSE) -> Bogota | F22: =VLOOKUP(D22,'BD VIEJA'!$D$3:$H$594,3,FALSE) -> Avda. Cra. 129 17 F 97 | G22: =VLOOKUP(D22,'BD VIEJA'!$D$3:$H$594,4,FALSE) -> 4224700 Ext. 121 4155620 | H22: =VLOOKUP(D22,'BD VIEJA'!$D$3:$H$594,5,FALSE) -> david.castellanos@hbsadelec.com.co | I22: 20
A23: =+B23&COUNTIF($B$3:B23,B23) -> 11618 | B23: 1161 | C23: ACTIVIDADES A TODO COSTO | D23: PROELÉCTRICOS | E23: =VLOOKUP(D23,'BD VIEJA'!$D$3:$H$594,2,FALSE) -> Bogotá | F23: =VLOOKUP(D23,'BD VIEJA'!$D$3:$H$594,3,FALSE) -> CALLE 12 A No. 21 - 21 | G23: =VLOOKUP(D23,'BD VIEJA'!$D$3:$H$594,4,FALSE) -> 2471255 EXT. 301 | H23: =VLOOKUP(D23,'BD VIEJA'!$D$3:$H$594,5,FALSE) -> presupuestos@proelectricos.com | I23: 21
A24: =+B24&COUNTIF($B$3:B24,B24) -> 11619 | B24: 1161 | C24: ACTIVIDADES A TODO COSTO | D24: SEÑAL VIAS SAS | E24: =VLOOKUP(D24,'BD VIEJA'!$D$3:$H$594,2,FALSE) -> Bogota | F24: =VLOOKUP(D24,'BD VIEJA'!$D$3:$H$594,3,FALSE) -> Calle 38 Sur 72 H 30 | G24: =VLOOKUP(D24,'BD VIEJA'!$D$3:$H$594,4,FALSE) -> 4034647 | H24: =VLOOKUP(D24,'BD VIEJA'!$D$3:$H$594,5,FALSE) -> senalvias@yahoo.es | I24: 22
A25: =+B25&COUNTIF($B$3:B25,B25) -> 116110 | B25: 1161 | C25: ACTIVIDADES A TODO COSTO | D25: SERVIN GELEC SAS | E25: Bogotá | F25: CALLE 65 A nO. 16 - 30 OF. 201 | G25: 7031742 | H25: comercial@servingelec.com | I25: 23
A26: =+B26&COUNTIF($B$3:B26,B26) -> 116111 | B26: 1161 | C26: ACTIVIDADES A TODO COSTO | D26: SOY RED | E26: Bogotá | F26: Carrera 14 #75-77 | G26: 477 8701 | H26: comercial@soyred.net | I26: 24
A27: =+B27&COUNTIF($B$3:B27,B27) -> 116112 | B27: 1161 | C27: ACTIVIDADES A TODO COSTO | D27: STUP DE COLOMBIA | E27: =VLOOKUP(D27,'BD VIEJA'!$D$3:$H$594,2,FALSE) -> Bogota | F27: =VLOOKUP(D27,'BD VIEJA'!$D$3:$H$594,3,FALSE) -> Cra. 50 126 19 | G27: =VLOOKUP(D27,'BD VIEJA'!$D$3:$H$594,4,FALSE) -> 2131601 | H27: =VLOOKUP(D27,'BD VIEJA'!$D$3:$H$594,5,FALSE) -> carlos.salgado@stup.co | I27: 25
A28: =+B28&COUNTIF($B$3:B28,B28) -> 116113 | B28: 1161 | C28: ACTIVIDADES A TODO COSTO | D28: SUM RED LTDA | E28: Bogotá | F28: Calle 154 A 96 - 40 23 Local 203 | G28: 4778701 3212418771 3212418769 | H28: asistente@soyred.net comercial@soyred.net | I28: 26 | J28: preguntar a francisco
A29: =+B29&COUNTIF($B$3:B29,B29) -> 116114 | B29: 1161 | C29: ACTIVIDADES A TODO COSTO | D29: TECNOCOMPRAS | E29: Bogotá | F29: www.tecnocompras.com.co | G29: 316 8701076 3013782 | H29: gerencia@tecnocompras.com.co | I29: 27
A30: =+B30&COUNTIF($B$3:B30,B30) -> 11021 | B30: 1102 | C30: AGREGADOS PETREOS, BASES Y SUBBASES GRANULARES | D30: 4GA SAS Agregados de calidad | E30: =VLOOKUP(D30,'BD VIEJA'!$D$3:$H$594,2,FALSE) -> Bogota | F30: =VLOOKUP(D30,'BD VIEJA'!$D$3:$H$594,3,FALSE) -> Calle 124 10 29 Apto. 201 | G30: =VLOOKUP(D30,'BD VIEJA'!$D$3:$H$594,4,FALSE) -> 3183821145 | H30: =VLOOKUP(D30,'BD VIEJA'!$D$3:$H$594,5,FALSE) -> grupo4ga@gmail.com | I30: 28
A31: =+B31&COUNTIF($B$3:B31,B31) -> 11022 | B31: 1102 | C31: AGREGADOS PETREOS, BASES Y SUBBASES GRANULARES | D31: AGREGADOS ARENAS Y GRAVAS SAS | E31: Bogotá | F31: Calle 185 # 45 - 03 Centro Comercial Santa Fe - Plaza Brasil Of 601 | G31: 3563097 3105691679 | H31: juanonate@outkook.es | I31: 29
A32: =+B32&COUNTIF($B$3:B32,B32) -> 11023 | B32: 1102 | C32: AGREGADOS PETREOS, BASES Y SUBBASES GRANULARES | D32: AGREGADOS EL VINCULO SAS | E32: Soacha - Cund. | F32: Cra. 7 32 35 C.C. Mercurio Of. 308 | G32: 7251891 3212010616 | H32: info@agregadoselvinculo.com | I32: 30
A33: =+B33&COUNTIF($B$3:B33,B33) -> 11024 | B33: 1102 | C33: AGREGADOS PETREOS, BASES Y SUBBASES GRANULARES | D33: ARENAS Y AGREGADOS IVONE SAS | E33: Soacha - Cund. | F33: Calle 95 # 11A-37 Of 401 | G33: 6225492 6226133 | H33: gerencia@arenasyagregados.com | I33: 31
A34: =+B34&COUNTIF($B$3:B34,B34) -> 11025 | B34: 1102 | C34: AGREGADOS PETREOS, BASES Y SUBBASES GRANULARES | D34: BCD SAS | E34: =VLOOKUP(D34,'BD VIEJA'!$D$3:$H$594,2,FALSE) -> Bogota | F34: =VLOOKUP(D34,'BD VIEJA'!$D$3:$H$594,3,FALSE) -> Cra. 67 62 B 55 Sur Bl. 14 Apto. 527 | G34: =VLOOKUP(D34,'BD VIEJA'!$D$3:$H$594,4,FALSE) -> 3008360 | H34: =VLOOKUP(D34,'BD VIEJA'!$D$3:$H$594,5,FALSE) -> bcd@bcdsas.com | I34: 32
A35: =+B35&COUNTIF($B$3:B35,B35) -> 11026 | B35: 1102 | C35: AGREGADOS PETREOS, BASES Y SUBBASES GRANULARES | D35: CEMENTOS ARGOS - AGREGADOS PETREOS | E35: =VLOOKUP(D35,'BD VIEJA'!$D$3:$H$594,2,FALSE) -> Bogotá | F35: =VLOOKUP(D35,'BD VIEJA'!$D$3:$H$594,3,FALSE) -> Carrera 13 con 80 esquina, entre Av. Boyacá y Av. Cali | G35: =VLOOKUP(D35,'BD VIEJA'!$D$3:$H$594,4,FALSE) -> 3506623165 | H35: =VLOOKUP(D35,'BD VIEJA'!$D$3:$H$594,5,FALSE) -> http://agregados.argos.co/productos | I35: 33
A36: =+B36&COUNTIF($B$3:B36,B36) -> 11027 | B36: 1102 | C36: AGREGADOS PETREOS, BASES Y SUBBASES GRANULARES | D36: COMPAÑÍA MINERA NACIONAL LTDA | E36: Soacha - Cund. | F36: Cra 7 # 32 - 35 Centro Comercial Mercurio Of 308 | G36: 7251891 3212060710 | H36: cominal_vp@hotmail.com | I36: 34
A37: =+B37&COUNTIF($B$3:B37,B37) -> 11028 | B37: 1102 | C37: AGREGADOS PETREOS, BASES Y SUBBASES GRANULARES | D37: DOBLE A INGENIERIA S.A. | E37: =VLOOKUP(D37,'BD VIEJA'!$D$3:$H$594,2,FALSE) -> Bogota | F37: =VLOOKUP(D37,'BD VIEJA'!$D$3:$H$594,3,FALSE) -> Calle 79 B 8 11 Piso 3 | G37: =VLOOKUP(D37,'BD VIEJA'!$D$3:$H$594,4,FALSE) -> 2101700 | H37: =VLOOKUP(D37,'BD VIEJA'!$D$3:$H$594,5,FALSE) -> cpinilla@da-ing.com gerencia@dobleaingenieria.com | I37: 35
A38: =+B38&COUNTIF($B$3:B38,B38) -> 11029 | B38: 1102 | C38: AGREGADOS PETREOS, BASES Y SUBBASES GRANULARES | D38: DROMOS PAVIMENTOS S.A. | E38: =VLOOKUP(D38,'BD VIEJA'!$D$3:$H$594,2,FALSE) -> Mosquera/Cundinamarca | F38: =VLOOKUP(D38,'BD VIEJA'!$D$3:$H$594,3,FALSE) -> Km 3.8 Zona Industrial Balsillas | G38: =VLOOKUP(D38,'BD VIEJA'!$D$3:$H$594,4,FALSE) -> 7425376 | H38: =VLOOKUP(D38,'BD VIEJA'!$D$3:$H$594,5,FALSE) -> atencion@dromos.co | I38: 36
A39: =+B39&COUNTIF($B$3:B39,B39) -> 110210 | B39: 1102 | C39: AGREGADOS PETREOS, BASES Y SUBBASES GRANULARES | D39: FANNY I. TEQUIA Y CIA SAS | E39: =VLOOKUP(D39,'BD VIEJA'!$D$3:$H$594,2,FALSE) -> Soacha - Cund. | F39: =VLOOKUP(D39,'BD VIEJA'!$D$3:$H$594,3,FALSE) -> Cra. 6 15 38 | G39: =VLOOKUP(D39,'BD VIEJA'!$D$3:$H$594,4,FALSE) -> 7814130 | H39: =VLOOKUP(D39,'BD VIEJA'!$D$3:$H$594,5,FALSE) -> contacto@tequiaycia.com | I39: 37
A40: =+B40&COUNTIF($B$3:B40,B40) -> 110211 | B40: 1102 | C40: AGREGADOS PETREOS, BASES Y SUBBASES GRANULARES | D40: GRAVILLERA ALBANIA S.A. | E40: =VLOOKUP(D40,'BD VIEJA'!$D$3:$H$594,2,FALSE) -> Chia - Cund. | F40: =VLOOKUP(D40,'BD VIEJA'!$D$3:$H$594,3,FALSE) -> Carretera Central Del Norte Km 19 | G40: =VLOOKUP(D40,'BD VIEJA'!$D$3:$H$594,4,FALSE) -> 6760212 3102849530 | H40: =VLOOKUP(D40,'BD VIEJA'!$D$3:$H$594,5,FALSE) -> administracion@gravilleraalbania.com | I40: 38
A41: =+B41&COUNTIF($B$3:B41,B41) -> 110212 | B41: 1102 | C41: AGREGADOS PETREOS, BASES Y SUBBASES GRANULARES | D41: GRECO | E41: Cota - Cund. | F41: KM 1.5 Puente de Madera Autopista Medellín, Municipio de Cota - Vereda Siberia | G41: 304 6383774 301 3363867 315 8729749 | H41: dircomercial@recicladosgreco.com | I41: 39
A42: =+B42&COUNTIF($B$3:B42,B42) -> 110213 | B42: 1102 | C42: AGREGADOS PETREOS, BASES Y SUBBASES GRANULARES | D42: INCOMINERIA S.A.S. | E42: =VLOOKUP(D42,'BD VIEJA'!$D$3:$H$594,2,FALSE) -> Mosquera - Cund. | F42: =VLOOKUP(D42,'BD VIEJA'!$D$3:$H$594,3,FALSE) -> Km 3.8 Zona Industrial Balsillas | G42: =VLOOKUP(D42,'BD VIEJA'!$D$3:$H$594,4,FALSE) -> 3187759539 | H42: =VLOOKUP(D42,'BD VIEJA'!$D$3:$H$594,5,FALSE) -> ventas@incomineria.co wendy.chaves@incomineria.co | I42: 40
A43: =+B43&COUNTIF($B$3:B43,B43) -> 110214 | B43: 1102 | C43: AGREGADOS PETREOS, BASES Y SUBBASES GRANULARES | D43: INGENIEROS GF SAS | E43: =VLOOKUP(D43,'BD VIEJA'!$D$3:$H$594,2,FALSE) -> Bogota | F43: =VLOOKUP(D43,'BD VIEJA'!$D$3:$H$594,3,FALSE) -> Calle 119 14 A 26 Of. 101 - 401 | G43: =VLOOKUP(D43,'BD VIEJA'!$D$3:$H$594,4,FALSE) -> 6295142 6295120 | H43: =VLOOKUP(D43,'BD VIEJA'!$D$3:$H$594,5,FALSE) -> info@ingenierosgf.com.co pupilojas@hotmail.com | I43: 41
A44: =+B44&COUNTIF($B$3:B44,B44) -> 110215 | B44: 1102 | C44: AGREGADOS PETREOS, BASES Y SUBBASES GRANULARES | D44: MINERALES & TRITURADOS NACIONALES S.A.S | E44: Mosquera - Cund. | F44: Parque Industrial San Jorge - Of 235 | G44: 304 379 0037 8933740 | H44: mintrinal@gmail.com | I44: 42
A45: =+B45&COUNTIF($B$3:B45,B45) -> 110216 | B45: 1102 | C45: AGREGADOS PETREOS, BASES Y SUBBASES GRANULARES | D45: RECICLADOS INDUSTRIALES DE COLOMBIA | E45: =VLOOKUP(D45,'BD VIEJA'!$D$3:$H$594,2,FALSE) -> Cota - Cund. | F45: =VLOOKUP(D45,'BD VIEJA'!$D$3:$H$594,3,FALSE) -> Km 1.5 Costado Sur Vía Bogotá Siberia Cota | G45: =VLOOKUP(D45,'BD VIEJA'!$D$3:$H$594,4,FALSE) -> 8966879 8759047 3114926299 | H45: =VLOOKUP(D45,'BD VIEJA'!$D$3:$H$594,5,FALSE) -> info@recicladosindustriales.co | I45: 43
A46: =+B46&COUNTIF($B$3:B46,B46) -> 110217 | B46: 1102 | C46: AGREGADOS PETREOS, BASES Y SUBBASES GRANULARES | D46: REX INGENIERIA S.A. | E46: =VLOOKUP(D46,'BD VIEJA'!$D$3:$H$594,2,FALSE) -> Bogota | F46: =VLOOKUP(D46,'BD VIEJA'!$D$3:$H$594,3,FALSE) -> Cra. 6 153 A 60 | G46: =VLOOKUP(D46,'BD VIEJA'!$D$3:$H$594,4,FALSE) -> 3378726 3378728 3107694302 | H46: =VLOOKUP(D46,'BD VIEJA'!$D$3:$H$594,5,FALSE) -> atencionalcliente@rexingenieria.com | I46: 44
A47: =+B47&COUNTIF($B$3:B47,B47) -> 11471 | B47: 1147 | C47: ARBOLES, GRAMAS, VEGETACION Y PLANTACION PAISAJISTICA | D47: ECOPRADOS SOLUCIONES AMBIENTALES | E47: =VLOOKUP(D47,'BD VIEJA'!$D$3:$H$594,2,FALSE) -> Bogotá | F47: =VLOOKUP(D47,'BD VIEJA'!$D$3:$H$594,3,FALSE) -> -- | G47: 3118137222 3193922421 | H47: ecopradosambientales@gmail.com nancyemv2017@hotmail.com | I47: 45
A48: =+B48&COUNTIF($B$3:B48,B48) -> 11472 | B48: 1147 | C48: ARBOLES, GRAMAS, VEGETACION Y PLANTACION PAISAJISTICA | D48: VERNE | E48: Bogotá | F48: -- | G48: 317 5123977 321 2053538 | H48: vernebroder@gmail.com | I48: 46
A49: =+B49&COUNTIF($B$3:B49,B49) -> 11473 | B49: 1147 | C49: ARBOLES, GRAMAS, VEGETACION Y PLANTACION PAISAJISTICA | D49: SECRETARIA DISTRITAL DE AMBIENTE | E49: Bogotá | F49: Av caracas No. 54 -38 | G49: 3778899 | H49: atencionalciudadano@ambientebogota.gov.co | I49: 47
A50: =+B50&COUNTIF($B$3:B50,B50) -> 11271 | B50: 1127 | C50: BORDILLOS Y LOSETAS | D50: ALFAGRES S.A. | E50: =VLOOKUP(D50,'BD VIEJA'!$D$3:$H$594,2,FALSE) -> Bogota | F50: =VLOOKUP(D50,'BD VIEJA'!$D$3:$H$594,3,FALSE) -> Avda. Caracas 35 55 | G50: =VLOOKUP(D50,'BD VIEJA'!$D$3:$H$594,4,FALSE) -> 3311515 | H50: =VLOOKUP(D50,'BD VIEJA'!$D$3:$H$594,5,FALSE) -> telemercadeo@alfa.com.co servicioalcliente@alfa.com.co | I50: 48
A51: =+B51&COUNTIF($B$3:B51,B51) -> 11272 | B51: 1127 | C51: BORDILLOS Y LOSETAS | D51: ELEMENTOS PREFABRICADOS DE CONCRETO EL PRECON | E51: =VLOOKUP(D51,'BD VIEJA'!$D$3:$H$594,2,FALSE) -> Madrid - Cund. | F51: =VLOOKUP(D51,'BD VIEJA'!$D$3:$H$594,3,FALSE) -> Km 13.7 Autopista Medellin 1.2 Km del Round Point de Puente de Piedra hacia Bogota (Costado Sur) | G51: =VLOOKUP(D51,'BD VIEJA'!$D$3:$H$594,4,FALSE) -> 3125933840 3115149414 | H51: =VLOOKUP(D51,'BD VIEJA'!$D$3:$H$594,5,FALSE) -> elprecon@hotmail.com | I51: 49
A52: =+B52&COUNTIF($B$3:B52,B52) -> 11273 | B52: 1127 | C52: BORDILLOS Y LOSETAS | D52: INSUMOBRAS LTDA | E52: =VLOOKUP(D52,'BD VIEJA'!$D$3:$H$594,2,FALSE) -> Bogota | F52: =VLOOKUP(D52,'BD VIEJA'!$D$3:$H$594,3,FALSE) -> Autopista Medellin Km 14 Puente Piedra | G52: =VLOOKUP(D52,'BD VIEJA'!$D$3:$H$594,4,FALSE) -> 3108196349 | H52: =VLOOKUP(D52,'BD VIEJA'!$D$3:$H$594,5,FALSE) -> insumobrasltda@hotmail.com invaye@hotmail.com | I52: 50
A53: =+B53&COUNTIF($B$3:B53,B53) -> 11274 | B53: 1127 | C53: BORDILLOS Y LOSETAS | D53: INVERSIONES TJ | E53: Bogotá | F53: Autopista Medellin KM 14 Via Bogota - El Rosal (Puente de Piedra) | G53: 3143941329 3124329816 3158533639 | H53: inversionestj2011@hotmail.com | I53: 51
A54: =+B54&COUNTIF($B$3:B54,B54) -> 11275 | B54: 1127 | C54: BORDILLOS Y LOSETAS | D54: MANUFACTURAS DE CEMENTO S.A. TITAN | E54: =VLOOKUP(D54,'BD VIEJA'!$D$3:$H$594,2,FALSE) -> Cota - Cund. | F54: =VLOOKUP(D54,'BD VIEJA'!$D$3:$H$594,3,FALSE) -> Autopista Medellin, entrada 2,4 Km al occidente del rio Bogotá | G54: =VLOOKUP(D54,'BD VIEJA'!$D$3:$H$594,4,FALSE) -> 3353550 | H54: =VLOOKUP(D54,'BD VIEJA'!$D$3:$H$594,5,FALSE) -> malvarez@titancemento.com | I54: 52
A55: =+B55&COUNTIF($B$3:B55,B55) -> 11276 | B55: 1127 | C55: BORDILLOS Y LOSETAS | D55: PLACA LISTA MODULOS PREFABRICADOS LTDA | E55: =VLOOKUP(D55,'BD VIEJA'!$D$3:$H$594,2,FALSE) -> Bogota | F55: =VLOOKUP(D55,'BD VIEJA'!$D$3:$H$594,3,FALSE) -> Calle 65 13 50 Of. 503 | G55: =VLOOKUP(D55,'BD VIEJA'!$D$3:$H$594,4,FALSE) -> 2550490 3476569 3108173990 | H55: =VLOOKUP(D55,'BD VIEJA'!$D$3:$H$594,5,FALSE) -> placalista01@yahoo.com | I55: 53
A56: =+B56&COUNTIF($B$3:B56,B56) -> 11277 | B56: 1127 | C56: BORDILLOS Y LOSETAS | D56: POSTES MEDINA PREFABRICADOS EN CONCRETO | E56: =VLOOKUP(D56,'BD VIEJA'!$D$3:$H$594,2,FALSE) -> Bogota | F56: =VLOOKUP(D56,'BD VIEJA'!$D$3:$H$594,3,FALSE) -> Avda. Cra. Séptima No. 156 - 78 Oficina 706 | G56: =VLOOKUP(D56,'BD VIEJA'!$D$3:$H$594,4,FALSE) -> 2163020 | H56: =VLOOKUP(D56,'BD VIEJA'!$D$3:$H$594,5,FALSE) -> comercial1@postesmedina.com colpostesmedina@yahoo.com postesmedinacolombia@hotmail.com | I56: 54
A57: =+B57&COUNTIF($B$3:B57,B57) -> 11278 | B57: 1127 | C57: BORDILLOS Y LOSETAS | D57: RECICLADOS INDUSTRIALES DE COLOMBIA | E57: =VLOOKUP(D57,'BD VIEJA'!$D$3:$H$594,2,FALSE) -> Cota - Cund. | F57: =VLOOKUP(D57,'BD VIEJA'!$D$3:$H$594,3,FALSE) -> Km 1.5 Costado Sur Vía Bogotá Siberia Cota | G57: =VLOOKUP(D57,'BD VIEJA'!$D$3:$H$594,4,FALSE) -> 8966879 8759047 3114926299 | H57: =VLOOKUP(D57,'BD VIEJA'!$D$3:$H$594,5,FALSE) -> info@recicladosindustriales.co | I57: 55
A58: =+B58&COUNTIF($B$3:B58,B58) -> 11211 | B58: 1121 | C58: CABLES Y ACCESORIOS ELECTRICOS | D58: ABC TRANSFORMADORES E INGENIERIA ELECTROMECÁNICA | E58: =VLOOKUP(D58,'BD VIEJA'!$D$3:$H$594,2,FALSE) -> Bogotá | F58: =VLOOKUP(D58,'BD VIEJA'!$D$3:$H$594,3,FALSE) -> Carrera 27 No. 7 - 42 | G58: =VLOOKUP(D58,'BD VIEJA'!$D$3:$H$594,4,FALSE) -> 2015059 - 3105612639 - 3105612635 - 2016468 | H58: =VLOOKUP(D58,'BD VIEJA'!$D$3:$H$594,5,FALSE) -> http://www.transformadoresabc.com | I58: 56
A59: =+B59&COUNTIF($B$3:B59,B59) -> 11212 | B59: 1121 | C59: CABLES Y ACCESORIOS ELECTRICOS | D59: ACONSTRUCTORAS.COM | E59: =VLOOKUP(D59,'BD VIEJA'!$D$3:$H$594,2,FALSE) -> Yopal - Casanare | F59: =VLOOKUP(D59,'BD VIEJA'!$D$3:$H$594,3,FALSE) -> Calle 25 15 19 | G59: =VLOOKUP(D59,'BD VIEJA'!$D$3:$H$594,4,FALSE) -> 3005541747 3163971751 | H59: =VLOOKUP(D59,'BD VIEJA'!$D$3:$H$594,5,FALSE) -> www.aconstructoras.com | I59: 57
A60: =+B60&COUNTIF($B$3:B60,B60) -> 11213 | B60: 1121 | C60: CABLES Y ACCESORIOS ELECTRICOS | D60: ALMACÉN CANAIMA | E60: =VLOOKUP(D60,'BD VIEJA'!$D$3:$H$594,2,FALSE) -> Armenia - Quindio | F60: =VLOOKUP(D60,'BD VIEJA'!$D$3:$H$594,3,FALSE) -> Calle 17 20 21 | G60: =VLOOKUP(D60,'BD VIEJA'!$D$3:$H$594,4,FALSE) -> 3148884477 (6)7447384 | H60: =VLOOKUP(D60,'BD VIEJA'!$D$3:$H$594,5,FALSE) -> info@almacencanaima.com | I60: 58
A61: =+B61&COUNTIF($B$3:B61,B61) -> 11214 | B61: 1121 | C61: CABLES Y ACCESORIOS ELECTRICOS | D61: BORNA DESDE 1984 | E61: =VLOOKUP(D61,'BD VIEJA'!$D$3:$H$594,2,FALSE) -> Bogotá | F61: =VLOOKUP(D61,'BD VIEJA'!$D$3:$H$594,3,FALSE) -> CARRERA 24 8-51 BOGOTA | G61: =VLOOKUP(D61,'BD VIEJA'!$D$3:$H$594,4,FALSE) -> 383 7610 | H61: =VLOOKUP(D61,'BD VIEJA'!$D$3:$H$594,5,FALSE) -> www.borna-store.com servicioalcliente@bornas.info | I61: 59
A62: =+B62&COUNTIF($B$3:B62,B62) -> 11215 | B62: 1121 | C62: CABLES Y ACCESORIOS ELECTRICOS | D62: CEB IMPORTADORA SAS | E62: =VLOOKUP(D62,'BD VIEJA'!$D$3:$H$594,2,FALSE) -> Bogota | F62: =VLOOKUP(D62,'BD VIEJA'!$D$3:$H$594,3,FALSE) -> Cra. 13 19 29 | G62: =VLOOKUP(D62,'BD VIEJA'!$D$3:$H$594,4,FALSE) -> 2825100 | H62: =VLOOKUP(D62,'BD VIEJA'!$D$3:$H$594,5,FALSE) -> administracion@cebbogota.com | I62: 60
A63: =+B63&COUNTIF($B$3:B63,B63) -> 11216 | B63: 1121 | C63: CABLES Y ACCESORIOS ELECTRICOS | D63: CEI ELECTRICA INTERNACIONAL SAS | E63: =VLOOKUP(D63,'BD VIEJA'!$D$3:$H$594,2,FALSE) -> Bogotá | F63: =VLOOKUP(D63,'BD VIEJA'!$D$3:$H$594,3,FALSE) -> Cra. 13 No. 13 - 17 Of. 404 | G63: =VLOOKUP(D63,'BD VIEJA'!$D$3:$H$594,4,FALSE) -> 2435090 | H63: =VLOOKUP(D63,'BD VIEJA'!$D$3:$H$594,5,FALSE) -> ventas@ceielectricainternacional.com | I63: 61
A64: =+B64&COUNTIF($B$3:B64,B64) -> 11217 | B64: 1121 | C64: CABLES Y ACCESORIOS ELECTRICOS | D64: COVAL COMERCIAL S. A. | E64: =VLOOKUP(D64,'BD VIEJA'!$D$3:$H$594,2,FALSE) -> Bogota | F64: =VLOOKUP(D64,'BD VIEJA'!$D$3:$H$594,3,FALSE) -> Avda. Ciudad de Cali 5 A 92 Sur | G64: =VLOOKUP(D64,'BD VIEJA'!$D$3:$H$594,4,FALSE) -> 3152358446 8759100 Ext. 144 - 145 7454671 | H64: =VLOOKUP(D64,'BD VIEJA'!$D$3:$H$594,5,FALSE) -> info@coval.com.co | I64: 62
A65: =+B65&COUNTIF($B$3:B65,B65) -> 11218 | B65: 1121 | C65: CABLES Y ACCESORIOS ELECTRICOS | D65: CU CONECTORES | E65: =VLOOKUP(D65,'BD VIEJA'!$D$3:$H$594,2,FALSE) -> Funza - Cundinamarca | F65: =VLOOKUP(D65,'BD VIEJA'!$D$3:$H$594,3,FALSE) -> Km 7 vía Bogotá - Medellín Complejo Industrial Celta Trade Park, Bodega 152-3 | G65: =VLOOKUP(D65,'BD VIEJA'!$D$3:$H$594,4,FALSE) -> 8966535 Ext. 400 | H65: =VLOOKUP(D65,'BD VIEJA'!$D$3:$H$594,5,FALSE) -> comercial@cuconectores.com.co | I65: 63
A66: =+B66&COUNTIF($B$3:B66,B66) -> 11219 | B66: 1121 | C66: CABLES Y ACCESORIOS ELECTRICOS | D66: DEKO | E66: Bogotá | F66: Cra 43#79-61 - Cll 30#4B-350 - Cll 36#43-49 | G66: 3850303 ext 61-64 | H66: cliente@electricosei.com | I66: 64
A67: =+B67&COUNTIF($B$3:B67,B67) -> 112110 | B67: 1121 | C67: CABLES Y ACCESORIOS ELECTRICOS | D67: DISELEC LTDA | E67: =VLOOKUP(D67,'BD VIEJA'!$D$3:$H$594,2,FALSE) -> Bogota | F67: =VLOOKUP(D67,'BD VIEJA'!$D$3:$H$594,3,FALSE) -> Cra. 12 16 26 | G67: =VLOOKUP(D67,'BD VIEJA'!$D$3:$H$594,4,FALSE) -> 3107720207 2843500 2832928 | H67: =VLOOKUP(D67,'BD VIEJA'!$D$3:$H$594,5,FALSE) -> distrielectrica@hotmail.com | I67: 65
A68: =+B68&COUNTIF($B$3:B68,B68) -> 112111 | B68: 1121 | C68: CABLES Y ACCESORIOS ELECTRICOS | D68: DURMAN COLOMBIA S.A. | E68: =VLOOKUP(D68,'BD VIEJA'!$D$3:$H$594,2,FALSE) -> Madrid - Cund. | F68: =VLOOKUP(D68,'BD VIEJA'!$D$3:$H$594,3,FALSE) -> Km 27 Vía Fontibon Facatativa Los Alpes | G68: =VLOOKUP(D68,'BD VIEJA'!$D$3:$H$594,4,FALSE) -> 8200200 | H68: =VLOOKUP(D68,'BD VIEJA'!$D$3:$H$594,5,FALSE) -> colombia@durman.com | I68: 66
A69: =+B69&COUNTIF($B$3:B69,B69) -> 112112 | B69: 1121 | C69: CABLES Y ACCESORIOS ELECTRICOS | D69: DYCON MATERIALES ELÉCTRICOS | E69: =VLOOKUP(D69,'BD VIEJA'!$D$3:$H$594,2,FALSE) -> Neiva - Huila | F69: =VLOOKUP(D69,'BD VIEJA'!$D$3:$H$594,3,FALSE) -> Calle 22 #1h-38, Rojas Trujillo | G69: =VLOOKUP(D69,'BD VIEJA'!$D$3:$H$594,4,FALSE) -> 8750577 | H69: =VLOOKUP(D69,'BD VIEJA'!$D$3:$H$594,5,FALSE) -> -- | I69: 67
A70: =+B70&COUNTIF($B$3:B70,B70) -> 112113 | B70: 1121 | C70: CABLES Y ACCESORIOS ELECTRICOS | D70: EASY | E70: =VLOOKUP(D70,'BD VIEJA'!$D$3:$H$594,2,FALSE) -> Bogota | F70: =VLOOKUP(D70,'BD VIEJA'!$D$3:$H$594,3,FALSE) -> Avda. Americas 68 94 | G70: =VLOOKUP(D70,'BD VIEJA'!$D$3:$H$594,4,FALSE) -> 4191400 | H70: =VLOOKUP(D70,'BD VIEJA'!$D$3:$H$594,5,FALSE) -> www.easy.com.co | I70: 68
A71: =+B71&COUNTIF($B$3:B71,B71) -> 112114 | B71: 1121 | C71: CABLES Y ACCESORIOS ELECTRICOS | D71: EIMPSA | E71: =VLOOKUP(D71,'BD VIEJA'!$D$3:$H$594,2,FALSE) -> Bogotá | F71: =VLOOKUP(D71,'BD VIEJA'!$D$3:$H$594,3,FALSE) -> Calle 15 No. 13 - 48 (Entrada Principal) Calle 16 N. 13 - 55 (Parqueadero) | G71: =VLOOKUP(D71,'BD VIEJA'!$D$3:$H$594,4,FALSE) -> 3275222 - 3340686 | H71: =VLOOKUP(D71,'BD VIEJA'!$D$3:$H$594,5,FALSE) -> E-mail: ventas@eimpsa.com.co | I71: 69
A72: =+B72&COUNTIF($B$3:B72,B72) -> 112115 | B72: 1121 | C72: CABLES Y ACCESORIOS ELECTRICOS | D72: ELECTRICOS JS | E72: Bogotá | F72: Av. Calle 63 #103A-32 Viña del Mar | G72: 431 31 20 310 477 2097 | H72: ventas2@electricosjs.com.co | I72: 70
A73: =+B73&COUNTIF($B$3:B73,B73) -> 112116 | B73: 1121 | C73: CABLES Y ACCESORIOS ELECTRICOS | D73: ALMACENES EXITO | E73: =VLOOKUP(D73,'BD VIEJA'!$D$3:$H$594,2,FALSE) -> Bogotá | F73: =VLOOKUP(D73,'BD VIEJA'!$D$3:$H$594,3,FALSE) -> Cra. 7 32 84 | G73: =VLOOKUP(D73,'BD VIEJA'!$D$3:$H$594,4,FALSE) -> 3278888 | H73: =VLOOKUP(D73,'BD VIEJA'!$D$3:$H$594,5,FALSE) -> www.exito.com | I73: 71
A74: =+B74&COUNTIF($B$3:B74,B74) -> 112117 | B74: 1121 | C74: CABLES Y ACCESORIOS ELECTRICOS | D74: FERRETERIA TÉCNICA | E74: Medellín - Antioquia | F74: Carrera 51 # 44 - 98 | G74: 511 9828 | H74: ferreteriatecnicasa@gmail.com | I74: 72
A75: =+B75&COUNTIF($B$3:B75,B75) -> 112118 | B75: 1121 | C75: CABLES Y ACCESORIOS ELECTRICOS | D75: GERFOR | E75: =VLOOKUP(D75,'BD VIEJA'!$D$3:$H$594,2,FALSE) -> Bogota | F75: =VLOOKUP(D75,'BD VIEJA'!$D$3:$H$594,3,FALSE) -> Autopista Medellin Km 2 - 600 Entrada via Parcelas de Cota | G75: =VLOOKUP(D75,'BD VIEJA'!$D$3:$H$594,4,FALSE) -> 8776800 | H75: =VLOOKUP(D75,'BD VIEJA'!$D$3:$H$594,5,FALSE) -> contactenos@gerfor.com www.gerfor.com.co | I75: 73
A76: =+B76&COUNTIF($B$3:B76,B76) -> 112119 | B76: 1121 | C76: CABLES Y ACCESORIOS ELECTRICOS | D76: GIM INGENIERIA ELÉCTRICA LTDA | E76: Bogotá | F76: Cra 73A N° 68B-28 | G76: 2526888 | H76: info@gim.com.co | I76: 74
A77: =+B77&COUNTIF($B$3:B77,B77) -> 112120 | B77: 1121 | C77: CABLES Y ACCESORIOS ELECTRICOS | D77: HOMECENTER | E77: =VLOOKUP(D77,'BD VIEJA'!$D$3:$H$594,2,FALSE) -> Bogota | F77: =VLOOKUP(D77,'BD VIEJA'!$D$3:$H$594,3,FALSE) -> Avda. 68 37 37 Sur | G77: =VLOOKUP(D77,'BD VIEJA'!$D$3:$H$594,4,FALSE) -> 3077115 | H77: =VLOOKUP(D77,'BD VIEJA'!$D$3:$H$594,5,FALSE) -> www.homecenter.com.co | I77: 75
A78: =+B78&COUNTIF($B$3:B78,B78) -> 112121 | B78: 1121 | C78: CABLES Y ACCESORIOS ELECTRICOS | D78: INTECH | E78: Bogotá | F78: Oficinas Exhibición y Ventas CC. Iserra 100 LC 133 | G78: 381 4920 3008360675 | H78: comercial@intech.com.co | I78: 76
A79: =+B79&COUNTIF($B$3:B79,B79) -> 112122 | B79: 1121 | C79: CABLES Y ACCESORIOS ELECTRICOS | D79: INTERELECTRICAS | E79: Bogotá | F79: Cra. 12 13 46 | G79: 3360755 3106983687 | H79: servicioalcliente@ie.com.co | I79: 77
A80: =+B80&COUNTIF($B$3:B80,B80) -> 112123 | B80: 1121 | C80: CABLES Y ACCESORIOS ELECTRICOS | D80: INTERNACIONAL DE ELÉCTRICOS | E80: =VLOOKUP(D80,'BD VIEJA'!$D$3:$H$594,2,FALSE) -> Bogota | F80: =VLOOKUP(D80,'BD VIEJA'!$D$3:$H$594,3,FALSE) -> Avda. Caracas 64 23 | G80: =VLOOKUP(D80,'BD VIEJA'!$D$3:$H$594,4,FALSE) -> 7448130 | H80: =VLOOKUP(D80,'BD VIEJA'!$D$3:$H$594,5,FALSE) -> amrubio@iegrupo.co lsescorcia@iegrupo.co | I80: 78
A81: =+B81&COUNTIF($B$3:B81,B81) -> 112124 | B81: 1121 | C81: CABLES Y ACCESORIOS ELECTRICOS | D81: JD ELECTRICOS E INDUSTRIA LTDA | E81: Bogota | F81: Cra. 12 15 95 | G81: 3411060 | H81: elianasalazar@jdelectricos.com.co | I81: 79
A82: =+B82&COUNTIF($B$3:B82,B82) -> 112125 | B82: 1121 | C82: CABLES Y ACCESORIOS ELECTRICOS | D82: ALMACENES JUMBO | E82: =VLOOKUP(D82,'BD VIEJA'!$D$3:$H$594,2,FALSE) -> Bogota | F82: =VLOOKUP(D82,'BD VIEJA'!$D$3:$H$594,3,FALSE) -> Calle 185 # 43 - 05 Lc 167 C.cial Santafé Av. Carrera. 72 # 80 - 94 Local 1-13 C.cial Titán Plaza | G82: =VLOOKUP(D82,'BD VIEJA'!$D$3:$H$594,4,FALSE) -> 3489898 | H82: =VLOOKUP(D82,'BD VIEJA'!$D$3:$H$594,5,FALSE) -> sac@tiendasjumbo.co | I82: 80
A83: =+B83&COUNTIF($B$3:B83,B83) -> 112126 | B83: 1121 | C83: CABLES Y ACCESORIOS ELECTRICOS | D83: MAELECTRICOS | E83: =VLOOKUP(D83,'BD VIEJA'!$D$3:$H$594,2,FALSE) -> Bogota | F83: =VLOOKUP(D83,'BD VIEJA'!$D$3:$H$594,3,FALSE) -> Calle 17 28 A 74 | G83: =VLOOKUP(D83,'BD VIEJA'!$D$3:$H$594,4,FALSE) -> 3647373 | H83: =VLOOKUP(D83,'BD VIEJA'!$D$3:$H$594,5,FALSE) -> julian.c@maelectricos.com julian.alvarado@maelectricos.com | I83: 81
A84: =+B84&COUNTIF($B$3:B84,B84) -> 112127 | B84: 1121 | C84: CABLES Y ACCESORIOS ELECTRICOS | D84: NACIONAL DE ELECTRICOS | E84: =VLOOKUP(D84,'BD VIEJA'!$D$3:$H$594,2,FALSE) -> Bogota | F84: =VLOOKUP(D84,'BD VIEJA'!$D$3:$H$594,3,FALSE) -> Calle 15 12 81 | G84: =VLOOKUP(D84,'BD VIEJA'!$D$3:$H$594,4,FALSE) -> 3114758165 2543720 Ext. 1502 | H84: =VLOOKUP(D84,'BD VIEJA'!$D$3:$H$594,5,FALSE) -> centro1@nalelectricos.com.co www.nalelectricos.com.co | I84: 82
A85: =+B85&COUNTIF($B$3:B85,B85) -> 112128 | B85: 1121 | C85: CABLES Y ACCESORIOS ELECTRICOS | D85: NACIONAL DE TRANSFORMADORES | E85: =VLOOKUP(D85,'BD VIEJA'!$D$3:$H$594,2,FALSE) -> Mosquera/Cundinamarca | F85: =VLOOKUP(D85,'BD VIEJA'!$D$3:$H$594,3,FALSE) -> PARQUE INDUSTRIAL MONTANA - MOSQUERA | G85: =VLOOKUP(D85,'BD VIEJA'!$D$3:$H$594,4,FALSE) -> 8932308 | H85: =VLOOKUP(D85,'BD VIEJA'!$D$3:$H$594,5,FALSE) -> -- | I85: 83
A86: =+B86&COUNTIF($B$3:B86,B86) -> 112129 | B86: 1121 | C86: CABLES Y ACCESORIOS ELECTRICOS | D86: PANAMERICANA | E86: Bogotá | F86: Calle 12 # 34 - 30 | G86: 364 9000 018000 121314 | H86: tiendavirtual@panamericana.com.co | I86: 84
A87: =+B87&COUNTIF($B$3:B87,B87) -> 112130 | B87: 1121 | C87: CABLES Y ACCESORIOS ELECTRICOS | D87: PAVCO S.A. | E87: =VLOOKUP(D87,'BD VIEJA'!$D$3:$H$594,2,FALSE) -> Bogota | F87: =VLOOKUP(D87,'BD VIEJA'!$D$3:$H$594,3,FALSE) -> Autopista Sur 71 75 | G87: =VLOOKUP(D87,'BD VIEJA'!$D$3:$H$594,4,FALSE) -> 7825000 | H87: =VLOOKUP(D87,'BD VIEJA'!$D$3:$H$594,5,FALSE) -> servicio@pavco.com.co orlando.polo@pavco.com.co www.pavco.com.co | I87: 85
A88: =+B88&COUNTIF($B$3:B88,B88) -> 112131 | B88: 1121 | C88: CABLES Y ACCESORIOS ELECTRICOS | D88: PROELÉCTRICOS | E88: =VLOOKUP(D88,'BD VIEJA'!$D$3:$H$594,2,FALSE) -> Bogotá | F88: =VLOOKUP(D88,'BD VIEJA'!$D$3:$H$594,3,FALSE) -> CALLE 12 A No. 21 - 21 | G88: =VLOOKUP(D88,'BD VIEJA'!$D$3:$H$594,4,FALSE) -> 2471255 EXT. 301 | H88: =VLOOKUP(D88,'BD VIEJA'!$D$3:$H$594,5,FALSE) -> presupuestos@proelectricos.com | I88: 86
A89: =+B89&COUNTIF($B$3:B89,B89) -> 112132 | B89: 1121 | C89: CABLES Y ACCESORIOS ELECTRICOS | D89: REDES ELECTRICAS SA | E89: =VLOOKUP(D89,'BD VIEJA'!$D$3:$H$594,2,FALSE) -> Bogotá | F89: =VLOOKUP(D89,'BD VIEJA'!$D$3:$H$594,3,FALSE) -> Calle 18 # 25 - 60 | G89: =VLOOKUP(D89,'BD VIEJA'!$D$3:$H$594,4,FALSE) -> 7470023 | H89: =VLOOKUP(D89,'BD VIEJA'!$D$3:$H$594,5,FALSE) -> servicioalcliente@redeselectricas.com | I89: 87
A90: =+B90&COUNTIF($B$3:B90,B90) -> 112133 | B90: 1121 | C90: CABLES Y ACCESORIOS ELECTRICOS | D90: STEREN | E90: =VLOOKUP(D90,'BD VIEJA'!$D$3:$H$594,2,FALSE) -> Bogotá | F90: =VLOOKUP(D90,'BD VIEJA'!$D$3:$H$594,3,FALSE) -> Calle 140 n. 12B-25, Edificio Castellana Empresarial, oficina 103 | G90: =VLOOKUP(D90,'BD VIEJA'!$D$3:$H$594,4,FALSE) -> 7443200 | H90: =VLOOKUP(D90,'BD VIEJA'!$D$3:$H$594,5,FALSE) -> www.steren.com.co | I90: 88
A91: =+B91&COUNTIF($B$3:B91,B91) -> 112134 | B91: 1121 | C91: CABLES Y ACCESORIOS ELECTRICOS | D91: TRANSFORMADORES INDUELECTRO | E91: Bogotá | F91: Cll 24 Sur No 18 C-51 - Barrio Olaya | G91: 3669171 2729590 312 4199852 310 8774120 | H91: transformadoresinduelectro@hotmail.com | I91: 89
A92: =+B92&COUNTIF($B$3:B92,B92) -> 112135 | B92: 1121 | C92: CABLES Y ACCESORIOS ELECTRICOS | D92: TRANSFORMADORES EL WATTIO | E92: Bogotá | F92: Kr 88a # 64D - 90 Bod 14. Centro Industrial el Dorado. | G92: 252 22 77 3174029908 | H92: transformadores@elwattio.com.co | I92: 90
A93: =+B93&COUNTIF($B$3:B93,B93) -> 112136 | B93: 1121 | C93: CABLES Y ACCESORIOS ELECTRICOS | D93: TUBOS Y ACCESORIOS CELTA | E93: =VLOOKUP(D93,'BD VIEJA'!$D$3:$H$594,2,FALSE) -> Bogota | F93: =VLOOKUP(D93,'BD VIEJA'!$D$3:$H$594,3,FALSE) -> Cra. 87 1 42 | G93: =VLOOKUP(D93,'BD VIEJA'!$D$3:$H$594,4,FALSE) -> 7799000 3143302256 3123320171 | H93: =VLOOKUP(D93,'BD VIEJA'!$D$3:$H$594,5,FALSE) -> rurodrig@celta.com.co katherine.rodriguez@celta.com.co | I93: 91
A94: =+B94&COUNTIF($B$3:B94,B94) -> 11951 | B94: 1195 | C94: CARPINTERIA METALICA | D94: CIELO RASOS & DIVISIONES | E94: Bogotá | F94: Cra 14 #75-58 | G94: 248 18 60 310 577 4471 | H94: ventas@cielosrasos.com | I94: 92
A95: =+B95&COUNTIF($B$3:B95,B95) -> 11952 | B95: 1195 | C95: CARPINTERIA METALICA | D95: HB SADELEC Estructuras Metálicas | E95: =VLOOKUP(D95,'BD VIEJA'!$D$3:$H$594,2,FALSE) -> Bogota | F95: =VLOOKUP(D95,'BD VIEJA'!$D$3:$H$594,3,FALSE) -> Avda. Cra. 129 17 F 97 | G95: =VLOOKUP(D95,'BD VIEJA'!$D$3:$H$594,4,FALSE) -> 4224700 Ext. 121 4155620 | H95: =VLOOKUP(D95,'BD VIEJA'!$D$3:$H$594,5,FALSE) -> david.castellanos@hbsadelec.com.co | I95: 93
A96: =+B96&COUNTIF($B$3:B96,B96) -> 11953 | B96: 1195 | C96: CARPINTERIA METALICA | D96: NAZCA DISEÑO - IMAGEN SAS | E96: =VLOOKUP(D96,'BD VIEJA'!$D$3:$H$594,2,FALSE) -> Bogota | F96: =VLOOKUP(D96,'BD VIEJA'!$D$3:$H$594,3,FALSE) -> Cra. 55 45 A 20 | G96: =VLOOKUP(D96,'BD VIEJA'!$D$3:$H$594,4,FALSE) -> 3244248 3003228552 | H96: =VLOOKUP(D96,'BD VIEJA'!$D$3:$H$594,5,FALSE) -> comercial@nazca.com.co | I96: 94
A97: =+B97&COUNTIF($B$3:B97,B97) -> 11301 | B97: 1130 | C97: COMBUSTIBLES Y LUBRICANTES | D97: MINISTERIO DE MINAS Y ENERGIA | E97: =VLOOKUP(D97,'BD VIEJA'!$D$3:$H$594,2,FALSE) -> Bogota | F97: =VLOOKUP(D97,'BD VIEJA'!$D$3:$H$594,3,FALSE) -> Calle 43 57 31 | G97: =VLOOKUP(D97,'BD VIEJA'!$D$3:$H$594,4,FALSE) -> 2200300 2200306 | H97: =VLOOKUP(D97,'BD VIEJA'!$D$3:$H$594,5,FALSE) -> www.minminas.gov.co | I97: 95
A98: =+B98&COUNTIF($B$3:B98,B98) -> 11031 | B98: 1103 | C98: CONCRETOS Y MORTEROS PREMEZCLADOS | D98: CEMEX DE COLOMBIA S.A. | E98: =VLOOKUP(D98,'BD VIEJA'!$D$3:$H$594,2,FALSE) -> Bogota | F98: =VLOOKUP(D98,'BD VIEJA'!$D$3:$H$594,3,FALSE) -> Calle 99 9 A 54 Piso 8 | G98: =VLOOKUP(D98,'BD VIEJA'!$D$3:$H$594,4,FALSE) -> 6469000 6039100 | H98: ginnamarcela.gomez@cemex.com alvaro.coral@cemex.com adrianamaritza.ramosrt@cemex.com.co | I98: 96
A99: =+B99&COUNTIF($B$3:B99,B99) -> 11032 | B99: 1103 | C99: CONCRETOS Y MORTEROS PREMEZCLADOS | D99: CONCRETERA TREMIX SAS | E99: Bogotá | F99: -- | G99: 6260860 | H99: -- | I99: 97
A100: =+B100&COUNTIF($B$3:B100,B100) -> 11033 | B100: 1103 | C100: CONCRETOS Y MORTEROS PREMEZCLADOS | D100: CONCRETOS ARGOS S.A. | E100: =VLOOKUP(D100,'BD VIEJA'!$D$3:$H$594,2,FALSE) -> Bogotá | F100: =VLOOKUP(D100,'BD VIEJA'!$D$3:$H$594,3,FALSE) -> Cra. 7 71 21 Torre A Piso 10 | G100: =VLOOKUP(D100,'BD VIEJA'!$D$3:$H$594,4,FALSE) -> 6767060 | H100: =VLOOKUP(D100,'BD VIEJA'!$D$3:$H$594,5,FALSE) -> info@argos.com.co | I100: 98
A101: =+B101&COUNTIF($B$3:B101,B101) -> 11034 | B101: 1103 | C101: CONCRETOS Y MORTEROS PREMEZCLADOS | D101: HORMIGON ANDINO S.A. | E101: =VLOOKUP(D101,'BD VIEJA'!$D$3:$H$594,2,FALSE) -> Bogota | F101: =VLOOKUP(D101,'BD VIEJA'!$D$3:$H$594,3,FALSE) -> Calle 125 21 A 18 Piso 4 | G101: =VLOOKUP(D101,'BD VIEJA'!$D$3:$H$594,4,FALSE) -> 3164706585 6371837 | H101: =VLOOKUP(D101,'BD VIEJA'!$D$3:$H$594,5,FALSE) -> comercial@hormigonandino.com | I101: 99
A102: =+B102&COUNTIF($B$3:B102,B102) -> 11035 | B102: 1103 | C102: CONCRETOS Y MORTEROS PREMEZCLADOS | D102: POLIMIX COLOMBIA | E102: Bogotá | F102: Calle 147 # 17 - 78 Edificio Soko 147 Of 504 | G102: 6260860 / 61 / 62 / 63 | H102: -- | I102: 100 | J102: preguntar a francisco
A103: =+B103&COUNTIF($B$3:B103,B103) -> 11036 | B103: 1103 | C103: CONCRETOS Y MORTEROS PREMEZCLADOS | D103: SIKA COLOMBIA SAS | E103: =VLOOKUP(D103,'BD VIEJA'!$D$3:$H$594,2,FALSE) -> Tocancipa - Cund. | F103: =VLOOKUP(D103,'BD VIEJA'!$D$3:$H$594,3,FALSE) -> Vereda Canavita, Km 20,5 Autopista Norte | G103: =VLOOKUP(D103,'BD VIEJA'!$D$3:$H$594,4,FALSE) -> 8786666 8786681 | H103: =VLOOKUP(D103,'BD VIEJA'!$D$3:$H$594,5,FALSE) -> ortiz.ricardo@co.sika.com chacon.jose@co.sika.com | I103: 101
A104: =+B104&COUNTIF($B$3:B104,B104) -> 12001 | B104: 1200 | C104: CUBIERTA, CIELO RASO, CORTASOL TIPO TRANSMILENIO | D104: CIELOS RASOS & DIVISIONES | E104: Bogotá | F104: Cra 14 #75-58 | G104: 248 18 60 310 577 4471 | H104: ventas@cielosrasos.com | I104: 102
A105: =+B105&COUNTIF($B$3:B105,B105) -> 12002 | B105: 1200 | C105: CUBIERTA, CIELO RASO, CORTASOL TIPO TRANSMILENIO | D105: HB SADELEC Estructuras Metálicas | E105: =VLOOKUP(D105,'BD VIEJA'!$D$3:$H$594,2,FALSE) -> Bogota | F105: =VLOOKUP(D105,'BD VIEJA'!$D$3:$H$594,3,FALSE) -> Avda. Cra. 129 17 F 97 | G105: =VLOOKUP(D105,'BD VIEJA'!$D$3:$H$594,4,FALSE) -> 4224700 Ext. 121 4155620 | H105: =VLOOKUP(D105,'BD VIEJA'!$D$3:$H$594,5,FALSE) -> david.castellanos@hbsadelec.com.co | I105: 103
A106: =+B106&COUNTIF($B$3:B106,B106) -> 11941 | B106: 1194 | C106: DESMONTE Y TRASLADO DE ELEMENTOS METALICOS | D106: NAZCA DISEÑO - IMAGEN SAS | E106: =VLOOKUP(D106,'BD VIEJA'!$D$3:$H$594,2,FALSE) -> Bogota | F106: =VLOOKUP(D106,'BD VIEJA'!$D$3:$H$594,3,FALSE) -> Cra. 55 45 A 20 | G106: =VLOOKUP(D106,'BD VIEJA'!$D$3:$H$594,4,FALSE) -> 3244248 3003228552 | H106: =VLOOKUP(D106,'BD VIEJA'!$D$3:$H$594,5,FALSE) -> comercial@nazca.com.co | I106: 104
A107: =+B107&COUNTIF($B$3:B107,B107) -> 11481 | B107: 1148 | C107: DOTACION (EPP) Y EQUIPO Y HERRAMIENTA SEGURIDAD INDUSTRIAL | D107: ACONSTRUCTORAS.COM | E107: =VLOOKUP(D107,'BD VIEJA'!$D$3:$H$594,2,FALSE) -> Yopal - Casanare | F107: =VLOOKUP(D107,'BD VIEJA'!$D$3:$H$594,3,FALSE) -> Calle 25 15 19 | G107: =VLOOKUP(D107,'BD VIEJA'!$D$3:$H$594,4,FALSE) -> 3005541747 3163971751 | H107: =VLOOKUP(D107,'BD VIEJA'!$D$3:$H$594,5,FALSE) -> www.aconstructoras.com | I107: 105
A108: =+B108&COUNTIF($B$3:B108,B108) -> 11482 | B108: 1148 | C108: DOTACION (EPP) Y EQUIPO Y HERRAMIENTA SEGURIDAD INDUSTRIAL | D108: ADRENALINA SAFETY VIRTUAL STORE | E108: Bogotá | F108: www.adrenalina.co | G108: 350 239 4362 | H108: adrenalina.virtual.store@gmail.com servicio.cliente@adrenalina.co | I108: 106
A109: =+B109&COUNTIF($B$3:B109,B109) -> 11483 | B109: 1148 | C109: DOTACION (EPP) Y EQUIPO Y HERRAMIENTA SEGURIDAD INDUSTRIAL | D109: AFM DOTACIONES | E109: Bogotá | F109: Av 68 N. 18-32 Sur | G109: 4948768 5637649 | H109: servicioalcliente@afmdotaciones.com.co ventas68punto1@afmdotaciones.com.co | I109: 107
A110: =+B110&COUNTIF($B$3:B110,B110) -> 11484 | B110: 1148 | C110: DOTACION (EPP) Y EQUIPO Y HERRAMIENTA SEGURIDAD INDUSTRIAL | D110: ALMACEN ENTRE MAYORISTAS | E110: Bogotá | F110: Cl 6A # 19-70 Piso 1 Almacenes Salamandras Textil | G110: 37 01 091 | H110: info@entremayoristas.com ventas@salamandratextil.com | I110: 108 | J110: preguntar a sara
A111: =+B111&COUNTIF($B$3:B111,B111) -> 11485 | B111: 1148 | C111: DOTACION (EPP) Y EQUIPO Y HERRAMIENTA SEGURIDAD INDUSTRIAL | D111: ALMACEN SIGMONSHOP | E111: Cali - Valle | F111: Crra 83A No. 45 - 59 Piso 2 Barrio El Caney | G111: 4015063 3212151598 | H111: ventas@sigmonshop.com | I111: 109
A112: =+B112&COUNTIF($B$3:B112,B112) -> 11486 | B112: 1148 | C112: DOTACION (EPP) Y EQUIPO Y HERRAMIENTA SEGURIDAD INDUSTRIAL | D112: CENTRAL DE SUMINISTROS - GSPATH | E112: Cartagena - Bolivar | F112: Mamonal Km 6, EDS las Américas Local 7B | G112: 6685571 304 344 9544 | H112: ventas@centraldesuministrosgs.com | I112: 110
A113: =+B113&COUNTIF($B$3:B113,B113) -> 11487 | B113: 1148 | C113: DOTACION (EPP) Y EQUIPO Y HERRAMIENTA SEGURIDAD INDUSTRIAL | D113: DISTRIBUCIONES Y DOTACIONES R.A.C | E113: Bogotá | F113: Carrera 22 # 16 – 65 Almacén Paloquemao Calle 164 # 21 – 25 Almacén Toberín | G113: 672 22 36 314 878 93 31 | H113: ventas@dotacionesrac.com | I113: 111
A114: =+B114&COUNTIF($B$3:B114,B114) -> 11488 | B114: 1148 | C114: DOTACION (EPP) Y EQUIPO Y HERRAMIENTA SEGURIDAD INDUSTRIAL | D114: DOTA FUERTE | E114: =VLOOKUP(D114,'BD VIEJA'!$D$3:$H$594,2,FALSE) -> Bogota | F114: =VLOOKUP(D114,'BD VIEJA'!$D$3:$H$594,3,FALSE) -> Avda. Cra. 68 14 32 Sur | G114: =VLOOKUP(D114,'BD VIEJA'!$D$3:$H$594,4,FALSE) -> 3112819386 2628514 | H114: =VLOOKUP(D114,'BD VIEJA'!$D$3:$H$594,5,FALSE) -> dotafuerte@gmail.com | I114: 112
A115: =+B115&COUNTIF($B$3:B115,B115) -> 11489 | B115: 1148 | C115: DOTACION (EPP) Y EQUIPO Y HERRAMIENTA SEGURIDAD INDUSTRIAL | D115: DOTACIONES CALDERON SAS | E115: =VLOOKUP(D115,'BD VIEJA'!$D$3:$H$594,2,FALSE) -> Bogota | F115: =VLOOKUP(D115,'BD VIEJA'!$D$3:$H$594,3,FALSE) -> Avda. Cra. 68 22 64 Sur | G115: =VLOOKUP(D115,'BD VIEJA'!$D$3:$H$594,4,FALSE) -> 4065664 4069690 | H115: =VLOOKUP(D115,'BD VIEJA'!$D$3:$H$594,5,FALSE) -> ventas515@hotmail.es | I115: 113
A116: =+B116&COUNTIF($B$3:B116,B116) -> 114810 | B116: 1148 | C116: DOTACION (EPP) Y EQUIPO Y HERRAMIENTA SEGURIDAD INDUSTRIAL | D116: DOTACIONES ONLINE | E116: Bogotá | F116: Bodega: Calle 75 A No. 61-44 | G116: 7921705 318 320 5423 350 349 6922. | H116: servicioalcliente@dotacionesonline.com | I116: 114
A117: =+B117&COUNTIF($B$3:B117,B117) -> 114811 | B117: 1148 | C117: DOTACION (EPP) Y EQUIPO Y HERRAMIENTA SEGURIDAD INDUSTRIAL | D117: DYA INSUMOS FERRETEROS SAS | E117: =VLOOKUP(D117,'BD VIEJA'!$D$3:$H$594,2,FALSE) -> Bogota | F117: =VLOOKUP(D117,'BD VIEJA'!$D$3:$H$594,3,FALSE) -> Calle 9 34 86 | G117: =VLOOKUP(D117,'BD VIEJA'!$D$3:$H$594,4,FALSE) -> 3102144153 7451525 | H117: =VLOOKUP(D117,'BD VIEJA'!$D$3:$H$594,5,FALSE) -> ventas@dyainsumosferreteros.com | I117: 115
A118: =+B118&COUNTIF($B$3:B118,B118) -> 114812 | B118: 1148 | C118: DOTACION (EPP) Y EQUIPO Y HERRAMIENTA SEGURIDAD INDUSTRIAL | D118: EASY | E118: =VLOOKUP(D118,'BD VIEJA'!$D$3:$H$594,2,FALSE) -> Bogota | F118: =VLOOKUP(D118,'BD VIEJA'!$D$3:$H$594,3,FALSE) -> Avda. Americas 68 94 | G118: =VLOOKUP(D118,'BD VIEJA'!$D$3:$H$594,4,FALSE) -> 4191400 | H118: =VLOOKUP(D118,'BD VIEJA'!$D$3:$H$594,5,FALSE) -> www.easy.com.co | I118: 116
A119: =+B119&COUNTIF($B$3:B119,B119) -> 114813 | B119: 1148 | C119: DOTACION (EPP) Y EQUIPO Y HERRAMIENTA SEGURIDAD INDUSTRIAL | D119: ALMACENES EXITO | E119: =VLOOKUP(D119,'BD VIEJA'!$D$3:$H$594,2,FALSE) -> Bogotá | F119: =VLOOKUP(D119,'BD VIEJA'!$D$3:$H$594,3,FALSE) -> Cra. 7 32 84 | G119: =VLOOKUP(D119,'BD VIEJA'!$D$3:$H$594,4,FALSE) -> 3278888 | H119: =VLOOKUP(D119,'BD VIEJA'!$D$3:$H$594,5,FALSE) -> www.exito.com | I119: 117
A120: =+B120&COUNTIF($B$3:B120,B120) -> 114814 | B120: 1148 | C120: DOTACION (EPP) Y EQUIPO Y HERRAMIENTA SEGURIDAD INDUSTRIAL | D120: FERRETERÍA SAMIR | E120: =VLOOKUP(D120,'BD VIEJA'!$D$3:$H$594,2,FALSE) -> Barranquilla - Atlantico | F120: =VLOOKUP(D120,'BD VIEJA'!$D$3:$H$594,3,FALSE) -> Calle 35 #38 -43 | G120: =VLOOKUP(D120,'BD VIEJA'!$D$3:$H$594,4,FALSE) -> 318 336 4259 318 775 8062 316 341 3547 | H120: =VLOOKUP(D120,'BD VIEJA'!$D$3:$H$594,5,FALSE) -> cotizaciones@ferreteriasamir.com | I120: 118
A121: =+B121&COUNTIF($B$3:B121,B121) -> 114815 | B121: 1148 | C121: DOTACION (EPP) Y EQUIPO Y HERRAMIENTA SEGURIDAD INDUSTRIAL | D121: FERRETERIA TÉCNICA | E121: Medellín - Antioquia | F121: Carrera 51 # 44 - 98 | G121: 511 9828 | H121: ferreteriatecnicasa@gmail.com | I121: 119
A122: =+B122&COUNTIF($B$3:B122,B122) -> 114816 | B122: 1148 | C122: DOTACION (EPP) Y EQUIPO Y HERRAMIENTA SEGURIDAD INDUSTRIAL | D122: FERRICENTRO | E122: Bogota | F122: Avda. Caracas 74 25 | G122: 6511212 2862100 | H122: jhon.bermudez@ferricentro.com callcenter02@ferricentro.com callcenter01@ferricentro.com | I122: 120
A123: =+B123&COUNTIF($B$3:B123,B123) -> 114817 | B123: 1148 | C123: DOTACION (EPP) Y EQUIPO Y HERRAMIENTA SEGURIDAD INDUSTRIAL | D123: Gama Dotaciones | E123: Bogotá | F123: Carrera 5 No 49ª sur-93, barrio marruecos | G123: 3503829335 | H123: gamadotaciones@gmail.com | I123: 121
A124: =+B124&COUNTIF($B$3:B124,B124) -> 114818 | B124: 1148 | C124: DOTACION (EPP) Y EQUIPO Y HERRAMIENTA SEGURIDAD INDUSTRIAL | D124: GECAB COLOMBIA | E124: Bogotá | F124: Calle 75A #26-36, Bogotá DC | G124: 7029294 | H124: contacto@gecabcolombia.com | I124: 122
A125: =+B125&COUNTIF($B$3:B125,B125) -> 114819 | B125: 1148 | C125: DOTACION (EPP) Y EQUIPO Y HERRAMIENTA SEGURIDAD INDUSTRIAL | D125: GRUPO MASHALI | E125: Bogotá | F125: Cra 101 A Bis Nº 23H – 02 | G125: 314 443 03 87 6 45 14 11 | H125: grupomashali@gmail.com comercial@grupo-mashali.com | I125: 123
A126: =+B126&COUNTIF($B$3:B126,B126) -> 114820 | B126: 1148 | C126: DOTACION (EPP) Y EQUIPO Y HERRAMIENTA SEGURIDAD INDUSTRIAL | D126: HERLOZ SUMINISTROS | E126: Bogotá | F126: www.herloz.com | G126: 247 8827 315 305 1224 | H126: ventasweb@herloz.com | I126: 124
A127: =+B127&COUNTIF($B$3:B127,B127) -> 114821 | B127: 1148 | C127: DOTACION (EPP) Y EQUIPO Y HERRAMIENTA SEGURIDAD INDUSTRIAL | D127: HERNANDO OROZCO Y CIA | E127: Bogotá | F127: Carrera 7 A # 151 - 21 | G127: 2166260 | H127: -- | I127: 125
A128: =+B128&COUNTIF($B$3:B128,B128) -> 114822 | B128: 1148 | C128: DOTACION (EPP) Y EQUIPO Y HERRAMIENTA SEGURIDAD INDUSTRIAL | D128: HOMECENTER | E128: =VLOOKUP(D128,'BD VIEJA'!$D$3:$H$594,2,FALSE) -> Bogota | F128: =VLOOKUP(D128,'BD VIEJA'!$D$3:$H$594,3,FALSE) -> Avda. 68 37 37 Sur | G128: =VLOOKUP(D128,'BD VIEJA'!$D$3:$H$594,4,FALSE) -> 3077115 | H128: =VLOOKUP(D128,'BD VIEJA'!$D$3:$H$594,5,FALSE) -> www.homecenter.com.co | I128: 126
A129: =+B129&COUNTIF($B$3:B129,B129) -> 114823 | B129: 1148 | C129: DOTACION (EPP) Y EQUIPO Y HERRAMIENTA SEGURIDAD INDUSTRIAL | D129: ALMACENES JUMBO | E129: =VLOOKUP(D129,'BD VIEJA'!$D$3:$H$594,2,FALSE) -> Bogota | F129: =VLOOKUP(D129,'BD VIEJA'!$D$3:$H$594,3,FALSE) -> Calle 185 # 43 - 05 Lc 167 C.cial Santafé Av. Carrera. 72 # 80 - 94 Local 1-13 C.cial Titán Plaza | G129: =VLOOKUP(D129,'BD VIEJA'!$D$3:$H$594,4,FALSE) -> 3489898 | H129: =VLOOKUP(D129,'BD VIEJA'!$D$3:$H$594,5,FALSE) -> sac@tiendasjumbo.co | I129: 127
A130: =+B130&COUNTIF($B$3:B130,B130) -> 114824 | B130: 1148 | C130: DOTACION (EPP) Y EQUIPO Y HERRAMIENTA SEGURIDAD INDUSTRIAL | D130: Mundo Natural SAS | E130: Bogotá | F130: Cl. 163 #18 A - 93 | G130: 350 539 6869 | H130: ventasonline@mundonatural.com.co | I130: 128
A131: =+B131&COUNTIF($B$3:B131,B131) -> 114825 | B131: 1148 | C131: DOTACION (EPP) Y EQUIPO Y HERRAMIENTA SEGURIDAD INDUSTRIAL | D131: PROTECTOR UNIFORMS | E131: Bogotá | F131: Av Cra 68 #15 - 28 Sur | G131: 29 04 091 26 22 004 | H131: info@protectorsas.com servicioalcliente@protectorsas.com ventas@protectorsas.com | I131: 129 | J131: preguntar a sara
A132: =+B132&COUNTIF($B$3:B132,B132) -> 114826 | B132: 1148 | C132: DOTACION (EPP) Y EQUIPO Y HERRAMIENTA SEGURIDAD INDUSTRIAL | D132: PUNTO LIMPIO SUMINISTROS | E132: Duitama - Boyacá | F132: Calle 6 #18-77 Barrio Cándido Quintero | G132: 3186794111 7625526 | H132: informacionplsuministros@gmail.com | I132: 130
A133: =+B133&COUNTIF($B$3:B133,B133) -> 114827 | B133: 1148 | C133: DOTACION (EPP) Y EQUIPO Y HERRAMIENTA SEGURIDAD INDUSTRIAL | D133: TERMEC | E133: Bogotá | F133: Calle 24C # 26 - 50 | G133: 3182817847 3687738 | H133: -- | I133: 131
A134: =+B134&COUNTIF($B$3:B134,B134) -> 114828 | B134: 1148 | C134: DOTACION (EPP) Y EQUIPO Y HERRAMIENTA SEGURIDAD INDUSTRIAL | D134: TIENDA DWORK | E134: Bogotá | F134: Kilometro 2 Vía Funza- Siberia Parque Agroindustrial Perú-Japón | G134: 3003081262 8264933 | H134: ventas@dwork.com.co | I134: 132
A135: =+B135&COUNTIF($B$3:B135,B135) -> 114829 | B135: 1148 | C135: DOTACION (EPP) Y EQUIPO Y HERRAMIENTA SEGURIDAD INDUSTRIAL | D135: TIENDAS EPP | E135: Bogotá | F135: Autopista Norte 178 83. | G135: 673 22 00 311 232 1328 | H135: comercial@tiendasepp.com | I135: 133
A136: =+B136&COUNTIF($B$3:B136,B136) -> 114830 | B136: 1148 | C136: DOTACION (EPP) Y EQUIPO Y HERRAMIENTA SEGURIDAD INDUSTRIAL | D136: UNIFORMES WALDY | E136: Bogotá | F136: Carrera 8F Bis A No. 163C-79 San Cristobal | G136: 678 2014 310 688 3839 | H136: info@uniformeswaldy.com | I136: 134
A137: =+B137&COUNTIF($B$3:B137,B137) -> 11111 | B137: 1111 | C137: DUCTOS PVC - ELECTRICOS/TELEFONICOS TIPO TDP-DB-EB | D137: DURMAN COLOMBIA S.A. | E137: =VLOOKUP(D137,'BD VIEJA'!$D$3:$H$594,2,FALSE) -> Madrid - Cund. | F137: =VLOOKUP(D137,'BD VIEJA'!$D$3:$H$594,3,FALSE) -> Km 27 Vía Fontibon Facatativa Los Alpes | G137: =VLOOKUP(D137,'BD VIEJA'!$D$3:$H$594,4,FALSE) -> 8200200 | H137: =VLOOKUP(D137,'BD VIEJA'!$D$3:$H$594,5,FALSE) -> colombia@durman.com | I137: 135
A138: =+B138&COUNTIF($B$3:B138,B138) -> 11112 | B138: 1111 | C138: DUCTOS PVC - ELECTRICOS/TELEFONICOS TIPO TDP-DB-EB | D138: GEOSISTEMAS PAVCO | E138: =VLOOKUP(D138,'BD VIEJA'!$D$3:$H$594,2,FALSE) -> Bogota | F138: =VLOOKUP(D138,'BD VIEJA'!$D$3:$H$594,3,FALSE) -> Autopista Sur 71 75 | G138: =VLOOKUP(D138,'BD VIEJA'!$D$3:$H$594,4,FALSE) -> 7825000 | H138: =VLOOKUP(D138,'BD VIEJA'!$D$3:$H$594,5,FALSE) -> leonardo.gomez@pavco.com.co servicio@pavco.com.co www.pavco.com.co | I138: 136
A139: =+B139&COUNTIF($B$3:B139,B139) -> 11113 | B139: 1111 | C139: DUCTOS PVC - ELECTRICOS/TELEFONICOS TIPO TDP-DB-EB | D139: GERFOR | E139: =VLOOKUP(D139,'BD VIEJA'!$D$3:$H$594,2,FALSE) -> Bogota | F139: =VLOOKUP(D139,'BD VIEJA'!$D$3:$H$594,3,FALSE) -> Autopista Medellin Km 2 - 600 Entrada via Parcelas de Cota | G139: =VLOOKUP(D139,'BD VIEJA'!$D$3:$H$594,4,FALSE) -> 8776800 | H139: =VLOOKUP(D139,'BD VIEJA'!$D$3:$H$594,5,FALSE) -> contactenos@gerfor.com www.gerfor.com.co | I139: 137
A140: =+B140&COUNTIF($B$3:B140,B140) -> 11114 | B140: 1111 | C140: DUCTOS PVC - ELECTRICOS/TELEFONICOS TIPO TDP-DB-EB | D140: INETEL | E140: Bogotá | F140: Calle 37b Sur N°.68i-80 | G140: 741 5856 741 5865 | H140: comercial@inetelltda.com | I140: 138
A141: =+B141&COUNTIF($B$3:B141,B141) -> 11115 | B141: 1111 | C141: DUCTOS PVC - ELECTRICOS/TELEFONICOS TIPO TDP-DB-EB | D141: PAVCO S.A. | E141: =VLOOKUP(D141,'BD VIEJA'!$D$3:$H$594,2,FALSE) -> Bogota | F141: =VLOOKUP(D141,'BD VIEJA'!$D$3:$H$594,3,FALSE) -> Autopista Sur 71 75 | G141: =VLOOKUP(D141,'BD VIEJA'!$D$3:$H$594,4,FALSE) -> 7825000 | H141: =VLOOKUP(D141,'BD VIEJA'!$D$3:$H$594,5,FALSE) -> servicio@pavco.com.co orlando.polo@pavco.com.co www.pavco.com.co | I141: 139
A142: =+B142&COUNTIF($B$3:B142,B142) -> 11116 | B142: 1111 | C142: DUCTOS PVC - ELECTRICOS/TELEFONICOS TIPO TDP-DB-EB | D142: TUBOS Y ACCESORIOS CELTA | E142: =VLOOKUP(D142,'BD VIEJA'!$D$3:$H$594,2,FALSE) -> Bogota | F142: =VLOOKUP(D142,'BD VIEJA'!$D$3:$H$594,3,FALSE) -> Cra. 87 1 42 | G142: =VLOOKUP(D142,'BD VIEJA'!$D$3:$H$594,4,FALSE) -> 7799000 3143302256 3123320171 | H142: =VLOOKUP(D142,'BD VIEJA'!$D$3:$H$594,5,FALSE) -> rurodrig@celta.com.co katherine.rodriguez@celta.com.co | I142: 140
A143: =+B143&COUNTIF($B$3:B143,B143) -> 11041 | B143: 1104 | C143: EMULSIONES Y MEZCLAS ASFALTICAS | D143: COMPAÑÍA DE TRABAJOS URBANOS S.A.S | E143: Chia - Cund. | F143: Km 17 + 200 metros, carretera Central del Norte (carrera 7ª) | G143: 310 208 5791 | H143: ventas@ctu.com.co | I143: 141
A144: =+B144&COUNTIF($B$3:B144,B144) -> 11042 | B144: 1104 | C144: EMULSIONES Y MEZCLAS ASFALTICAS | D144: EZ STREET ASFALTO | E144: =VLOOKUP(D144,'BD VIEJA'!$D$3:$H$594,2,FALSE) -> Gachancipa - Cund. | F144: =VLOOKUP(D144,'BD VIEJA'!$D$3:$H$594,3,FALSE) -> Autopista Norte km 28 | G144: =VLOOKUP(D144,'BD VIEJA'!$D$3:$H$594,4,FALSE) -> 3173000246 | H144: =VLOOKUP(D144,'BD VIEJA'!$D$3:$H$594,5,FALSE) -> ventas@itpasfaltos.com | I144: 142
A145: =+B145&COUNTIF($B$3:B145,B145) -> 11043 | B145: 1104 | C145: EMULSIONES Y MEZCLAS ASFALTICAS | D145: HOMECENTER | E145: =VLOOKUP(D145,'BD VIEJA'!$D$3:$H$594,2,FALSE) -> Bogota | F145: =VLOOKUP(D145,'BD VIEJA'!$D$3:$H$594,3,FALSE) -> Avda. 68 37 37 Sur | G145: =VLOOKUP(D145,'BD VIEJA'!$D$3:$H$594,4,FALSE) -> 3077115 | H145: =VLOOKUP(D145,'BD VIEJA'!$D$3:$H$594,5,FALSE) -> www.homecenter.com.co | I145: 143
A146: =+B146&COUNTIF($B$3:B146,B146) -> 11044 | B146: 1104 | C146: EMULSIONES Y MEZCLAS ASFALTICAS | D146: PAVIMENTOS COLOMBIA S.A.S. | E146: =VLOOKUP(D146,'BD VIEJA'!$D$3:$H$594,2,FALSE) -> Bogotá | F146: =VLOOKUP(D146,'BD VIEJA'!$D$3:$H$594,3,FALSE) -> AVENIDA 82 No. 10 - 50 | G146: =VLOOKUP(D146,'BD VIEJA'!$D$3:$H$594,4,FALSE) -> 3760030 | H146: =VLOOKUP(D146,'BD VIEJA'!$D$3:$H$594,5,FALSE) -> calidad@pavcol.com | I146: 144
A147: =+B147&COUNTIF($B$3:B147,B147) -> 11045 | B147: 1104 | C147: EMULSIONES Y MEZCLAS ASFALTICAS | D147: PAVIOBRAS SAS | E147: Bogotá | F147: Avenida 15 No. 119A-03 Of. 325 | G147: 2 15 50 67 | H147: ltdapaviobras@gmail.com | I147: 145
A148: =+B148&COUNTIF($B$3:B148,B148) -> 11046 | B148: 1104 | C148: EMULSIONES Y MEZCLAS ASFALTICAS | D148: ROKASFALTOS | E148: Cali - Valle | F148: Av. 3 norte # 54N – 67 Ofi. 301 Cali – Colombia | G148: 300 600 0852 304 584 4063 | H148: rokasfaltos@gmail.com gerencia@rokasfaltos.com info@rokasfaltos.com | I148: 146
A149: =+B149&COUNTIF($B$3:B149,B149) -> 11047 | B149: 1104 | C149: EMULSIONES Y MEZCLAS ASFALTICAS | D149: SIKA COLOMBIA SAS | E149: =VLOOKUP(D149,'BD VIEJA'!$D$3:$H$594,2,FALSE) -> Tocancipa - Cund. | F149: =VLOOKUP(D149,'BD VIEJA'!$D$3:$H$594,3,FALSE) -> Vereda Canavita, Km 20,5 Autopista Norte | G149: =VLOOKUP(D149,'BD VIEJA'!$D$3:$H$594,4,FALSE) -> 8786666 8786681 | H149: =VLOOKUP(D149,'BD VIEJA'!$D$3:$H$594,5,FALSE) -> ortiz.ricardo@co.sika.com chacon.jose@co.sika.com | I149: 147
A150: =+B150&COUNTIF($B$3:B150,B150) -> 11731 | B150: 1173 | C150: ENSAYO CAMPO - DIAGNOSTICO DE PAVIMENTOS | D150: APSA SAS | E150: Bogotá | F150: Carrera 16 # 96-64 Oﬁcina 509 Chicó Norte, Bogotá. | G150: 520 26 71 520 53 31 | H150: apsa@apsacolombia.co | I150: 148
A151: =+B151&COUNTIF($B$3:B151,B151) -> 11732 | B151: 1173 | C151: ENSAYO CAMPO - DIAGNOSTICO DE PAVIMENTOS | D151: Concreservicios S.A.S. | E151: =VLOOKUP(D151,'BD VIEJA'!$D$3:$H$594,2,FALSE) -> Bogota | F151: =VLOOKUP(D151,'BD VIEJA'!$D$3:$H$594,3,FALSE) -> Calle 22 C 130 51 Bodega 6 | G151: =VLOOKUP(D151,'BD VIEJA'!$D$3:$H$594,4,FALSE) -> 4211444 3103232062 | H151: =VLOOKUP(D151,'BD VIEJA'!$D$3:$H$594,5,FALSE) -> comercial@concre-servicios.com | I151: 149
A152: =+B152&COUNTIF($B$3:B152,B152) -> 11733 | B152: 1173 | C152: ENSAYO CAMPO - DIAGNOSTICO DE PAVIMENTOS | D152: DYNATEST COLOMBIA S.A.S. | E152: =VLOOKUP(D152,'BD VIEJA'!$D$3:$H$594,2,FALSE) -> Bogotá | F152: =VLOOKUP(D152,'BD VIEJA'!$D$3:$H$594,3,FALSE) -> Calle 161 A No 16 C - 91 | G152: =VLOOKUP(D152,'BD VIEJA'!$D$3:$H$594,4,FALSE) -> 6721322 | H152: =VLOOKUP(D152,'BD VIEJA'!$D$3:$H$594,5,FALSE) -> www.dynatest.com | I152: 150
A153: =+B153&COUNTIF($B$3:B153,B153) -> 11734 | B153: 1173 | C153: ENSAYO CAMPO - DIAGNOSTICO DE PAVIMENTOS | D153: ECHEVERRY INGENIERIA Y ENSAYOS SAS | E153: =VLOOKUP(D153,'BD VIEJA'!$D$3:$H$594,2,FALSE) -> Bogota | F153: =VLOOKUP(D153,'BD VIEJA'!$D$3:$H$594,3,FALSE) -> Cra. 29 C 71 A 30 | G153: =VLOOKUP(D153,'BD VIEJA'!$D$3:$H$594,4,FALSE) -> 3112088197 2255814 6304515 | H153: =VLOOKUP(D153,'BD VIEJA'!$D$3:$H$594,5,FALSE) -> comercial@echeverryingenieria.com info@echeverryingenieria.com | I153: 151
A154: =+B154&COUNTIF($B$3:B154,B154) -> 11735 | B154: 1173 | C154: ENSAYO CAMPO - DIAGNOSTICO DE PAVIMENTOS | D154: ESCUELA COLOMBIANA DE INGENIERIA JULIO GARAVITO | E154: =VLOOKUP(D154,'BD VIEJA'!$D$3:$H$594,2,FALSE) -> Bogota | F154: =VLOOKUP(D154,'BD VIEJA'!$D$3:$H$594,3,FALSE) -> Autopista Norte 205 59 | G154: =VLOOKUP(D154,'BD VIEJA'!$D$3:$H$594,4,FALSE) -> 6683600 Ext. 584 6763888 Ext. 228 - 324 | H154: =VLOOKUP(D154,'BD VIEJA'!$D$3:$H$594,5,FALSE) -> laura.valderrama@escuelaing.edu.com | I154: 152
A155: =+B155&COUNTIF($B$3:B155,B155) -> 11736 | B155: 1173 | C155: ENSAYO CAMPO - DIAGNOSTICO DE PAVIMENTOS | D155: LABORATORIO BATEMAN INGENIERIA | E155: =VLOOKUP(D155,'BD VIEJA'!$D$3:$H$594,2,FALSE) -> Bogota | F155: =VLOOKUP(D155,'BD VIEJA'!$D$3:$H$594,3,FALSE) -> Cra. 20 39 65 | G155: =VLOOKUP(D155,'BD VIEJA'!$D$3:$H$594,4,FALSE) -> 3204318 2459654 2325960 | H155: =VLOOKUP(D155,'BD VIEJA'!$D$3:$H$594,5,FALSE) -> direcciongeneral@laboratoriobilsa.com direcciontecnica@laboratoriobilsa.com | I155: 153
A156: =+B156&COUNTIF($B$3:B156,B156) -> 11737 | B156: 1173 | C156: ENSAYO CAMPO - DIAGNOSTICO DE PAVIMENTOS | D156: LABORATORIO CONTECON URBAR | E156: =VLOOKUP(D156,'BD VIEJA'!$D$3:$H$594,2,FALSE) -> Bogotá | F156: =VLOOKUP(D156,'BD VIEJA'!$D$3:$H$594,3,FALSE) -> Cra. 69 Q 78 52 | G156: =VLOOKUP(D156,'BD VIEJA'!$D$3:$H$594,4,FALSE) -> 7562656 | H156: =VLOOKUP(D156,'BD VIEJA'!$D$3:$H$594,5,FALSE) -> comercial@contecon.com | I156: 154
A157: =+B157&COUNTIF($B$3:B157,B157) -> 11738 | B157: 1173 | C157: ENSAYO CAMPO - DIAGNOSTICO DE PAVIMENTOS | D157: LABORATORIO DEL CONCRETO (ASOCRETO) | E157: =VLOOKUP(D157,'BD VIEJA'!$D$3:$H$594,2,FALSE) -> Bogota | F157: =VLOOKUP(D157,'BD VIEJA'!$D$3:$H$594,3,FALSE) -> Calle 103 15 80 | G157: =VLOOKUP(D157,'BD VIEJA'!$D$3:$H$594,4,FALSE) -> 6180018 | H157: =VLOOKUP(D157,'BD VIEJA'!$D$3:$H$594,5,FALSE) -> asocreto@asocreto.org.co | I157: 155
A158: =+B158&COUNTIF($B$3:B158,B158) -> 11739 | B158: 1173 | C158: ENSAYO CAMPO - DIAGNOSTICO DE PAVIMENTOS | D158: MARIO HUERTAS CORTES LABORATORIO | E158: =VLOOKUP(D158,'BD VIEJA'!$D$3:$H$594,2,FALSE) -> Bogota | F158: =VLOOKUP(D158,'BD VIEJA'!$D$3:$H$594,3,FALSE) -> Cra. 22 A 85 20 | G158: =VLOOKUP(D158,'BD VIEJA'!$D$3:$H$594,4,FALSE) -> 8772093 3219459185 6226620 | H158: =VLOOKUP(D158,'BD VIEJA'!$D$3:$H$594,5,FALSE) -> mhcingenieros@mhc.com.co mhc.laboratorio@gmail.com. | I158: 156
A159: =+B159&COUNTIF($B$3:B159,B159) -> 117310 | B159: 1173 | C159: ENSAYO CAMPO - DIAGNOSTICO DE PAVIMENTOS | D159: PONTIFICIA UNIVERSIDAD JAVERIANA | E159: =VLOOKUP(D159,'BD VIEJA'!$D$3:$H$594,2,FALSE) -> Bogota | F159: =VLOOKUP(D159,'BD VIEJA'!$D$3:$H$594,3,FALSE) -> Calle 40 5 50 Fac. de Ingenieria Ed. José Gabriel Maldonado S.J. | G159: =VLOOKUP(D159,'BD VIEJA'!$D$3:$H$594,4,FALSE) -> 3208320 Ext. 5373 | H159: =VLOOKUP(D159,'BD VIEJA'!$D$3:$H$594,5,FALSE) -> labcivil@javeriana.edu.co daniel.ruiz@javeriana.edu.co | I159: 157
A160: =+B160&COUNTIF($B$3:B160,B160) -> 117311 | B160: 1173 | C160: ENSAYO CAMPO - DIAGNOSTICO DE PAVIMENTOS | D160: Terratest Laboratorio de Suelos Rocas y Materiales S.A.S. | E160: =VLOOKUP(D160,'BD VIEJA'!$D$3:$H$594,2,FALSE) -> Bogotá | F160: =VLOOKUP(D160,'BD VIEJA'!$D$3:$H$594,3,FALSE) -> CARRERA 59 C No. 130 - 38 | G160: =VLOOKUP(D160,'BD VIEJA'!$D$3:$H$594,4,FALSE) -> 8032324 | H160: =VLOOKUP(D160,'BD VIEJA'!$D$3:$H$594,5,FALSE) -> comercial@terratest.com.co | I160: 158
A161: =+B161&COUNTIF($B$3:B161,B161) -> 12241 | B161: 1224 | C161: ENSAYO CAMPO - RECUBRIMIENTO DE ESTRUCTURA METALICA | D161: INSERCOR SAS | E161: Cota - Cund. | F161: Calle 13 No, 3-46 oficina 301 – 302 | G161: 8787530 | H161: comercial@insercor.com marquez.mario@insercor.com insercor@insercor.com | I161: 159
A162: =+B162&COUNTIF($B$3:B162,B162) -> 12242 | B162: 1224 | C162: ENSAYO CAMPO - RECUBRIMIENTO DE ESTRUCTURA METALICA | D162: INSPEQ INGENIERIA LTDA | E162: Bogotá | F162: Carrera 27 No. 83-67 | G162: 218 65 80 691 53 40 | H162: inspeq@inspeqingenieria.com | I162: 160
A163: =+B163&COUNTIF($B$3:B163,B163) -> 12243 | B163: 1224 | C163: ENSAYO CAMPO - RECUBRIMIENTO DE ESTRUCTURA METALICA | D163: TAESMET | E163: Bogotá | F163: Calle 14A No. 123 - 36 | G163: 418 99 21 | H163: comercial@taesmet.com info@taesmet.com | I163: 161
A164: =+B164&COUNTIF($B$3:B164,B164) -> 12251 | B164: 1225 | C164: ENSAYO DE CAMPO - SOLDADURAS | D164: CIMA | E164: Bogotá | F164: Carrera 96J #23A-55 | G164: 486 58 51 301 3312055 | H164: cimaltda@yahoo.es gerenciatecnica@cima-co.com info@cima-co.com | I164: 162
A165: =+B165&COUNTIF($B$3:B165,B165) -> 12252 | B165: 1225 | C165: ENSAYO DE CAMPO - SOLDADURAS | D165: INSERCOR SAS | E165: Cota - Cund. | F165: Calle 13 No, 3-46 oficina 301 – 302 | G165: 8787530 | H165: comercial@insercor.com marquez.mario@insercor.com insercor@insercor.com | I165: 163
A166: =+B166&COUNTIF($B$3:B166,B166) -> 12253 | B166: 1225 | C166: ENSAYO DE CAMPO - SOLDADURAS | D166: INSPEQ INGENIERIA LTDA | E166: Bogotá | F166: Carrera 27 No. 83-67 | G166: 218 65 80 691 53 40 | H166: inspeq@inspeqingenieria.com | I166: 164
A167: =+B167&COUNTIF($B$3:B167,B167) -> 12254 | B167: 1225 | C167: ENSAYO DE CAMPO - SOLDADURAS | D167: ISOTEC SAS | E167: Bogotá | F167: Carrera 71B No. 55 - 18 | G167: 4674269 315 3461240 4673767 | H167: comercial@isotec.com.co isotec@isotec.com.co | I167: 165
A168: =+B168&COUNTIF($B$3:B168,B168) -> 12255 | B168: 1225 | C168: ENSAYO DE CAMPO - SOLDADURAS | D168: TAESMET | E168: Bogotá | F168: Calle 14A No. 123 - 36 | G168: 418 99 21 | H168: comercial@taesmet.com info@taesmet.com | I168: 166
A169: =+B169&COUNTIF($B$3:B169,B169) -> 12121 | B169: 1212 | C169: ENSAYO DE LABORATORIO - ACERO DE REFUERZO Y ACERO PRETENSADO | D169: ASOCRETO | E169: Bogota | F169: Calle 103 15 80 | G169: 6180018 | H169: asocreto@asocreto.org.co | I169: 167
A170: =+B170&COUNTIF($B$3:B170,B170) -> 12122 | B170: 1212 | C170: ENSAYO DE LABORATORIO - ACERO DE REFUERZO Y ACERO PRETENSADO | D170: INGEYMA | E170: Bogotá | F170: CR 71B # 48A - 15 | G170: 4104813 4107203 4104739 | H170: info@ingeyma.com | I170: 168
A171: =+B171&COUNTIF($B$3:B171,B171) -> 12123 | B171: 1212 | C171: ENSAYO DE LABORATORIO - ACERO DE REFUERZO Y ACERO PRETENSADO | D171: PONTIFICIA UNIVERSIDAD JAVERIANA | E171: =VLOOKUP(D171,'BD VIEJA'!$D$3:$H$594,2,FALSE) -> Bogota | F171: =VLOOKUP(D171,'BD VIEJA'!$D$3:$H$594,3,FALSE) -> Calle 40 5 50 Fac. de Ingenieria Ed. José Gabriel Maldonado S.J. | G171: =VLOOKUP(D171,'BD VIEJA'!$D$3:$H$594,4,FALSE) -> 3208320 Ext. 5373 | H171: =VLOOKUP(D171,'BD VIEJA'!$D$3:$H$594,5,FALSE) -> labcivil@javeriana.edu.co daniel.ruiz@javeriana.edu.co | I171: 169
A172: =+B172&COUNTIF($B$3:B172,B172) -> 12124 | B172: 1212 | C172: ENSAYO DE LABORATORIO - ACERO DE REFUERZO Y ACERO PRETENSADO | D172: SENA | E172: Bogotá | F172: Av. 30 No. 17 B – 25 Sur | G172: 5960050 ext 14924 5960050 ext 15006 | H172: laboratoriomateriales@misena.edu.co mehc07@misena.edu.co | I172: 170
A173: =+B173&COUNTIF($B$3:B173,B173) -> 12125 | B173: 1212 | C173: ENSAYO DE LABORATORIO - ACERO DE REFUERZO Y ACERO PRETENSADO | D173: UNIVERSIDAD DE LOS ANDES - LAB CIVIL | E173: Bogota | F173: Cra. 1 E 19 A 40 Ed. Mario Laserna | G173: 3394949 Ext. 1719 - 1768 | H173: labcivil@uniandes.edu.co | I173: 171
A174: =+B174&COUNTIF($B$3:B174,B174) -> 12126 | B174: 1212 | C174: ENSAYO DE LABORATORIO - ACERO DE REFUERZO Y ACERO PRETENSADO | D174: UNIVERSIDAD NACIONAL DE COLOMBIA | E174: =VLOOKUP(D174,'BD VIEJA'!$D$3:$H$594,2,FALSE) -> Bogota | F174: =VLOOKUP(D174,'BD VIEJA'!$D$3:$H$594,3,FALSE) -> Cra. 45 26 85 | G174: =VLOOKUP(D174,'BD VIEJA'!$D$3:$H$594,4,FALSE) -> 3165000 | H174: =VLOOKUP(D174,'BD VIEJA'!$D$3:$H$594,5,FALSE) -> mediosdigitales@unal.edu.co | I174: 172
A175: =+B175&COUNTIF($B$3:B175,B175) -> 12141 | B175: 1214 | C175: ENSAYO DE LABORATORIO - ALUMINIO | D175: UNIVERSIDAD NACIONAL DE COLOMBIA | E175: =VLOOKUP(D175,'BD VIEJA'!$D$3:$H$594,2,FALSE) -> Bogota | F175: =VLOOKUP(D175,'BD VIEJA'!$D$3:$H$594,3,FALSE) -> Cra. 45 26 85 | G175: =VLOOKUP(D175,'BD VIEJA'!$D$3:$H$594,4,FALSE) -> 3165000 | H175: =VLOOKUP(D175,'BD VIEJA'!$D$3:$H$594,5,FALSE) -> mediosdigitales@unal.edu.co | I175: 173
A176: =+B176&COUNTIF($B$3:B176,B176) -> 12151 | B176: 1215 | C176: ENSAYO DE LABORATORIO - CONCRETO PRETENSADO | D176: ASOCRETO | E176: Bogota | F176: Calle 103 15 80 | G176: 6180018 | H176: asocreto@asocreto.org.co | I176: 174
A177: =+B177&COUNTIF($B$3:B177,B177) -> 12152 | B177: 1215 | C177: ENSAYO DE LABORATORIO - CONCRETO PRETENSADO | D177: PONTIFICIA UNIVERSIDAD JAVERIANA | E177: =VLOOKUP(D177,'BD VIEJA'!$D$3:$H$594,2,FALSE) -> Bogota | F177: =VLOOKUP(D177,'BD VIEJA'!$D$3:$H$594,3,FALSE) -> Calle 40 5 50 Fac. de Ingenieria Ed. José Gabriel Maldonado S.J. | G177: =VLOOKUP(D177,'BD VIEJA'!$D$3:$H$594,4,FALSE) -> 3208320 Ext. 5373 | H177: =VLOOKUP(D177,'BD VIEJA'!$D$3:$H$594,5,FALSE) -> labcivil@javeriana.edu.co daniel.ruiz@javeriana.edu.co | I177: 175
A178: =+B178&COUNTIF($B$3:B178,B178) -> 12153 | B178: 1215 | C178: ENSAYO DE LABORATORIO - CONCRETO PRETENSADO | D178: UNIVERSIDAD DE LOS ANDES - LAB CIVIL | E178: Bogota | F178: Cra. 1 E 19 A 40 Ed. Mario Laserna | G178: 3394949 Ext. 1719 - 1768 | H178: labcivil@uniandes.edu.co | I178: 176
A179: =+B179&COUNTIF($B$3:B179,B179) -> 12181 | B179: 1218 | C179: ENSAYO DE LABORATORIO - NEOPRENO | D179: ATLAS LIMITED SAS | E179: Bogotá | F179: Calle 17 No. 68B-68 | G179: 4050891 Ext. 104 405 4111 Ext. 106 | H179: lpelaboratorio@gmail.com | I179: 177
A180: =+B180&COUNTIF($B$3:B180,B180) -> 12182 | B180: 1218 | C180: ENSAYO DE LABORATORIO - NEOPRENO | D180: ICIPC | E180: Medellín - Antioquia | F180: Cra. 49 # 5 Sur – 190. Bloque 37 | G180: 3116478 3116381 305 728 4664 | H180: hramirez@icipc.org icipc@icipc.org | I180: 178
A181: =+B181&COUNTIF($B$3:B181,B181) -> 12183 | B181: 1218 | C181: ENSAYO DE LABORATORIO - NEOPRENO | D181: INDUSTRIA MILITAR - INDUMIL | E181: Bogotá | F181: Calle 44 # 54-11 CAN | G181: 2207800 2225786 | H181: indumil@indumil.gov.co | I181: 179
A182: =+B182&COUNTIF($B$3:B182,B182) -> 12184 | B182: 1218 | C182: ENSAYO DE LABORATORIO - NEOPRENO | D182: LABORATORIOS MYG SAS | E182: Bogotá | F182: Cl 102a # 70 - 22 | G182: 5331133 5331185 3108066036 | H182: gerencia@laboratoriosmyg.com servicioalcliente@laboratoriosmyg.com | I182: 180
A183: =+B183&COUNTIF($B$3:B183,B183) -> 12191 | B183: 1219 | C183: ENSAYO DE LABORATORIO - PERNOS | D183: ESCUELA COLOMBIANA DE INGENIERIA | E183: Bogota | F183: Autopista Norte 205 59 | G183: 6683600 Ext. 584 6763888 Ext. 228 - 324 | H183: laura.valderrama@escuelaing.edu.com | I183: 181
A184: =+B184&COUNTIF($B$3:B184,B184) -> 12192 | B184: 1219 | C184: ENSAYO DE LABORATORIO - PERNOS | D184: UNIVERSIDAD DE LOS ANDES - LAB CIVIL | E184: Bogota | F184: Cra. 1 E 19 A 40 Ed. Mario Laserna | G184: 3394949 Ext. 1719 - 1768 | H184: labcivil@uniandes.edu.co | I184: 182
A185: =+B185&COUNTIF($B$3:B185,B185) -> 12193 | B185: 1219 | C185: ENSAYO DE LABORATORIO - PERNOS | D185: UNIVERSIDAD NACIONAL DE COLOMBIA | E185: =VLOOKUP(D185,'BD VIEJA'!$D$3:$H$594,2,FALSE) -> Bogota | F185: =VLOOKUP(D185,'BD VIEJA'!$D$3:$H$594,3,FALSE) -> Cra. 45 26 85 | G185: =VLOOKUP(D185,'BD VIEJA'!$D$3:$H$594,4,FALSE) -> 3165000 | H185: =VLOOKUP(D185,'BD VIEJA'!$D$3:$H$594,5,FALSE) -> mediosdigitales@unal.edu.co | I185: 183
A186: =+B186&COUNTIF($B$3:B186,B186) -> 12201 | B186: 1220 | C186: ENSAYO DE LABORATORIO - PINTURA | D186: CIDEMAT - U. Antioquia | E186: Medellín - Antioquia | F186: Calle 62 No. 52-59 Torre 2 Lab. 330. | G186: 219 66 17 | H186: laboratoriocidemat@udea.edu.co | I186: 184
A187: =+B187&COUNTIF($B$3:B187,B187) -> 12202 | B187: 1220 | C187: ENSAYO DE LABORATORIO - PINTURA | D187: ECHEVERRY ENSAYOS SAS | E187: Bogota | F187: Cra. 29 C 71 A 30 | G187: 3112088197 2255814 6304515 | H187: comercial@echeverryingenieria.com info@echeverryingenieria.com | I187: 185
A188: =+B188&COUNTIF($B$3:B188,B188) -> 12203 | B188: 1220 | C188: ENSAYO DE LABORATORIO - PINTURA | D188: UNIVERSIDAD NACIONAL DE COLOMBIA | E188: =VLOOKUP(D188,'BD VIEJA'!$D$3:$H$594,2,FALSE) -> Bogota | F188: =VLOOKUP(D188,'BD VIEJA'!$D$3:$H$594,3,FALSE) -> Cra. 45 26 85 | G188: =VLOOKUP(D188,'BD VIEJA'!$D$3:$H$594,4,FALSE) -> 3165000 | H188: =VLOOKUP(D188,'BD VIEJA'!$D$3:$H$594,5,FALSE) -> mediosdigitales@unal.edu.co | I188: 186
A189: =+B189&COUNTIF($B$3:B189,B189) -> 12211 | B189: 1221 | C189: ENSAYO DE LABORATORIO - PLASTICO RÍGIDO | D189: ESCUELA COLOMBIANA DE INGENIERIA | E189: Bogota | F189: Autopista Norte 205 59 | G189: 6683600 Ext. 584 6763888 Ext. 228 - 324 | H189: laura.valderrama@escuelaing.edu.com | I189: 187
A190: =+B190&COUNTIF($B$3:B190,B190) -> 12212 | B190: 1221 | C190: ENSAYO DE LABORATORIO - PLASTICO RÍGIDO | D190: ICIPC | E190: Medellín - Antioquia | F190: Cra. 49 # 5 Sur – 190. Bloque 37 | G190: 3116478 3116381 305 728 4664 | H190: hramirez@icipc.org icipc@icipc.org | I190: 188
A191: =+B191&COUNTIF($B$3:B191,B191) -> 12213 | B191: 1221 | C191: ENSAYO DE LABORATORIO - PLASTICO RÍGIDO | D191: INDUSTRIA MILITAR - INDUMIL | E191: Bogotá | F191: Calle 44 # 54-11 CAN | G191: 2207800 2225786 | H191: indumil@indumil.gov.co | I191: 189
A192: =+B192&COUNTIF($B$3:B192,B192) -> 12214 | B192: 1221 | C192: ENSAYO DE LABORATORIO - PLASTICO RÍGIDO | D192: LABORATORIOS MYG SAS | E192: Bogotá | F192: Calle 102 A No 70 - 28 | G192: 533 1133 / 1185 / 3743 310 806 6036 | H192: servicioalcliente@laboratoriosmyg.com gerencia@laboratoriosmyg.com | I192: 190
A193: =+B193&COUNTIF($B$3:B193,B193) -> 12215 | B193: 1221 | C193: ENSAYO DE LABORATORIO - PLASTICO RÍGIDO | D193: PONTIFICIA UNIVERSIDAD JAVERIANA | E193: =VLOOKUP(D193,'BD VIEJA'!$D$3:$H$594,2,FALSE) -> Bogota | F193: =VLOOKUP(D193,'BD VIEJA'!$D$3:$H$594,3,FALSE) -> Calle 40 5 50 Fac. de Ingenieria Ed. José Gabriel Maldonado S.J. | G193: =VLOOKUP(D193,'BD VIEJA'!$D$3:$H$594,4,FALSE) -> 3208320 Ext. 5373 | H193: =VLOOKUP(D193,'BD VIEJA'!$D$3:$H$594,5,FALSE) -> labcivil@javeriana.edu.co daniel.ruiz@javeriana.edu.co | I193: 191
A194: =+B194&COUNTIF($B$3:B194,B194) ->  | C194: ENSAYO DE VALIDACIÓN EN CAMPO - SOLDADURAS | D194: CIMA | E194: Bogotá | F194: Carrera 96J #23A-55 | G194: 486 58 51 301 3312055 | H194: cimaltda@yahoo.es gerenciatecnica@cima-co.com info@cima-co.com | I194: 192
A195: =+B195&COUNTIF($B$3:B195,B195) -> 12256 | B195: 1225 | C195: ENSAYO DE CAMPO - SOLDADURAS | D195: INSERCOR SAS | E195: Cota - Cund. | F195: Calle 13 No, 3-46 oficina 301 – 302 | G195: 8787530 | H195: comercial@insercor.com , extensión: 109 prada.juan@insercor.com extensión: 116 | I195: 193
A196: =+B196&COUNTIF($B$3:B196,B196) ->  | C196: ENSAYO DE VALIDACIÓN EN CAMPO - SOLDADURAS | D196: INSPEQ INGENIERIA LTDA | E196: Bogotá | F196: Carrera 27 No. 83-67 | G196: 218 65 80 691 53 40 | H196: inspeq@inspeqingenieria.com | I196: 194
A197: =+B197&COUNTIF($B$3:B197,B197) ->  | C197: ENSAYO DE VALIDACIÓN EN CAMPO - SOLDADURAS | D197: ISOTEC SAS | E197: Bogotá | F197: Carrera 71B No. 55 - 18 | G197: 4674269 315 3461240 4673767 | H197: comercial@isotec.com.co isotec@isotec.com.co | I197: 195
A198: =+B198&COUNTIF($B$3:B198,B198) ->  | C198: ENSAYO DE VALIDACIÓN EN CAMPO - SOLDADURAS | D198: TAESMET | E198: Bogotá | F198: Calle 14A No. 123 - 36 | G198: 418 99 21 | H198: comercial@taesmet.com info@taesmet.com | I198: 196
A199: =+B199&COUNTIF($B$3:B199,B199) -> 11721 | B199: 1172 | C199: ENSAYO DIAGNOSTICO ELEMENTO ESTRUCTURALES CONCRETO | D199: Concreservicios S.A.S. | E199: =VLOOKUP(D199,'BD VIEJA'!$D$3:$H$594,2,FALSE) -> Bogota | F199: =VLOOKUP(D199,'BD VIEJA'!$D$3:$H$594,3,FALSE) -> Calle 22 C 130 51 Bodega 6 | G199: =VLOOKUP(D199,'BD VIEJA'!$D$3:$H$594,4,FALSE) -> 4211444 3103232062 | H199: =VLOOKUP(D199,'BD VIEJA'!$D$3:$H$594,5,FALSE) -> comercial@concre-servicios.com | I199: 197
A200: =+B200&COUNTIF($B$3:B200,B200) -> 11722 | B200: 1172 | C200: ENSAYO DIAGNOSTICO ELEMENTO ESTRUCTURALES CONCRETO | D200: ECHEVERRY INGENIERIA Y ENSAYOS SAS | E200: =VLOOKUP(D200,'BD VIEJA'!$D$3:$H$594,2,FALSE) -> Bogota | F200: =VLOOKUP(D200,'BD VIEJA'!$D$3:$H$594,3,FALSE) -> Cra. 29 C 71 A 30 | G200: =VLOOKUP(D200,'BD VIEJA'!$D$3:$H$594,4,FALSE) -> 3112088197 2255814 6304515 | H200: =VLOOKUP(D200,'BD VIEJA'!$D$3:$H$594,5,FALSE) -> comercial@echeverryingenieria.com info@echeverryingenieria.com | I200: 198
A201: =+B201&COUNTIF($B$3:B201,B201) -> 11723 | B201: 1172 | C201: ENSAYO DIAGNOSTICO ELEMENTO ESTRUCTURALES CONCRETO | D201: ESCUELA COLOMBIANA DE INGENIERIA JULIO GARAVITO | E201: =VLOOKUP(D201,'BD VIEJA'!$D$3:$H$594,2,FALSE) -> Bogota | F201: =VLOOKUP(D201,'BD VIEJA'!$D$3:$H$594,3,FALSE) -> Autopista Norte 205 59 | G201: =VLOOKUP(D201,'BD VIEJA'!$D$3:$H$594,4,FALSE) -> 6683600 Ext. 584 6763888 Ext. 228 - 324 | H201: =VLOOKUP(D201,'BD VIEJA'!$D$3:$H$594,5,FALSE) -> laura.valderrama@escuelaing.edu.com | I201: 199
... 472 more rows

Sheet BD VIEJA (hidden)
B2: CODIGO GRUPO | C2: GRUPO BASE DE DATOS | D2: NOMBRE PROVEEDOR | E2: UBICACIÓN | F2: DIRECCION | G2: TELEFONO | H2: CORREO ELECTRONICO
A3: =+B3&COUNTIF($B$3:B3,B3) -> 11141 | B3: 1114 | C3: ACCESORIOS HD PARA REDES DE ACUEDUCTO | D3: COVAL COMERCIAL S. A. | E3: Bogota | F3: Avda. Ciudad de Cali 5 A 92 Sur | G3: 3152358446 8759100 Ext. 144 - 145 7454671 | H3: info@coval.com.co | I3: 1
A4: =+B4&COUNTIF($B$3:B4,B4) -> 11142 | B4: 1114 | C4: ACCESORIOS HD PARA REDES DE ACUEDUCTO | D4: METACOL Soluciones integrales en ingeniería y fundición | E4: Bogota | F4: Diagonal 34 Bis 17 58 | G4: 5116262 Ext. 211 | H4: mercadeo@metacol.com | I4: 2
A5: =+B5&COUNTIF($B$3:B5,B5) -> 11143 | B5: 1114 | C5: ACCESORIOS HD PARA REDES DE ACUEDUCTO | D5: PAVCO S.A. | E5: Bogota | F5: Autopista Sur 71 75 | G5: 7825000 | H5: servicio@pavco.com.co orlando.polo@pavco.com.co www.pavco.com.co | I5: 3
A6: =+B6&COUNTIF($B$3:B6,B6) -> 11144 | B6: 1114 | C6: ACCESORIOS HD PARA REDES DE ACUEDUCTO | D6: DURMAN COLOMBIA S.A. | E6: Madrid - Cund. | F6: Km 27 Vía Fontibon Facatativa Los Alpes | G6: 8200200 | H6: colombia@durman.com | I6: 4
A7: =+B7&COUNTIF($B$3:B7,B7) -> 11145 | B7: 1114 | C7: ACCESORIOS HD PARA REDES DE ACUEDUCTO | D7: ALIATUBOS S.A.S. | E7: Bogota | F7: Cra. 25 17 67 | G7: 2011960 | H7: secretaria@aliatubos.com www.aliatubos.com | I7: 5
A8: =+B8&COUNTIF($B$3:B8,B8) -> 11146 | B8: 1114 | C8: ACCESORIOS HD PARA REDES DE ACUEDUCTO | D8: GERFOR | E8: Bogota | F8: Autopista Medellin Km 2 - 600 Entrada via Parcelas de Cota | G8: 8776800 | H8: contactenos@gerfor.com www.gerfor.com.co | I8: 6
A9: =+B9&COUNTIF($B$3:B9,B9) -> 11147 | B9: 1114 | C9: ACCESORIOS HD PARA REDES DE ACUEDUCTO | D9: TUBOS Y ACCESORIOS CELTA | E9: Bogota | F9: Cra. 87 1 42 | G9: 7799000 3143302256 3123320171 | H9: rurodrig@celta.com.co katherine.rodriguez@celta.com.co | I9: 7
A10: =+B10&COUNTIF($B$3:B10,B10) -> 11611 | B10: 1161 | C10: ACTIVIDADES A TODO COSTO | D10: ABC TRANSFORMADORES E INGENIERIA ELECTROMECÁNICA | E10: Bogotá | F10: Carrera 27 No. 7 - 42 | G10: 2015059 - 3105612639 - 3105612635 - 2016468 | H10: http://www.transformadoresabc.com | I10: 8
A11: =+B11&COUNTIF($B$3:B11,B11) -> 11612 | B11: 1161 | C11: ACTIVIDADES A TODO COSTO | D11: AMVAR WORLD SAS | E11: Bogotá | F11: Av. 30 - 7 de agosto 68-125 local 35 | G11: 3810603 EXT 101-102 | H11: ventas@anvarworld.com | I11: 9
A12: =+B12&COUNTIF($B$3:B12,B12) -> 11613 | B12: 1161 | C12: ACTIVIDADES A TODO COSTO | D12: CARPAS E INGENIERÍA | E12: Bogota | F12: Calle 9 32 A 41 | G12: 3102360339 5618623 | H12: ventas@carpascolombia.com | I12: 10
A13: =+B13&COUNTIF($B$3:B13,B13) -> 11614 | B13: 1161 | C13: ACTIVIDADES A TODO COSTO | D13: CIVALCO LTDA | E13: Bogota | F13: carrera 17 No. 36 - 38 | G13: 2853857 ext. 113 | H13: ventas@civalco.com | I13: 11
A14: =+B14&COUNTIF($B$3:B14,B14) -> 11615 | B14: 1161 | C14: ACTIVIDADES A TODO COSTO | D14: COMPUTER ONLINE - DIGITAL TECNOLOGY | E14: Bogotá | F14: -- | G14: 5416053 - 5416054 - 5416059 | H14: www.onlinecomputer.com.co | I14: 12
A15: =+B15&COUNTIF($B$3:B15,B15) -> 11616 | B15: 1161 | C15: ACTIVIDADES A TODO COSTO | D15: G&S SOLUCIONES DE INGENIERÍA | E15: Bogotá | F15: Diagonal 16 C No. 97–29 | G15: 2988669 | H15: contacto@gsingenieria.com.co | I15: 13
A16: =+B16&COUNTIF($B$3:B16,B16) -> 11617 | B16: 1161 | C16: ACTIVIDADES A TODO COSTO | D16: ISTC - BELDEN - Sending All The Right Signals | E16: (Europa / Medio Oriente / África) | F16: 8880 NW 18th Terrace, Doral, FL. 33172 | G16: +1 (305) 594 4141 | H16: marketing@istccorp.com | I16: 14
A17: =+B17&COUNTIF($B$3:B17,B17) -> 11618 | B17: 1161 | C17: ACTIVIDADES A TODO COSTO | D17: KTS Soluciones Energéticas-FAGAELEC Ingeniería Eléctrica | E17: Bogotá | F17: Carrera 68 C No. 2 B - 31 | G17: 7742034 | H17: -- | I17: 15
A18: =+B18&COUNTIF($B$3:B18,B18) -> 11619 | B18: 1161 | C18: ACTIVIDADES A TODO COSTO | D18: NACIONAL DE TRANSFORMADORES | E18: Mosquera/Cundinamarca | F18: PARQUE INDUSTRIAL MONTANA - MOSQUERA | G18: 8932308 | H18: -- | I18: 16
A19: =+B19&COUNTIF($B$3:B19,B19) -> 116110 | B19: 1161 | C19: ACTIVIDADES A TODO COSTO | D19: PROELÉCTRICOS | E19: Bogotá | F19: CALLE 12 A No. 21 - 21 | G19: 2471255 EXT. 301 | H19: presupuestos@proelectricos.com | I19: 17
A20: =+B20&COUNTIF($B$3:B20,B20) -> 116111 | B20: 1161 | C20: ACTIVIDADES A TODO COSTO | D20: PROELÉCTRICOS | E20: Bogotá | F20: CALLE 12 A No. 21 - 21 | G20: 2471255 EXT. 301 | H20: presupuestos@proelectricos.com | I20: 18
A21: =+B21&COUNTIF($B$3:B21,B21) -> 116112 | B21: 1161 | C21: ACTIVIDADES A TODO COSTO | D21: SERVIN GELEC S.A.S. | E21: Bogotá | F21: CALLE 65 A nO. 16 - 30 OF. 201 | G21: 7031742 | H21: comercial@servingelec.com | I21: 19
A22: =+B22&COUNTIF($B$3:B22,B22) -> 11021 | B22: 1102 | C22: AGREGADOS PETREOS, BASES Y SUBBASES GRANULARES | D22: 4GA SAS Agregados de calidad | E22: Bogota | F22: Calle 124 10 29 Apto. 201 | G22: 3183821145 | H22: grupo4ga@gmail.com | I22: 20
A23: =+B23&COUNTIF($B$3:B23,B23) -> 11022 | B23: 1102 | C23: AGREGADOS PETREOS, BASES Y SUBBASES GRANULARES | D23: AGREGADOS EL VINCULO LTDA | E23: Soacha - Cund. | F23: Cra. 7 32 35 C.C. Mercurio Of. 308 | G23: 7251891 3212010616 | H23: info@agregadoselvinculo.com | I23: 21
A24: =+B24&COUNTIF($B$3:B24,B24) -> 11023 | B24: 1102 | C24: AGREGADOS PETREOS, BASES Y SUBBASES GRANULARES | D24: BCD SAS | E24: Bogota | F24: Cra. 67 62 B 55 Sur Bl. 14 Apto. 527 | G24: 3008360 | H24: bcd@bcdsas.com | I24: 22
A25: =+B25&COUNTIF($B$3:B25,B25) -> 11024 | B25: 1102 | C25: AGREGADOS PETREOS, BASES Y SUBBASES GRANULARES | D25: CEMENTOS ARGOS - AGREGADOS PETREOS | E25: Bogotá | F25: Carrera 13 con 80 esquina, entre Av. Boyacá y Av. Cali | G25: 3506623165 | H25: http://agregados.argos.co/productos | I25: 23
A26: =+B26&COUNTIF($B$3:B26,B26) -> 11025 | B26: 1102 | C26: AGREGADOS PETREOS, BASES Y SUBBASES GRANULARES | D26: CICLOMAT SAS MINERIA URBANA | E26: Bogota | F26: Cra. 16 134 A 21 | G26: 3162630002 3163881743 | H26: ciclomatcomercial@gmail.com | I26: 24
A27: =+B27&COUNTIF($B$3:B27,B27) -> 11026 | B27: 1102 | C27: AGREGADOS PETREOS, BASES Y SUBBASES GRANULARES | D27: DEPOSITO RONOVA | E27: Bogota | F27: Calle 141 46 87 | G27: 3202739323 5209398 6256570 | H27: depositoronova@gmail.com | I27: 25
A28: =+B28&COUNTIF($B$3:B28,B28) -> 11027 | B28: 1102 | C28: AGREGADOS PETREOS, BASES Y SUBBASES GRANULARES | D28: DOBLE A INGENIERIA S.A. | E28: Bogota | F28: Calle 79 B 8 11 Piso 3 | G28: 2101700 | H28: cpinilla@da-ing.com gerencia@dobleaingenieria.com | I28: 26
A29: =+B29&COUNTIF($B$3:B29,B29) -> 11028 | B29: 1102 | C29: AGREGADOS PETREOS, BASES Y SUBBASES GRANULARES | D29: DROMOS PAVIMENTOS S.A. | E29: Mosquera/Cundinamarca | F29: Km 3.8 Zona Industrial Balsillas | G29: 7425376 | H29: atencion@dromos.co | I29: 27
A30: =+B30&COUNTIF($B$3:B30,B30) -> 11029 | B30: 1102 | C30: AGREGADOS PETREOS, BASES Y SUBBASES GRANULARES | D30: FANNY I. TEQUIA Y CIA SAS | E30: Soacha - Cund. | F30: Cra. 6 15 38 | G30: 7814130 | H30: contacto@tequiaycia.com | I30: 28
A31: =+B31&COUNTIF($B$3:B31,B31) -> 110210 | B31: 1102 | C31: AGREGADOS PETREOS, BASES Y SUBBASES GRANULARES | D31: GRAVILLERA ALBANIA S.A. | E31: Chia - Cund. | F31: Carretera Central Del Norte Km 19 | G31: 6760212 3102849530 | H31: administracion@gravilleraalbania.com | I31: 29
A32: =+B32&COUNTIF($B$3:B32,B32) -> 110211 | B32: 1102 | C32: AGREGADOS PETREOS, BASES Y SUBBASES GRANULARES | D32: INCOMINERIA S.A.S. | E32: Mosquera - Cund. | F32: Km 3.8 Zona Industrial Balsillas | G32: 3187759539 | H32: ventas@incomineria.co wendy.chaves@incomineria.co | I32: 30
A33: =+B33&COUNTIF($B$3:B33,B33) -> 110212 | B33: 1102 | C33: AGREGADOS PETREOS, BASES Y SUBBASES GRANULARES | D33: INGENIEROS GF SAS | E33: Bogota | F33: Calle 119 14 A 26 Of. 101 - 401 | G33: 6295142 6295120 | H33: info@ingenierosgf.com.co pupilojas@hotmail.com | I33: 31
A34: =+B34&COUNTIF($B$3:B34,B34) -> 110213 | B34: 1102 | C34: AGREGADOS PETREOS, BASES Y SUBBASES GRANULARES | D34: INSTITUTO NACIONAL DE VÍAS - INVIAS | E34: Bogotá | F34: Carrera 59 #26-60, Edificio INVIAS | G34: 7056000 - Ext 1158 | H34: comunicaciones @invias.gov.co | I34: 32
A35: =+B35&COUNTIF($B$3:B35,B35) -> 110214 | B35: 1102 | C35: AGREGADOS PETREOS, BASES Y SUBBASES GRANULARES | D35: RECICLADOS INDUSTRIALES DE COLOMBIA | E35: Cota - Cund. | F35: Km 1.5 Costado Sur Vía Bogotá Siberia Cota | G35: 8966879 8759047 3114926299 | H35: info@recicladosindustriales.co | I35: 33
A36: =+B36&COUNTIF($B$3:B36,B36) -> 110215 | B36: 1102 | C36: AGREGADOS PETREOS, BASES Y SUBBASES GRANULARES | D36: REX INGENIERIA S.A. | E36: Bogota | F36: Cra. 6 153 A 60 | G36: 3378726 3378728 3107694302 | H36: atencionalcliente@rexingenieria.com | I36: 34
A37: =+B37&COUNTIF($B$3:B37,B37) -> 110216 | B37: 1102 | C37: AGREGADOS PETREOS, BASES Y SUBBASES GRANULARES | D37: REX INGENIERIA S.A. | E37: Bogota | F37: Cra. 6 153 A 60 | G37: 3378726 3378728 3107694302 | H37: atencionalcliente@rexingenieria.com | I37: 35
A38: =+B38&COUNTIF($B$3:B38,B38) -> 11601 | B38: 1160 | C38: AMBIENTAL | D38: AGROVETERINARIA DEL CENTRO SAS | E38: Bogota | F38: Calle 11 15 19 | G38: 2431110 | H38: agroveterinariadelcentrohv@gmail.com | I38: 36
A39: =+B39&COUNTIF($B$3:B39,B39) -> 11602 | B39: 1160 | C39: AMBIENTAL | D39: ALMACEN AGROPECUARIO DE LA SABANA | E39: Bogota | F39: Calle 70 A 14 31 | G39: 3153921773 5445236 | H39: info@agrolasabana.com | I39: 37
A40: =+B40&COUNTIF($B$3:B40,B40) -> 11603 | B40: 1160 | C40: AMBIENTAL | D40: EASY | E40: Bogota | F40: Avda. Americas 68 94 | G40: 4191400 | H40: www.easy.com.co | I40: 38
A41: =+B41&COUNTIF($B$3:B41,B41) -> 11604 | B41: 1160 | C41: AMBIENTAL | D41: HOMECENTER | E41: Bogota | F41: Avda. 68 37 37 Sur | G41: 3077115 | H41: www.homecenter.com.co | I41: 39
A42: =+B42&COUNTIF($B$3:B42,B42) -> 11605 | B42: 1160 | C42: AMBIENTAL | D42: LA RES S.A.S. | E42: Bogota | F42: Cra. 13 13 91 | G42: 2825353 3362370 | H42: ventas@lares.com.co | I42: 40
A43: =+B43&COUNTIF($B$3:B43,B43) -> 11471 | B43: 1147 | C43: ARBOLES, GRAMAS, VEGETACION Y PLANTACION PAISAJISTICA | D43: AGRO DECORACIÓN | E43: Bogotá | F43: Cra 123 B 128 | G43: 6873661 | H43: agrodecoraciones@yahoo.es | I43: 41
A44: =+B44&COUNTIF($B$3:B44,B44) -> 11472 | B44: 1147 | C44: ARBOLES, GRAMAS, VEGETACION Y PLANTACION PAISAJISTICA | D44: ECOPRADOS SOLUCIONES AMBIENTALES | E44: Bogotá | F44: -- | G44: -- | H44: -- | I44: 42
A45: =+B45&COUNTIF($B$3:B45,B45) -> 11473 | B45: 1147 | C45: ARBOLES, GRAMAS, VEGETACION Y PLANTACION PAISAJISTICA | D45: EL SEMILLERO | E45: Bogotá | F45: Calle 70 A No. 14 A - 45 | G45: 3473760 | H45: elsemillero@elsemillero.net | I45: 43
A46: =+B46&COUNTIF($B$3:B46,B46) -> 11474 | B46: 1147 | C46: ARBOLES, GRAMAS, VEGETACION Y PLANTACION PAISAJISTICA | D46: INFORAGRO SAS | E46: Bogota | F46: Cra. 18 51 81 | G46: 3128474 7003106 | H46: inforagroltda@yahoo.es | I46: 44
A47: =+B47&COUNTIF($B$3:B47,B47) -> 11475 | B47: 1147 | C47: ARBOLES, GRAMAS, VEGETACION Y PLANTACION PAISAJISTICA | D47: INSTITUTO DISTRITAL DE RECREACION Y DEPORTE - IDRD | E47: Bogota | F47: Calle 63 59 A 06 | G47: 6605400 | H47: www.idrd.gov.co | I47: 45
A48: =+B48&COUNTIF($B$3:B48,B48) -> 11476 | B48: 1147 | C48: ARBOLES, GRAMAS, VEGETACION Y PLANTACION PAISAJISTICA | D48: SECRETARIA DISTRITAL DE AMBIENTE SDA | E48: Bogota | F48: Avda. Caracas 54 38 | G48: 3778899 | H48: www.ambientebogota.gov.co | I48: 46
A49: =+B49&COUNTIF($B$3:B49,B49) -> 11271 | B49: 1127 | C49: BORDILLOS Y LOSETAS | D49: ALFAGRES S.A. | E49: Bogota | F49: Avda. Caracas 35 55 | G49: 3311515 | H49: telemercadeo@alfa.com.co servicioalcliente@alfa.com.co | I49: 47
A50: =+B50&COUNTIF($B$3:B50,B50) -> 11272 | B50: 1127 | C50: BORDILLOS Y LOSETAS | D50: CICLOMAT SAS MINERIA URBANA | E50: Bogota | F50: Cra. 16 134 A 21 | G50: 3162630002 3163881743 | H50: ciclomatcomercial@gmail.com | I50: 48
A51: =+B51&COUNTIF($B$3:B51,B51) -> 11273 | B51: 1127 | C51: BORDILLOS Y LOSETAS | D51: CONSTRUDATA | E51: Pagina WEB | F51: N.A. | G51: N.A. | H51: www.construdata.com | I51: 49
A52: =+B52&COUNTIF($B$3:B52,B52) -> 11274 | B52: 1127 | C52: BORDILLOS Y LOSETAS | D52: EL CONDOR PREFABRICADOS SAS | E52: Soacha - Cund. | F52: Km 2 Via Fusunga vereda Panama | G52: 3134230803 7218612 | H52: info@elcondorprefabricados.com | I52: 50
A53: =+B53&COUNTIF($B$3:B53,B53) -> 11275 | B53: 1127 | C53: BORDILLOS Y LOSETAS | D53: INSUMOBRAS LTDA | E53: Bogota | F53: Autopista Medellin Km 14 Puente Piedra | G53: 3108196349 | H53: insumobrasltda@hotmail.com invaye@hotmail.com | I53: 51
A54: =+B54&COUNTIF($B$3:B54,B54) -> 11276 | B54: 1127 | C54: BORDILLOS Y LOSETAS | D54: MANUFACTURAS DE CEMENTO S.A. TITAN | E54: Cota - Cund. | F54: Autopista Medellin, entrada 2,4 Km al occidente del rio Bogotá | G54: 3353550 | H54: malvarez@titancemento.com | I54: 52
A55: =+B55&COUNTIF($B$3:B55,B55) -> 11277 | B55: 1127 | C55: BORDILLOS Y LOSETAS | D55: PLACA LISTA MODULOS PREFABRICADOS LTDA | E55: Bogota | F55: Calle 65 13 50 Of. 503 | G55: 2550490 3476569 3108173990 | H55: placalista01@yahoo.com | I55: 53
A56: =+B56&COUNTIF($B$3:B56,B56) -> 11278 | B56: 1127 | C56: BORDILLOS Y LOSETAS | D56: TUBOX SAS | E56: Bogota | F56: Calle 22 A 129 87 | G56: 3132851605 3143576140 7565545 | H56: comercial@tubox.com.co | I56: 54
A57: =+B57&COUNTIF($B$3:B57,B57) -> 11211 | B57: 1121 | C57: CABLES Y ACCESORIOS ELECTRICOS | D57: 3M | E57: Bogotá | F57: AV EL DORADO 75-93 | G57: 4161666 | H57: dcpieros@mmm.com | I57: 55
A58: =+B58&COUNTIF($B$3:B58,B58) -> 11212 | B58: 1121 | C58: CABLES Y ACCESORIOS ELECTRICOS | D58: ABB LTDA | E58: Bogotá | F58: Cra. 100 25 D 61 | G58: 4178000 01 8000 522 226 378 9349 | H58: contact.center@co.abb.com | I58: 56
A59: =+B59&COUNTIF($B$3:B59,B59) -> 11213 | B59: 1121 | C59: CABLES Y ACCESORIOS ELECTRICOS | D59: ACONSTRUCTORAS.COM | E59: Yopal - Casanare | F59: Calle 25 15 19 | G59: 3005541747 3163971751 | H59: www.aconstructoras.com | I59: 57
A60: =+B60&COUNTIF($B$3:B60,B60) -> 11214 | B60: 1121 | C60: CABLES Y ACCESORIOS ELECTRICOS | D60: ALMACÉN CANAIMA | E60: Armenia - Quindio | F60: Calle 17 20 21 | G60: 3148884477 (6)7447384 | H60: info@almacencanaima.com | I60: 58
A61: =+B61&COUNTIF($B$3:B61,B61) -> 11215 | B61: 1121 | C61: CABLES Y ACCESORIOS ELECTRICOS | D61: BORNA DESDE 1984 | E61: Bogotá | F61: CARRERA 24 8-51 BOGOTA | G61: 383 7610 | H61: www.borna-store.com servicioalcliente@bornas.info | I61: 59
A62: =+B62&COUNTIF($B$3:B62,B62) -> 11216 | B62: 1121 | C62: CABLES Y ACCESORIOS ELECTRICOS | D62: CEB IMPORTADORA SAS | E62: Bogota | F62: Cra. 13 19 29 | G62: 2825100 | H62: administracion@cebbogota.com | I62: 60
A63: =+B63&COUNTIF($B$3:B63,B63) -> 11217 | B63: 1121 | C63: CABLES Y ACCESORIOS ELECTRICOS | D63: CEI ELECTRICA INTERNACIONAL SAS | E63: Bogotá | F63: Cra. 13 No. 13 - 17 Of. 404 | G63: 2435090 | H63: ventas@ceielectricainternacional.com | I63: 61
A64: =+B64&COUNTIF($B$3:B64,B64) -> 11218 | B64: 1121 | C64: CABLES Y ACCESORIOS ELECTRICOS | D64: TUBOS Y ACCESORIOS CELTA | E64: QUINDÍO/ARMENIA | F64: Cra. 87 1 42 | G64: 7799000 | H64: rurodrig@celta.com.co | I64: 62
A65: =+B65&COUNTIF($B$3:B65,B65) -> 11219 | B65: 1121 | C65: CABLES Y ACCESORIOS ELECTRICOS | D65: CENTELSA | E65: Bogota | F65: Avda. Calle 26 68 C 61 Of. 717 | G65: 3166931865 3154334617 3154332661 | H65: armando.penaranda@centelsa.com.co david.uribe@centelsa.com.co luisf.escobar@centelsa.com.co | I65: 63
A66: =+B66&COUNTIF($B$3:B66,B66) -> 112110 | B66: 1121 | C66: CABLES Y ACCESORIOS ELECTRICOS | D66: CONSTRUDATA | E66: Bogotá | F66: Avda. Calle 26 82 70 | G66: 4255200 | H66: construdata@legis.com.co | I66: 64
A67: =+B67&COUNTIF($B$3:B67,B67) -> 112111 | B67: 1121 | C67: CABLES Y ACCESORIOS ELECTRICOS | D67: CU CONECTORES | E67: Funza - Cundinamarca | F67: Km 7 vía Bogotá - Medellín Complejo Industrial Celta Trade Park, Bodega 152-3 | G67: 8966535 Ext. 400 | H67: comercial@cuconectores.com.co | I67: 65
A68: =+B68&COUNTIF($B$3:B68,B68) -> 112112 | B68: 1121 | C68: CABLES Y ACCESORIOS ELECTRICOS | D68: DIELCO LTDA | E68: Bogotá | F68: CALLE 15 No. 12 - 51 | G68: 7439050 | H68: -- | I68: 66
A69: =+B69&COUNTIF($B$3:B69,B69) -> 112113 | B69: 1121 | C69: CABLES Y ACCESORIOS ELECTRICOS | D69: DISELEC LTDA | E69: Bogota | F69: Cra. 12 16 26 | G69: 3107720207 2843500 2832928 | H69: distrielectrica@hotmail.com | I69: 67
A70: =+B70&COUNTIF($B$3:B70,B70) -> 112114 | B70: 1121 | C70: CABLES Y ACCESORIOS ELECTRICOS | D70: DYCON MATERIALES ELÉCTRICOS | E70: Neiva - Huila | F70: Calle 22 #1h-38, Rojas Trujillo | G70: 8750577 | H70: -- | I70: 68
A71: =+B71&COUNTIF($B$3:B71,B71) -> 112115 | B71: 1121 | C71: CABLES Y ACCESORIOS ELECTRICOS | D71: EASY | E71: Bogota | F71: Avda. Americas 68 94 | G71: 4191400 | H71: www.easy.com.co | I71: 69
A72: =+B72&COUNTIF($B$3:B72,B72) -> 112116 | B72: 1121 | C72: CABLES Y ACCESORIOS ELECTRICOS | D72: EIMPSA | E72: Bogotá | F72: Calle 15 No. 13 - 48 (Entrada Principal) Calle 16 N. 13 - 55 (Parqueadero) | G72: 3275222 - 3340686 | H72: E-mail: ventas@eimpsa.com.co | I72: 70
A73: =+B73&COUNTIF($B$3:B73,B73) -> 112117 | B73: 1121 | C73: CABLES Y ACCESORIOS ELECTRICOS | D73: ELÉCTRICOS INDUSTRIALES LTDA | E73: Bogotá | F73: Cl 15 13-58 | G73: 3421788 | H73: http://www.elein.com.co | I73: 71
A74: =+B74&COUNTIF($B$3:B74,B74) -> 112118 | B74: 1121 | C74: CABLES Y ACCESORIOS ELECTRICOS | D74: ELECTRO MARCAS SOLUCIONES CON ENERGIA | E74: Bogota | F74: Cra 12 15 45 | G74: 3102386993 3341892 | H74: wilson.ariza@electromarcas.com | I74: 72
A75: =+B75&COUNTIF($B$3:B75,B75) -> 112119 | B75: 1121 | C75: CABLES Y ACCESORIOS ELECTRICOS | D75: ENERGIZAR | E75: Bogota | F75: Avda. Americas 68 94 | G75: 4191400 | H75: www.easy.com.co | I75: 73
A76: =+B76&COUNTIF($B$3:B76,B76) -> 112120 | B76: 1121 | C76: CABLES Y ACCESORIOS ELECTRICOS | D76: FERROCABLES S.A.S. | E76: Medellín - Antioquia | F76: CARRERA 45 No. 29 - 32 | G76: 4445123 | H76: -- | I76: 74
A77: =+B77&COUNTIF($B$3:B77,B77) -> 112121 | B77: 1121 | C77: CABLES Y ACCESORIOS ELECTRICOS | D77: GERFOR | E77: Cota - Cund. | F77: Autopista Medellin Km 2 - 600 Entrada via Parcelas de Cota | G77: 8776800 | H77: contactenos@gerfor.com www.gerfor.com.co | I77: 75
A78: =+B78&COUNTIF($B$3:B78,B78) -> 112122 | B78: 1121 | C78: CABLES Y ACCESORIOS ELECTRICOS | D78: HOMECENTER | E78: Bogota | F78: Avda. 68 37 37 Sur | G78: 3077115 | H78: www.homecenter.com.co | I78: 76
A79: =+B79&COUNTIF($B$3:B79,B79) -> 112123 | B79: 1121 | C79: CABLES Y ACCESORIOS ELECTRICOS | D79: HOMESENTRY | E79: Bogota | F79: Calle 127C No. 45-81 | G79: 6151515 Extensión 3031 | H79: norte@homesentry.net | I79: 77
A80: =+B80&COUNTIF($B$3:B80,B80) -> 112124 | B80: 1121 | C80: CABLES Y ACCESORIOS ELECTRICOS | D80: I.E. INTER ELECTRICAS | E80: Bogota | F80: Cra. 12 13 46 | G80: 3360755 Ext. 1103 3106983687 | H80: servicioalcliente@ie.com.co | I80: 78
A81: =+B81&COUNTIF($B$3:B81,B81) -> 112125 | B81: 1121 | C81: CABLES Y ACCESORIOS ELECTRICOS | D81: INTERNACIONAL DE ELÉCTRICOS | E81: Bogota | F81: Avda. Caracas 64 23 | G81: 7448130 | H81: amrubio@iegrupo.co lsescorcia@iegrupo.co | I81: 79
A82: =+B82&COUNTIF($B$3:B82,B82) -> 112126 | B82: 1121 | C82: CABLES Y ACCESORIOS ELECTRICOS | D82: IT-RED Infraestructura & redes | E82: Bogota | F82: Av. El Dorado No. 68 C -61 Of. 204 Edificio Torre | G82: 4322981 | H82: informacion@itred.com.co | I82: 80
A83: =+B83&COUNTIF($B$3:B83,B83) -> 112127 | B83: 1121 | C83: CABLES Y ACCESORIOS ELECTRICOS | D83: LA ESQUINA DE LOS ELECTRICOS | E83: Bogota | F83: Calle 18 10 71 | G83: 2845023 | H83: esquinaelectricos@hotmail.com | I83: 81
A84: =+B84&COUNTIF($B$3:B84,B84) -> 112128 | B84: 1121 | C84: CABLES Y ACCESORIOS ELECTRICOS | D84: MAELECTRICOS | E84: Bogota | F84: Calle 17 28 A 74 | G84: 3647373 | H84: julian.c@maelectricos.com julian.alvarado@maelectricos.com | I84: 82
A85: =+B85&COUNTIF($B$3:B85,B85) -> 112129 | B85: 1121 | C85: CABLES Y ACCESORIOS ELECTRICOS | D85: NACIONAL DE ELECTRICOS | E85: Bogota | F85: Calle 15 12 81 | G85: 3114758165 2543720 Ext. 1502 | H85: centro1@nalelectricos.com.co www.nalelectricos.com.co | I85: 83
A86: =+B86&COUNTIF($B$3:B86,B86) -> 112130 | B86: 1121 | C86: CABLES Y ACCESORIOS ELECTRICOS | D86: PAVCO S.A. | E86: Bogota | F86: Autopista Sur 71 75 | G86: 7825000 | H86: servicio@pavco.com.co orlando.polo@pavco.com.co www.pavco.com.co | I86: 84
A87: =+B87&COUNTIF($B$3:B87,B87) -> 112131 | B87: 1121 | C87: CABLES Y ACCESORIOS ELECTRICOS | D87: PLANTAS ELÉCTRICAS LTDA | E87: Bogota | F87: Carrera 26 No 8 – 36 Barrio Ricaurte | G87: 5102198 5102134 4085742 | H87: plantaselectricas-ltda.com ventas2@plantaselectricas-ltda.com ventas@plantaselectricas-ltda.com | I87: 85
A88: =+B88&COUNTIF($B$3:B88,B88) -> 112132 | B88: 1121 | C88: CABLES Y ACCESORIOS ELECTRICOS | D88: PLANTIDIESELES S.A.S. LTDA Soluciones Integrales de Energía | E88: Bogota | F88: Carrera 127 No. 22G - 18 Bodegas 7-8 | G88: 4185960 - 4185961 - 4185990 | H88: info@plantidieseles.com | I88: 86
A89: =+B89&COUNTIF($B$3:B89,B89) -> 112133 | B89: 1121 | C89: CABLES Y ACCESORIOS ELECTRICOS | D89: PRIXMA | E89: Cali - Valle | F89: CRA 4 B No. 36 - 44 | G89: 5242939 | H89: comercial3@prixma.com.co | I89: 87
A90: =+B90&COUNTIF($B$3:B90,B90) -> 112134 | B90: 1121 | C90: CABLES Y ACCESORIOS ELECTRICOS | D90: PROCABLES | E90: Bogota | F90: Calle 20 68 B 71 | G90: 4042666 Ext. 471 | H90: licitaciones@generalcable.com.co | I90: 88
A91: =+B91&COUNTIF($B$3:B91,B91) -> 112135 | B91: 1121 | C91: CABLES Y ACCESORIOS ELECTRICOS | D91: PROELÉCTRICOS | E91: Bogota | F91: CALLE 12 A No. 21 - 21 | G91: 2471255 EXT. 301 | H91: presupuestos@proelectricos.com | I91: 89
A92: =+B92&COUNTIF($B$3:B92,B92) -> 112136 | B92: 1121 | C92: CABLES Y ACCESORIOS ELECTRICOS | D92: REDES ELECTRICAS S.A. | E92: Bogota | F92: Cra. 12 15 97 | G92: 3340511 3647000 | H92: ventas.palo@redeselectricas.com ingenieria@redeselectricas.com oscar.rodriguez@redes electricas.com | I92: 90
A93: =+B93&COUNTIF($B$3:B93,B93) -> 112137 | B93: 1121 | C93: CABLES Y ACCESORIOS ELECTRICOS | D93: RYMEL | E93: Copacabana - Antioquia Antioquia/Medellín | F93: Autopista Norte paraje El Noral | G93: 4440430 | H93: rymel@rymel.com.co | I93: 91
A94: =+B94&COUNTIF($B$3:B94,B94) -> 112138 | B94: 1121 | C94: CABLES Y ACCESORIOS ELECTRICOS | D94: SIEMENS S.A. | E94: Tenjo - Cund. | F94: Autopista Medellin, Km 8.5 Costado Sur Tenjo | G94: 4142400 2942400 | H94: lia.deltoro@siemens.com www.siemens.com.co | I94: 92
A95: =+B95&COUNTIF($B$3:B95,B95) -> 112139 | B95: 1121 | C95: CABLES Y ACCESORIOS ELECTRICOS | D95: STEREN | E95: Bogotá | F95: Calle 140 n. 12B-25, Edificio Castellana Empresarial, oficina 103 | G95: 7443200 | H95: www.steren.com.co | I95: 93
A96: =+B96&COUNTIF($B$3:B96,B96) -> 112140 | B96: 1121 | C96: CABLES Y ACCESORIOS ELECTRICOS | D96: SUNTEC / WEG | E96: Antioquia/Medellín | F96: Carrera 47G # 78 D Sur - 147 | G96: 3187117802 | H96: ycastrillon@suntec.com.co | I96: 94
A97: =+B97&COUNTIF($B$3:B97,B97) -> 112141 | B97: 1121 | C97: CABLES Y ACCESORIOS ELECTRICOS | D97: ALMACÉN SUPERELÉCTRICOS | E97: Bogotá | F97: Cl 14 12-86 | G97: (+57) 1 3424035 (+57) 1 3424019 | H97: -- | I97: 95
A98: =+B98&COUNTIF($B$3:B98,B98) -> 112142 | B98: 1121 | C98: CABLES Y ACCESORIOS ELECTRICOS | D98: TELDOR | E98: Bogotá | F98: Cr8 64-42 Of 318 | G98: -- | H98: ventos.palo@redeselectricas.com ventos.centro@redeselectricas.com | I98: 96
A99: =+B99&COUNTIF($B$3:B99,B99) -> 11951 | B99: 1195 | C99: CARPINTERIA METALICA | D99: HB SADELEC Estructuras Metálicas | E99: Bogota | F99: Avda. Cra. 129 17 F 97 | G99: 4224700 Ext. 121 4155620 | H99: david.castellanos@hbsadelec.com.co | I99: 97
A100: =+B100&COUNTIF($B$3:B100,B100) -> 11952 | B100: 1195 | C100: CARPINTERIA METALICA | D100: NAZCA DISEÑO - IMAGEN SAS | E100: Bogota | F100: Cra. 55 45 A 20 | G100: 3244248 3003228552 | H100: comercial@nazca.com.co | I100: 98
A101: =+B101&COUNTIF($B$3:B101,B101) -> 11301 | B101: 1130 | C101: COMBUSTIBLES Y LUBRICANTES | D101: MINISTERIO DE MINAS Y ENERGIA | E101: Bogota | F101: Calle 43 57 31 | G101: 2200300 2200306 | H101: www.minminas.gov.co | I101: 99
A102: =+B102&COUNTIF($B$3:B102,B102) -> 11031 | B102: 1103 | C102: CONCRETOS Y MORTEROS PREMEZCLADOS | D102: CONCRETOS ARGOS S.A. | E102: Bogotá | F102: Cra. 7 71 21 Torre A Piso 10 | G102: 6767060 | H102: info@argos.com.co | I102: 100
A103: =+B103&COUNTIF($B$3:B103,B103) -> 11032 | B103: 1103 | C103: CONCRETOS Y MORTEROS PREMEZCLADOS | D103: CEMEX DE COLOMBIA S.A. | E103: Bogota | F103: Calle 99 9 A 54 Piso 8 | G103: 6469000 6039100 | H103: ginnamarcela.gomez@cemex.com alvaro.coral@cemex.com adrianamaritza.ramosrt@cemex.com.co yessicadamaris.torresbeltran@ext.cemex.com | I103: 101
A104: =+B104&COUNTIF($B$3:B104,B104) -> 11033 | B104: 1103 | C104: CONCRETOS Y MORTEROS PREMEZCLADOS | D104: ELEMENTOS PREFABRICADOS DE CONCRETO EL PRECON | E104: Madrid - Cund. | F104: Km 13.7 Autopista Medellin 1.2 Km del Round Point de Puente de Piedra hacia Bogota (Costado Sur) | G104: 3125933840 3115149414 | H104: elprecon@hotmail.com | I104: 102
A105: =+B105&COUNTIF($B$3:B105,B105) -> 11034 | B105: 1103 | C105: CONCRETOS Y MORTEROS PREMEZCLADOS | D105: HIDROPROTECCIÓN | E105: Bogotá | F105: Autopista Norte 169 25 | G105: 6784011 | H105: servicioalcliente@hidroproteccion.com | I105: 103
A106: =+B106&COUNTIF($B$3:B106,B106) -> 11035 | B106: 1103 | C106: CONCRETOS Y MORTEROS PREMEZCLADOS | D106: HOMECENTER | E106: Bogota | F106: Avda. 68 37 37 Sur | G106: 3077115 | H106: www.homecenter.com.co | I106: 104
A107: =+B107&COUNTIF($B$3:B107,B107) -> 11036 | B107: 1103 | C107: CONCRETOS Y MORTEROS PREMEZCLADOS | D107: HORMIGON ANDINO S.A. | E107: Bogota | F107: Calle 125 21 A 18 Piso 4 | G107: 3164706585 6371837 | H107: comercial@hormigonandino.com | I107: 105
A108: =+B108&COUNTIF($B$3:B108,B108) -> 11037 | B108: 1103 | C108: CONCRETOS Y MORTEROS PREMEZCLADOS | D108: MUNDO PREFABRICADOS | E108: Bogotá | F108: PLANTA PUENTE PIEDRA km 15 Autopista Medellin | G108: 310-710-9290 | H108: mundo.prefabricados@mundoprefabricados.com www.mundoprefabricados.com | I108: 106
A109: =+B109&COUNTIF($B$3:B109,B109) -> 11038 | B109: 1103 | C109: CONCRETOS Y MORTEROS PREMEZCLADOS | D109: SIKA COLOMBIA SAS | E109: Tocancipa - Cund. | F109: Vereda Canavita, Km 20,5 Autopista Norte | G109: 8786666 8786681 | H109: ortiz.ricardo@co.sika.com chacon.jose@co.sika.com | I109: 107
A110: =+B110&COUNTIF($B$3:B110,B110) -> 11039 | B110: 1103 | C110: CONCRETOS Y MORTEROS PREMEZCLADOS | D110: TOXEMENT | E110: Bogota | F110: Calle 20 53 A 42 | G110: 2088600 | H110: sandrarodriguez@toxement.com.co atencioncliente@toxement.com.co | I110: 108
A111: =+B111&COUNTIF($B$3:B111,B111) -> 11681 | B111: 1168 | C111: CONSULTORIA | D111: SECRETARIA DISTRITAL DE PLANEACION | E111: Bogota | F111: Avda. Cra. 30 25 90 | G111: 3358000 | H111: www.sdp.gov.co | I111: 109
A112: =+B112&COUNTIF($B$3:B112,B112) -> 11682 | B112: 1168 | C112: CONSULTORIA | D112: SUPERINTENDENCIA DE NOTARIADO Y REGISTRO | E112: Bogota | F112: Calle 26 13 49 Int. 201 | G112: 3282121 | H112: correspondencia@supernotariado.gov.co | I112: 110
A113: =+B113&COUNTIF($B$3:B113,B113) -> 12001 | B113: 1200 | C113: CUBIERTA, CIELO RASO, CORTASOL TIPO TRANSMILENIO | D113: HB SADELEC Estructuras Metálicas | E113: Bogotá | F113: Avda. Cra. 129 17 F 97 | G113: 4155620 | H113: david.castellanos@hbsadelec.com.co | I113: 111
A114: =+B114&COUNTIF($B$3:B114,B114) -> 12002 | B114: 1200 | C114: CUBIERTA, CIELO RASO, CORTASOL TIPO TRANSMILENIO | D114: GRONCOL INFRAESTRUCTURA VERDE | E114: Bogotá | F114: Calle 90 13 40 | G114: 7030955 | H114: info@groncol.com | I114: 112
A115: =+B115&COUNTIF($B$3:B115,B115) -> 11941 | B115: 1194 | C115: DESMONTE Y TRASLADO DE ELEMENTOS METALICOS | D115: INDUSTRIAS METÁLICAS GRAG S.A.S. | E115: Bogotá | F115: Cra. 27 No. 10 - 35 | G115: 2778985/2474813 | H115: metalgrag@yahoo.es | I115: 113
A116: =+B116&COUNTIF($B$3:B116,B116) -> 11942 | B116: 1194 | C116: DESMONTE Y TRASLADO DE ELEMENTOS METALICOS | D116: INGEVEC SAS | E116: Bogotá | F116: CALLE 93 A 68 B 30 | G116: 3014432758 | H116: -- | I116: 114
A117: =+B117&COUNTIF($B$3:B117,B117) -> 11943 | B117: 1194 | C117: DESMONTE Y TRASLADO DE ELEMENTOS METALICOS | D117: NAZCA DISEÑO - IMAGEN SAS | E117: Bogota | F117: Cra. 55 45 A 20 | G117: 3244248 3003228552 | H117: comercial@nazca.com.co | I117: 115
A118: =+B118&COUNTIF($B$3:B118,B118) -> 11481 | B118: 1148 | C118: DOTACION (EPP) Y EQUIPO Y HERRAMIENTA SEGURIDAD INDUSTRIAL | D118: CENTRAL DE DOTACIONES LTDA | E118: Bogota | F118: Cra. 69 A 31 62 Sur | G118: 3118109568 7110583 | H118: almacenprincipal@centraldedotaciones.com | I118: 116
A119: =+B119&COUNTIF($B$3:B119,B119) -> 11482 | B119: 1148 | C119: DOTACION (EPP) Y EQUIPO Y HERRAMIENTA SEGURIDAD INDUSTRIAL | D119: CONSTRUDATA | E119: Bogotá | F119: Avda. Calle 26 82 70 | G119: 4255200 | H119: construdata@legis.com.co | I119: 117
A120: =+B120&COUNTIF($B$3:B120,B120) -> 11483 | B120: 1148 | C120: DOTACION (EPP) Y EQUIPO Y HERRAMIENTA SEGURIDAD INDUSTRIAL | D120: DYA INSUMOS FERRETEROS SAS | E120: Bogota | F120: Calle 9 34 86 | G120: 3102144153 7451525 | H120: ventas@dyainsumosferreteros.com | I120: 118
A121: =+B121&COUNTIF($B$3:B121,B121) -> 11484 | B121: 1148 | C121: DOTACION (EPP) Y EQUIPO Y HERRAMIENTA SEGURIDAD INDUSTRIAL | D121: DOTA FUERTE | E121: Bogota | F121: Avda. Cra. 68 14 32 Sur | G121: 3112819386 2628514 | H121: dotafuerte@gmail.com | I121: 119
A122: =+B122&COUNTIF($B$3:B122,B122) -> 11485 | B122: 1148 | C122: DOTACION (EPP) Y EQUIPO Y HERRAMIENTA SEGURIDAD INDUSTRIAL | D122: DOTACIONES CALDERON SAS | E122: Bogota | F122: Avda. Cra. 68 22 64 Sur | G122: 4065664 4069690 | H122: ventas515@hotmail.es | I122: 120
A123: =+B123&COUNTIF($B$3:B123,B123) -> 11486 | B123: 1148 | C123: DOTACION (EPP) Y EQUIPO Y HERRAMIENTA SEGURIDAD INDUSTRIAL | D123: CONFECCIONES EL OVEROL LTDA | E123: Bogotá | F123: Calle 15 22 73 | G123: 2779854 | H123: ventas@confeccioneseloverol.com | I123: 121
A124: =+B124&COUNTIF($B$3:B124,B124) -> 11487 | B124: 1148 | C124: DOTACION (EPP) Y EQUIPO Y HERRAMIENTA SEGURIDAD INDUSTRIAL | D124: VANGUARD SEGURIDAD INDUSTRIAL | E124: Bogota | F124: Cra. 25 13 53 | G124: 7431671 7452796 | H124: info@vanguardseguridadindustrial.com | I124: 122
A125: =+B125&COUNTIF($B$3:B125,B125) -> 11111 | B125: 1111 | C125: DUCTOS PVC - ELECTRICOS/TELEFONICOS TIPO TDP-DB-EB | D125: DURMAN COLOMBIA S.A. | E125: Madrid - Cund. | F125: Km 27 Vía Fontibon Facatativa Los Alpes | G125: 8200200 | H125: colombia@durman.com | I125: 123
A126: =+B126&COUNTIF($B$3:B126,B126) -> 11112 | B126: 1111 | C126: DUCTOS PVC - ELECTRICOS/TELEFONICOS TIPO TDP-DB-EB | D126: ELÉCTRICOS JS & AC SAS | E126: Bogota | F126: Avda. Calle 63 103 A 32 | G126: 4313120 3145387908 3104772097 | H126: info@electricosjs.com | I126: 124
A127: =+B127&COUNTIF($B$3:B127,B127) -> 11113 | B127: 1111 | C127: DUCTOS PVC - ELECTRICOS/TELEFONICOS TIPO TDP-DB-EB | D127: GERFOR | E127: Bogota | F127: Autopista Medellin Km 2 - 600 m Entrada vía parcelas de Cota | G127: 877 6800 | H127: contactenos@gerfor.com | I127: 125
A128: =+B128&COUNTIF($B$3:B128,B128) -> 11114 | B128: 1111 | C128: DUCTOS PVC - ELECTRICOS/TELEFONICOS TIPO TDP-DB-EB | D128: PAVCO S.A. | E128: Bogota | F128: Autopista Sur 71 75 | G128: 7825000 | H128: servicio@pavco.com.co orlando.polo@pavco.com.co www.pavco.com.co | I128: 126
A129: =+B129&COUNTIF($B$3:B129,B129) -> 11115 | B129: 1111 | C129: DUCTOS PVC - ELECTRICOS/TELEFONICOS TIPO TDP-DB-EB | D129: TUBOS Y ACCESORIOS CELTA | E129: Bogota | F129: Cra. 87 1 42 | G129: 7799000 3143302256 3123320171 | H129: rurodrig@celta.com.co katherine.rodriguez@celta.com.co | I129: 127
A130: =+B130&COUNTIF($B$3:B130,B130) -> 11041 | B130: 1104 | C130: EMULSIONES Y MEZCLAS ASFALTICAS | D130: ASFALTOS PANAMA G. R. | E130: Soacha - Cund. | F130: Vereda Panama / Recebera El Tesoro | G130: 2654522 | H130: asfaltospanama@hotmail.com | I130: 128
A131: =+B131&COUNTIF($B$3:B131,B131) -> 11042 | B131: 1104 | C131: EMULSIONES Y MEZCLAS ASFALTICAS | D131: DOBLE A INGENIERIA S.A. | E131: Bogota | F131: Calle 79 B 8 11 Piso 3 | G131: 2101700 | H131: cpinilla@da-ing.com gerencia@dobleaingenieria.com | I131: 129
A132: =+B132&COUNTIF($B$3:B132,B132) -> 11043 | B132: 1104 | C132: EMULSIONES Y MEZCLAS ASFALTICAS | D132: DROMOS PAVIMENTOS S.A. | E132: Mosquera - Cund. | F132: Km 3.8 Zona Industrial Balsillas | G132: 7425376 Ext. 1208 3152199639 | H132: paola.castro@dromos.co atencion@dromos.co | I132: 130
A133: =+B133&COUNTIF($B$3:B133,B133) -> 11044 | B133: 1104 | C133: EMULSIONES Y MEZCLAS ASFALTICAS | D133: EZ STREET ASFALTO | E133: Gachancipa - Cund. | F133: Autopista Norte km 28 | G133: 3173000246 | H133: ventas@itpasfaltos.com | I133: 131
A134: =+B134&COUNTIF($B$3:B134,B134) -> 11045 | B134: 1104 | C134: EMULSIONES Y MEZCLAS ASFALTICAS | D134: HOMECENTER | E134: Bogota | F134: Avda. 68 37 37 Sur | G134: 3077115 | H134: www.homecenter.com.co | I134: 132
A135: =+B135&COUNTIF($B$3:B135,B135) -> 11046 | B135: 1104 | C135: EMULSIONES Y MEZCLAS ASFALTICAS | D135: INCOASFALTOS SAS | E135: Chia - Cund. | F135: Cra. 5 16 70 | G135: 8637888 | H135: cotizacionesolperez@incoasfaltos.com gmolina@incoasfaltos.com | I135: 133
A136: =+B136&COUNTIF($B$3:B136,B136) -> 11047 | B136: 1104 | C136: EMULSIONES Y MEZCLAS ASFALTICAS | D136: INSTITUTO NACIONAL DE VÍAS - INVIAS | E136: Bogotá | F136: Carrera 59 #26-60, Edificio INVIAS | G136: 7056000 - Ext 1158 | H136: comunicaciones @invias.gov.co | I136: 134
A137: =+B137&COUNTIF($B$3:B137,B137) -> 11048 | B137: 1104 | C137: EMULSIONES Y MEZCLAS ASFALTICAS | D137: MPI LTDA | E137: Bogota | F137: Cra. 7 83 92 Of. 404 | G137: 2375626 3102037329 | H137: direccioncomercial@mpi.net.co ricardo.carreno@mpi.net.co | I137: 135
A138: =+B138&COUNTIF($B$3:B138,B138) -> 11049 | B138: 1104 | C138: EMULSIONES Y MEZCLAS ASFALTICAS | D138: PAVIMENTOS COLOMBIA S.A.S. | E138: Bogotá | F138: AVENIDA 82 No. 10 - 50 | G138: 3760030 | H138: calidad@pavcol.com | I138: 136
A139: =+B139&COUNTIF($B$3:B139,B139) -> 11501 | B139: 1150 | C139: ENSAYOS DE LABORATORIO Y DIAGNOSTICOS | D139: ALS EMICAL | E139: Bogotá | F139: Calle 94 B No. 56 - 45 | G139: 3138325344 - +571 7450790/91 | H139: foodpharma.latam@alsglobal.com | I139: 137
A140: =+B140&COUNTIF($B$3:B140,B140) -> 11502 | B140: 1150 | C140: ENSAYOS DE LABORATORIO Y DIAGNOSTICOS | D140: ANALQUIM LTDA | E140: Bogotá | F140: Cr25 73-60 | G140: (+57) 1 2318149 (+57) 1 6309945 | H140: http://www.analquim.com | I140: 138
A141: =+B141&COUNTIF($B$3:B141,B141) -> 11503 | B141: 1150 | C141: ENSAYOS DE LABORATORIO Y DIAGNOSTICOS | D141: BAC Engineering Consultancy Group S.A.S. | E141: Bogotá | F141: Cra. 29 C 78 37 | G141: 8051209 | H141: laboratorio.colombia@bacecg.com | I141: 139
A142: =+B142&COUNTIF($B$3:B142,B142) -> 11504 | B142: 1150 | C142: ENSAYOS DE LABORATORIO Y DIAGNOSTICOS | D142: BIOQUILAB | E142: Bogotá | F142: Carrera 47A No 91 - 85 • Barrio La Castellana. | G142: (+57 1) 257 0722 / (+57 1) 635 3461 / (+57) 310 568 1450 | H142: servicioalcliente@bioquilab.com | I142: 140
A143: =+B143&COUNTIF($B$3:B143,B143) -> 11505 | B143: 1150 | C143: ENSAYOS DE LABORATORIO Y DIAGNOSTICOS | D143: ConCol - GEOCING - Geociencia e Ingeniería | E143: Bogotá | F143: Calle 120 No. 49 - 44 | G143: -- | H143: obecerra@concol.com | I143: 141
A144: =+B144&COUNTIF($B$3:B144,B144) -> 11506 | B144: 1150 | C144: ENSAYOS DE LABORATORIO Y DIAGNOSTICOS | D144: CONCRELAB | E144: Bogotá | F144: CL 63D 71A-52 | G144: 4386195 | H144: concrelab@cable.net.co | I144: 142
A145: =+B145&COUNTIF($B$3:B145,B145) -> 11507 | B145: 1150 | C145: ENSAYOS DE LABORATORIO Y DIAGNOSTICOS | D145: Concreservicios S.A.S. | E145: Bogota | F145: Calle 22 C 130 51 Bodega 6 | G145: 4211444 3103232062 | H145: comercial@concre-servicios.com | I145: 143
A146: =+B146&COUNTIF($B$3:B146,B146) -> 11508 | B146: 1150 | C146: ENSAYOS DE LABORATORIO Y DIAGNOSTICOS | D146: DIMCO INGENIEROS LTDA | E146: Bogotá | F146: CALLE 65 a No. 16 - 58 | G146: 3457940 | H146: dimcoingenieros@gmail.com | I146: 144
A147: =+B147&COUNTIF($B$3:B147,B147) -> 11509 | B147: 1150 | C147: ENSAYOS DE LABORATORIO Y DIAGNOSTICOS | D147: ECHEVERRY INGENIERIA Y ENSAYOS SAS | E147: Bogota | F147: Cra. 29 C 71 A 30 | G147: 3112088197 2255814 6304515 | H147: comercial@echeverryingenieria.com info@echeverryingenieria.com | I147: 145
A148: =+B148&COUNTIF($B$3:B148,B148) -> 115010 | B148: 1150 | C148: ENSAYOS DE LABORATORIO Y DIAGNOSTICOS | D148: EMPRESA DE ACUEDUCTO Y ALCANTARILLADO DE BOGOTÁ | E148: Bogotá | F148: Avenida Calle 24 No. 37 - 15 | G148: Aguas: (571) 344 7972 Suelos y Materiales: (571) 344 7000 Ext. 4148 Medidores: (571) 344 7173 Hidrología : (571) 344 7819 | H148: Aguas: leidy.silva@acueducto.com.co Medidores: acubillos@acueducto.com.co Suelos y materiales: eaperez@acueducto.com.co Hidrologia: jacopete@acueducto.com.co | I148: 146
A149: =+B149&COUNTIF($B$3:B149,B149) -> 115011 | B149: 1150 | C149: ENSAYOS DE LABORATORIO Y DIAGNOSTICOS | D149: ESCUELA COLOMBIANA DE INGENIERIA JULIO GARAVITO | E149: Bogota | F149: Autopista Norte 205 59 | G149: 6683600 Ext. 584 6763888 Ext. 228 - 324 | H149: laura.valderrama@escuelaing.edu.com | I149: 147
A150: =+B150&COUNTIF($B$3:B150,B150) -> 115012 | B150: 1150 | C150: ENSAYOS DE LABORATORIO Y DIAGNOSTICOS | D150: SUELOS Y PAVIMENTOS GREGORIO ROJAS & CIA LTDA | E150: Bogotá | F150: Calle 79 A 62 37 | G150: 2254760 | H150: laboratoriosuelosypavimentos@gmail.com | I150: 148
A151: =+B151&COUNTIF($B$3:B151,B151) -> 115013 | B151: 1150 | C151: ENSAYOS DE LABORATORIO Y DIAGNOSTICOS | D151: INGETEC | E151: Bogota | F151: Cra. 6 30 A 30 | G151: 238050 | H151: info@ingetec.com.co | I151: 149
A152: =+B152&COUNTIF($B$3:B152,B152) -> 115014 | B152: 1150 | C152: ENSAYOS DE LABORATORIO Y DIAGNOSTICOS | D152: INGENIERÍA Y GEORIESGOS IGR SAS | E152: Bogotá | F152: Carrera 19 A No. 84 - 14 Oficina 204 | G152: 6916054 | H152: igr@ingeoriesgos.com | I152: 150
A153: =+B153&COUNTIF($B$3:B153,B153) -> 115015 | B153: 1150 | C153: ENSAYOS DE LABORATORIO Y DIAGNOSTICOS | D153: JDM Ingeniería | E153: Bogotá | F153: Calle 120 50 86 | G153: 7477665 | H153: administrativa@apcsas.com | I153: 151
A154: =+B154&COUNTIF($B$3:B154,B154) -> 115016 | B154: 1150 | C154: ENSAYOS DE LABORATORIO Y DIAGNOSTICOS | D154: LABORATORIO BATEMAN INGENIERIA | E154: Bogota | F154: Cra. 20 39 65 | G154: 3204318 2459654 2325960 | H154: direcciongeneral@laboratoriobilsa.com direcciontecnica@laboratoriobilsa.com | I154: 152
A155: =+B155&COUNTIF($B$3:B155,B155) -> 115017 | B155: 1150 | C155: ENSAYOS DE LABORATORIO Y DIAGNOSTICOS | D155: LABORATORIO CONTECON URBAR | E155: Bogotá | F155: Cra. 69 Q 78 52 | G155: 7562656 | H155: comercial@contecon.com | I155: 153
A156: =+B156&COUNTIF($B$3:B156,B156) -> 115018 | B156: 1150 | C156: ENSAYOS DE LABORATORIO Y DIAGNOSTICOS | D156: LABORATORIO DEL CONCRETO (ASOCRETO) | E156: Bogota | F156: Calle 103 15 80 | G156: 6180018 | H156: asocreto@asocreto.org.co | I156: 154
A157: =+B157&COUNTIF($B$3:B157,B157) -> 115019 | B157: 1150 | C157: ENSAYOS DE LABORATORIO Y DIAGNOSTICOS | D157: MARIO HUERTAS CORTES LABORATORIO | E157: Bogota | F157: Cra. 22 A 85 20 | G157: 8772093 3219459185 6226620 | H157: mhcingenieros@mhc.com.co mhc.laboratorio@gmail.com. | I157: 155
A158: =+B158&COUNTIF($B$3:B158,B158) -> 115020 | B158: 1150 | C158: ENSAYOS DE LABORATORIO Y DIAGNOSTICOS | D158: MICROMATCO S.A.S. | E158: Bogota | F158: Cra. 23 53 D 52 Int. 101 | G158: 3002220125 7026742 | H158: info@nrbmicromatco.com | I158: 156
A159: =+B159&COUNTIF($B$3:B159,B159) -> 115021 | B159: 1150 | C159: ENSAYOS DE LABORATORIO Y DIAGNOSTICOS | D159: PERFORACIONES Y ESTUDIOS | E159: Bogotá | F159: Calle 78 A No. 64 - 40 | G159: 3002054 | H159: perforacionesyestudios@gmail.com | I159: 157
A160: =+B160&COUNTIF($B$3:B160,B160) -> 115022 | B160: 1150 | C160: ENSAYOS DE LABORATORIO Y DIAGNOSTICOS | D160: PONTIFICIA UNIVERSIDAD JAVERIANA | E160: Bogota | F160: Calle 40 5 50 Fac. de Ingenieria Ed. José Gabriel Maldonado S.J. | G160: 3208320 Ext. 5373 | H160: labcivil@javeriana.edu.co daniel.ruiz@javeriana.edu.co | I160: 158
A161: =+B161&COUNTIF($B$3:B161,B161) -> 115023 | B161: 1150 | C161: ENSAYOS DE LABORATORIO Y DIAGNOSTICOS | D161: SERINCO COLOMBIA | E161: Bogotá | F161: CALLE 163 20 17 | G161: 4673487 | H161: -- | I161: 159
A162: =+B162&COUNTIF($B$3:B162,B162) -> 115024 | B162: 1150 | C162: ENSAYOS DE LABORATORIO Y DIAGNOSTICOS | D162: SERVICIOS GEOTÉCNICOS S.A.S. | E162: Bogotá | F162: CALLE 163 7 44 | G162: 8030792 | H162: -- | I162: 160
A163: =+B163&COUNTIF($B$3:B163,B163) -> 115025 | B163: 1150 | C163: ENSAYOS DE LABORATORIO Y DIAGNOSTICOS | D163: Terratest Laboratorio de Suelos Rocas y Materiales S.A.S. | E163: Bogotá | F163: CARRERA 59 C No. 130 - 38 | G163: 8032324 | H163: comercial@terratest.com.co | I163: 161
A164: =+B164&COUNTIF($B$3:B164,B164) -> 115026 | B164: 1150 | C164: ENSAYOS DE LABORATORIO Y DIAGNOSTICOS | D164: UNIVERSIDAD DE LOS ANDES | E164: Bogota | F164: Cra. 1 E 19 A 40 Ed. Mario Laserna | G164: 3394949 Ext. 1719 - 1768 | H164: labcivil@uniandes.edu.co | I164: 162
A165: =+B165&COUNTIF($B$3:B165,B165) -> 115027 | B165: 1150 | C165: ENSAYOS DE LABORATORIO Y DIAGNOSTICOS | D165: UNIVERSIDAD DE LA SALLE | E165: Bogotá | F165: Universidad De La Salle sede chapinero | G165: 3488000 | H165: www.lasalle.edu.co/Inicio | I165: 163
A166: =+B166&COUNTIF($B$3:B166,B166) -> 115028 | B166: 1150 | C166: ENSAYOS DE LABORATORIO Y DIAGNOSTICOS | D166: UNIVERSIDAD NACIONAL DE COLOMBIA | E166: Bogota | F166: Cra. 45 26 85 | G166: 3165000 | H166: mediosdigitales@unal.edu.co | I166: 164
A167: =+B167&COUNTIF($B$3:B167,B167) -> 115029 | B167: 1150 | C167: ENSAYOS DE LABORATORIO Y DIAGNOSTICOS | D167: VARGAS E INGENIERÍA ENSAYOS S.A.S. | E167: Bogotá | F167: Carrera 11 N°48-13 Soacha | G167: 3208447795 | H167: www.vargasingenieriayensayos.com vargasingenieriayensayos@gmail.com | I167: 165
A168: =+B168&COUNTIF($B$3:B168,B168) -> 115030 | B168: 1150 | C168: ENSAYOS DE LABORATORIO Y DIAGNOSTICOS | D168: XAMTEC | E168: Bogotá | F168: Cra. 45 A # 93 - 29 | G168: 746 5384 | H168: xamtec@xamtec.com | I168: 166
A169: =+B169&COUNTIF($B$3:B169,B169) -> 11161 | B169: 1116 | C169: EQUIPO LIVIANO Y HERRAMIENTAS | D169: ACCEQUIP | E169: Bogota | F169: Cra. 28 No. 68-88 | G169: 6065463 | H169: bogota@accequip.com | I169: 167
A170: =+B170&COUNTIF($B$3:B170,B170) -> 11162 | B170: 1116 | C170: EQUIPO LIVIANO Y HERRAMIENTAS | D170: ASTROEQUIPOS S.A. | E170: Bogota | F170: Calle 75 69 K 43 | G170: 3108596 3108169758 3142513243 | H170: astroequipos@astroequipos.com vivianapaez@astroequipos.com guillermoreyes@astroequipos.com | I170: 168
A171: =+B171&COUNTIF($B$3:B171,B171) -> 11163 | B171: 1116 | C171: EQUIPO LIVIANO Y HERRAMIENTAS | D171: ASTRO MAQUINARIA LTDA - Bombeo de Fluidos | E171: Bogota | F171: Calle 140 No. 22 - 06 | G171: 6261300 | H171: info@astromaquinaria.com | I171: 169
A172: =+B172&COUNTIF($B$3:B172,B172) -> 11164 | B172: 1116 | C172: EQUIPO LIVIANO Y HERRAMIENTAS | D172: CIVALCO LTDA | E172: Bogota | F172: carrera 17 No. 36 - 38 | G172: 2853857 ext. 113 | H172: ventas@civalco.com | I172: 170
A173: =+B173&COUNTIF($B$3:B173,B173) -> 11165 | B173: 1116 | C173: EQUIPO LIVIANO Y HERRAMIENTAS | D173: CONSTRUDATA | E173: Pagina WEB | F173: N.A. | G173: N.A. | H173: www.construdata.com | I173: 171
A174: =+B174&COUNTIF($B$3:B174,B174) -> 11166 | B174: 1116 | C174: EQUIPO LIVIANO Y HERRAMIENTAS | D174: DIESCON | E174: Bogota | F174: CALLE 86 A No. 95 - 40 INT. 102 | G174: 4624033 | H174: -- | I174: 172
A175: =+B175&COUNTIF($B$3:B175,B175) -> 11167 | B175: 1116 | C175: EQUIPO LIVIANO Y HERRAMIENTAS | D175: DIMACRO EMC LTDA | E175: Bogota | F175: Cra. 66 107 56 | G175: 2717288 Ext. 1011 3114746837 | H175: ventas@dimacro.com mercadeo@dimacro.com | I175: 173
A176: =+B176&COUNTIF($B$3:B176,B176) -> 11168 | B176: 1116 | C176: EQUIPO LIVIANO Y HERRAMIENTAS | D176: EQUINORTE | E176: Siberia - Cundinamarca | F176: Parque empresarial Celta - Bodega 118 km 7 Medellin, Siberia | G176: 8966261 3215400185 | H176: cgacharna@equinorte.net | I176: 174
A177: =+B177&COUNTIF($B$3:B177,B177) -> 11169 | B177: 1116 | C177: EQUIPO LIVIANO Y HERRAMIENTAS | D177: EQUIPOS Y MOTORES SAS | E177: Bogota | F177: Carrera 120A #17d-23, Fontibon San Pablo | G177: 267 33 20 313 450 74 33 | H177: info@equiposymotoresml.com | I177: 175
A178: =+B178&COUNTIF($B$3:B178,B178) -> 111610 | B178: 1116 | C178: EQUIPO LIVIANO Y HERRAMIENTAS | D178: FERRETERIA RHINO | E178: Bogota | F178: Cra.25 15 58 | G178: 3204950158 4817222 | H178: gadministrativa@rhino.com.co | I178: 176
A179: =+B179&COUNTIF($B$3:B179,B179) -> 111611 | B179: 1116 | C179: EQUIPO LIVIANO Y HERRAMIENTAS | D179: FERRICENTROS S.A. | E179: Bogota | F179: Avda. Caracas 74 25 | G179: 6511212 2862100 | H179: jhon.bermudez@ferricentro.com callcenter02@ferricentro.com callcenter01@ferricentro.com | I179: 177
A180: =+B180&COUNTIF($B$3:B180,B180) -> 111612 | B180: 1116 | C180: EQUIPO LIVIANO Y HERRAMIENTAS | D180: GARCIA VEGA | E180: Bogota | F180: Calle 5 C 53 D-22 | G180: 4205752 Ext. 109 3176685586 | H180: ventas1@garciavegacia.com | I180: 178
A181: =+B181&COUNTIF($B$3:B181,B181) -> 111613 | B181: 1116 | C181: EQUIPO LIVIANO Y HERRAMIENTAS | D181: GECOLSA - CAT RENTAL STORE | E181: Bogota | F181: Avda. Americas 35 A 51 | G181: 4055554 Ext. 1510 3153692061 | H181: martha_rodriguez@gecolsa.com.co www.gecolsa.com.co cesar_torres@gecolsa.com.co | I181: 179
A182: =+B182&COUNTIF($B$3:B182,B182) -> 111614 | B182: 1116 | C182: EQUIPO LIVIANO Y HERRAMIENTAS | D182: HOMECENTER | E182: Bogota | F182: Avda. 68 37 37 Sur | G182: 3077115 | H182: www.homecenter.com.co | I182: 180
A183: =+B183&COUNTIF($B$3:B183,B183) -> 111615 | B183: 1116 | C183: EQUIPO LIVIANO Y HERRAMIENTAS | D183: PRONTO RENTAL | E183: Bogota | F183: Autopista Medellin Km 7 vía Siberia C E Celta B. 18-4 | G183: 8237564 | H183: asesor.renta6@gruasyequipos.com | I183: 181
A184: =+B184&COUNTIF($B$3:B184,B184) -> 111616 | B184: 1116 | C184: EQUIPO LIVIANO Y HERRAMIENTAS | D184: RENTAN SAS | E184: Antioquia/Medellín | F184: Calle 25 A 43 B 69 Piso 2 Antioquia/Medellín | G184: (4) 4449211 | H184: info@rentan.com.co | I184: 182
A185: =+B185&COUNTIF($B$3:B185,B185) -> 111617 | B185: 1116 | C185: EQUIPO LIVIANO Y HERRAMIENTAS | D185: TECNOFUEGO | E185: Bogota | F185: CALLE 104 No. 14 A - 45 OF. 402 | G185: 3158915543 | H185: restupinan@tecno-fuego.com.co | I185: 183
A186: =+B186&COUNTIF($B$3:B186,B186) -> 11151 | B186: 1115 | C186: EQUIPO PESADO | D186: ASTROEQUIPOS S.A. | E186: Bogota | F186: Calle 75 69 K 43 | G186: 3108596 3108169758 3142513243 | H186: astroequipos@astroequipos.com vivianapaez@astroequipos.com guillermoreyes@astroequipos.com | I186: 184
A187: =+B187&COUNTIF($B$3:B187,B187) -> 11152 | B187: 1115 | C187: EQUIPO PESADO | D187: B.M.G. TRANSPORTE DE AGUA POTABLE E. U. | E187: Bogota | F187: Calle 87 Bis 85 30 | G187: 3105724217 2235354 5363723 | H187: bmgaguapotable@hotmail.com | I187: 185
A188: =+B188&COUNTIF($B$3:B188,B188) -> 11153 | B188: 1115 | C188: EQUIPO PESADO | D188: CONSTRUDATA | E188: Pagina WEB | F188: N.A. | G188: N.A. | H188: www.construdata.com | I188: 186
A189: =+B189&COUNTIF($B$3:B189,B189) -> 11154 | B189: 1115 | C189: EQUIPO PESADO | D189: CONSTRUGROUP VIAL S.A.S | E189: Bogota | F189: CALLE 74 #15 80 OF 310 | G189: 321 2822 | H189: -- | I189: 187
A190: =+B190&COUNTIF($B$3:B190,B190) -> 11155 | B190: 1115 | C190: EQUIPO PESADO | D190: DIESCON | E190: Bogota | F190: CALLE 86 A No. 95 - 40 INT. 102 | G190: 4624033 | H190: -- | I190: 188
A191: =+B191&COUNTIF($B$3:B191,B191) -> 11156 | B191: 1115 | C191: EQUIPO PESADO | D191: DISEPILMEGAPRESS | E191: Cota - Cund. | F191: Autopista Medellin Km 3,5 Centro Empresarial Mertropolitano Piso 3 Of. B-21 | G191: 8233996 | H191: administracion@disepilmegapress.com | I191: 189
A192: =+B192&COUNTIF($B$3:B192,B192) -> 11157 | B192: 1115 | C192: EQUIPO PESADO | D192: EQUINORTE | E192: Bogota | F192: Parque empresarial Celta - Bodega 118 km 7 Medellin, Siberia | G192: 8966261 3215400185 | H192: cgacharna@equinorte.net | I192: 190
A193: =+B193&COUNTIF($B$3:B193,B193) -> 11158 | B193: 1115 | C193: EQUIPO PESADO | D193: EQUIPOS Y MOTORES SAS | E193: Bogota | F193: Carrera 120A #17d-23, Fontibon San Pablo | G193: 267 33 20 313 450 74 33 | H193: info@equiposymotoresml.com | I193: 191
A194: =+B194&COUNTIF($B$3:B194,B194) -> 11159 | B194: 1115 | C194: EQUIPO PESADO | D194: FENIX TORRES SAS GRUAS, EQUIPOS Y TRANSPORTES | E194: Bogota | F194: CALLE 80 KM 2 VIA SIBERIA TCB OF C-56 | G194: 8415000 | H194: -- | I194: 192
A195: =+B195&COUNTIF($B$3:B195,B195) -> 111510 | B195: 1115 | C195: EQUIPO PESADO | D195: GARCIA VEGA | E195: Bogota | F195: Calle 5 C 53 D 22 | G195: 4205752 Ext. 110 4205767 2623264 | H195: ventas1@garciavegacia.com | I195: 193
A196: =+B196&COUNTIF($B$3:B196,B196) -> 111511 | B196: 1115 | C196: EQUIPO PESADO | D196: GECOLSA - CAT RENTAL STORE | E196: Bogota | F196: Avda. Americas 35 A 51 | G196: 4055554 Ext. 1510 3153692061 | H196: martha_rodriguez@gecolsa.com.co www.gecolsa.com.co cesar_torres@gecolsa.com.co | I196: 194
A197: =+B197&COUNTIF($B$3:B197,B197) -> 111512 | B197: 1115 | C197: EQUIPO PESADO | D197: IMPRIMASCOL | E197: Bogota | F197: Avda. Ciudad de Cali 163-09 | G197: 5369666 3153309854 | H197: http://imprimascol.amawebs.com/ | I197: 195
A198: =+B198&COUNTIF($B$3:B198,B198) -> 111513 | B198: 1115 | C198: EQUIPO PESADO | D198: IMPRIMACIONES ASFALTICAS SAS - COVISCOL EU | E198: Bogota | F198: Calle 134 A 16 79 | G198: 8033097 | H198: imprimaciones@hotmail.com | I198: 196
A199: =+B199&COUNTIF($B$3:B199,B199) -> 111514 | B199: 1115 | C199: EQUIPO PESADO | D199: PLANTIDIESELES S.A.S. LTDA Soluciones Integrales de Energía | E199: Bogota | F199: Carrera 127 No. 22G - 18 Bodegas 7-8 | G199: 4185960 - 4185961 - 4185990 | H199: info@plantidieseles.com | I199: 197
A200: =+B200&COUNTIF($B$3:B200,B200) -> 111515 | B200: 1115 | C200: EQUIPO PESADO | D200: PRONTO RENTAL | E200: Bogota | F200: Autopista Medellin Km 7 vía Siberia C E Celta B. 18-4 | G200: 8237564 | H200: asesor.renta6@gruasyequipos.com | I200: 198
A201: =+B201&COUNTIF($B$3:B201,B201) -> 111516 | B201: 1115 | C201: EQUIPO PESADO | D201: RENTAN SAS | E201: Antioquia/Medellín | F201: Calle 25 A 43 B 69 Piso 2 Antioquia/Medellín | G201: (4) 4449211 | H201: info@rentan.com.co | I201: 199
... 484 more rows

Sheet Accesorios HD para Acueducto
A9: 1114 | B9: 1114 | C9: =VLOOKUP(B9,'LISTA TOTAL PROVEEDORES'!B3:C9968,2,FALSE) -> ACCESORIOS HD PARA REDES DE ACUEDUCTO | H9: =+COUNTIF('LISTA TOTAL PROVEEDORES'!B3:B9968,B9) -> 13
B12: No. | C12: NOMBRE COMPLETO | D12: UBICACIÓN | E12: DIRECCION | F12: TELEFONO | G12: CORREO ELECTRONICO
B13: =VLOOKUP($B$9&H13,'LISTA TOTAL PROVEEDORES'!$A$3:$I$9968,9,FALSE) -> 1 | C13: =VLOOKUP($B$9&H13,'LISTA TOTAL PROVEEDORES'!$A$3:$I$9968,4,FALSE) -> APOLO AVA | D13: =VLOOKUP($B$9&H13,'LISTA TOTAL PROVEEDORES'!$A$3:$I$9968,5,FALSE) -> Bogotá | E13: =VLOOKUP($B$9&H13,'LISTA TOTAL PROVEEDORES'!$A$3:$I$9968,6,FALSE) -> Cra. 27 No. 17-74, Paloquemao | F13: =VLOOKUP($B$9&H13,'LISTA TOTAL PROVEEDORES'!$A$3:$I$9968,7,FALSE) -> 360 70 53 360 70 23 | G13: =VLOOKUP($B$9&H13,'LISTA TOTAL PROVEEDORES'!$A$3:$I$9968,8,FALSE) -> apolo.bogota@apolo.net.co | H13: 1
B14: =VLOOKUP($B$9&H14,'LISTA TOTAL PROVEEDORES'!$A$3:$I$9968,9,FALSE) -> 2 | C14: =VLOOKUP($B$9&H14,'LISTA TOTAL PROVEEDORES'!$A$3:$I$9968,4,FALSE) -> BARNES DE COLOMBIA S.A. | D14: =VLOOKUP($B$9&H14,'LISTA TOTAL PROVEEDORES'!$A$3:$I$9968,5,FALSE) -> Funza, Cundinamarca | E14: =VLOOKUP($B$9&H14,'LISTA TOTAL PROVEEDORES'!$A$3:$I$9968,6,FALSE) -> Celta Trade Park - Bodegas 86 y 93 Autopista Bogota Medellin Km 7 Costado Occidental Antes de Peaje de Siberia. | F14: =VLOOKUP($B$9&H14,'LISTA TOTAL PROVEEDORES'!$A$3:$I$9968,7,FALSE) -> 743 9090 ext 8311-8312-8403-8402-8502 | G14: =VLOOKUP($B$9&H14,'LISTA TOTAL PROVEEDORES'!$A$3:$I$9968,8,FALSE) -> distribucion@barnes.com.co industria@barnes.com.co construccion@barnes.com.co exportaciones@barnes.com.co | H14: =+IF(H13<$H$9,H13+1,"ERROR") -> 2
B15: =VLOOKUP($B$9&H15,'LISTA TOTAL PROVEEDORES'!$A$3:$I$9968,9,FALSE) -> 3 | C15: =VLOOKUP($B$9&H15,'LISTA TOTAL PROVEEDORES'!$A$3:$I$9968,4,FALSE) -> COVAL COMERCIAL S. A. | D15: =VLOOKUP($B$9&H15,'LISTA TOTAL PROVEEDORES'!$A$3:$I$9968,5,FALSE) -> Bogota | E15: =VLOOKUP($B$9&H15,'LISTA TOTAL PROVEEDORES'!$A$3:$I$9968,6,FALSE) -> Avda. Ciudad de Cali 5 A 92 Sur | F15: =VLOOKUP($B$9&H15,'LISTA TOTAL PROVEEDORES'!$A$3:$I$9968,7,FALSE) -> 3152358446 8759100 Ext. 144 - 145 7454671 | G15: =VLOOKUP($B$9&H15,'LISTA TOTAL PROVEEDORES'!$A$3:$I$9968,8,FALSE) -> info@coval.com.co | H15: =+IF(H14<$H$9,H14+1,"ERROR") -> 3
B16: =VLOOKUP($B$9&H16,'LISTA TOTAL PROVEEDORES'!$A$3:$I$9968,9,FALSE) -> 4 | C16: =VLOOKUP($B$9&H16,'LISTA TOTAL PROVEEDORES'!$A$3:$I$9968,4,FALSE) -> DURMAN COLOMBIA S.A. | D16: =VLOOKUP($B$9&H16,'LISTA TOTAL PROVEEDORES'!$A$3:$I$9968,5,FALSE) -> Madrid - Cund. | E16: =VLOOKUP($B$9&H16,'LISTA TOTAL PROVEEDORES'!$A$3:$I$9968,6,FALSE) -> Km 27 Vía Fontibon Facatativa Los Alpes | F16: =VLOOKUP($B$9&H16,'LISTA TOTAL PROVEEDORES'!$A$3:$I$9968,7,FALSE) -> 8200200 | G16: =VLOOKUP($B$9&H16,'LISTA TOTAL PROVEEDORES'!$A$3:$I$9968,8,FALSE) -> colombia@durman.com | H16: 4
B17: =VLOOKUP($B$9&H17,'LISTA TOTAL PROVEEDORES'!$A$3:$I$9968,9,FALSE) -> 5 | C17: =VLOOKUP($B$9&H17,'LISTA TOTAL PROVEEDORES'!$A$3:$I$9968,4,FALSE) -> EASY | D17: =VLOOKUP($B$9&H17,'LISTA TOTAL PROVEEDORES'!$A$3:$I$9968,5,FALSE) -> Bogota | E17: =VLOOKUP($B$9&H17,'LISTA TOTAL PROVEEDORES'!$A$3:$I$9968,6,FALSE) -> Avda. Americas 68 94 | F17: =VLOOKUP($B$9&H17,'LISTA TOTAL PROVEEDORES'!$A$3:$I$9968,7,FALSE) -> 4191400 | G17: =VLOOKUP($B$9&H17,'LISTA TOTAL PROVEEDORES'!$A$3:$I$9968,8,FALSE) -> www.easy.com.co | H17: 5
B18: =VLOOKUP($B$9&H18,'LISTA TOTAL PROVEEDORES'!$A$3:$I$9968,9,FALSE) -> 6 | C18: =VLOOKUP($B$9&H18,'LISTA TOTAL PROVEEDORES'!$A$3:$I$9968,4,FALSE) -> GRIVAL SA | D18: =VLOOKUP($B$9&H18,'LISTA TOTAL PROVEEDORES'!$A$3:$I$9968,5,FALSE) -> Bogotá | E18: =VLOOKUP($B$9&H18,'LISTA TOTAL PROVEEDORES'!$A$3:$I$9968,6,FALSE) -> Av. Carrera 45 No. 149-09 Mazuren | F18: =VLOOKUP($B$9&H18,'LISTA TOTAL PROVEEDORES'!$A$3:$I$9968,7,FALSE) -> 6140241 3138697904 | G18: =VLOOKUP($B$9&H18,'LISTA TOTAL PROVEEDORES'!$A$3:$I$9968,8,FALSE) -> contactenoscorona@corona.com.co | H18: 6
B19: =VLOOKUP($B$9&H19,'LISTA TOTAL PROVEEDORES'!$A$3:$I$9968,9,FALSE) -> 7 | C19: =VLOOKUP($B$9&H19,'LISTA TOTAL PROVEEDORES'!$A$3:$I$9968,4,FALSE) -> HELBERT Y CIA | D19: =VLOOKUP($B$9&H19,'LISTA TOTAL PROVEEDORES'!$A$3:$I$9968,5,FALSE) -> Bogota | E19: =VLOOKUP($B$9&H19,'LISTA TOTAL PROVEEDORES'!$A$3:$I$9968,6,FALSE) -> Av Cr 40 # 20 - 73 | F19: =VLOOKUP($B$9&H19,'LISTA TOTAL PROVEEDORES'!$A$3:$I$9968,7,FALSE) -> 368 10 77 | G19: =VLOOKUP($B$9&H19,'LISTA TOTAL PROVEEDORES'!$A$3:$I$9968,8,FALSE) -> ventas@helbertycia.com | H19: 7
B20: =VLOOKUP($B$9&H20,'LISTA TOTAL PROVEEDORES'!$A$3:$I$9968,9,FALSE) -> 8 | C20: =VLOOKUP($B$9&H20,'LISTA TOTAL PROVEEDORES'!$A$3:$I$9968,4,FALSE) -> HIDROEQUIPO | D20: =VLOOKUP($B$9&H20,'LISTA TOTAL PROVEEDORES'!$A$3:$I$9968,5,FALSE) -> Cali - Valle | E20: =VLOOKUP($B$9&H20,'LISTA TOTAL PROVEEDORES'!$A$3:$I$9968,6,FALSE) -> Av. 3 Bis Norte No. 23 CN-35 | F20: =VLOOKUP($B$9&H20,'LISTA TOTAL PROVEEDORES'!$A$3:$I$9968,7,FALSE) -> 653 0033 315 471 8248 | G20: =VLOOKUP($B$9&H20,'LISTA TOTAL PROVEEDORES'!$A$3:$I$9968,8,FALSE) -> info@hidroequipos.com.co | H20: 8
B21: =VLOOKUP($B$9&H21,'LISTA TOTAL PROVEEDORES'!$A$3:$I$9968,9,FALSE) -> 9 | C21: =VLOOKUP($B$9&H21,'LISTA TOTAL PROVEEDORES'!$A$3:$I$9968,4,FALSE) -> HOMECENTER | D21: =VLOOKUP($B$9&H21,'LISTA TOTAL PROVEEDORES'!$A$3:$I$9968,5,FALSE) -> Bogota | E21: =VLOOKUP($B$9&H21,'LISTA TOTAL PROVEEDORES'!$A$3:$I$9968,6,FALSE) -> Avda. 68 37 37 Sur | F21: =VLOOKUP($B$9&H21,'LISTA TOTAL PROVEEDORES'!$A$3:$I$9968,7,FALSE) -> 3077115 | G21: =VLOOKUP($B$9&H21,'LISTA TOTAL PROVEEDORES'!$A$3:$I$9968,8,FALSE) -> www.homecenter.com.co | H21: 9
B22: =VLOOKUP($B$9&H22,'LISTA TOTAL PROVEEDORES'!$A$3:$I$9968,9,FALSE) -> 10 | C22: =VLOOKUP($B$9&H22,'LISTA TOTAL PROVEEDORES'!$A$3:$I$9968,4,FALSE) -> METACOL Soluciones integrales en ingeniería y fundición | D22: =VLOOKUP($B$9&H22,'LISTA TOTAL PROVEEDORES'!$A$3:$I$9968,5,FALSE) -> Bogota | E22: =VLOOKUP($B$9&H22,'LISTA TOTAL PROVEEDORES'!$A$3:$I$9968,6,FALSE) -> Diagonal 34 Bis 17 58 | F22: =VLOOKUP($B$9&H22,'LISTA TOTAL PROVEEDORES'!$A$3:$I$9968,7,FALSE) -> 5116262 Ext. 211 | G22: =VLOOKUP($B$9&H22,'LISTA TOTAL PROVEEDORES'!$A$3:$I$9968,8,FALSE) -> mercadeo@metacol.com | H22: 10
B23: =VLOOKUP($B$9&H23,'LISTA TOTAL PROVEEDORES'!$A$3:$I$9968,9,FALSE) -> 11 | C23: =VLOOKUP($B$9&H23,'LISTA TOTAL PROVEEDORES'!$A$3:$I$9968,4,FALSE) -> PCP | D23: =VLOOKUP($B$9&H23,'LISTA TOTAL PROVEEDORES'!$A$3:$I$9968,5,FALSE) -> Bogotá | E23: =VLOOKUP($B$9&H23,'LISTA TOTAL PROVEEDORES'!$A$3:$I$9968,6,FALSE) -> Carrera 20 No. 16 – 25 | F23: =VLOOKUP($B$9&H23,'LISTA TOTAL PROVEEDORES'!$A$3:$I$9968,7,FALSE) -> 7428373 Ext. 200 | G23: =VLOOKUP($B$9&H23,'LISTA TOTAL PROVEEDORES'!$A$3:$I$9968,8,FALSE) -> servicioalcliente@pcpplasticos.com | H23: 11
B24: =VLOOKUP($B$9&H24,'LISTA TOTAL PROVEEDORES'!$A$3:$I$9968,9,FALSE) -> 12 | C24: =VLOOKUP($B$9&H24,'LISTA TOTAL PROVEEDORES'!$A$3:$I$9968,4,FALSE) -> TUBOS COLMENA | D24: =VLOOKUP($B$9&H24,'LISTA TOTAL PROVEEDORES'!$A$3:$I$9968,5,FALSE) -> Bogota | E24: =VLOOKUP($B$9&H24,'LISTA TOTAL PROVEEDORES'!$A$3:$I$9968,6,FALSE) -> Calle 45 A Sur # 60-57 | F24: =VLOOKUP($B$9&H24,'LISTA TOTAL PROVEEDORES'!$A$3:$I$9968,7,FALSE) -> 7280211 | G24: =VLOOKUP($B$9&H24,'LISTA TOTAL PROVEEDORES'!$A$3:$I$9968,8,FALSE) -> servicioalcliente@tuboscolmena.com www.tuboscolmena.com | H24: 12
B25: =VLOOKUP($B$9&H25,'LISTA TOTAL PROVEEDORES'!$A$3:$I$9968,9,FALSE) -> 13 | C25: =VLOOKUP($B$9&H25,'LISTA TOTAL PROVEEDORES'!$A$3:$I$9968,4,FALSE) -> TUVALREP SAS | D25: =VLOOKUP($B$9&H25,'LISTA TOTAL PROVEEDORES'!$A$3:$I$9968,5,FALSE) -> Bogotá | E25: =VLOOKUP($B$9&H25,'LISTA TOTAL PROVEEDORES'!$A$3:$I$9968,6,FALSE) -> Av. Calle 13 No. 22-72 | F25: =VLOOKUP($B$9&H25,'LISTA TOTAL PROVEEDORES'!$A$3:$I$9968,7,FALSE) -> 2015415 3713386 | G25: =VLOOKUP($B$9&H25,'LISTA TOTAL PROVEEDORES'!$A$3:$I$9968,8,FALSE) -> tuvalrep@tuvalrep.com.co | H25: 13
B26: =VLOOKUP($B$9&H26,'LISTA TOTAL PROVEEDORES'!$A$3:$I$9968,9,FALSE) ->  | C26: =VLOOKUP($B$9&H26,'LISTA TOTAL PROVEEDORES'!$A$3:$I$9968,4,FALSE) ->  | D26: =VLOOKUP($B$9&H26,'LISTA TOTAL PROVEEDORES'!$A$3:$I$9968,5,FALSE) ->  | E26: =VLOOKUP($B$9&H26,'LISTA TOTAL PROVEEDORES'!$A$3:$I$9968,6,FALSE) ->  | F26: =VLOOKUP($B$9&H26,'LISTA TOTAL PROVEEDORES'!$A$3:$I$9968,7,FALSE) ->  | G26: =VLOOKUP($B$9&H26,'LISTA TOTAL PROVEEDORES'!$A$3:$I$9968,8,FALSE) ->  | H26: ERROR
B27: =VLOOKUP($B$9&H27,'LISTA TOTAL PROVEEDORES'!$A$3:$I$9968,9,FALSE) ->  | C27: =VLOOKUP($B$9&H27,'LISTA TOTAL PROVEEDORES'!$A$3:$I$9968,4,FALSE) ->  | D27: =VLOOKUP($B$9&H27,'LISTA TOTAL PROVEEDORES'!$A$3:$I$9968,5,FALSE) ->  | E27: =VLOOKUP($B$9&H27,'LISTA TOTAL PROVEEDORES'!$A$3:$I$9968,6,FALSE) ->  | F27: =VLOOKUP($B$9&H27,'LISTA TOTAL PROVEEDORES'!$A$3:$I$9968,7,FALSE) ->  | G27: =VLOOKUP($B$9&H27,'LISTA TOTAL PROVEEDORES'!$A$3:$I$9968,8,FALSE) ->  | H27: ERROR
B28: =VLOOKUP($B$9&H28,'LISTA TOTAL PROVEEDORES'!$A$3:$I$9968,9,FALSE) ->  | C28: =VLOOKUP($B$9&H28,'LISTA TOTAL PROVEEDORES'!$A$3:$I$9968,4,FALSE) ->  | D28: =VLOOKUP($B$9&H28,'LISTA TOTAL PROVEEDORES'!$A$3:$I$9968,5,FALSE) ->  | E28: =VLOOKUP($B$9&H28,'LISTA TOTAL PROVEEDORES'!$A$3:$I$9968,6,FALSE) ->  | F28: =VLOOKUP($B$9&H28,'LISTA TOTAL PROVEEDORES'!$A$3:$I$9968,7,FALSE) ->  | G28: =VLOOKUP($B$9&H28,'LISTA TOTAL PROVEEDORES'!$A$3:$I$9968,8,FALSE) ->  | H28: ERROR
B29: =VLOOKUP($B$9&H29,'LISTA TOTAL PROVEEDORES'!$A$3:$I$9968,9,FALSE) ->  | C29: =VLOOKUP($B$9&H29,'LISTA TOTAL PROVEEDORES'!$A$3:$I$9968,4,FALSE) ->  | D29: =VLOOKUP($B$9&H29,'LISTA TOTAL PROVEEDORES'!$A$3:$I$9968,5,FALSE) ->  | E29: =VLOOKUP($B$9&H29,'LISTA TOTAL PROVEEDORES'!$A$3:$I$9968,6,FALSE) ->  | F29: =VLOOKUP($B$9&H29,'LISTA TOTAL PROVEEDORES'!$A$3:$I$9968,7,FALSE) ->  | G29: =VLOOKUP($B$9&H29,'LISTA TOTAL PROVEEDORES'!$A$3:$I$9968,8,FALSE) ->  | H29: ERROR
B30: =VLOOKUP($B$9&H30,'LISTA TOTAL PROVEEDORES'!$A$3:$I$9968,9,FALSE) ->  | C30: =VLOOKUP($B$9&H30,'LISTA TOTAL PROVEEDORES'!$A$3:$I$9968,4,FALSE) ->  | D30: =VLOOKUP($B$9&H30,'LISTA TOTAL PROVEEDORES'!$A$3:$I$9968,5,FALSE) ->  | E30: =VLOOKUP($B$9&H30,'LISTA TOTAL PROVEEDORES'!$A$3:$I$9968,6,FALSE) ->  | F30: =VLOOKUP($B$9&H30,'LISTA TOTAL PROVEEDORES'!$A$3:$I$9968,7,FALSE) ->  | G30: =VLOOKUP($B$9&H30,'LISTA TOTAL PROVEEDORES'!$A$3:$I$9968,8,FALSE) ->  | H30: ERROR
B31: =VLOOKUP($B$9&H31,'LISTA TOTAL PROVEEDORES'!$A$3:$I$9968,9,FALSE) ->  | C31: =VLOOKUP($B$9&H31,'LISTA TOTAL PROVEEDORES'!$A$3:$I$9968,4,FALSE) ->  | D31: =VLOOKUP($B$9&H31,'LISTA TOTAL PROVEEDORES'!$A$3:$I$9968,5,FALSE) ->  | E31: =VLOOKUP($B$9&H31,'LISTA TOTAL PROVEEDORES'!$A$3:$I$9968,6,FALSE) ->  | F31: =VLOOKUP($B$9&H31,'LISTA TOTAL PROVEEDORES'!$A$3:$I$9968,7,FALSE) ->  | G31: =VLOOKUP($B$9&H31,'LISTA TOTAL PROVEEDORES'!$A$3:$I$9968,8,FALSE) ->  | H31: ERROR
B32: =VLOOKUP($B$9&H32,'LISTA TOTAL PROVEEDORES'!$A$3:$I$9968,9,FALSE) ->  | C32: =VLOOKUP($B$9&H32,'LISTA TOTAL PROVEEDORES'!$A$3:$I$9968,4,FALSE) ->  | D32: =VLOOKUP($B$9&H32,'LISTA TOTAL PROVEEDORES'!$A$3:$I$9968,5,FALSE) ->  | E32: =VLOOKUP($B$9&H32,'LISTA TOTAL PROVEEDORES'!$A$3:$I$9968,6,FALSE) ->  | F32: =VLOOKUP($B$9&H32,'LISTA TOTAL PROVEEDORES'!$A$3:$I$9968,7,FALSE) ->  | G32: =VLOOKUP($B$9&H32,'LISTA TOTAL PROVEEDORES'!$A$3:$I$9968,8,FALSE) ->  | H32: ERROR
B33: =VLOOKUP($B$9&H33,'LISTA TOTAL PROVEEDORES'!$A$3:$I$9968,9,FALSE) ->  | C33: =VLOOKUP($B$9&H33,'LISTA TOTAL PROVEEDORES'!$A$3:$I$9968,4,FALSE) ->  | D33: =VLOOKUP($B$9&H33,'LISTA TOTAL PROVEEDORES'!$A$3:$I$9968,5,FALSE) ->  | E33: =VLOOKUP($B$9&H33,'LISTA TOTAL PROVEEDORES'!$A$3:$I$9968,6,FALSE) ->  | F33: =VLOOKUP($B$9&H33,'LISTA TOTAL PROVEEDORES'!$A$3:$I$9968,7,FALSE) ->  | G33: =VLOOKUP($B$9&H33,'LISTA TOTAL PROVEEDORES'!$A$3:$I$9968,8,FALSE) ->  | H33: ERROR
B34: =VLOOKUP($B$9&H34,'LISTA TOTAL PROVEEDORES'!$A$3:$I$9968,9,FALSE) ->  | C34: =VLOOKUP($B$9&H34,'LISTA TOTAL PROVEEDORES'!$A$3:$I$9968,4,FALSE) ->  | D34: =VLOOKUP($B$9&H34,'LISTA TOTAL PROVEEDORES'!$A$3:$I$9968,5,FALSE) ->  | E34: =VLOOKUP($B$9&H34,'LISTA TOTAL PROVEEDORES'!$A$3:$I$9968,6,FALSE) ->  | F34: =VLOOKUP($B$9&H34,'LISTA TOTAL PROVEEDORES'!$A$3:$I$9968,7,FALSE) ->  | G34: =VLOOKUP($B$9&H34,'LISTA TOTAL PROVEEDORES'!$A$3:$I$9968,8,FALSE) ->  | H34: ERROR
B35: =VLOOKUP($B$9&H35,'LISTA TOTAL PROVEEDORES'!$A$3:$I$9968,9,FALSE) ->  | C35: =VLOOKUP($B$9&H35,'LISTA TOTAL PROVEEDORES'!$A$3:$I$9968,4,FALSE) ->  | D35: =VLOOKUP($B$9&H35,'LISTA TOTAL PROVEEDORES'!$A$3:$I$9968,5,FALSE) ->  | E35: =VLOOKUP($B$9&H35,'LISTA TOTAL PROVEEDORES'!$A$3:$I$9968,6,FALSE) ->  | F35: =VLOOKUP($B$9&H35,'LISTA TOTAL PROVEEDORES'!$A$3:$I$9968,7,FALSE) ->  | G35: =VLOOKUP($B$9&H35,'LISTA TOTAL PROVEEDORES'!$A$3:$I$9968,8,FALSE) ->  | H35: ERROR
B36: =VLOOKUP($B$9&H36,'LISTA TOTAL PROVEEDORES'!$A$3:$I$9968,9,FALSE) ->  | C36: =VLOOKUP($B$9&H36,'LISTA TOTAL PROVEEDORES'!$A$3:$I$9968,4,FALSE) ->  | D36: =VLOOKUP($B$9&H36,'LISTA TOTAL PROVEEDORES'!$A$3:$I$9968,5,FALSE) ->  | E36: =VLOOKUP($B$9&H36,'LISTA TOTAL PROVEEDORES'!$A$3:$I$9968,6,FALSE) ->  | F36: =VLOOKUP($B$9&H36,'LISTA TOTAL PROVEEDORES'!$A$3:$I$9968,7,FALSE) ->  | G36: =VLOOKUP($B$9&H36,'LISTA TOTAL PROVEEDORES'!$A$3:$I$9968,8,FALSE) ->  | H36: ERROR
B37: =VLOOKUP($B$9&H37,'LISTA TOTAL PROVEEDORES'!$A$3:$I$9968,9,FALSE) ->  | C37: =VLOOKUP($B$9&H37,'LISTA TOTAL PROVEEDORES'!$A$3:$I$9968,4,FALSE) ->  | D37: =VLOOKUP($B$9&H37,'LISTA TOTAL PROVEEDORES'!$A$3:$I$9968,5,FALSE) ->  | E37: =VLOOKUP($B$9&H37,'LISTA TOTAL PROVEEDORES'!$A$3:$I$9968,6,FALSE) ->  | F37: =VLOOKUP($B$9&H37,'LISTA TOTAL PROVEEDORES'!$A$3:$I$9968,7,FALSE) ->  | G37: =VLOOKUP($B$9&H37,'LISTA TOTAL PROVEEDORES'!$A$3:$I$9968,8,FALSE) ->  | H37: ERROR
B38: =VLOOKUP($B$9&H38,'LISTA TOTAL PROVEEDORES'!$A$3:$I$9968,9,FALSE) ->  | C38: =VLOOKUP($B$9&H38,'LISTA TOTAL PROVEEDORES'!$A$3:$I$9968,4,FALSE) ->  | D38: =VLOOKUP($B$9&H38,'LISTA TOTAL PROVEEDORES'!$A$3:$I$9968,5,FALSE) ->  | E38: =VLOOKUP($B$9&H38,'LISTA TOTAL PROVEEDORES'!$A$3:$I$9968,6,FALSE) ->  | F38: =VLOOKUP($B$9&H38,'LISTA TOTAL PROVEEDORES'!$A$3:$I$9968,7,FALSE) ->  | G38: =VLOOKUP($B$9&H38,'LISTA TOTAL PROVEEDORES'!$A$3:$I$9968,8,FALSE) ->  | H38: ERROR
B39: =VLOOKUP($B$9&H39,'LISTA TOTAL PROVEEDORES'!$A$3:$I$9968,9,FALSE) ->  | C39: =VLOOKUP($B$9&H39,'LISTA TOTAL PROVEEDORES'!$A$3:$I$9968,4,FALSE) ->  | D39: =VLOOKUP($B$9&H39,'LISTA TOTAL PROVEEDORES'!$A$3:$I$9968,5,FALSE) ->  | E39: =VLOOKUP($B$9&H39,'LISTA TOTAL PROVEEDORES'!$A$3:$I$9968,6,FALSE) ->  | F39: =VLOOKUP($B$9&H39,'LISTA TOTAL PROVEEDORES'!$A$3:$I$9968,7,FALSE) ->  | G39: =VLOOKUP($B$9&H39,'LISTA TOTAL PROVEEDORES'!$A$3:$I$9968,8,FALSE) ->  | H39: ERROR
B40: =VLOOKUP($B$9&H40,'LISTA TOTAL PROVEEDORES'!$A$3:$I$9968,9,FALSE) ->  | C40: =VLOOKUP($B$9&H40,'LISTA TOTAL PROVEEDORES'!$A$3:$I$9968,4,FALSE) ->  | D40: =VLOOKUP($B$9&H40,'LISTA TOTAL PROVEEDORES'!$A$3:$I$9968,5,FALSE) ->  | E40: =VLOOKUP($B$9&H40,'LISTA TOTAL PROVEEDORES'!$A$3:$I$9968,6,FALSE) ->  | F40: =VLOOKUP($B$9&H40,'LISTA TOTAL PROVEEDORES'!$A$3:$I$9968,7,FALSE) ->  | G40: =VLOOKUP($B$9&H40,'LISTA TOTAL PROVEEDORES'!$A$3:$I$9968,8,FALSE) ->  | H40: ERROR
B41: =VLOOKUP($B$9&H41,'LISTA TOTAL PROVEEDORES'!$A$3:$I$9968,9,FALSE) ->  | C41: =VLOOKUP($B$9&H41,'LISTA TOTAL PROVEEDORES'!$A$3:$I$9968,4,FALSE) ->  | D41: =VLOOKUP($B$9&H41,'LISTA TOTAL PROVEEDORES'!$A$3:$I$9968,5,FALSE) ->  | E41: =VLOOKUP($B$9&H41,'LISTA TOTAL PROVEEDORES'!$A$3:$I$9968,6,FALSE) ->  | F41: =VLOOKUP($B$9&H41,'LISTA TOTAL PROVEEDORES'!$A$3:$I$9968,7,FALSE) ->  | G41: =VLOOKUP($B$9&H41,'LISTA TOTAL PROVEEDORES'!$A$3:$I$9968,8,FALSE) ->  | H41: ERROR
B42: =VLOOKUP($B$9&H42,'LISTA TOTAL PROVEEDORES'!$A$3:$I$9968,9,FALSE) ->  | C42: =VLOOKUP($B$9&H42,'LISTA TOTAL PROVEEDORES'!$A$3:$I$9968,4,FALSE) ->  | D42: =VLOOKUP($B$9&H42,'LISTA TOTAL PROVEEDORES'!$A$3:$I$9968,5,FALSE) ->  | E42: =VLOOKUP($B$9&H42,'LISTA TOTAL PROVEEDORES'!$A$3:$I$9968,6,FALSE) ->  | F42: =VLOOKUP($B$9&H42,'LISTA TOTAL PROVEEDORES'!$A$3:$I$9968,7,FALSE) ->  | G42: =VLOOKUP($B$9&H42,'LISTA TOTAL PROVEEDORES'!$A$3:$I$9968,8,FALSE) ->  | H42: ERROR
B43: =VLOOKUP($B$9&H43,'LISTA TOTAL PROVEEDORES'!$A$3:$I$9968,9,FALSE) ->  | C43: =VLOOKUP($B$9&H43,'LISTA TOTAL PROVEEDORES'!$A$3:$I$9968,4,FALSE) ->  | D43: =VLOOKUP($B$9&H43,'LISTA TOTAL PROVEEDORES'!$A$3:$I$9968,5,FALSE) ->  | E43: =VLOOKUP($B$9&H43,'LISTA TOTAL PROVEEDORES'!$A$3:$I$9968,6,FALSE) ->  | F43: =VLOOKUP($B$9&H43,'LISTA TOTAL PROVEEDORES'!$A$3:$I$9968,7,FALSE) ->  | G43: =VLOOKUP($B$9&H43,'LISTA TOTAL PROVEEDORES'!$A$3:$I$9968,8,FALSE) ->  | H43: ERROR
B44: =VLOOKUP($B$9&H44,'LISTA TOTAL PROVEEDORES'!$A$3:$I$9968,9,FALSE) ->  | C44: =VLOOKUP($B$9&H44,'LISTA TOTAL PROVEEDORES'!$A$3:$I$9968,4,FALSE) ->  | D44: =VLOOKUP($B$9&H44,'LISTA TOTAL PROVEEDORES'!$A$3:$I$9968,5,FALSE) ->  | E44: =VLOOKUP($B$9&H44,'LISTA TOTAL PROVEEDORES'!$A$3:$I$9968,6,FALSE) ->  | F44: =VLOOKUP($B$9&H44,'LISTA TOTAL PROVEEDORES'!$A$3:$I$9968,7,FALSE) ->  | G44: =VLOOKUP($B$9&H44,'LISTA TOTAL PROVEEDORES'!$A$3:$I$9968,8,FALSE) ->  | H44: ERROR
B45: =VLOOKUP($B$9&H45,'LISTA TOTAL PROVEEDORES'!$A$3:$I$9968,9,FALSE) ->  | C45: =VLOOKUP($B$9&H45,'LISTA TOTAL PROVEEDORES'!$A$3:$I$9968,4,FALSE) ->  | D45: =VLOOKUP($B$9&H45,'LISTA TOTAL PROVEEDORES'!$A$3:$I$9968,5,FALSE) ->  | E45: =VLOOKUP($B$9&H45,'LISTA TOTAL PROVEEDORES'!$A$3:$I$9968,6,FALSE) ->  | F45: =VLOOKUP($B$9&H45,'LISTA TOTAL PROVEEDORES'!$A$3:$I$9968,7,FALSE) ->  | G45: =VLOOKUP($B$9&H45,'LISTA TOTAL PROVEEDORES'!$A$3:$I$9968,8,FALSE) ->  | H45: ERROR
B46: =VLOOKUP($B$9&H46,'LISTA TOTAL PROVEEDORES'!$A$3:$I$9968,9,FALSE) ->  | C46: =VLOOKUP($B$9&H46,'LISTA TOTAL PROVEEDORES'!$A$3:$I$9968,4,FALSE) ->  | D46: =VLOOKUP($B$9&H46,'LISTA TOTAL PROVEEDORES'!$A$3:$I$9968,5,FALSE) ->  | E46: =VLOOKUP($B$9&H46,'LISTA TOTAL PROVEEDORES'!$A$3:$I$9968,6,FALSE) ->  | F46: =VLOOKUP($B$9&H46,'LISTA TOTAL PROVEEDORES'!$A$3:$I$9968,7,FALSE) ->  | G46: =VLOOKUP($B$9&H46,'LISTA TOTAL PROVEEDORES'!$A$3:$I$9968,8,FALSE) ->  | H46: ERROR
B47: =VLOOKUP($B$9&H47,'LISTA TOTAL PROVEEDORES'!$A$3:$I$9968,9,FALSE) ->  | C47: =VLOOKUP($B$9&H47,'LISTA TOTAL PROVEEDORES'!$A$3:$I$9968,4,FALSE) ->  | D47: =VLOOKUP($B$9&H47,'LISTA TOTAL PROVEEDORES'!$A$3:$I$9968,5,FALSE) ->  | E47: =VLOOKUP($B$9&H47,'LISTA TOTAL PROVEEDORES'!$A$3:$I$9968,6,FALSE) ->  | F47: =VLOOKUP($B$9&H47,'LISTA TOTAL PROVEEDORES'!$A$3:$I$9968,7,FALSE) ->  | G47: =VLOOKUP($B$9&H47,'LISTA TOTAL PROVEEDORES'!$A$3:$I$9968,8,FALSE) ->  | H47: ERROR
B48: =VLOOKUP($B$9&H48,'LISTA TOTAL PROVEEDORES'!$A$3:$I$9968,9,FALSE) ->  | C48: =VLOOKUP($B$9&H48,'LISTA TOTAL PROVEEDORES'!$A$3:$I$9968,4,FALSE) ->  | D48: =VLOOKUP($B$9&H48,'LISTA TOTAL PROVEEDORES'!$A$3:$I$9968,5,FALSE) ->  | E48: =VLOOKUP($B$9&H48,'LISTA TOTAL PROVEEDORES'!$A$3:$I$9968,6,FALSE) ->  | F48: =VLOOKUP($B$9&H48,'LISTA TOTAL PROVEEDORES'!$A$3:$I$9968,7,FALSE) ->  | G48: =VLOOKUP($B$9&H48,'LISTA TOTAL PROVEEDORES'!$A$3:$I$9968,8,FALSE) ->  | H48: ERROR
B49: =VLOOKUP($B$9&H49,'LISTA TOTAL PROVEEDORES'!$A$3:$I$9968,9,FALSE) ->  | C49: =VLOOKUP($B$9&H49,'LISTA TOTAL PROVEEDORES'!$A$3:$I$9968,4,FALSE) ->  | D49: =VLOOKUP($B$9&H49,'LISTA TOTAL PROVEEDORES'!$A$3:$I$9968,5,FALSE) ->  | E49: =VLOOKUP($B$9&H49,'LISTA TOTAL PROVEEDORES'!$A$3:$I$9968,6,FALSE) ->  | F49: =VLOOKUP($B$9&H49,'LISTA TOTAL PROVEEDORES'!$A$3:$I$9968,7,FALSE) ->  | G49: =VLOOKUP($B$9&H49,'LISTA TOTAL PROVEEDORES'!$A$3:$I$9968,8,FALSE) ->  | H49: ERROR
B50: =VLOOKUP($B$9&H50,'LISTA TOTAL PROVEEDORES'!$A$3:$I$9968,9,FALSE) ->  | C50: =VLOOKUP($B$9&H50,'LISTA TOTAL PROVEEDORES'!$A$3:$I$9968,4,FALSE) ->  | D50: =VLOOKUP($B$9&H50,'LISTA TOTAL PROVEEDORES'!$A$3:$I$9968,5,FALSE) ->  | E50: =VLOOKUP($B$9&H50,'LISTA TOTAL PROVEEDORES'!$A$3:$I$9968,6,FALSE) ->  | F50: =VLOOKUP($B$9&H50,'LISTA TOTAL PROVEEDORES'!$A$3:$I$9968,7,FALSE) ->  | G50: =VLOOKUP($B$9&H50,'LISTA TOTAL PROVEEDORES'!$A$3:$I$9968,8,FALSE) ->  | H50: ERROR
B51: =VLOOKUP($B$9&H51,'LISTA TOTAL PROVEEDORES'!$A$3:$I$9968,9,FALSE) ->  | C51: =VLOOKUP($B$9&H51,'LISTA TOTAL PROVEEDORES'!$A$3:$I$9968,4,FALSE) ->  | D51: =VLOOKUP($B$9&H51,'LISTA TOTAL PROVEEDORES'!$A$3:$I$9968,5,FALSE) ->  | E51: =VLOOKUP($B$9&H51,'LISTA TOTAL PROVEEDORES'!$A$3:$I$9968,6,FALSE) ->  | F51: =VLOOKUP($B$9&H51,'LISTA TOTAL PROVEEDORES'!$A$3:$I$9968,7,FALSE) ->  | G51: =VLOOKUP($B$9&H51,'LISTA TOTAL PROVEEDORES'!$A$3:$I$9968,8,FALSE) ->  | H51: ERROR
B52: =VLOOKUP($B$9&H52,'LISTA TOTAL PROVEEDORES'!$A$3:$I$9968,9,FALSE) ->  | C52: =VLOOKUP($B$9&H52,'LISTA TOTAL PROVEEDORES'!$A$3:$I$9968,4,FALSE) ->  | D52: =VLOOKUP($B$9&H52,'LISTA TOTAL PROVEEDORES'!$A$3:$I$9968,5,FALSE) ->  | E52: =VLOOKUP($B$9&H52,'LISTA TOTAL PROVEEDORES'!$A$3:$I$9968,6,FALSE) ->  | F52: =VLOOKUP($B$9&H52,'LISTA TOTAL PROVEEDORES'!$A$3:$I$9968,7,FALSE) ->  | G52: =VLOOKUP($B$9&H52,'LISTA TOTAL PROVEEDORES'!$A$3:$I$9968,8,FALSE) ->  | H52: ERROR
B53: =VLOOKUP($B$9&H53,'LISTA TOTAL PROVEEDORES'!$A$3:$I$9968,9,FALSE) ->  | C53: =VLOOKUP($B$9&H53,'LISTA TOTAL PROVEEDORES'!$A$3:$I$9968,4,FALSE) ->  | D53: =VLOOKUP($B$9&H53,'LISTA TOTAL PROVEEDORES'!$A$3:$I$9968,5,FALSE) ->  | E53: =VLOOKUP($B$9&H53,'LISTA TOTAL PROVEEDORES'!$A$3:$I$9968,6,FALSE) ->  | F53: =VLOOKUP($B$9&H53,'LISTA TOTAL PROVEEDORES'!$A$3:$I$9968,7,FALSE) ->  | G53: =VLOOKUP($B$9&H53,'LISTA TOTAL PROVEEDORES'!$A$3:$I$9968,8,FALSE) ->  | H53: ERROR
B54: =VLOOKUP($B$9&H54,'LISTA TOTAL PROVEEDORES'!$A$3:$I$9968,9,FALSE) ->  | C54: =VLOOKUP($B$9&H54,'LISTA TOTAL PROVEEDORES'!$A$3:$I$9968,4,FALSE) ->  | D54: =VLOOKUP($B$9&H54,'LISTA TOTAL PROVEEDORES'!$A$3:$I$9968,5,FALSE) ->  | E54: =VLOOKUP($B$9&H54,'LISTA TOTAL PROVEEDORES'!$A$3:$I$9968,6,FALSE) ->  | F54: =VLOOKUP($B$9&H54,'LISTA TOTAL PROVEEDORES'!$A$3:$I$9968,7,FALSE) ->  | G54: =VLOOKUP($B$9&H54,'LISTA TOTAL PROVEEDORES'!$A$3:$I$9968,8,FALSE) ->  | H54: ERROR
B55: =VLOOKUP($B$9&H55,'LISTA TOTAL PROVEEDORES'!$A$3:$I$9968,9,FALSE) ->  | C55: =VLOOKUP($B$9&H55,'LISTA TOTAL PROVEEDORES'!$A$3:$I$9968,4,FALSE) ->  | D55: =VLOOKUP($B$9&H55,'LISTA TOTAL PROVEEDORES'!$A$3:$I$9968,5,FALSE) ->  | E55: =VLOOKUP($B$9&H55,'LISTA TOTAL PROVEEDORES'!$A$3:$I$9968,6,FALSE) ->  | F55: =VLOOKUP($B$9&H55,'LISTA TOTAL PROVEEDORES'!$A$3:$I$9968,7,FALSE) ->  | G55: =VLOOKUP($B$9&H55,'LISTA TOTAL PROVEEDORES'!$A$3:$I$9968,8,FALSE) ->  | H55: ERROR
B56: =VLOOKUP($B$9&H56,'LISTA TOTAL PROVEEDORES'!$A$3:$I$9968,9,FALSE) ->  | C56: =VLOOKUP($B$9&H56,'LISTA TOTAL PROVEEDORES'!$A$3:$I$9968,4,FALSE) ->  | D56: =VLOOKUP($B$9&H56,'LISTA TOTAL PROVEEDORES'!$A$3:$I$9968,5,FALSE) ->  | E56: =VLOOKUP($B$9&H56,'LISTA TOTAL PROVEEDORES'!$A$3:$I$9968,6,FALSE) ->  | F56: =VLOOKUP($B$9&H56,'LISTA TOTAL PROVEEDORES'!$A$3:$I$9968,7,FALSE) ->  | G56: =VLOOKUP($B$9&H56,'LISTA TOTAL PROVEEDORES'!$A$3:$I$9968,8,FALSE) ->  | H56: ERROR
B57: =VLOOKUP($B$9&H57,'LISTA TOTAL PROVEEDORES'!$A$3:$I$9968,9,FALSE) ->  | C57: =VLOOKUP($B$9&H57,'LISTA TOTAL PROVEEDORES'!$A$3:$I$9968,4,FALSE) ->  | D57: =VLOOKUP($B$9&H57,'LISTA TOTAL PROVEEDORES'!$A$3:$I$9968,5,FALSE) ->  | E57: =VLOOKUP($B$9&H57,'LISTA TOTAL PROVEEDORES'!$A$3:$I$9968,6,FALSE) ->  | F57: =VLOOKUP($B$9&H57,'LISTA TOTAL PROVEEDORES'!$A$3:$I$9968,7,FALSE) ->  | G57: =VLOOKUP($B$9&H57,'LISTA TOTAL PROVEEDORES'!$A$3:$I$9968,8,FALSE) ->  | H57: ERROR
B58: =VLOOKUP($B$9&H58,'LISTA TOTAL PROVEEDORES'!$A$3:$I$9968,9,FALSE) ->  | C58: =VLOOKUP($B$9&H58,'LISTA TOTAL PROVEEDORES'!$A$3:$I$9968,4,FALSE) ->  | D58: =VLOOKUP($B$9&H58,'LISTA TOTAL PROVEEDORES'!$A$3:$I$9968,5,FALSE) ->  | E58: =VLOOKUP($B$9&H58,'LISTA TOTAL PROVEEDORES'!$A$3:$I$9968,6,FALSE) ->  | F58: =VLOOKUP($B$9&H58,'LISTA TOTAL PROVEEDORES'!$A$3:$I$9968,7,FALSE) ->  | G58: =VLOOKUP($B$9&H58,'LISTA TOTAL PROVEEDORES'!$A$3:$I$9968,8,FALSE) ->  | H58: ERROR
B59: =VLOOKUP($B$9&H59,'LISTA TOTAL PROVEEDORES'!$A$3:$I$9968,9,FALSE) ->  | C59: =VLOOKUP($B$9&H59,'LISTA TOTAL PROVEEDORES'!$A$3:$I$9968,4,FALSE) ->  | D59: =VLOOKUP($B$9&H59,'LISTA TOTAL PROVEEDORES'!$A$3:$I$9968,5,FALSE) ->  | E59: =VLOOKUP($B$9&H59,'LISTA TOTAL PROVEEDORES'!$A$3:$I$9968,6,FALSE) ->  | F59: =VLOOKUP($B$9&H59,'LISTA TOTAL PROVEEDORES'!$A$3:$I$9968,7,FALSE) ->  | G59: =VLOOKUP($B$9&H59,'LISTA TOTAL PROVEEDORES'!$A$3:$I$9968,8,FALSE) ->  | H59: ERROR
B60: =VLOOKUP($B$9&H60,'LISTA TOTAL PROVEEDORES'!$A$3:$I$9968,9,FALSE) ->  | C60: =VLOOKUP($B$9&H60,'LISTA TOTAL PROVEEDORES'!$A$3:$I$9968,4,FALSE) ->  | D60: =VLOOKUP($B$9&H60,'LISTA TOTAL PROVEEDORES'!$A$3:$I$9968,5,FALSE) ->  | E60: =VLOOKUP($B$9&H60,'LISTA TOTAL PROVEEDORES'!$A$3:$I$9968,6,FALSE) ->  | F60: =VLOOKUP($B$9&H60,'LISTA TOTAL PROVEEDORES'!$A$3:$I$9968,7,FALSE) ->  | G60: =VLOOKUP($B$9&H60,'LISTA TOTAL PROVEEDORES'!$A$3:$I$9968,8,FALSE) ->  | H60: ERROR
B61: =VLOOKUP($B$9&H61,'LISTA TOTAL PROVEEDORES'!$A$3:$I$9968,9,FALSE) ->  | C61: =VLOOKUP($B$9&H61,'LISTA TOTAL PROVEEDORES'!$A$3:$I$9968,4,FALSE) ->  | D61: =VLOOKUP($B$9&H61,'LISTA TOTAL PROVEEDORES'!$A$3:$I$9968,5,FALSE) ->  | E61: =VLOOKUP($B$9&H61,'LISTA TOTAL PROVEEDORES'!$A$3:$I$9968,6,FALSE) ->  | F61: =VLOOKUP($B$9&H61,'LISTA TOTAL PROVEEDORES'!$A$3:$I$9968,7,FALSE) ->  | G61: =VLOOKUP($B$9&H61,'LISTA TOTAL PROVEEDORES'!$A$3:$I$9968,8,FALSE) ->  | H61: ERROR
B62: =VLOOKUP($B$9&H62,'LISTA TOTAL PROVEEDORES'!$A$3:$I$9968,9,FALSE) ->  | C62: =VLOOKUP($B$9&H62,'LISTA TOTAL PROVEEDORES'!$A$3:$I$9968,4,FALSE) ->  | D62: =VLOOKUP($B$9&H62,'LISTA TOTAL PROVEEDORES'!$A$3:$I$9968,5,FALSE) ->  | E62: =VLOOKUP($B$9&H62,'LISTA TOTAL PROVEEDORES'!$A$3:$I$9968,6,FALSE) ->  | F62: =VLOOKUP($B$9&H62,'LISTA TOTAL PROVEEDORES'!$A$3:$I$9968,7,FALSE) ->  | G62: =VLOOKUP($B$9&H62,'LISTA TOTAL PROVEEDORES'!$A$3:$I$9968,8,FALSE) ->  | H62: ERROR
B63: =VLOOKUP($B$9&H63,'LISTA TOTAL PROVEEDORES'!$A$3:$I$9968,9,FALSE) ->  | C63: =VLOOKUP($B$9&H63,'LISTA TOTAL PROVEEDORES'!$A$3:$I$9968,4,FALSE) ->  | D63: =VLOOKUP($B$9&H63,'LISTA TOTAL PROVEEDORES'!$A$3:$I$9968,5,FALSE) ->  | E63: =VLOOKUP($B$9&H63,'LISTA TOTAL PROVEEDORES'!$A$3:$I$9968,6,FALSE) ->  | F63: =VLOOKUP($B$9&H63,'LISTA TOTAL PROVEEDORES'!$A$3:$I$9968,7,FALSE) ->  | G63: =VLOOKUP($B$9&H63,'LISTA TOTAL PROVEEDORES'!$A$3:$I$9968,8,FALSE) ->  | H63: ERROR
B64: =VLOOKUP($B$9&H64,'LISTA TOTAL PROVEEDORES'!$A$3:$I$9968,9,FALSE) ->  | C64: =VLOOKUP($B$9&H64,'LISTA TOTAL PROVEEDORES'!$A$3:$I$9968,4,FALSE) ->  | D64: =VLOOKUP($B$9&H64,'LISTA TOTAL PROVEEDORES'!$A$3:$I$9968,5,FALSE) ->  | E64: =VLOOKUP($B$9&H64,'LISTA TOTAL PROVEEDORES'!$A$3:$I$9968,6,FALSE) ->  | F64: =VLOOKUP($B$9&H64,'LISTA TOTAL PROVEEDORES'!$A$3:$I$9968,7,FALSE) ->  | G64: =VLOOKUP($B$9&H64,'LISTA TOTAL PROVEEDORES'!$A$3:$I$9968,8,FALSE) ->  | H64: ERROR
B65: =VLOOKUP($B$9&H65,'LISTA TOTAL PROVEEDORES'!$A$3:$I$9968,9,FALSE) ->  | C65: =VLOOKUP($B$9&H65,'LISTA TOTAL PROVEEDORES'!$A$3:$I$9968,4,FALSE) ->  | D65: =VLOOKUP($B$9&H65,'LISTA TOTAL PROVEEDORES'!$A$3:$I$9968,5,FALSE) ->  | E65: =VLOOKUP($B$9&H65,'LISTA TOTAL PROVEEDORES'!$A$3:$I$9968,6,FALSE) ->  | F65: =VLOOKUP($B$9&H65,'LISTA TOTAL PROVEEDORES'!$A$3:$I$9968,7,FALSE) ->  | G65: =VLOOKUP($B$9&H65,'LISTA TOTAL PROVEEDORES'!$A$3:$I$9968,8,FALSE) ->  | H65: ERROR
B66: =VLOOKUP($B$9&H66,'LISTA TOTAL PROVEEDORES'!$A$3:$I$9968,9,FALSE) ->  | C66: =VLOOKUP($B$9&H66,'LISTA TOTAL PROVEEDORES'!$A$3:$I$9968,4,FALSE) ->  | D66: =VLOOKUP($B$9&H66,'LISTA TOTAL PROVEEDORES'!$A$3:$I$9968,5,FALSE) ->  | E66: =VLOOKUP($B$9&H66,'LISTA TOTAL PROVEEDORES'!$A$3:$I$9968,6,FALSE) ->  | F66: =VLOOKUP($B$9&H66,'LISTA TOTAL PROVEEDORES'!$A$3:$I$9968,7,FALSE) ->  | G66: =VLOOKUP($B$9&H66,'LISTA TOTAL PROVEEDORES'!$A$3:$I$9968,8,FALSE) ->  | H66: ERROR
B67: =VLOOKUP($B$9&H67,'LISTA TOTAL PROVEEDORES'!$A$3:$I$9968,9,FALSE) ->  | C67: =VLOOKUP($B$9&H67,'LISTA TOTAL PROVEEDORES'!$A$3:$I$9968,4,FALSE) ->  | D67: =VLOOKUP($B$9&H67,'LISTA TOTAL PROVEEDORES'!$A$3:$I$9968,5,FALSE) ->  | E67: =VLOOKUP($B$9&H67,'LISTA TOTAL PROVEEDORES'!$A$3:$I$9968,6,FALSE) ->  | F67: =VLOOKUP($B$9&H67,'LISTA TOTAL PROVEEDORES'!$A$3:$I$9968,7,FALSE) ->  | G67: =VLOOKUP($B$9&H67,'LISTA TOTAL PROVEEDORES'!$A$3:$I$9968,8,FALSE) ->  | H67: ERROR
B68: =VLOOKUP($B$9&H68,'LISTA TOTAL PROVEEDORES'!$A$3:$I$9968,9,FALSE) ->  | C68: =VLOOKUP($B$9&H68,'LISTA TOTAL PROVEEDORES'!$A$3:$I$9968,4,FALSE) ->  | D68: =VLOOKUP($B$9&H68,'LISTA TOTAL PROVEEDORES'!$A$3:$I$9968,5,FALSE) ->  | E68: =VLOOKUP($B$9&H68,'LISTA TOTAL PROVEEDORES'!$A$3:$I$9968,6,FALSE) ->  | F68: =VLOOKUP($B$9&H68,'LISTA TOTAL PROVEEDORES'!$A$3:$I$9968,7,FALSE) ->  | G68: =VLOOKUP($B$9&H68,'LISTA TOTAL PROVEEDORES'!$A$3:$I$9968,8,FALSE) ->  | H68: ERROR
B69: =VLOOKUP($B$9&H69,'LISTA TOTAL PROVEEDORES'!$A$3:$I$9968,9,FALSE) ->  | C69: =VLOOKUP($B$9&H69,'LISTA TOTAL PROVEEDORES'!$A$3:$I$9968,4,FALSE) ->  | D69: =VLOOKUP($B$9&H69,'LISTA TOTAL PROVEEDORES'!$A$3:$I$9968,5,FALSE) ->  | E69: =VLOOKUP($B$9&H69,'LISTA TOTAL PROVEEDORES'!$A$3:$I$9968,6,FALSE) ->  | F69: =VLOOKUP($B$9&H69,'LISTA TOTAL PROVEEDORES'!$A$3:$I$9968,7,FALSE) ->  | G69: =VLOOKUP($B$9&H69,'LISTA TOTAL PROVEEDORES'!$A$3:$I$9968,8,FALSE) ->  | H69: ERROR
B70: =VLOOKUP($B$9&H70,'LISTA TOTAL PROVEEDORES'!$A$3:$I$9968,9,FALSE) ->  | C70: =VLOOKUP($B$9&H70,'LISTA TOTAL PROVEEDORES'!$A$3:$I$9968,4,FALSE) ->  | D70: =VLOOKUP($B$9&H70,'LISTA TOTAL PROVEEDORES'!$A$3:$I$9968,5,FALSE) ->  | E70: =VLOOKUP($B$9&H70,'LISTA TOTAL PROVEEDORES'!$A$3:$I$9968,6,FALSE) ->  | F70: =VLOOKUP($B$9&H70,'LISTA TOTAL PROVEEDORES'!$A$3:$I$9968,7,FALSE) ->  | G70: =VLOOKUP($B$9&H70,'LISTA TOTAL PROVEEDORES'!$A$3:$I$9968,8,FALSE) ->  | H70: ERROR
B71: =VLOOKUP($B$9&H71,'LISTA TOTAL PROVEEDORES'!$A$3:$I$9968,9,FALSE) ->  | C71: =VLOOKUP($B$9&H71,'LISTA TOTAL PROVEEDORES'!$A$3:$I$9968,4,FALSE) ->  | D71: =VLOOKUP($B$9&H71,'LISTA TOTAL PROVEEDORES'!$A$3:$I$9968,5,FALSE) ->  | E71: =VLOOKUP($B$9&H71,'LISTA TOTAL PROVEEDORES'!$A$3:$I$9968,6,FALSE) ->  | F71: =VLOOKUP($B$9&H71,'LISTA TOTAL PROVEEDORES'!$A$3:$I$9968,7,FALSE) ->  | G71: =VLOOKUP($B$9&H71,'LISTA TOTAL PROVEEDORES'!$A$3:$I$9968,8,FALSE) ->  | H71: ERROR
B72: =VLOOKUP($B$9&H72,'LISTA TOTAL PROVEEDORES'!$A$3:$I$9968,9,FALSE) ->  | C72: =VLOOKUP($B$9&H72,'LISTA TOTAL PROVEEDORES'!$A$3:$I$9968,4,FALSE) ->  | D72: =VLOOKUP($B$9&H72,'LISTA TOTAL PROVEEDORES'!$A$3:$I$9968,5,FALSE) ->  | E72: =VLOOKUP($B$9&H72,'LISTA TOTAL PROVEEDORES'!$A$3:$I$9968,6,FALSE) ->  | F72: =VLOOKUP($B$9&H72,'LISTA TOTAL PROVEEDORES'!$A$3:$I$9968,7,FALSE) ->  | G72: =VLOOKUP($B$9&H72,'LISTA TOTAL PROVEEDORES'!$A$3:$I$9968,8,FALSE) ->  | H72: ERROR
B73: =VLOOKUP($B$9&H73,'LISTA TOTAL PROVEEDORES'!$A$3:$I$9968,9,FALSE) ->  | C73: =VLOOKUP($B$9&H73,'LISTA TOTAL PROVEEDORES'!$A$3:$I$9968,4,FALSE) ->  | D73: =VLOOKUP($B$9&H73,'LISTA TOTAL PROVEEDORES'!$A$3:$I$9968,5,FALSE) ->  | E73: =VLOOKUP($B$9&H73,'LISTA TOTAL PROVEEDORES'!$A$3:$I$9968,6,FALSE) ->  | F73: =VLOOKUP($B$9&H73,'LISTA TOTAL PROVEEDORES'!$A$3:$I$9968,7,FALSE) ->  | G73: =VLOOKUP($B$9&H73,'LISTA TOTAL PROVEEDORES'!$A$3:$I$9968,8,FALSE) ->  | H73: ERROR
B74: =VLOOKUP($B$9&H74,'LISTA TOTAL PROVEEDORES'!$A$3:$I$9968,9,FALSE) ->  | C74: =VLOOKUP($B$9&H74,'LISTA TOTAL PROVEEDORES'!$A$3:$I$9968,4,FALSE) ->  | D74: =VLOOKUP($B$9&H74,'LISTA TOTAL PROVEEDORES'!$A$3:$I$9968,5,FALSE) ->  | E74: =VLOOKUP($B$9&H74,'LISTA TOTAL PROVEEDORES'!$A$3:$I$9968,6,FALSE) ->  | F74: =VLOOKUP($B$9&H74,'LISTA TOTAL PROVEEDORES'!$A$3:$I$9968,7,FALSE) ->  | G74: =VLOOKUP($B$9&H74,'LISTA TOTAL PROVEEDORES'!$A$3:$I$9968,8,FALSE) ->  | H74: ERROR
B75: =VLOOKUP($B$9&H75,'LISTA TOTAL PROVEEDORES'!$A$3:$I$9968,9,FALSE) ->  | C75: =VLOOKUP($B$9&H75,'LISTA TOTAL PROVEEDORES'!$A$3:$I$9968,4,FALSE) ->  | D75: =VLOOKUP($B$9&H75,'LISTA TOTAL PROVEEDORES'!$A$3:$I$9968,5,FALSE) ->  | E75: =VLOOKUP($B$9&H75,'LISTA TOTAL PROVEEDORES'!$A$3:$I$9968,6,FALSE) ->  | F75: =VLOOKUP($B$9&H75,'LISTA TOTAL PROVEEDORES'!$A$3:$I$9968,7,FALSE) ->  | G75: =VLOOKUP($B$9&H75,'LISTA TOTAL PROVEEDORES'!$A$3:$I$9968,8,FALSE) ->  | H75: ERROR
B76: =VLOOKUP($B$9&H76,'LISTA TOTAL PROVEEDORES'!$A$3:$I$9968,9,FALSE) ->  | C76: =VLOOKUP($B$9&H76,'LISTA TOTAL PROVEEDORES'!$A$3:$I$9968,4,FALSE) ->  | D76: =VLOOKUP($B$9&H76,'LISTA TOTAL PROVEEDORES'!$A$3:$I$9968,5,FALSE) ->  | E76: =VLOOKUP($B$9&H76,'LISTA TOTAL PROVEEDORES'!$A$3:$I$9968,6,FALSE) ->  | F76: =VLOOKUP($B$9&H76,'LISTA TOTAL PROVEEDORES'!$A$3:$I$9968,7,FALSE) ->  | G76: =VLOOKUP($B$9&H76,'LISTA TOTAL PROVEEDORES'!$A$3:$I$9968,8,FALSE) ->  | H76: ERROR
B77: =VLOOKUP($B$9&H77,'LISTA TOTAL PROVEEDORES'!$A$3:$I$9968,9,FALSE) ->  | C77: =VLOOKUP($B$9&H77,'LISTA TOTAL PROVEEDORES'!$A$3:$I$9968,4,FALSE) ->  | D77: =VLOOKUP($B$9&H77,'LISTA TOTAL PROVEEDORES'!$A$3:$I$9968,5,FALSE) ->  | E77: =VLOOKUP($B$9&H77,'LISTA TOTAL PROVEEDORES'!$A$3:$I$9968,6,FALSE) ->  | F77: =VLOOKUP($B$9&H77,'LISTA TOTAL PROVEEDORES'!$A$3:$I$9968,7,FALSE) ->  | G77: =VLOOKUP($B$9&H77,'LISTA TOTAL PROVEEDORES'!$A$3:$I$9968,8,FALSE) ->  | H77: ERROR
B78: =VLOOKUP($B$9&H78,'LISTA TOTAL PROVEEDORES'!$A$3:$I$9968,9,FALSE) ->  | C78: =VLOOKUP($B$9&H78,'LISTA TOTAL PROVEEDORES'!$A$3:$I$9968,4,FALSE) ->  | D78: =VLOOKUP($B$9&H78,'LISTA TOTAL PROVEEDORES'!$A$3:$I$9968,5,FALSE) ->  | E78: =VLOOKUP($B$9&H78,'LISTA TOTAL PROVEEDORES'!$A$3:$I$9968,6,FALSE) ->  | F78: =VLOOKUP($B$9&H78,'LISTA TOTAL PROVEEDORES'!$A$3:$I$9968,7,FALSE) ->  | G78: =VLOOKUP($B$9&H78,'LISTA TOTAL PROVEEDORES'!$A$3:$I$9968,8,FALSE) ->  | H78: =+IF(H77<$H$9,H77+1,"ERROR") -> ERROR
B79: =VLOOKUP($B$9&H79,'LISTA TOTAL PROVEEDORES'!$A$3:$I$9968,9,FALSE) ->  | C79: =VLOOKUP($B$9&H79,'LISTA TOTAL PROVEEDORES'!$A$3:$I$9968,4,FALSE) ->  | D79: =VLOOKUP($B$9&H79,'LISTA TOTAL PROVEEDORES'!$A$3:$I$9968,5,FALSE) ->  | E79: =VLOOKUP($B$9&H79,'LISTA TOTAL PROVEEDORES'!$A$3:$I$9968,6,FALSE) ->  | F79: =VLOOKUP($B$9&H79,'LISTA TOTAL PROVEEDORES'!$A$3:$I$9968,7,FALSE) ->  | G79: =VLOOKUP($B$9&H79,'LISTA TOTAL PROVEEDORES'!$A$3:$I$9968,8,FALSE) ->  | H79: ERROR
B80: =VLOOKUP($B$9&H80,'LISTA TOTAL PROVEEDORES'!$A$3:$I$9968,9,FALSE) ->  | C80: =VLOOKUP($B$9&H80,'LISTA TOTAL PROVEEDORES'!$A$3:$I$9968,4,FALSE) ->  | D80: =VLOOKUP($B$9&H80,'LISTA TOTAL PROVEEDORES'!$A$3:$I$9968,5,FALSE) ->  | E80: =VLOOKUP($B$9&H80,'LISTA TOTAL PROVEEDORES'!$A$3:$I$9968,6,FALSE) ->  | F80: =VLOOKUP($B$9&H80,'LISTA TOTAL PROVEEDORES'!$A$3:$I$9968,7,FALSE) ->  | G80: =VLOOKUP($B$9&H80,'LISTA TOTAL PROVEEDORES'!$A$3:$I$9968,8,FALSE) ->  | H80: ERROR
B81: =VLOOKUP($B$9&H81,'LISTA TOTAL PROVEEDORES'!$A$3:$I$9968,9,FALSE) ->  | C81: =VLOOKUP($B$9&H81,'LISTA TOTAL PROVEEDORES'!$A$3:$I$9968,4,FALSE) ->  | D81: =VLOOKUP($B$9&H81,'LISTA TOTAL PROVEEDORES'!$A$3:$I$9968,5,FALSE) ->  | E81: =VLOOKUP($B$9&H81,'LISTA TOTAL PROVEEDORES'!$A$3:$I$9968,6,FALSE) ->  | F81: =VLOOKUP($B$9&H81,'LISTA TOTAL PROVEEDORES'!$A$3:$I$9968,7,FALSE) ->  | G81: =VLOOKUP($B$9&H81,'LISTA TOTAL PROVEEDORES'!$A$3:$I$9968,8,FALSE) ->  | H81: ERROR
B82: =VLOOKUP($B$9&H82,'LISTA TOTAL PROVEEDORES'!$A$3:$I$9968,9,FALSE) ->  | C82: =VLOOKUP($B$9&H82,'LISTA TOTAL PROVEEDORES'!$A$3:$I$9968,4,FALSE) ->  | D82: =VLOOKUP($B$9&H82,'LISTA TOTAL PROVEEDORES'!$A$3:$I$9968,5,FALSE) ->  | E82: =VLOOKUP($B$9&H82,'LISTA TOTAL PROVEEDORES'!$A$3:$I$9968,6,FALSE) ->  | F82: =VLOOKUP($B$9&H82,'LISTA TOTAL PROVEEDORES'!$A$3:$I$9968,7,FALSE) ->  | G82: =VLOOKUP($B$9&H82,'LISTA TOTAL PROVEEDORES'!$A$3:$I$9968,8,FALSE) ->  | H82: ERROR
B83: =VLOOKUP($B$9&H83,'LISTA TOTAL PROVEEDORES'!$A$3:$I$9968,9,FALSE) ->  | C83: =VLOOKUP($B$9&H83,'LISTA TOTAL PROVEEDORES'!$A$3:$I$9968,4,FALSE) ->  | D83: =VLOOKUP($B$9&H83,'LISTA TOTAL PROVEEDORES'!$A$3:$I$9968,5,FALSE) ->  | E83: =VLOOKUP($B$9&H83,'LISTA TOTAL PROVEEDORES'!$A$3:$I$9968,6,FALSE) ->  | F83: =VLOOKUP($B$9&H83,'LISTA TOTAL PROVEEDORES'!$A$3:$I$9968,7,FALSE) ->  | G83: =VLOOKUP($B$9&H83,'LISTA TOTAL PROVEEDORES'!$A$3:$I$9968,8,FALSE) ->  | H83: ERROR
B84: =VLOOKUP($B$9&H84,'LISTA TOTAL PROVEEDORES'!$A$3:$I$9968,9,FALSE) ->  | C84: =VLOOKUP($B$9&H84,'LISTA TOTAL PROVEEDORES'!$A$3:$I$9968,4,FALSE) ->  | D84: =VLOOKUP($B$9&H84,'LISTA TOTAL PROVEEDORES'!$A$3:$I$9968,5,FALSE) ->  | E84: =VLOOKUP($B$9&H84,'LISTA TOTAL PROVEEDORES'!$A$3:$I$9968,6,FALSE) ->  | F84: =VLOOKUP($B$9&H84,'LISTA TOTAL PROVEEDORES'!$A$3:$I$9968,7,FALSE) ->  | G84: =VLOOKUP($B$9&H84,'LISTA TOTAL PROVEEDORES'!$A$3:$I$9968,8,FALSE) ->  | H84: ERROR
B85: =VLOOKUP($B$9&H85,'LISTA TOTAL PROVEEDORES'!$A$3:$I$9968,9,FALSE) ->  | C85: =VLOOKUP($B$9&H85,'LISTA TOTAL PROVEEDORES'!$A$3:$I$9968,4,FALSE) ->  | D85: =VLOOKUP($B$9&H85,'LISTA TOTAL PROVEEDORES'!$A$3:$I$9968,5,FALSE) ->  | E85: =VLOOKUP($B$9&H85,'LISTA TOTAL PROVEEDORES'!$A$3:$I$9968,6,FALSE) ->  | F85: =VLOOKUP($B$9&H85,'LISTA TOTAL PROVEEDORES'!$A$3:$I$9968,7,FALSE) ->  | G85: =VLOOKUP($B$9&H85,'LISTA TOTAL PROVEEDORES'!$A$3:$I$9968,8,FALSE) ->  | H85: ERROR
B86: =VLOOKUP($B$9&H86,'LISTA TOTAL PROVEEDORES'!$A$3:$I$9968,9,FALSE) ->  | C86: =VLOOKUP($B$9&H86,'LISTA TOTAL PROVEEDORES'!$A$3:$I$9968,4,FALSE) ->  | D86: =VLOOKUP($B$9&H86,'LISTA TOTAL PROVEEDORES'!$A$3:$I$9968,5,FALSE) ->  | E86: =VLOOKUP($B$9&H86,'LISTA TOTAL PROVEEDORES'!$A$3:$I$9968,6,FALSE) ->  | F86: =VLOOKUP($B$9&H86,'LISTA TOTAL PROVEEDORES'!$A$3:$I$9968,7,FALSE) ->  | G86: =VLOOKUP($B$9&H86,'LISTA TOTAL PROVEEDORES'!$A$3:$I$9968,8,FALSE) ->  | H86: ERROR
B87: =VLOOKUP($B$9&H87,'LISTA TOTAL PROVEEDORES'!$A$3:$I$9968,9,FALSE) ->  | C87: =VLOOKUP($B$9&H87,'LISTA TOTAL PROVEEDORES'!$A$3:$I$9968,4,FALSE) ->  | D87: =VLOOKUP($B$9&H87,'LISTA TOTAL PROVEEDORES'!$A$3:$I$9968,5,FALSE) ->  | E87: =VLOOKUP($B$9&H87,'LISTA TOTAL PROVEEDORES'!$A$3:$I$9968,6,FALSE) ->  | F87: =VLOOKUP($B$9&H87,'LISTA TOTAL PROVEEDORES'!$A$3:$I$9968,7,FALSE) ->  | G87: =VLOOKUP($B$9&H87,'LISTA TOTAL PROVEEDORES'!$A$3:$I$9968,8,FALSE) ->  | H87: ERROR
B88: =VLOOKUP($B$9&H88,'LISTA TOTAL PROVEEDORES'!$A$3:$I$9968,9,FALSE) ->  | C88: =VLOOKUP($B$9&H88,'LISTA TOTAL PROVEEDORES'!$A$3:$I$9968,4,FALSE) ->  | D88: =VLOOKUP($B$9&H88,'LISTA TOTAL PROVEEDORES'!$A$3:$I$9968,5,FALSE) ->  | E88: =VLOOKUP($B$9&H88,'LISTA TOTAL PROVEEDORES'!$A$3:$I$9968,6,FALSE) ->  | F88: =VLOOKUP($B$9&H88,'LISTA TOTAL PROVEEDORES'!$A$3:$I$9968,7,FALSE) ->  | G88: =VLOOKUP($B$9&H88,'LISTA TOTAL PROVEEDORES'!$A$3:$I$9968,8,FALSE) ->  | H88: ERROR
B89: =VLOOKUP($B$9&H89,'LISTA TOTAL PROVEEDORES'!$A$3:$I$9968,9,FALSE) ->  | C89: =VLOOKUP($B$9&H89,'LISTA TOTAL PROVEEDORES'!$A$3:$I$9968,4,FALSE) ->  | D89: =VLOOKUP($B$9&H89,'LISTA TOTAL PROVEEDORES'!$A$3:$I$9968,5,FALSE) ->  | E89: =VLOOKUP($B$9&H89,'LISTA TOTAL PROVEEDORES'!$A$3:$I$9968,6,FALSE) ->  | F89: =VLOOKUP($B$9&H89,'LISTA TOTAL PROVEEDORES'!$A$3:$I$9968,7,FALSE) ->  | G89: =VLOOKUP($B$9&H89,'LISTA TOTAL PROVEEDORES'!$A$3:$I$9968,8,FALSE) ->  | H89: ERROR
B90: =VLOOKUP($B$9&H90,'LISTA TOTAL PROVEEDORES'!$A$3:$I$9968,9,FALSE) ->  | C90: =VLOOKUP($B$9&H90,'LISTA TOTAL PROVEEDORES'!$A$3:$I$9968,4,FALSE) ->  | D90: =VLOOKUP($B$9&H90,'LISTA TOTAL PROVEEDORES'!$A$3:$I$9968,5,FALSE) ->  | E90: =VLOOKUP($B$9&H90,'LISTA TOTAL PROVEEDORES'!$A$3:$I$9968,6,FALSE) ->  | F90: =VLOOKUP($B$9&H90,'LISTA TOTAL PROVEEDORES'!$A$3:$I$9968,7,FALSE) ->  | G90: =VLOOKUP($B$9&H90,'LISTA TOTAL PROVEEDORES'!$A$3:$I$9968,8,FALSE) ->  | H90: ERROR
B91: =VLOOKUP($B$9&H91,'LISTA TOTAL PROVEEDORES'!$A$3:$I$9968,9,FALSE) ->  | C91: =VLOOKUP($B$9&H91,'LISTA TOTAL PROVEEDORES'!$A$3:$I$9968,4,FALSE) ->  | D91: =VLOOKUP($B$9&H91,'LISTA TOTAL PROVEEDORES'!$A$3:$I$9968,5,FALSE) ->  | E91: =VLOOKUP($B$9&H91,'LISTA TOTAL PROVEEDORES'!$A$3:$I$9968,6,FALSE) ->  | F91: =VLOOKUP($B$9&H91,'LISTA TOTAL PROVEEDORES'!$A$3:$I$9968,7,FALSE) ->  | G91: =VLOOKUP($B$9&H91,'LISTA TOTAL PROVEEDORES'!$A$3:$I$9968,8,FALSE) ->  | H91: ERROR
B92: =VLOOKUP($B$9&H92,'LISTA TOTAL PROVEEDORES'!$A$3:$I$9968,9,FALSE) ->  | C92: =VLOOKUP($B$9&H92,'LISTA TOTAL PROVEEDORES'!$A$3:$I$9968,4,FALSE) ->  | D92: =VLOOKUP($B$9&H92,'LISTA TOTAL PROVEEDORES'!$A$3:$I$9968,5,FALSE) ->  | E92: =VLOOKUP($B$9&H92,'LISTA TOTAL PROVEEDORES'!$A$3:$I$9968,6,FALSE) ->  | F92: =VLOOKUP($B$9&H92,'LISTA TOTAL PROVEEDORES'!$A$3:$I$9968,7,FALSE) ->  | G92: =VLOOKUP($B$9&H92,'LISTA TOTAL PROVEEDORES'!$A$3:$I$9968,8,FALSE) ->  | H92: ERROR
B93: =VLOOKUP($B$9&H93,'LISTA TOTAL PROVEEDORES'!$A$3:$I$9968,9,FALSE) ->  | C93: =VLOOKUP($B$9&H93,'LISTA TOTAL PROVEEDORES'!$A$3:$I$9968,4,FALSE) ->  | D93: =VLOOKUP($B$9&H93,'LISTA TOTAL PROVEEDORES'!$A$3:$I$9968,5,FALSE) ->  | E93: =VLOOKUP($B$9&H93,'LISTA TOTAL PROVEEDORES'!$A$3:$I$9968,6,FALSE) ->  | F93: =VLOOKUP($B$9&H93,'LISTA TOTAL PROVEEDORES'!$A$3:$I$9968,7,FALSE) ->  | G93: =VLOOKUP($B$9&H93,'LISTA TOTAL PROVEEDORES'!$A$3:$I$9968,8,FALSE) ->  | H93: ERROR
B94: =VLOOKUP($B$9&H94,'LISTA TOTAL PROVEEDORES'!$A$3:$I$9968,9,FALSE) ->  | C94: =VLOOKUP($B$9&H94,'LISTA TOTAL PROVEEDORES'!$A$3:$I$9968,4,FALSE) ->  | D94: =VLOOKUP($B$9&H94,'LISTA TOTAL PROVEEDORES'!$A$3:$I$9968,5,FALSE) ->  | E94: =VLOOKUP($B$9&H94,'LISTA TOTAL PROVEEDORES'!$A$3:$I$9968,6,FALSE) ->  | F94: =VLOOKUP($B$9&H94,'LISTA TOTAL PROVEEDORES'!$A$3:$I$9968,7,FALSE) ->  | G94: =VLOOKUP($B$9&H94,'LISTA TOTAL PROVEEDORES'!$A$3:$I$9968,8,FALSE) ->  | H94: ERROR
B95: =VLOOKUP($B$9&H95,'LISTA TOTAL PROVEEDORES'!$A$3:$I$9968,9,FALSE) ->  | C95: =VLOOKUP($B$9&H95,'LISTA TOTAL PROVEEDORES'!$A$3:$I$9968,4,FALSE) ->  | D95: =VLOOKUP($B$9&H95,'LISTA TOTAL PROVEEDORES'!$A$3:$I$9968,5,FALSE) ->  | E95: =VLOOKUP($B$9&H95,'LISTA TOTAL PROVEEDORES'!$A$3:$I$9968,6,FALSE) ->  | F95: =VLOOKUP($B$9&H95,'LISTA TOTAL PROVEEDORES'!$A$3:$I$9968,7,FALSE) ->  | G95: =VLOOKUP($B$9&H95,'LISTA TOTAL PROVEEDORES'!$A$3:$I$9968,8,FALSE) ->  | H95: ERROR
B96: =VLOOKUP($B$9&H96,'LISTA TOTAL PROVEEDORES'!$A$3:$I$9968,9,FALSE) ->  | C96: =VLOOKUP($B$9&H96,'LISTA TOTAL PROVEEDORES'!$A$3:$I$9968,4,FALSE) ->  | D96: =VLOOKUP($B$9&H96,'LISTA TOTAL PROVEEDORES'!$A$3:$I$9968,5,FALSE) ->  | E96: =VLOOKUP($B$9&H96,'LISTA TOTAL PROVEEDORES'!$A$3:$I$9968,6,FALSE) ->  | F96: =VLOOKUP($B$9&H96,'LISTA TOTAL PROVEEDORES'!$A$3:$I$9968,7,FALSE) ->  | G96: =VLOOKUP($B$9&H96,'LISTA TOTAL PROVEEDORES'!$A$3:$I$9968,8,FALSE) ->  | H96: ERROR
B97: =VLOOKUP($B$9&H97,'LISTA TOTAL PROVEEDORES'!$A$3:$I$9968,9,FALSE) ->  | C97: =VLOOKUP($B$9&H97,'LISTA TOTAL PROVEEDORES'!$A$3:$I$9968,4,FALSE) ->  | D97: =VLOOKUP($B$9&H97,'LISTA TOTAL PROVEEDORES'!$A$3:$I$9968,5,FALSE) ->  | E97: =VLOOKUP($B$9&H97,'LISTA TOTAL PROVEEDORES'!$A$3:$I$9968,6,FALSE) ->  | F97: =VLOOKUP($B$9&H97,'LISTA TOTAL PROVEEDORES'!$A$3:$I$9968,7,FALSE) ->  | G97: =VLOOKUP($B$9&H97,'LISTA TOTAL PROVEEDORES'!$A$3:$I$9968,8,FALSE) ->  | H97: ERROR
B98: =VLOOKUP($B$9&H98,'LISTA TOTAL PROVEEDORES'!$A$3:$I$9968,9,FALSE) ->  | C98: =VLOOKUP($B$9&H98,'LISTA TOTAL PROVEEDORES'!$A$3:$I$9968,4,FALSE) ->  | D98: =VLOOKUP($B$9&H98,'LISTA TOTAL PROVEEDORES'!$A$3:$I$9968,5,FALSE) ->  | E98: =VLOOKUP($B$9&H98,'LISTA TOTAL PROVEEDORES'!$A$3:$I$9968,6,FALSE) ->  | F98: =VLOOKUP($B$9&H98,'LISTA TOTAL PROVEEDORES'!$A$3:$I$9968,7,FALSE) ->  | G98: =VLOOKUP($B$9&H98,'LISTA TOTAL PROVEEDORES'!$A$3:$I$9968,8,FALSE) ->  | H98: ERROR
B99: =VLOOKUP($B$9&H99,'LISTA TOTAL PROVEEDORES'!$A$3:$I$9968,9,FALSE) ->  | C99: =VLOOKUP($B$9&H99,'LISTA TOTAL PROVEEDORES'!$A$3:$I$9968,4,FALSE) ->  | D99: =VLOOKUP($B$9&H99,'LISTA TOTAL PROVEEDORES'!$A$3:$I$9968,5,FALSE) ->  | E99: =VLOOKUP($B$9&H99,'LISTA TOTAL PROVEEDORES'!$A$3:$I$9968,6,FALSE) ->  | F99: =VLOOKUP($B$9&H99,'LISTA TOTAL PROVEEDORES'!$A$3:$I$9968,7,FALSE) ->  | G99: =VLOOKUP($B$9&H99,'LISTA TOTAL PROVEEDORES'!$A$3:$I$9968,8,FALSE) ->  | H99: ERROR
B100: =VLOOKUP($B$9&H100,'LISTA TOTAL PROVEEDORES'!$A$3:$I$9968,9,FALSE) ->  | C100: =VLOOKUP($B$9&H100,'LISTA TOTAL PROVEEDORES'!$A$3:$I$9968,4,FALSE) ->  | D100: =VLOOKUP($B$9&H100,'LISTA TOTAL PROVEEDORES'!$A$3:$I$9968,5,FALSE) ->  | E100: =VLOOKUP($B$9&H100,'LISTA TOTAL PROVEEDORES'!$A$3:$I$9968,6,FALSE) ->  | F100: =VLOOKUP($B$9&H100,'LISTA TOTAL PROVEEDORES'!$A$3:$I$9968,7,FALSE) ->  | G100: =VLOOKUP($B$9&H100,'LISTA TOTAL PROVEEDORES'!$A$3:$I$9968,8,FALSE) ->  | H100: ERROR
B101: =VLOOKUP($B$9&H101,'LISTA TOTAL PROVEEDORES'!$A$3:$I$9968,9,FALSE) ->  | C101: =VLOOKUP($B$9&H101,'LISTA TOTAL PROVEEDORES'!$A$3:$I$9968,4,FALSE) ->  | D101: =VLOOKUP($B$9&H101,'LISTA TOTAL PROVEEDORES'!$A$3:$I$9968,5,FALSE) ->  | E101: =VLOOKUP($B$9&H101,'LISTA TOTAL PROVEEDORES'!$A$3:$I$9968,6,FALSE) ->  | F101: =VLOOKUP($B$9&H101,'LISTA TOTAL PROVEEDORES'!$A$3:$I$9968,7,FALSE) ->  | G101: =VLOOKUP($B$9&H101,'LISTA TOTAL PROVEEDORES'!$A$3:$I$9968,8,FALSE) ->  | H101: ERROR
B102: =VLOOKUP($B$9&H102,'LISTA TOTAL PROVEEDORES'!$A$3:$I$9968,9,FALSE) ->  | C102: =VLOOKUP($B$9&H102,'LISTA TOTAL PROVEEDORES'!$A$3:$I$9968,4,FALSE) ->  | D102: =VLOOKUP($B$9&H102,'LISTA TOTAL PROVEEDORES'!$A$3:$I$9968,5,FALSE) ->  | E102: =VLOOKUP($B$9&H102,'LISTA TOTAL PROVEEDORES'!$A$3:$I$9968,6,FALSE) ->  | F102: =VLOOKUP($B$9&H102,'LISTA TOTAL PROVEEDORES'!$A$3:$I$9968,7,FALSE) ->  | G102: =VLOOKUP($B$9&H102,'LISTA TOTAL PROVEEDORES'!$A$3:$I$9968,8,FALSE) ->  | H102: ERROR
B103: =VLOOKUP($B$9&H103,'LISTA TOTAL PROVEEDORES'!$A$3:$I$9968,9,FALSE) ->  | C103: =VLOOKUP($B$9&H103,'LISTA TOTAL PROVEEDORES'!$A$3:$I$9968,4,FALSE) ->  | D103: =VLOOKUP($B$9&H103,'LISTA TOTAL PROVEEDORES'!$A$3:$I$9968,5,FALSE) ->  | E103: =VLOOKUP($B$9&H103,'LISTA TOTAL PROVEEDORES'!$A$3:$I$9968,6,FALSE) ->  | F103: =VLOOKUP($B$9&H103,'LISTA TOTAL PROVEEDORES'!$A$3:$I$9968,7,FALSE) ->  | G103: =VLOOKUP($B$9&H103,'LISTA TOTAL PROVEEDORES'!$A$3:$I$9968,8,FALSE) ->  | H103: ERROR
B104: =VLOOKUP($B$9&H104,'LISTA TOTAL PROVEEDORES'!$A$3:$I$9968,9,FALSE) ->  | C104: =VLOOKUP($B$9&H104,'LISTA TOTAL PROVEEDORES'!$A$3:$I$9968,4,FALSE) ->  | D104: =VLOOKUP($B$9&H104,'LISTA TOTAL PROVEEDORES'!$A$3:$I$9968,5,FALSE) ->  | E104: =VLOOKUP($B$9&H104,'LISTA TOTAL PROVEEDORES'!$A$3:$I$9968,6,FALSE) ->  | F104: =VLOOKUP($B$9&H104,'LISTA TOTAL PROVEEDORES'!$A$3:$I$9968,7,FALSE) ->  | G104: =VLOOKUP($B$9&H104,'LISTA TOTAL PROVEEDORES'!$A$3:$I$9968,8,FALSE) ->  | H104: ERROR
B105: =VLOOKUP($B$9&H105,'LISTA TOTAL PROVEEDORES'!$A$3:$I$9968,9,FALSE) ->  | C105: =VLOOKUP($B$9&H105,'LISTA TOTAL PROVEEDORES'!$A$3:$I$9968,4,FALSE) ->  | D105: =VLOOKUP($B$9&H105,'LISTA TOTAL PROVEEDORES'!$A$3:$I$9968,5,FALSE) ->  | E105: =VLOOKUP($B$9&H105,'LISTA TOTAL PROVEEDORES'!$A$3:$I$9968,6,FALSE) ->  | F105: =VLOOKUP($B$9&H105,'LISTA TOTAL PROVEEDORES'!$A$3:$I$9968,7,FALSE) ->  | G105: =VLOOKUP($B$9&H105,'LISTA TOTAL PROVEEDORES'!$A$3:$I$9968,8,FALSE) ->  | H105: ERROR
B106: =VLOOKUP($B$9&H106,'LISTA TOTAL PROVEEDORES'!$A$3:$I$9968,9,FALSE) ->  | C106: =VLOOKUP($B$9&H106,'LISTA TOTAL PROVEEDORES'!$A$3:$I$9968,4,FALSE) ->  | D106: =VLOOKUP($B$9&H106,'LISTA TOTAL PROVEEDORES'!$A$3:$I$9968,5,FALSE) ->  | E106: =VLOOKUP($B$9&H106,'LISTA TOTAL PROVEEDORES'!$A$3:$I$9968,6,FALSE) ->  | F106: =VLOOKUP($B$9&H106,'LISTA TOTAL PROVEEDORES'!$A$3:$I$9968,7,FALSE) ->  | G106: =VLOOKUP($B$9&H106,'LISTA TOTAL PROVEEDORES'!$A$3:$I$9968,8,FALSE) ->  | H106: ERROR
B107: =VLOOKUP($B$9&H107,'LISTA TOTAL PROVEEDORES'!$A$3:$I$9968,9,FALSE) ->  | C107: =VLOOKUP($B$9&H107,'LISTA TOTAL PROVEEDORES'!$A$3:$I$9968,4,FALSE) ->  | D107: =VLOOKUP($B$9&H107,'LISTA TOTAL PROVEEDORES'!$A$3:$I$9968,5,FALSE) ->  | E107: =VLOOKUP($B$9&H107,'LISTA TOTAL PROVEEDORES'!$A$3:$I$9968,6,FALSE) ->  | F107: =VLOOKUP($B$9&H107,'LISTA TOTAL PROVEEDORES'!$A$3:$I$9968,7,FALSE) ->  | G107: =VLOOKUP($B$9&H107,'LISTA TOTAL PROVEEDORES'!$A$3:$I$9968,8,FALSE) ->  | H107: ERROR
B108: =VLOOKUP($B$9&H108,'LISTA TOTAL PROVEEDORES'!$A$3:$I$9968,9,FALSE) ->  | C108: =VLOOKUP($B$9&H108,'LISTA TOTAL PROVEEDORES'!$A$3:$I$9968,4,FALSE) ->  | D108: =VLOOKUP($B$9&H108,'LISTA TOTAL PROVEEDORES'!$A$3:$I$9968,5,FALSE) ->  | E108: =VLOOKUP($B$9&H108,'LISTA TOTAL PROVEEDORES'!$A$3:$I$9968,6,FALSE) ->  | F108: =VLOOKUP($B$9&H108,'LISTA TOTAL PROVEEDORES'!$A$3:$I$9968,7,FALSE) ->  | G108: =VLOOKUP($B$9&H108,'LISTA TOTAL PROVEEDORES'!$A$3:$I$9968,8,FALSE) ->  | H108: ERROR
B109: =VLOOKUP($B$9&H109,'LISTA TOTAL PROVEEDORES'!$A$3:$I$9968,9,FALSE) ->  | C109: =VLOOKUP($B$9&H109,'LISTA TOTAL PROVEEDORES'!$A$3:$I$9968,4,FALSE) ->  | D109: =VLOOKUP($B$9&H109,'LISTA TOTAL PROVEEDORES'!$A$3:$I$9968,5,FALSE) ->  | E109: =VLOOKUP($B$9&H109,'LISTA TOTAL PROVEEDORES'!$A$3:$I$9968,6,FALSE) ->  | F109: =VLOOKUP($B$9&H109,'LISTA TOTAL PROVEEDORES'!$A$3:$I$9968,7,FALSE) ->  | G109: =VLOOKUP($B$9&H109,'LISTA TOTAL PROVEEDORES'!$A$3:$I$9968,8,FALSE) ->  | H109: ERROR
B110: =VLOOKUP($B$9&H110,'LISTA TOTAL PROVEEDORES'!$A$3:$I$9968,9,FALSE) ->  | C110: =VLOOKUP($B$9&H110,'LISTA TOTAL PROVEEDORES'!$A$3:$I$9968,4,FALSE) ->  | D110: =VLOOKUP($B$9&H110,'LISTA TOTAL PROVEEDORES'!$A$3:$I$9968,5,FALSE) ->  | E110: =VLOOKUP($B$9&H110,'LISTA TOTAL PROVEEDORES'!$A$3:$I$9968,6,FALSE) ->  | F110: =VLOOKUP($B$9&H110,'LISTA TOTAL PROVEEDORES'!$A$3:$I$9968,7,FALSE) ->  | G110: =VLOOKUP($B$9&H110,'LISTA TOTAL PROVEEDORES'!$A$3:$I$9968,8,FALSE) ->  | H110: ERROR
B111: =VLOOKUP($B$9&H111,'LISTA TOTAL PROVEEDORES'!$A$3:$I$9968,9,FALSE) ->  | C111: =VLOOKUP($B$9&H111,'LISTA TOTAL PROVEEDORES'!$A$3:$I$9968,4,FALSE) ->  | D111: =VLOOKUP($B$9&H111,'LISTA TOTAL PROVEEDORES'!$A$3:$I$9968,5,FALSE) ->  | E111: =VLOOKUP($B$9&H111,'LISTA TOTAL PROVEEDORES'!$A$3:$I$9968,6,FALSE) ->  | F111: =VLOOKUP($B$9&H111,'LISTA TOTAL PROVEEDORES'!$A$3:$I$9968,7,FALSE) ->  | G111: =VLOOKUP($B$9&H111,'LISTA TOTAL PROVEEDORES'!$A$3:$I$9968,8,FALSE) ->  | H111: ERROR
B112: =VLOOKUP($B$9&H112,'LISTA TOTAL PROVEEDORES'!$A$3:$I$9968,9,FALSE) ->  | C112: =VLOOKUP($B$9&H112,'LISTA TOTAL PROVEEDORES'!$A$3:$I$9968,4,FALSE) ->  | D112: =VLOOKUP($B$9&H112,'LISTA TOTAL PROVEEDORES'!$A$3:$I$9968,5,FALSE) ->  | E112: =VLOOKUP($B$9&H112,'LISTA TOTAL PROVEEDORES'!$A$3:$I$9968,6,FALSE) ->  | F112: =VLOOKUP($B$9&H112,'LISTA TOTAL PROVEEDORES'!$A$3:$I$9968,7,FALSE) ->  | G112: =VLOOKUP($B$9&H112,'LISTA TOTAL PROVEEDORES'!$A$3:$I$9968,8,FALSE) ->  | H112: ERROR
B113: =VLOOKUP($B$9&H113,'LISTA TOTAL PROVEEDORES'!$A$3:$I$9968,9,FALSE) ->  | C113: =VLOOKUP($B$9&H113,'LISTA TOTAL PROVEEDORES'!$A$3:$I$9968,4,FALSE) ->  | D113: =VLOOKUP($B$9&H113,'LISTA TOTAL PROVEEDORES'!$A$3:$I$9968,5,FALSE) ->  | E113: =VLOOKUP($B$9&H113,'LISTA TOTAL PROVEEDORES'!$A$3:$I$9968,6,FALSE) ->  | F113: =VLOOKUP($B$9&H113,'LISTA TOTAL PROVEEDORES'!$A$3:$I$9968,7,FALSE) ->  | G113: =VLOOKUP($B$9&H113,'LISTA TOTAL PROVEEDORES'!$A$3:$I$9968,8,FALSE) ->  | H113: ERROR
B114: =VLOOKUP($B$9&H114,'LISTA TOTAL PROVEEDORES'!$A$3:$I$9968,9,FALSE) ->  | C114: =VLOOKUP($B$9&H114,'LISTA TOTAL PROVEEDORES'!$A$3:$I$9968,4,FALSE) ->  | D114: =VLOOKUP($B$9&H114,'LISTA TOTAL PROVEEDORES'!$A$3:$I$9968,5,FALSE) ->  | E114: =VLOOKUP($B$9&H114,'LISTA TOTAL PROVEEDORES'!$A$3:$I$9968,6,FALSE) ->  | F114: =VLOOKUP($B$9&H114,'LISTA TOTAL PROVEEDORES'!$A$3:$I$9968,7,FALSE) ->  | G114: =VLOOKUP($B$9&H114,'LISTA TOTAL PROVEEDORES'!$A$3:$I$9968,8,FALSE) ->  | H114: ERROR
B115: =VLOOKUP($B$9&H115,'LISTA TOTAL PROVEEDORES'!$A$3:$I$9968,9,FALSE) ->  | C115: =VLOOKUP($B$9&H115,'LISTA TOTAL PROVEEDORES'!$A$3:$I$9968,4,FALSE) ->  | D115: =VLOOKUP($B$9&H115,'LISTA TOTAL PROVEEDORES'!$A$3:$I$9968,5,FALSE) ->  | E115: =VLOOKUP($B$9&H115,'LISTA TOTAL PROVEEDORES'!$A$3:$I$9968,6,FALSE) ->  | F115: =VLOOKUP($B$9&H115,'LISTA TOTAL PROVEEDORES'!$A$3:$I$9968,7,FALSE) ->  | G115: =VLOOKUP($B$9&H115,'LISTA TOTAL PROVEEDORES'!$A$3:$I$9968,8,FALSE) ->  | H115: ERROR
B116: =VLOOKUP($B$9&H116,'LISTA TOTAL PROVEEDORES'!$A$3:$I$9968,9,FALSE) ->  | C116: =VLOOKUP($B$9&H116,'LISTA TOTAL PROVEEDORES'!$A$3:$I$9968,4,FALSE) ->  | D116: =VLOOKUP($B$9&H116,'LISTA TOTAL PROVEEDORES'!$A$3:$I$9968,5,FALSE) ->  | E116: =VLOOKUP($B$9&H116,'LISTA TOTAL PROVEEDORES'!$A$3:$I$9968,6,FALSE) ->  | F116: =VLOOKUP($B$9&H116,'LISTA TOTAL PROVEEDORES'!$A$3:$I$9968,7,FALSE) ->  | G116: =VLOOKUP($B$9&H116,'LISTA TOTAL PROVEEDORES'!$A$3:$I$9968,8,FALSE) ->  | H116: ERROR
B117: =VLOOKUP($B$9&H117,'LISTA TOTAL PROVEEDORES'!$A$3:$I$9968,9,FALSE) ->  | C117: =VLOOKUP($B$9&H117,'LISTA TOTAL PROVEEDORES'!$A$3:$I$9968,4,FALSE) ->  | D117: =VLOOKUP($B$9&H117,'LISTA TOTAL PROVEEDORES'!$A$3:$I$9968,5,FALSE) ->  | E117: =VLOOKUP($B$9&H117,'LISTA TOTAL PROVEEDORES'!$A$3:$I$9968,6,FALSE) ->  | F117: =VLOOKUP($B$9&H117,'LISTA TOTAL PROVEEDORES'!$A$3:$I$9968,7,FALSE) ->  | G117: =VLOOKUP($B$9&H117,'LISTA TOTAL PROVEEDORES'!$A$3:$I$9968,8,FALSE) ->  | H117: ERROR
B118: =VLOOKUP($B$9&H118,'LISTA TOTAL PROVEEDORES'!$A$3:$I$9968,9,FALSE) ->  | C118: =VLOOKUP($B$9&H118,'LISTA TOTAL PROVEEDORES'!$A$3:$I$9968,4,FALSE) ->  | D118: =VLOOKUP($B$9&H118,'LISTA TOTAL PROVEEDORES'!$A$3:$I$9968,5,FALSE) ->  | E118: =VLOOKUP($B$9&H118,'LISTA TOTAL PROVEEDORES'!$A$3:$I$9968,6,FALSE) ->  | F118: =VLOOKUP($B$9&H118,'LISTA TOTAL PROVEEDORES'!$A$3:$I$9968,7,FALSE) ->  | G118: =VLOOKUP($B$9&H118,'LISTA TOTAL PROVEEDORES'!$A$3:$I$9968,8,FALSE) ->  | H118: ERROR
B119: =VLOOKUP($B$9&H119,'LISTA TOTAL PROVEEDORES'!$A$3:$I$9968,9,FALSE) ->  | C119: =VLOOKUP($B$9&H119,'LISTA TOTAL PROVEEDORES'!$A$3:$I$9968,4,FALSE) ->  | D119: =VLOOKUP($B$9&H119,'LISTA TOTAL PROVEEDORES'!$A$3:$I$9968,5,FALSE) ->  | E119: =VLOOKUP($B$9&H119,'LISTA TOTAL PROVEEDORES'!$A$3:$I$9968,6,FALSE) ->  | F119: =VLOOKUP($B$9&H119,'LISTA TOTAL PROVEEDORES'!$A$3:$I$9968,7,FALSE) ->  | G119: =VLOOKUP($B$9&H119,'LISTA TOTAL PROVEEDORES'!$A$3:$I$9968,8,FALSE) ->  | H119: ERROR
B120: =VLOOKUP($B$9&H120,'LISTA TOTAL PROVEEDORES'!$A$3:$I$9968,9,FALSE) ->  | C120: =VLOOKUP($B$9&H120,'LISTA TOTAL PROVEEDORES'!$A$3:$I$9968,4,FALSE) ->  | D120: =VLOOKUP($B$9&H120,'LISTA TOTAL PROVEEDORES'!$A$3:$I$9968,5,FALSE) ->  | E120: =VLOOKUP($B$9&H120,'LISTA TOTAL PROVEEDORES'!$A$3:$I$9968,6,FALSE) ->  | F120: =VLOOKUP($B$9&H120,'LISTA TOTAL PROVEEDORES'!$A$3:$I$9968,7,FALSE) ->  | G120: =VLOOKUP($B$9&H120,'LISTA TOTAL PROVEEDORES'!$A$3:$I$9968,8,FALSE) ->  | H120: ERROR
B121: =VLOOKUP($B$9&H121,'LISTA TOTAL PROVEEDORES'!$A$3:$I$9968,9,FALSE) ->  | C121: =VLOOKUP($B$9&H121,'LISTA TOTAL PROVEEDORES'!$A$3:$I$9968,4,FALSE) ->  | D121: =VLOOKUP($B$9&H121,'LISTA TOTAL PROVEEDORES'!$A$3:$I$9968,5,FALSE) ->  | E121: =VLOOKUP($B$9&H121,'LISTA TOTAL PROVEEDORES'!$A$3:$I$9968,6,FALSE) ->  | F121: =VLOOKUP($B$9&H121,'LISTA TOTAL PROVEEDORES'!$A$3:$I$9968,7,FALSE) ->  | G121: =VLOOKUP($B$9&H121,'LISTA TOTAL PROVEEDORES'!$A$3:$I$9968,8,FALSE) ->  | H121: ERROR
B122: =VLOOKUP($B$9&H122,'LISTA TOTAL PROVEEDORES'!$A$3:$I$9968,9,FALSE) ->  | C122: =VLOOKUP($B$9&H122,'LISTA TOTAL PROVEEDORES'!$A$3:$I$9968,4,FALSE) ->  | D122: =VLOOKUP($B$9&H122,'LISTA TOTAL PROVEEDORES'!$A$3:$I$9968,5,FALSE) ->  | E122: =VLOOKUP($B$9&H122,'LISTA TOTAL PROVEEDORES'!$A$3:$I$9968,6,FALSE) ->  | F122: =VLOOKUP($B$9&H122,'LISTA TOTAL PROVEEDORES'!$A$3:$I$9968,7,FALSE) ->  | G122: =VLOOKUP($B$9&H122,'LISTA TOTAL PROVEEDORES'!$A$3:$I$9968,8,FALSE) ->  | H122: ERROR
B123: =VLOOKUP($B$9&H123,'LISTA TOTAL PROVEEDORES'!$A$3:$I$9968,9,FALSE) ->  | C123: =VLOOKUP($B$9&H123,'LISTA TOTAL PROVEEDORES'!$A$3:$I$9968,4,FALSE) ->  | D123: =VLOOKUP($B$9&H123,'LISTA TOTAL PROVEEDORES'!$A$3:$I$9968,5,FALSE) ->  | E123: =VLOOKUP($B$9&H123,'LISTA TOTAL PROVEEDORES'!$A$3:$I$9968,6,FALSE) ->  | F123: =VLOOKUP($B$9&H123,'LISTA TOTAL PROVEEDORES'!$A$3:$I$9968,7,FALSE) ->  | G123: =VLOOKUP($B$9&H123,'LISTA TOTAL PROVEEDORES'!$A$3:$I$9968,8,FALSE) ->  | H123: ERROR
B124: =VLOOKUP($B$9&H124,'LISTA TOTAL PROVEEDORES'!$A$3:$I$9968,9,FALSE) ->  | C124: =VLOOKUP($B$9&H124,'LISTA TOTAL PROVEEDORES'!$A$3:$I$9968,4,FALSE) ->  | D124: =VLOOKUP($B$9&H124,'LISTA TOTAL PROVEEDORES'!$A$3:$I$9968,5,FALSE) ->  | E124: =VLOOKUP($B$9&H124,'LISTA TOTAL PROVEEDORES'!$A$3:$I$9968,6,FALSE) ->  | F124: =VLOOKUP($B$9&H124,'LISTA TOTAL PROVEEDORES'!$A$3:$I$9968,7,FALSE) ->  | G124: =VLOOKUP($B$9&H124,'LISTA TOTAL PROVEEDORES'!$A$3:$I$9968,8,FALSE) ->  | H124: ERROR
B125: =VLOOKUP($B$9&H125,'LISTA TOTAL PROVEEDORES'!$A$3:$I$9968,9,FALSE) ->  | C125: =VLOOKUP($B$9&H125,'LISTA TOTAL PROVEEDORES'!$A$3:$I$9968,4,FALSE) ->  | D125: =VLOOKUP($B$9&H125,'LISTA TOTAL PROVEEDORES'!$A$3:$I$9968,5,FALSE) ->  | E125: =VLOOKUP($B$9&H125,'LISTA TOTAL PROVEEDORES'!$A$3:$I$9968,6,FALSE) ->  | F125: =VLOOKUP($B$9&H125,'LISTA TOTAL PROVEEDORES'!$A$3:$I$9968,7,FALSE) ->  | G125: =VLOOKUP($B$9&H125,'LISTA TOTAL PROVEEDORES'!$A$3:$I$9968,8,FALSE) ->  | H125: ERROR
B126: =VLOOKUP($B$9&H126,'LISTA TOTAL PROVEEDORES'!$A$3:$I$9968,9,FALSE) ->  | C126: =VLOOKUP($B$9&H126,'LISTA TOTAL PROVEEDORES'!$A$3:$I$9968,4,FALSE) ->  | D126: =VLOOKUP($B$9&H126,'LISTA TOTAL PROVEEDORES'!$A$3:$I$9968,5,FALSE) ->  | E126: =VLOOKUP($B$9&H126,'LISTA TOTAL PROVEEDORES'!$A$3:$I$9968,6,FALSE) ->  | F126: =VLOOKUP($B$9&H126,'LISTA TOTAL PROVEEDORES'!$A$3:$I$9968,7,FALSE) ->  | G126: =VLOOKUP($B$9&H126,'LISTA TOTAL PROVEEDORES'!$A$3:$I$9968,8,FALSE) ->  | H126: ERROR
B127: =VLOOKUP($B$9&H127,'LISTA TOTAL PROVEEDORES'!$A$3:$I$9968,9,FALSE) ->  | C127: =VLOOKUP($B$9&H127,'LISTA TOTAL PROVEEDORES'!$A$3:$I$9968,4,FALSE) ->  | D127: =VLOOKUP($B$9&H127,'LISTA TOTAL PROVEEDORES'!$A$3:$I$9968,5,FALSE) ->  | E127: =VLOOKUP($B$9&H127,'LISTA TOTAL PROVEEDORES'!$A$3:$I$9968,6,FALSE) ->  | F127: =VLOOKUP($B$9&H127,'LISTA TOTAL PROVEEDORES'!$A$3:$I$9968,7,FALSE) ->  | G127: =VLOOKUP($B$9&H127,'LISTA TOTAL PROVEEDORES'!$A$3:$I$9968,8,FALSE) ->  | H127: ERROR
B128: =VLOOKUP($B$9&H128,'LISTA TOTAL PROVEEDORES'!$A$3:$I$9968,9,FALSE) ->  | C128: =VLOOKUP($B$9&H128,'LISTA TOTAL PROVEEDORES'!$A$3:$I$9968,4,FALSE) ->  | D128: =VLOOKUP($B$9&H128,'LISTA TOTAL PROVEEDORES'!$A$3:$I$9968,5,FALSE) ->  | E128: =VLOOKUP($B$9&H128,'LISTA TOTAL PROVEEDORES'!$A$3:$I$9968,6,FALSE) ->  | F128: =VLOOKUP($B$9&H128,'LISTA TOTAL PROVEEDORES'!$A$3:$I$9968,7,FALSE) ->  | G128: =VLOOKUP($B$9&H128,'LISTA TOTAL PROVEEDORES'!$A$3:$I$9968,8,FALSE) ->  | H128: ERROR
B129: =VLOOKUP($B$9&H129,'LISTA TOTAL PROVEEDORES'!$A$3:$I$9968,9,FALSE) ->  | C129: =VLOOKUP($B$9&H129,'LISTA TOTAL PROVEEDORES'!$A$3:$I$9968,4,FALSE) ->  | D129: =VLOOKUP($B$9&H129,'LISTA TOTAL PROVEEDORES'!$A$3:$I$9968,5,FALSE) ->  | E129: =VLOOKUP($B$9&H129,'LISTA TOTAL PROVEEDORES'!$A$3:$I$9968,6,FALSE) ->  | F129: =VLOOKUP($B$9&H129,'LISTA TOTAL PROVEEDORES'!$A$3:$I$9968,7,FALSE) ->  | G129: =VLOOKUP($B$9&H129,'LISTA TOTAL PROVEEDORES'!$A$3:$I$9968,8,FALSE) ->  | H129: ERROR
B130: =VLOOKUP($B$9&H130,'LISTA TOTAL PROVEEDORES'!$A$3:$I$9968,9,FALSE) ->  | C130: =VLOOKUP($B$9&H130,'LISTA TOTAL PROVEEDORES'!$A$3:$I$9968,4,FALSE) ->  | D130: =VLOOKUP($B$9&H130,'LISTA TOTAL PROVEEDORES'!$A$3:$I$9968,5,FALSE) ->  | E130: =VLOOKUP($B$9&H130,'LISTA TOTAL PROVEEDORES'!$A$3:$I$9968,6,FALSE) ->  | F130: =VLOOKUP($B$9&H130,'LISTA TOTAL PROVEEDORES'!$A$3:$I$9968,7,FALSE) ->  | G130: =VLOOKUP($B$9&H130,'LISTA TOTAL PROVEEDORES'!$A$3:$I$9968,8,FALSE) ->  | H130: ERROR
B131: =VLOOKUP($B$9&H131,'LISTA TOTAL PROVEEDORES'!$A$3:$I$9968,9,FALSE) ->  | C131: =VLOOKUP($B$9&H131,'LISTA TOTAL PROVEEDORES'!$A$3:$I$9968,4,FALSE) ->  | D131: =VLOOKUP($B$9&H131,'LISTA TOTAL PROVEEDORES'!$A$3:$I$9968,5,FALSE) ->  | E131: =VLOOKUP($B$9&H131,'LISTA TOTAL PROVEEDORES'!$A$3:$I$9968,6,FALSE) ->  | F131: =VLOOKUP($B$9&H131,'LISTA TOTAL PROVEEDORES'!$A$3:$I$9968,7,FALSE) ->  | G131: =VLOOKUP($B$9&H131,'LISTA TOTAL PROVEEDORES'!$A$3:$I$9968,8,FALSE) ->  | H131: ERROR
B132: =VLOOKUP($B$9&H132,'LISTA TOTAL PROVEEDORES'!$A$3:$I$9968,9,FALSE) ->  | C132: =VLOOKUP($B$9&H132,'LISTA TOTAL PROVEEDORES'!$A$3:$I$9968,4,FALSE) ->  | D132: =VLOOKUP($B$9&H132,'LISTA TOTAL PROVEEDORES'!$A$3:$I$9968,5,FALSE) ->  | E132: =VLOOKUP($B$9&H132,'LISTA TOTAL PROVEEDORES'!$A$3:$I$9968,6,FALSE) ->  | F132: =VLOOKUP($B$9&H132,'LISTA TOTAL PROVEEDORES'!$A$3:$I$9968,7,FALSE) ->  | G132: =VLOOKUP($B$9&H132,'LISTA TOTAL PROVEEDORES'!$A$3:$I$9968,8,FALSE) ->  | H132: ERROR
B133: =VLOOKUP($B$9&H133,'LISTA TOTAL PROVEEDORES'!$A$3:$I$9968,9,FALSE) ->  | C133: =VLOOKUP($B$9&H133,'LISTA TOTAL PROVEEDORES'!$A$3:$I$9968,4,FALSE) ->  | D133: =VLOOKUP($B$9&H133,'LISTA TOTAL PROVEEDORES'!$A$3:$I$9968,5,FALSE) ->  | E133: =VLOOKUP($B$9&H133,'LISTA TOTAL PROVEEDORES'!$A$3:$I$9968,6,FALSE) ->  | F133: =VLOOKUP($B$9&H133,'LISTA TOTAL PROVEEDORES'!$A$3:$I$9968,7,FALSE) ->  | G133: =VLOOKUP($B$9&H133,'LISTA TOTAL PROVEEDORES'!$A$3:$I$9968,8,FALSE) ->  | H133: ERROR
B134: =VLOOKUP($B$9&H134,'LISTA TOTAL PROVEEDORES'!$A$3:$I$9968,9,FALSE) ->  | C134: =VLOOKUP($B$9&H134,'LISTA TOTAL PROVEEDORES'!$A$3:$I$9968,4,FALSE) ->  | D134: =VLOOKUP($B$9&H134,'LISTA TOTAL PROVEEDORES'!$A$3:$I$9968,5,FALSE) ->  | E134: =VLOOKUP($B$9&H134,'LISTA TOTAL PROVEEDORES'!$A$3:$I$9968,6,FALSE) ->  | F134: =VLOOKUP($B$9&H134,'LISTA TOTAL PROVEEDORES'!$A$3:$I$9968,7,FALSE) ->  | G134: =VLOOKUP($B$9&H134,'LISTA TOTAL PROVEEDORES'!$A$3:$I$9968,8,FALSE) ->  | H134: ERROR
B135: =VLOOKUP($B$9&H135,'LISTA TOTAL PROVEEDORES'!$A$3:$I$9968,9,FALSE) ->  | C135: =VLOOKUP($B$9&H135,'LISTA TOTAL PROVEEDORES'!$A$3:$I$9968,4,FALSE) ->  | D135: =VLOOKUP($B$9&H135,'LISTA TOTAL PROVEEDORES'!$A$3:$I$9968,5,FALSE) ->  | E135: =VLOOKUP($B$9&H135,'LISTA TOTAL PROVEEDORES'!$A$3:$I$9968,6,FALSE) ->  | F135: =VLOOKUP($B$9&H135,'LISTA TOTAL PROVEEDORES'!$A$3:$I$9968,7,FALSE) ->  | G135: =VLOOKUP($B$9&H135,'LISTA TOTAL PROVEEDORES'!$A$3:$I$9968,8,FALSE) ->  | H135: ERROR
B136: =VLOOKUP($B$9&H136,'LISTA TOTAL PROVEEDORES'!$A$3:$I$9968,9,FALSE) ->  | C136: =VLOOKUP($B$9&H136,'LISTA TOTAL PROVEEDORES'!$A$3:$I$9968,4,FALSE) ->  | D136: =VLOOKUP($B$9&H136,'LISTA TOTAL PROVEEDORES'!$A$3:$I$9968,5,FALSE) ->  | E136: =VLOOKUP($B$9&H136,'LISTA TOTAL PROVEEDORES'!$A$3:$I$9968,6,FALSE) ->  | F136: =VLOOKUP($B$9&H136,'LISTA TOTAL PROVEEDORES'!$A$3:$I$9968,7,FALSE) ->  | G136: =VLOOKUP($B$9&H136,'LISTA TOTAL PROVEEDORES'!$A$3:$I$9968,8,FALSE) ->  | H136: ERROR

Sheet Actividades a todo costo
A9: 1114 | B9: 1161 | C9: =VLOOKUP(B9,'LISTA TOTAL PROVEEDORES'!B3:C9968,2,FALSE) -> ACTIVIDADES A TODO COSTO | H9: =+COUNTIF('LISTA TOTAL PROVEEDORES'!B3:B9968,B9) -> 14
B12: No. | C12: NOMBRE COMPLETO | D12: UBICACIÓN | E12: DIRECCION | F12: TELEFONO | G12: CORREO ELECTRONICO
B13: =VLOOKUP($B$9&H13,'LISTA TOTAL PROVEEDORES'!$A$3:$I$9968,9,FALSE) -> 14 | C13: =VLOOKUP($B$9&H13,'LISTA TOTAL PROVEEDORES'!$A$3:$I$9968,4,FALSE) -> AMVAR WORLD SAS | D13: =VLOOKUP($B$9&H13,'LISTA TOTAL PROVEEDORES'!$A$3:$I$9968,5,FALSE) -> Bogotá | E13: =VLOOKUP($B$9&H13,'LISTA TOTAL PROVEEDORES'!$A$3:$I$9968,6,FALSE) -> Av. 30 - 7 de agosto 68-125 local 35 | F13: =VLOOKUP($B$9&H13,'LISTA TOTAL PROVEEDORES'!$A$3:$I$9968,7,FALSE) -> 3810603 EXT 101-102 | G13: =VLOOKUP($B$9&H13,'LISTA TOTAL PROVEEDORES'!$A$3:$I$9968,8,FALSE) -> ventas@anvarworld.com | H13: 1
B14: =VLOOKUP($B$9&H14,'LISTA TOTAL PROVEEDORES'!$A$3:$I$9968,9,FALSE) -> 15 | C14: =VLOOKUP($B$9&H14,'LISTA TOTAL PROVEEDORES'!$A$3:$I$9968,4,FALSE) -> CABLES Y GUAYAS ALGOFER | D14: =VLOOKUP($B$9&H14,'LISTA TOTAL PROVEEDORES'!$A$3:$I$9968,5,FALSE) -> Bogota | E14: =VLOOKUP($B$9&H14,'LISTA TOTAL PROVEEDORES'!$A$3:$I$9968,6,FALSE) -> Cra. 109 A 66 33 | F14: =VLOOKUP($B$9&H14,'LISTA TOTAL PROVEEDORES'!$A$3:$I$9968,7,FALSE) -> 3133184817 3214983819 4345598 | G14: =VLOOKUP($B$9&H14,'LISTA TOTAL PROVEEDORES'!$A$3:$I$9968,8,FALSE) -> servicioalcliente@cablesyguayasalgofer.com | H14: =+IF(H13<$H$9,H13+1,"ERROR") -> 2
B15: =VLOOKUP($B$9&H15,'LISTA TOTAL PROVEEDORES'!$A$3:$I$9968,9,FALSE) -> 16 | C15: =VLOOKUP($B$9&H15,'LISTA TOTAL PROVEEDORES'!$A$3:$I$9968,4,FALSE) -> CARPAS E INGENIERÍA | D15: =VLOOKUP($B$9&H15,'LISTA TOTAL PROVEEDORES'!$A$3:$I$9968,5,FALSE) -> Bogota | E15: =VLOOKUP($B$9&H15,'LISTA TOTAL PROVEEDORES'!$A$3:$I$9968,6,FALSE) -> Calle 9 32 A 41 | F15: =VLOOKUP($B$9&H15,'LISTA TOTAL PROVEEDORES'!$A$3:$I$9968,7,FALSE) -> 3102360339 5618623 | G15: =VLOOKUP($B$9&H15,'LISTA TOTAL PROVEEDORES'!$A$3:$I$9968,8,FALSE) -> ventas@carpascolombia.com | H15: 3
B16: =VLOOKUP($B$9&H16,'LISTA TOTAL PROVEEDORES'!$A$3:$I$9968,9,FALSE) -> 17 | C16: =VLOOKUP($B$9&H16,'LISTA TOTAL PROVEEDORES'!$A$3:$I$9968,4,FALSE) -> CIELO RASOS & DIVISIONES | D16: =VLOOKUP($B$9&H16,'LISTA TOTAL PROVEEDORES'!$A$3:$I$9968,5,FALSE) -> Bogotá | E16: =VLOOKUP($B$9&H16,'LISTA TOTAL PROVEEDORES'!$A$3:$I$9968,6,FALSE) -> Cra 14 #75-58 | F16: =VLOOKUP($B$9&H16,'LISTA TOTAL PROVEEDORES'!$A$3:$I$9968,7,FALSE) -> 248 18 60 310 577 4471 | G16: =VLOOKUP($B$9&H16,'LISTA TOTAL PROVEEDORES'!$A$3:$I$9968,8,FALSE) -> ventas@cielosrasos.com | H16: 4
B17: =VLOOKUP($B$9&H17,'LISTA TOTAL PROVEEDORES'!$A$3:$I$9968,9,FALSE) -> 18 | C17: =VLOOKUP($B$9&H17,'LISTA TOTAL PROVEEDORES'!$A$3:$I$9968,4,FALSE) -> COVAL COMERCIAL S. A. | D17: =VLOOKUP($B$9&H17,'LISTA TOTAL PROVEEDORES'!$A$3:$I$9968,5,FALSE) -> Bogota | E17: =VLOOKUP($B$9&H17,'LISTA TOTAL PROVEEDORES'!$A$3:$I$9968,6,FALSE) -> Avda. Ciudad de Cali 5 A 92 Sur | F17: =VLOOKUP($B$9&H17,'LISTA TOTAL PROVEEDORES'!$A$3:$I$9968,7,FALSE) -> 3152358446 8759100 Ext. 144 - 145 7454671 | G17: =VLOOKUP($B$9&H17,'LISTA TOTAL PROVEEDORES'!$A$3:$I$9968,8,FALSE) -> info@coval.com.co | H17: 5
B18: =VLOOKUP($B$9&H18,'LISTA TOTAL PROVEEDORES'!$A$3:$I$9968,9,FALSE) -> 19 | C18: =VLOOKUP($B$9&H18,'LISTA TOTAL PROVEEDORES'!$A$3:$I$9968,4,FALSE) -> GRABADO Y CORTE LASER BOGOTA | D18: =VLOOKUP($B$9&H18,'LISTA TOTAL PROVEEDORES'!$A$3:$I$9968,5,FALSE) -> Bogota | E18: =VLOOKUP($B$9&H18,'LISTA TOTAL PROVEEDORES'!$A$3:$I$9968,6,FALSE) -> Carrera 27B No. 24B - 23 | F18: =VLOOKUP($B$9&H18,'LISTA TOTAL PROVEEDORES'!$A$3:$I$9968,7,FALSE) -> 310 760 3311 560 2421 | G18: =VLOOKUP($B$9&H18,'LISTA TOTAL PROVEEDORES'!$A$3:$I$9968,8,FALSE) -> ventas@grabadoycortelaser.com | H18: 6
B19: =VLOOKUP($B$9&H19,'LISTA TOTAL PROVEEDORES'!$A$3:$I$9968,9,FALSE) -> 20 | C19: =VLOOKUP($B$9&H19,'LISTA TOTAL PROVEEDORES'!$A$3:$I$9968,4,FALSE) -> HB SADELEC Estructuras Metálicas | D19: =VLOOKUP($B$9&H19,'LISTA TOTAL PROVEEDORES'!$A$3:$I$9968,5,FALSE) -> Bogota | E19: =VLOOKUP($B$9&H19,'LISTA TOTAL PROVEEDORES'!$A$3:$I$9968,6,FALSE) -> Avda. Cra. 129 17 F 97 | F19: =VLOOKUP($B$9&H19,'LISTA TOTAL PROVEEDORES'!$A$3:$I$9968,7,FALSE) -> 4224700 Ext. 121 4155620 | G19: =VLOOKUP($B$9&H19,'LISTA TOTAL PROVEEDORES'!$A$3:$I$9968,8,FALSE) -> david.castellanos@hbsadelec.com.co | H19: 7
B20: =VLOOKUP($B$9&H20,'LISTA TOTAL PROVEEDORES'!$A$3:$I$9968,9,FALSE) -> 21 | C20: =VLOOKUP($B$9&H20,'LISTA TOTAL PROVEEDORES'!$A$3:$I$9968,4,FALSE) -> PROELÉCTRICOS | D20: =VLOOKUP($B$9&H20,'LISTA TOTAL PROVEEDORES'!$A$3:$I$9968,5,FALSE) -> Bogotá | E20: =VLOOKUP($B$9&H20,'LISTA TOTAL PROVEEDORES'!$A$3:$I$9968,6,FALSE) -> CALLE 12 A No. 21 - 21 | F20: =VLOOKUP($B$9&H20,'LISTA TOTAL PROVEEDORES'!$A$3:$I$9968,7,FALSE) -> 2471255 EXT. 301 | G20: =VLOOKUP($B$9&H20,'LISTA TOTAL PROVEEDORES'!$A$3:$I$9968,8,FALSE) -> presupuestos@proelectricos.com | H20: 8
B21: =VLOOKUP($B$9&H21,'LISTA TOTAL PROVEEDORES'!$A$3:$I$9968,9,FALSE) -> 22 | C21: =VLOOKUP($B$9&H21,'LISTA TOTAL PROVEEDORES'!$A$3:$I$9968,4,FALSE) -> SEÑAL VIAS SAS | D21: =VLOOKUP($B$9&H21,'LISTA TOTAL PROVEEDORES'!$A$3:$I$9968,5,FALSE) -> Bogota | E21: =VLOOKUP($B$9&H21,'LISTA TOTAL PROVEEDORES'!$A$3:$I$9968,6,FALSE) -> Calle 38 Sur 72 H 30 | F21: =VLOOKUP($B$9&H21,'LISTA TOTAL PROVEEDORES'!$A$3:$I$9968,7,FALSE) -> 4034647 | G21: =VLOOKUP($B$9&H21,'LISTA TOTAL PROVEEDORES'!$A$3:$I$9968,8,FALSE) -> senalvias@yahoo.es | H21: 9
B22: =VLOOKUP($B$9&H22,'LISTA TOTAL PROVEEDORES'!$A$3:$I$9968,9,FALSE) -> 23 | C22: =VLOOKUP($B$9&H22,'LISTA TOTAL PROVEEDORES'!$A$3:$I$9968,4,FALSE) -> SERVIN GELEC SAS | D22: =VLOOKUP($B$9&H22,'LISTA TOTAL PROVEEDORES'!$A$3:$I$9968,5,FALSE) -> Bogotá | E22: =VLOOKUP($B$9&H22,'LISTA TOTAL PROVEEDORES'!$A$3:$I$9968,6,FALSE) -> CALLE 65 A nO. 16 - 30 OF. 201 | F22: =VLOOKUP($B$9&H22,'LISTA TOTAL PROVEEDORES'!$A$3:$I$9968,7,FALSE) -> 7031742 | G22: =VLOOKUP($B$9&H22,'LISTA TOTAL PROVEEDORES'!$A$3:$I$9968,8,FALSE) -> comercial@servingelec.com | H22: 10
B23: =VLOOKUP($B$9&H23,'LISTA TOTAL PROVEEDORES'!$A$3:$I$9968,9,FALSE) -> 24 | C23: =VLOOKUP($B$9&H23,'LISTA TOTAL PROVEEDORES'!$A$3:$I$9968,4,FALSE) -> SOY RED | D23: =VLOOKUP($B$9&H23,'LISTA TOTAL PROVEEDORES'!$A$3:$I$9968,5,FALSE) -> Bogotá | E23: =VLOOKUP($B$9&H23,'LISTA TOTAL PROVEEDORES'!$A$3:$I$9968,6,FALSE) -> Carrera 14 #75-77 | F23: =VLOOKUP($B$9&H23,'LISTA TOTAL PROVEEDORES'!$A$3:$I$9968,7,FALSE) -> 477 8701 | G23: =VLOOKUP($B$9&H23,'LISTA TOTAL PROVEEDORES'!$A$3:$I$9968,8,FALSE) -> comercial@soyred.net | H23: 11
B24: =VLOOKUP($B$9&H24,'LISTA TOTAL PROVEEDORES'!$A$3:$I$9968,9,FALSE) -> 25 | C24: =VLOOKUP($B$9&H24,'LISTA TOTAL PROVEEDORES'!$A$3:$I$9968,4,FALSE) -> STUP DE COLOMBIA | D24: =VLOOKUP($B$9&H24,'LISTA TOTAL PROVEEDORES'!$A$3:$I$9968,5,FALSE) -> Bogota | E24: =VLOOKUP($B$9&H24,'LISTA TOTAL PROVEEDORES'!$A$3:$I$9968,6,FALSE) -> Cra. 50 126 19 | F24: =VLOOKUP($B$9&H24,'LISTA TOTAL PROVEEDORES'!$A$3:$I$9968,7,FALSE) -> 2131601 | G24: =VLOOKUP($B$9&H24,'LISTA TOTAL PROVEEDORES'!$A$3:$I$9968,8,FALSE) -> carlos.salgado@stup.co | H24: 12
B25: =VLOOKUP($B$9&H25,'LISTA TOTAL PROVEEDORES'!$A$3:$I$9968,9,FALSE) -> 26 | C25: =VLOOKUP($B$9&H25,'LISTA TOTAL PROVEEDORES'!$A$3:$I$9968,4,FALSE) -> SUM RED LTDA | D25: =VLOOKUP($B$9&H25,'LISTA TOTAL PROVEEDORES'!$A$3:$I$9968,5,FALSE) -> Bogotá | E25: =VLOOKUP($B$9&H25,'LISTA TOTAL PROVEEDORES'!$A$3:$I$9968,6,FALSE) -> Calle 154 A 96 - 40 23 Local 203 | F25: =VLOOKUP($B$9&H25,'LISTA TOTAL PROVEEDORES'!$A$3:$I$9968,7,FALSE) -> 4778701 3212418771 3212418769 | G25: =VLOOKUP($B$9&H25,'LISTA TOTAL PROVEEDORES'!$A$3:$I$9968,8,FALSE) -> asistente@soyred.net comercial@soyred.net | H25: 13
B26: =VLOOKUP($B$9&H26,'LISTA TOTAL PROVEEDORES'!$A$3:$I$9968,9,FALSE) -> 27 | C26: =VLOOKUP($B$9&H26,'LISTA TOTAL PROVEEDORES'!$A$3:$I$9968,4,FALSE) -> TECNOCOMPRAS | D26: =VLOOKUP($B$9&H26,'LISTA TOTAL PROVEEDORES'!$A$3:$I$9968,5,FALSE) -> Bogotá | E26: =VLOOKUP($B$9&H26,'LISTA TOTAL PROVEEDORES'!$A$3:$I$9968,6,FALSE) -> www.tecnocompras.com.co | F26: =VLOOKUP($B$9&H26,'LISTA TOTAL PROVEEDORES'!$A$3:$I$9968,7,FALSE) -> 316 8701076 3013782 | G26: =VLOOKUP($B$9&H26,'LISTA TOTAL PROVEEDORES'!$A$3:$I$9968,8,FALSE) -> gerencia@tecnocompras.com.co | H26: 14
B27: =VLOOKUP($B$9&H27,'LISTA TOTAL PROVEEDORES'!$A$3:$I$9968,9,FALSE) ->  | C27: =VLOOKUP($B$9&H27,'LISTA TOTAL PROVEEDORES'!$A$3:$I$9968,4,FALSE) ->  | D27: =VLOOKUP($B$9&H27,'LISTA TOTAL PROVEEDORES'!$A$3:$I$9968,5,FALSE) ->  | E27: =VLOOKUP($B$9&H27,'LISTA TOTAL PROVEEDORES'!$A$3:$I$9968,6,FALSE) ->  | F27: =VLOOKUP($B$9&H27,'LISTA TOTAL PROVEEDORES'!$A$3:$I$9968,7,FALSE) ->  | G27: =VLOOKUP($B$9&H27,'LISTA TOTAL PROVEEDORES'!$A$3:$I$9968,8,FALSE) ->  | H27: ERROR
B28: =VLOOKUP($B$9&H28,'LISTA TOTAL PROVEEDORES'!$A$3:$I$9968,9,FALSE) ->  | C28: =VLOOKUP($B$9&H28,'LISTA TOTAL PROVEEDORES'!$A$3:$I$9968,4,FALSE) ->  | D28: =VLOOKUP($B$9&H28,'LISTA TOTAL PROVEEDORES'!$A$3:$I$9968,5,FALSE) ->  | E28: =VLOOKUP($B$9&H28,'LISTA TOTAL PROVEEDORES'!$A$3:$I$9968,6,FALSE) ->  | F28: =VLOOKUP($B$9&H28,'LISTA TOTAL PROVEEDORES'!$A$3:$I$9968,7,FALSE) ->  | G28: =VLOOKUP($B$9&H28,'LISTA TOTAL PROVEEDORES'!$A$3:$I$9968,8,FALSE) ->  | H28: ERROR
B29: =VLOOKUP($B$9&H29,'LISTA TOTAL PROVEEDORES'!$A$3:$I$9968,9,FALSE) ->  | C29: =VLOOKUP($B$9&H29,'LISTA TOTAL PROVEEDORES'!$A$3:$I$9968,4,FALSE) ->  | D29: =VLOOKUP($B$9&H29,'LISTA TOTAL PROVEEDORES'!$A$3:$I$9968,5,FALSE) ->  | E29: =VLOOKUP($B$9&H29,'LISTA TOTAL PROVEEDORES'!$A$3:$I$9968,6,FALSE) ->  | F29: =VLOOKUP($B$9&H29,'LISTA TOTAL PROVEEDORES'!$A$3:$I$9968,7,FALSE) ->  | G29: =VLOOKUP($B$9&H29,'LISTA TOTAL PROVEEDORES'!$A$3:$I$9968,8,FALSE) ->  | H29: ERROR
B30: =VLOOKUP($B$9&H30,'LISTA TOTAL PROVEEDORES'!$A$3:$I$9968,9,FALSE) ->  | C30: =VLOOKUP($B$9&H30,'LISTA TOTAL PROVEEDORES'!$A$3:$I$9968,4,FALSE) ->  | D30: =VLOOKUP($B$9&H30,'LISTA TOTAL PROVEEDORES'!$A$3:$I$9968,5,FALSE) ->  | E30: =VLOOKUP($B$9&H30,'LISTA TOTAL PROVEEDORES'!$A$3:$I$9968,6,FALSE) ->  | F30: =VLOOKUP($B$9&H30,'LISTA TOTAL PROVEEDORES'!$A$3:$I$9968,7,FALSE) ->  | G30: =VLOOKUP($B$9&H30,'LISTA TOTAL PROVEEDORES'!$A$3:$I$9968,8,FALSE) ->  | H30: ERROR
B31: =VLOOKUP($B$9&H31,'LISTA TOTAL PROVEEDORES'!$A$3:$I$9968,9,FALSE) ->  | C31: =VLOOKUP($B$9&H31,'LISTA TOTAL PROVEEDORES'!$A$3:$I$9968,4,FALSE) ->  | D31: =VLOOKUP($B$9&H31,'LISTA TOTAL PROVEEDORES'!$A$3:$I$9968,5,FALSE) ->  | E31: =VLOOKUP($B$9&H31,'LISTA TOTAL PROVEEDORES'!$A$3:$I$9968,6,FALSE) ->  | F31: =VLOOKUP($B$9&H31,'LISTA TOTAL PROVEEDORES'!$A$3:$I$9968,7,FALSE) ->  | G31: =VLOOKUP($B$9&H31,'LISTA TOTAL PROVEEDORES'!$A$3:$I$9968,8,FALSE) ->  | H31: ERROR
B32: =VLOOKUP($B$9&H32,'LISTA TOTAL PROVEEDORES'!$A$3:$I$9968,9,FALSE) ->  | C32: =VLOOKUP($B$9&H32,'LISTA TOTAL PROVEEDORES'!$A$3:$I$9968,4,FALSE) ->  | D32: =VLOOKUP($B$9&H32,'LISTA TOTAL PROVEEDORES'!$A$3:$I$9968,5,FALSE) ->  | E32: =VLOOKUP($B$9&H32,'LISTA TOTAL PROVEEDORES'!$A$3:$I$9968,6,FALSE) ->  | F32: =VLOOKUP($B$9&H32,'LISTA TOTAL PROVEEDORES'!$A$3:$I$9968,7,FALSE) ->  | G32: =VLOOKUP($B$9&H32,'LISTA TOTAL PROVEEDORES'!$A$3:$I$9968,8,FALSE) ->  | H32: ERROR
B33: =VLOOKUP($B$9&H33,'LISTA TOTAL PROVEEDORES'!$A$3:$I$9968,9,FALSE) ->  | C33: =VLOOKUP($B$9&H33,'LISTA TOTAL PROVEEDORES'!$A$3:$I$9968,4,FALSE) ->  | D33: =VLOOKUP($B$9&H33,'LISTA TOTAL PROVEEDORES'!$A$3:$I$9968,5,FALSE) ->  | E33: =VLOOKUP($B$9&H33,'LISTA TOTAL PROVEEDORES'!$A$3:$I$9968,6,FALSE) ->  | F33: =VLOOKUP($B$9&H33,'LISTA TOTAL PROVEEDORES'!$A$3:$I$9968,7,FALSE) ->  | G33: =VLOOKUP($B$9&H33,'LISTA TOTAL PROVEEDORES'!$A$3:$I$9968,8,FALSE) ->  | H33: ERROR
B34: =VLOOKUP($B$9&H34,'LISTA TOTAL PROVEEDORES'!$A$3:$I$9968,9,FALSE) ->  | C34: =VLOOKUP($B$9&H34,'LISTA TOTAL PROVEEDORES'!$A$3:$I$9968,4,FALSE) ->  | D34: =VLOOKUP($B$9&H34,'LISTA TOTAL PROVEEDORES'!$A$3:$I$9968,5,FALSE) ->  | E34: =VLOOKUP($B$9&H34,'LISTA TOTAL PROVEEDORES'!$A$3:$I$9968,6,FALSE) ->  | F34: =VLOOKUP($B$9&H34,'LISTA TOTAL PROVEEDORES'!$A$3:$I$9968,7,FALSE) ->  | G34: =VLOOKUP($B$9&H34,'LISTA TOTAL PROVEEDORES'!$A$3:$I$9968,8,FALSE) ->  | H34: ERROR
B35: =VLOOKUP($B$9&H35,'LISTA TOTAL PROVEEDORES'!$A$3:$I$9968,9,FALSE) ->  | C35: =VLOOKUP($B$9&H35,'LISTA TOTAL PROVEEDORES'!$A$3:$I$9968,4,FALSE) ->  | D35: =VLOOKUP($B$9&H35,'LISTA TOTAL PROVEEDORES'!$A$3:$I$9968,5,FALSE) ->  | E35: =VLOOKUP($B$9&H35,'LISTA TOTAL PROVEEDORES'!$A$3:$I$9968,6,FALSE) ->  | F35: =VLOOKUP($B$9&H35,'LISTA TOTAL PROVEEDORES'!$A$3:$I$9968,7,FALSE) ->  | G35: =VLOOKUP($B$9&H35,'LISTA TOTAL PROVEEDORES'!$A$3:$I$9968,8,FALSE) ->  | H35: ERROR
B36: =VLOOKUP($B$9&H36,'LISTA TOTAL PROVEEDORES'!$A$3:$I$9968,9,FALSE) ->  | C36: =VLOOKUP($B$9&H36,'LISTA TOTAL PROVEEDORES'!$A$3:$I$9968,4,FALSE) ->  | D36: =VLOOKUP($B$9&H36,'LISTA TOTAL PROVEEDORES'!$A$3:$I$9968,5,FALSE) ->  | E36: =VLOOKUP($B$9&H36,'LISTA TOTAL PROVEEDORES'!$A$3:$I$9968,6,FALSE) ->  | F36: =VLOOKUP($B$9&H36,'LISTA TOTAL PROVEEDORES'!$A$3:$I$9968,7,FALSE) ->  | G36: =VLOOKUP($B$9&H36,'LISTA TOTAL PROVEEDORES'!$A$3:$I$9968,8,FALSE) ->  | H36: ERROR
B37: =VLOOKUP($B$9&H37,'LISTA TOTAL PROVEEDORES'!$A$3:$I$9968,9,FALSE) ->  | C37: =VLOOKUP($B$9&H37,'LISTA TOTAL PROVEEDORES'!$A$3:$I$9968,4,FALSE) ->  | D37: =VLOOKUP($B$9&H37,'LISTA TOTAL PROVEEDORES'!$A$3:$I$9968,5,FALSE) ->  | E37: =VLOOKUP($B$9&H37,'LISTA TOTAL PROVEEDORES'!$A$3:$I$9968,6,FALSE) ->  | F37: =VLOOKUP($B$9&H37,'LISTA TOTAL PROVEEDORES'!$A$3:$I$9968,7,FALSE) ->  | G37: =VLOOKUP($B$9&H37,'LISTA TOTAL PROVEEDORES'!$A$3:$I$9968,8,FALSE) ->  | H37: ERROR
B38: =VLOOKUP($B$9&H38,'LISTA TOTAL PROVEEDORES'!$A$3:$I$9968,9,FALSE) ->  | C38: =VLOOKUP($B$9&H38,'LISTA TOTAL PROVEEDORES'!$A$3:$I$9968,4,FALSE) ->  | D38: =VLOOKUP($B$9&H38,'LISTA TOTAL PROVEEDORES'!$A$3:$I$9968,5,FALSE) ->  | E38: =VLOOKUP($B$9&H38,'LISTA TOTAL PROVEEDORES'!$A$3:$I$9968,6,FALSE) ->  | F38: =VLOOKUP($B$9&H38,'LISTA TOTAL PROVEEDORES'!$A$3:$I$9968,7,FALSE) ->  | G38: =VLOOKUP($B$9&H38,'LISTA TOTAL PROVEEDORES'!$A$3:$I$9968,8,FALSE) ->  | H38: ERROR
B39: =VLOOKUP($B$9&H39,'LISTA TOTAL PROVEEDORES'!$A$3:$I$9968,9,FALSE) ->  | C39: =VLOOKUP($B$9&H39,'LISTA TOTAL PROVEEDORES'!$A$3:$I$9968,4,FALSE) ->  | D39: =VLOOKUP($B$9&H39,'LISTA TOTAL PROVEEDORES'!$A$3:$I$9968,5,FALSE) ->  | E39: =VLOOKUP($B$9&H39,'LISTA TOTAL PROVEEDORES'!$A$3:$I$9968,6,FALSE) ->  | F39: =VLOOKUP($B$9&H39,'LISTA TOTAL PROVEEDORES'!$A$3:$I$9968,7,FALSE) ->  | G39: =VLOOKUP($B$9&H39,'LISTA TOTAL PROVEEDORES'!$A$3:$I$9968,8,FALSE) ->  | H39: ERROR
B40: =VLOOKUP($B$9&H40,'LISTA TOTAL PROVEEDORES'!$A$3:$I$9968,9,FALSE) ->  | C40: =VLOOKUP($B$9&H40,'LISTA TOTAL PROVEEDORES'!$A$3:$I$9968,4,FALSE) ->  | D40: =VLOOKUP($B$9&H40,'LISTA TOTAL PROVEEDORES'!$A$3:$I$9968,5,FALSE) ->  | E40: =VLOOKUP($B$9&H40,'LISTA TOTAL PROVEEDORES'!$A$3:$I$9968,6,FALSE) ->  | F40: =VLOOKUP($B$9&H40,'LISTA TOTAL PROVEEDORES'!$A$3:$I$9968,7,FALSE) ->  | G40: =VLOOKUP($B$9&H40,'LISTA TOTAL PROVEEDORES'!$A$3:$I$9968,8,FALSE) ->  | H40: ERROR
B41: =VLOOKUP($B$9&H41,'LISTA TOTAL PROVEEDORES'!$A$3:$I$9968,9,FALSE) ->  | C41: =VLOOKUP($B$9&H41,'LISTA TOTAL PROVEEDORES'!$A$3:$I$9968,4,FALSE) ->  | D41: =VLOOKUP($B$9&H41,'LISTA TOTAL PROVEEDORES'!$A$3:$I$9968,5,FALSE) ->  | E41: =VLOOKUP($B$9&H41,'LISTA TOTAL PROVEEDORES'!$A$3:$I$9968,6,FALSE) ->  | F41: =VLOOKUP($B$9&H41,'LISTA TOTAL PROVEEDORES'!$A$3:$I$9968,7,FALSE) ->  | G41: =VLOOKUP($B$9&H41,'LISTA TOTAL PROVEEDORES'!$A$3:$I$9968,8,FALSE) ->  | H41: ERROR
B42: =VLOOKUP($B$9&H42,'LISTA TOTAL PROVEEDORES'!$A$3:$I$9968,9,FALSE) ->  | C42: =VLOOKUP($B$9&H42,'LISTA TOTAL PROVEEDORES'!$A$3:$I$9968,4,FALSE) ->  | D42: =VLOOKUP($B$9&H42,'LISTA TOTAL PROVEEDORES'!$A$3:$I$9968,5,FALSE) ->  | E42: =VLOOKUP($B$9&H42,'LISTA TOTAL PROVEEDORES'!$A$3:$I$9968,6,FALSE) ->  | F42: =VLOOKUP($B$9&H42,'LISTA TOTAL PROVEEDORES'!$A$3:$I$9968,7,FALSE) ->  | G42: =VLOOKUP($B$9&H42,'LISTA TOTAL PROVEEDORES'!$A$3:$I$9968,8,FALSE) ->  | H42: ERROR
B43: =VLOOKUP($B$9&H43,'LISTA TOTAL PROVEEDORES'!$A$3:$I$9968,9,FALSE) ->  | C43: =VLOOKUP($B$9&H43,'LISTA TOTAL PROVEEDORES'!$A$3:$I$9968,4,FALSE) ->  | D43: =VLOOKUP($B$9&H43,'LISTA TOTAL PROVEEDORES'!$A$3:$I$9968,5,FALSE) ->  | E43: =VLOOKUP($B$9&H43,'LISTA TOTAL PROVEEDORES'!$A$3:$I$9968,6,FALSE) ->  | F43: =VLOOKUP($B$9&H43,'LISTA TOTAL PROVEEDORES'!$A$3:$I$9968,7,FALSE) ->  | G43: =VLOOKUP($B$9&H43,'LISTA TOTAL PROVEEDORES'!$A$3:$I$9968,8,FALSE) ->  | H43: ERROR
B44: =VLOOKUP($B$9&H44,'LISTA TOTAL PROVEEDORES'!$A$3:$I$9968,9,FALSE) ->  | C44: =VLOOKUP($B$9&H44,'LISTA TOTAL PROVEEDORES'!$A$3:$I$9968,4,FALSE) ->  | D44: =VLOOKUP($B$9&H44,'LISTA TOTAL PROVEEDORES'!$A$3:$I$9968,5,FALSE) ->  | E44: =VLOOKUP($B$9&H44,'LISTA TOTAL PROVEEDORES'!$A$3:$I$9968,6,FALSE) ->  | F44: =VLOOKUP($B$9&H44,'LISTA TOTAL PROVEEDORES'!$A$3:$I$9968,7,FALSE) ->  | G44: =VLOOKUP($B$9&H44,'LISTA TOTAL PROVEEDORES'!$A$3:$I$9968,8,FALSE) ->  | H44: ERROR
B45: =VLOOKUP($B$9&H45,'LISTA TOTAL PROVEEDORES'!$A$3:$I$9968,9,FALSE) ->  | C45: =VLOOKUP($B$9&H45,'LISTA TOTAL PROVEEDORES'!$A$3:$I$9968,4,FALSE) ->  | D45: =VLOOKUP($B$9&H45,'LISTA TOTAL PROVEEDORES'!$A$3:$I$9968,5,FALSE) ->  | E45: =VLOOKUP($B$9&H45,'LISTA TOTAL PROVEEDORES'!$A$3:$I$9968,6,FALSE) ->  | F45: =VLOOKUP($B$9&H45,'LISTA TOTAL PROVEEDORES'!$A$3:$I$9968,7,FALSE) ->  | G45: =VLOOKUP($B$9&H45,'LISTA TOTAL PROVEEDORES'!$A$3:$I$9968,8,FALSE) ->  | H45: ERROR
B46: =VLOOKUP($B$9&H46,'LISTA TOTAL PROVEEDORES'!$A$3:$I$9968,9,FALSE) ->  | C46: =VLOOKUP($B$9&H46,'LISTA TOTAL PROVEEDORES'!$A$3:$I$9968,4,FALSE) ->  | D46: =VLOOKUP($B$9&H46,'LISTA TOTAL PROVEEDORES'!$A$3:$I$9968,5,FALSE) ->  | E46: =VLOOKUP($B$9&H46,'LISTA TOTAL PROVEEDORES'!$A$3:$I$9968,6,FALSE) ->  | F46: =VLOOKUP($B$9&H46,'LISTA TOTAL PROVEEDORES'!$A$3:$I$9968,7,FALSE) ->  | G46: =VLOOKUP($B$9&H46,'LISTA TOTAL PROVEEDORES'!$A$3:$I$9968,8,FALSE) ->  | H46: ERROR
B47: =VLOOKUP($B$9&H47,'LISTA TOTAL PROVEEDORES'!$A$3:$I$9968,9,FALSE) ->  | C47: =VLOOKUP($B$9&H47,'LISTA TOTAL PROVEEDORES'!$A$3:$I$9968,4,FALSE) ->  | D47: =VLOOKUP($B$9&H47,'LISTA TOTAL PROVEEDORES'!$A$3:$I$9968,5,FALSE) ->  | E47: =VLOOKUP($B$9&H47,'LISTA TOTAL PROVEEDORES'!$A$3:$I$9968,6,FALSE) ->  | F47: =VLOOKUP($B$9&H47,'LISTA TOTAL PROVEEDORES'!$A$3:$I$9968,7,FALSE) ->  | G47: =VLOOKUP($B$9&H47,'LISTA TOTAL PROVEEDORES'!$A$3:$I$9968,8,FALSE) ->  | H47: ERROR
B48: =VLOOKUP($B$9&H48,'LISTA TOTAL PROVEEDORES'!$A$3:$I$9968,9,FALSE) ->  | C48: =VLOOKUP($B$9&H48,'LISTA TOTAL PROVEEDORES'!$A$3:$I$9968,4,FALSE) ->  | D48: =VLOOKUP($B$9&H48,'LISTA TOTAL PROVEEDORES'!$A$3:$I$9968,5,FALSE) ->  | E48: =VLOOKUP($B$9&H48,'LISTA TOTAL PROVEEDORES'!$A$3:$I$9968,6,FALSE) ->  | F48: =VLOOKUP($B$9&H48,'LISTA TOTAL PROVEEDORES'!$A$3:$I$9968,7,FALSE) ->  | G48: =VLOOKUP($B$9&H48,'LISTA TOTAL PROVEEDORES'!$A$3:$I$9968,8,FALSE) ->  | H48: ERROR
B49: =VLOOKUP($B$9&H49,'LISTA TOTAL PROVEEDORES'!$A$3:$I$9968,9,FALSE) ->  | C49: =VLOOKUP($B$9&H49,'LISTA TOTAL PROVEEDORES'!$A$3:$I$9968,4,FALSE) ->  | D49: =VLOOKUP($B$9&H49,'LISTA TOTAL PROVEEDORES'!$A$3:$I$9968,5,FALSE) ->  | E49: =VLOOKUP($B$9&H49,'LISTA TOTAL PROVEEDORES'!$A$3:$I$9968,6,FALSE) ->  | F49: =VLOOKUP($B$9&H49,'LISTA TOTAL PROVEEDORES'!$A$3:$I$9968,7,FALSE) ->  | G49: =VLOOKUP($B$9&H49,'LISTA TOTAL PROVEEDORES'!$A$3:$I$9968,8,FALSE) ->  | H49: ERROR
B50: =VLOOKUP($B$9&H50,'LISTA TOTAL PROVEEDORES'!$A$3:$I$9968,9,FALSE) ->  | C50: =VLOOKUP($B$9&H50,'LISTA TOTAL PROVEEDORES'!$A$3:$I$9968,4,FALSE) ->  | D50: =VLOOKUP($B$9&H50,'LISTA TOTAL PROVEEDORES'!$A$3:$I$9968,5,FALSE) ->  | E50: =VLOOKUP($B$9&H50,'LISTA TOTAL PROVEEDORES'!$A$3:$I$9968,6,FALSE) ->  | F50: =VLOOKUP($B$9&H50,'LISTA TOTAL PROVEEDORES'!$A$3:$I$9968,7,FALSE) ->  | G50: =VLOOKUP($B$9&H50,'LISTA TOTAL PROVEEDORES'!$A$3:$I$9968,8,FALSE) ->  | H50: ERROR
B51: =VLOOKUP($B$9&H51,'LISTA TOTAL PROVEEDORES'!$A$3:$I$9968,9,FALSE) ->  | C51: =VLOOKUP($B$9&H51,'LISTA TOTAL PROVEEDORES'!$A$3:$I$9968,4,FALSE) ->  | D51: =VLOOKUP($B$9&H51,'LISTA TOTAL PROVEEDORES'!$A$3:$I$9968,5,FALSE) ->  | E51: =VLOOKUP($B$9&H51,'LISTA TOTAL PROVEEDORES'!$A$3:$I$9968,6,FALSE) ->  | F51: =VLOOKUP($B$9&H51,'LISTA TOTAL PROVEEDORES'!$A$3:$I$9968,7,FALSE) ->  | G51: =VLOOKUP($B$9&H51,'LISTA TOTAL PROVEEDORES'!$A$3:$I$9968,8,FALSE) ->  | H51: ERROR
B52: =VLOOKUP($B$9&H52,'LISTA TOTAL PROVEEDORES'!$A$3:$I$9968,9,FALSE) ->  | C52: =VLOOKUP($B$9&H52,'LISTA TOTAL PROVEEDORES'!$A$3:$I$9968,4,FALSE) ->  | D52: =VLOOKUP($B$9&H52,'LISTA TOTAL PROVEEDORES'!$A$3:$I$9968,5,FALSE) ->  | E52: =VLOOKUP($B$9&H52,'LISTA TOTAL PROVEEDORES'!$A$3:$I$9968,6,FALSE) ->  | F52: =VLOOKUP($B$9&H52,'LISTA TOTAL PROVEEDORES'!$A$3:$I$9968,7,FALSE) ->  | G52: =VLOOKUP($B$9&H52,'LISTA TOTAL PROVEEDORES'!$A$3:$I$9968,8,FALSE) ->  | H52: ERROR
B53: =VLOOKUP($B$9&H53,'LISTA TOTAL PROVEEDORES'!$A$3:$I$9968,9,FALSE) ->  | C53: =VLOOKUP($B$9&H53,'LISTA TOTAL PROVEEDORES'!$A$3:$I$9968,4,FALSE) ->  | D53: =VLOOKUP($B$9&H53,'LISTA TOTAL PROVEEDORES'!$A$3:$I$9968,5,FALSE) ->  | E53: =VLOOKUP($B$9&H53,'LISTA TOTAL PROVEEDORES'!$A$3:$I$9968,6,FALSE) ->  | F53: =VLOOKUP($B$9&H53,'LISTA TOTAL PROVEEDORES'!$A$3:$I$9968,7,FALSE) ->  | G53: =VLOOKUP($B$9&H53,'LISTA TOTAL PROVEEDORES'!$A$3:$I$9968,8,FALSE) ->  | H53: ERROR
B54: =VLOOKUP($B$9&H54,'LISTA TOTAL PROVEEDORES'!$A$3:$I$9968,9,FALSE) ->  | C54: =VLOOKUP($B$9&H54,'LISTA TOTAL PROVEEDORES'!$A$3:$I$9968,4,FALSE) ->  | D54: =VLOOKUP($B$9&H54,'LISTA TOTAL PROVEEDORES'!$A$3:$I$9968,5,FALSE) ->  | E54: =VLOOKUP($B$9&H54,'LISTA TOTAL PROVEEDORES'!$A$3:$I$9968,6,FALSE) ->  | F54: =VLOOKUP($B$9&H54,'LISTA TOTAL PROVEEDORES'!$A$3:$I$9968,7,FALSE) ->  | G54: =VLOOKUP($B$9&H54,'LISTA TOTAL PROVEEDORES'!$A$3:$I$9968,8,FALSE) ->  | H54: ERROR
B55: =VLOOKUP($B$9&H55,'LISTA TOTAL PROVEEDORES'!$A$3:$I$9968,9,FALSE) ->  | C55: =VLOOKUP($B$9&H55,'LISTA TOTAL PROVEEDORES'!$A$3:$I$9968,4,FALSE) ->  | D55: =VLOOKUP($B$9&H55,'LISTA TOTAL PROVEEDORES'!$A$3:$I$9968,5,FALSE) ->  | E55: =VLOOKUP($B$9&H55,'LISTA TOTAL PROVEEDORES'!$A$3:$I$9968,6,FALSE) ->  | F55: =VLOOKUP($B$9&H55,'LISTA TOTAL PROVEEDORES'!$A$3:$I$9968,7,FALSE) ->  | G55: =VLOOKUP($B$9&H55,'LISTA TOTAL PROVEEDORES'!$A$3:$I$9968,8,FALSE) ->  | H55: ERROR
B56: =VLOOKUP($B$9&H56,'LISTA TOTAL PROVEEDORES'!$A$3:$I$9968,9,FALSE) ->  | C56: =VLOOKUP($B$9&H56,'LISTA TOTAL PROVEEDORES'!$A$3:$I$9968,4,FALSE) ->  | D56: =VLOOKUP($B$9&H56,'LISTA TOTAL PROVEEDORES'!$A$3:$I$9968,5,FALSE) ->  | E56: =VLOOKUP($B$9&H56,'LISTA TOTAL PROVEEDORES'!$A$3:$I$9968,6,FALSE) ->  | F56: =VLOOKUP($B$9&H56,'LISTA TOTAL PROVEEDORES'!$A$3:$I$9968,7,FALSE) ->  | G56: =VLOOKUP($B$9&H56,'LISTA TOTAL PROVEEDORES'!$A$3:$I$9968,8,FALSE) ->  | H56: ERROR
B57: =VLOOKUP($B$9&H57,'LISTA TOTAL PROVEEDORES'!$A$3:$I$9968,9,FALSE) ->  | C57: =VLOOKUP($B$9&H57,'LISTA TOTAL PROVEEDORES'!$A$3:$I$9968,4,FALSE) ->  | D57: =VLOOKUP($B$9&H57,'LISTA TOTAL PROVEEDORES'!$A$3:$I$9968,5,FALSE) ->  | E57: =VLOOKUP($B$9&H57,'LISTA TOTAL PROVEEDORES'!$A$3:$I$9968,6,FALSE) ->  | F57: =VLOOKUP($B$9&H57,'LISTA TOTAL PROVEEDORES'!$A$3:$I$9968,7,FALSE) ->  | G57: =VLOOKUP($B$9&H57,'LISTA TOTAL PROVEEDORES'!$A$3:$I$9968,8,FALSE) ->  | H57: ERROR
B58: =VLOOKUP($B$9&H58,'LISTA TOTAL PROVEEDORES'!$A$3:$I$9968,9,FALSE) ->  | C58: =VLOOKUP($B$9&H58,'LISTA TOTAL PROVEEDORES'!$A$3:$I$9968,4,FALSE) ->  | D58: =VLOOKUP($B$9&H58,'LISTA TOTAL PROVEEDORES'!$A$3:$I$9968,5,FALSE) ->  | E58: =VLOOKUP($B$9&H58,'LISTA TOTAL PROVEEDORES'!$A$3:$I$9968,6,FALSE) ->  | F58: =VLOOKUP($B$9&H58,'LISTA TOTAL PROVEEDORES'!$A$3:$I$9968,7,FALSE) ->  | G58: =VLOOKUP($B$9&H58,'LISTA TOTAL PROVEEDORES'!$A$3:$I$9968,8,FALSE) ->  | H58: ERROR
B59: =VLOOKUP($B$9&H59,'LISTA TOTAL PROVEEDORES'!$A$3:$I$9968,9,FALSE) ->  | C59: =VLOOKUP($B$9&H59,'LISTA TOTAL PROVEEDORES'!$A$3:$I$9968,4,FALSE) ->  | D59: =VLOOKUP($B$9&H59,'LISTA TOTAL PROVEEDORES'!$A$3:$I$9968,5,FALSE) ->  | E59: =VLOOKUP($B$9&H59,'LISTA TOTAL PROVEEDORES'!$A$3:$I$9968,6,FALSE) ->  | F59: =VLOOKUP($B$9&H59,'LISTA TOTAL PROVEEDORES'!$A$3:$I$9968,7,FALSE) ->  | G59: =VLOOKUP($B$9&H59,'LISTA TOTAL PROVEEDORES'!$A$3:$I$9968,8,FALSE) ->  | H59: ERROR
B60: =VLOOKUP($B$9&H60,'LISTA TOTAL PROVEEDORES'!$A$3:$I$9968,9,FALSE) ->  | C60: =VLOOKUP($B$9&H60,'LISTA TOTAL PROVEEDORES'!$A$3:$I$9968,4,FALSE) ->  | D60: =VLOOKUP($B$9&H60,'LISTA TOTAL PROVEEDORES'!$A$3:$I$9968,5,FALSE) ->  | E60: =VLOOKUP($B$9&H60,'LISTA TOTAL PROVEEDORES'!$A$3:$I$9968,6,FALSE) ->  | F60: =VLOOKUP($B$9&H60,'LISTA TOTAL PROVEEDORES'!$A$3:$I$9968,7,FALSE) ->  | G60: =VLOOKUP($B$9&H60,'LISTA TOTAL PROVEEDORES'!$A$3:$I$9968,8,FALSE) ->  | H60: ERROR
B61: =VLOOKUP($B$9&H61,'LISTA TOTAL PROVEEDORES'!$A$3:$I$9968,9,FALSE) ->  | C61: =VLOOKUP($B$9&H61,'LISTA TOTAL PROVEEDORES'!$A$3:$I$9968,4,FALSE) ->  | D61: =VLOOKUP($B$9&H61,'LISTA TOTAL PROVEEDORES'!$A$3:$I$9968,5,FALSE) ->  | E61: =VLOOKUP($B$9&H61,'LISTA TOTAL PROVEEDORES'!$A$3:$I$9968,6,FALSE) ->  | F61: =VLOOKUP($B$9&H61,'LISTA TOTAL PROVEEDORES'!$A$3:$I$9968,7,FALSE) ->  | G61: =VLOOKUP($B$9&H61,'LISTA TOTAL PROVEEDORES'!$A$3:$I$9968,8,FALSE) ->  | H61: ERROR
B62: =VLOOKUP($B$9&H62,'LISTA TOTAL PROVEEDORES'!$A$3:$I$9968,9,FALSE) ->  | C62: =VLOOKUP($B$9&H62,'LISTA TOTAL PROVEEDORES'!$A$3:$I$9968,4,FALSE) ->  | D62: =VLOOKUP($B$9&H62,'LISTA TOTAL PROVEEDORES'!$A$3:$I$9968,5,FALSE) ->  | E62: =VLOOKUP($B$9&H62,'LISTA TOTAL PROVEEDORES'!$A$3:$I$9968,6,FALSE) ->  | F62: =VLOOKUP($B$9&H62,'LISTA TOTAL PROVEEDORES'!$A$3:$I$9968,7,FALSE) ->  | G62: =VLOOKUP($B$9&H62,'LISTA TOTAL PROVEEDORES'!$A$3:$I$9968,8,FALSE) ->  | H62: ERROR
B63: =VLOOKUP($B$9&H63,'LISTA TOTAL PROVEEDORES'!$A$3:$I$9968,9,FALSE) ->  | C63: =VLOOKUP($B$9&H63,'LISTA TOTAL PROVEEDORES'!$A$3:$I$9968,4,FALSE) ->  | D63: =VLOOKUP($B$9&H63,'LISTA TOTAL PROVEEDORES'!$A$3:$I$9968,5,FALSE) ->  | E63: =VLOOKUP($B$9&H63,'LISTA TOTAL PROVEEDORES'!$A$3:$I$9968,6,FALSE) ->  | F63: =VLOOKUP($B$9&H63,'LISTA TOTAL PROVEEDORES'!$A$3:$I$9968,7,FALSE) ->  | G63: =VLOOKUP($B$9&H63,'LISTA TOTAL PROVEEDORES'!$A$3:$I$9968,8,FALSE) ->  | H63: ERROR
B64: =VLOOKUP($B$9&H64,'LISTA TOTAL PROVEEDORES'!$A$3:$I$9968,9,FALSE) ->  | C64: =VLOOKUP($B$9&H64,'LISTA TOTAL PROVEEDORES'!$A$3:$I$9968,4,FALSE) ->  | D64: =VLOOKUP($B$9&H64,'LISTA TOTAL PROVEEDORES'!$A$3:$I$9968,5,FALSE) ->  | E64: =VLOOKUP($B$9&H64,'LISTA TOTAL PROVEEDORES'!$A$3:$I$9968,6,FALSE) ->  | F64: =VLOOKUP($B$9&H64,'LISTA TOTAL PROVEEDORES'!$A$3:$I$9968,7,FALSE) ->  | G64: =VLOOKUP($B$9&H64,'LISTA TOTAL PROVEEDORES'!$A$3:$I$9968,8,FALSE) ->  | H64: ERROR
B65: =VLOOKUP($B$9&H65,'LISTA TOTAL PROVEEDORES'!$A$3:$I$9968,9,FALSE) ->  | C65: =VLOOKUP($B$9&H65,'LISTA TOTAL PROVEEDORES'!$A$3:$I$9968,4,FALSE) ->  | D65: =VLOOKUP($B$9&H65,'LISTA TOTAL PROVEEDORES'!$A$3:$I$9968,5,FALSE) ->  | E65: =VLOOKUP($B$9&H65,'LISTA TOTAL PROVEEDORES'!$A$3:$I$9968,6,FALSE) ->  | F65: =VLOOKUP($B$9&H65,'LISTA TOTAL PROVEEDORES'!$A$3:$I$9968,7,FALSE) ->  | G65: =VLOOKUP($B$9&H65,'LISTA TOTAL PROVEEDORES'!$A$3:$I$9968,8,FALSE) ->  | H65: ERROR
B66: =VLOOKUP($B$9&H66,'LISTA TOTAL PROVEEDORES'!$A$3:$I$9968,9,FALSE) ->  | C66: =VLOOKUP($B$9&H66,'LISTA TOTAL PROVEEDORES'!$A$3:$I$9968,4,FALSE) ->  | D66: =VLOOKUP($B$9&H66,'LISTA TOTAL PROVEEDORES'!$A$3:$I$9968,5,FALSE) ->  | E66: =VLOOKUP($B$9&H66,'LISTA TOTAL PROVEEDORES'!$A$3:$I$9968,6,FALSE) ->  | F66: =VLOOKUP($B$9&H66,'LISTA TOTAL PROVEEDORES'!$A$3:$I$9968,7,FALSE) ->  | G66: =VLOOKUP($B$9&H66,'LISTA TOTAL PROVEEDORES'!$A$3:$I$9968,8,FALSE) ->  | H66: ERROR
B67: =VLOOKUP($B$9&H67,'LISTA TOTAL PROVEEDORES'!$A$3:$I$9968,9,FALSE) ->  | C67: =VLOOKUP($B$9&H67,'LISTA TOTAL PROVEEDORES'!$A$3:$I$9968,4,FALSE) ->  | D67: =VLOOKUP($B$9&H67,'LISTA TOTAL PROVEEDORES'!$A$3:$I$9968,5,FALSE) ->  | E67: =VLOOKUP($B$9&H67,'LISTA TOTAL PROVEEDORES'!$A$3:$I$9968,6,FALSE) ->  | F67: =VLOOKUP($B$9&H67,'LISTA TOTAL PROVEEDORES'!$A$3:$I$9968,7,FALSE) ->  | G67: =VLOOKUP($B$9&H67,'LISTA TOTAL PROVEEDORES'!$A$3:$I$9968,8,FALSE) ->  | H67: ERROR
B68: =VLOOKUP($B$9&H68,'LISTA TOTAL PROVEEDORES'!$A$3:$I$9968,9,FALSE) ->  | C68: =VLOOKUP($B$9&H68,'LISTA TOTAL PROVEEDORES'!$A$3:$I$9968,4,FALSE) ->  | D68: =VLOOKUP($B$9&H68,'LISTA TOTAL PROVEEDORES'!$A$3:$I$9968,5,FALSE) ->  | E68: =VLOOKUP($B$9&H68,'LISTA TOTAL PROVEEDORES'!$A$3:$I$9968,6,FALSE) ->  | F68: =VLOOKUP($B$9&H68,'LISTA TOTAL PROVEEDORES'!$A$3:$I$9968,7,FALSE) ->  | G68: =VLOOKUP($B$9&H68,'LISTA TOTAL PROVEEDORES'!$A$3:$I$9968,8,FALSE) ->  | H68: ERROR
B69: =VLOOKUP($B$9&H69,'LISTA TOTAL PROVEEDORES'!$A$3:$I$9968,9,FALSE) ->  | C69: =VLOOKUP($B$9&H69,'LISTA TOTAL PROVEEDORES'!$A$3:$I$9968,4,FALSE) ->  | D69: =VLOOKUP($B$9&H69,'LISTA TOTAL PROVEEDORES'!$A$3:$I$9968,5,FALSE) ->  | E69: =VLOOKUP($B$9&H69,'LISTA TOTAL PROVEEDORES'!$A$3:$I$9968,6,FALSE) ->  | F69: =VLOOKUP($B$9&H69,'LISTA TOTAL PROVEEDORES'!$A$3:$I$9968,7,FALSE) ->  | G69: =VLOOKUP($B$9&H69,'LISTA TOTAL PROVEEDORES'!$A$3:$I$9968,8,FALSE) ->  | H69: ERROR
B70: =VLOOKUP($B$9&H70,'LISTA TOTAL PROVEEDORES'!$A$3:$I$9968,9,FALSE) ->  | C70: =VLOOKUP($B$9&H70,'LISTA TOTAL PROVEEDORES'!$A$3:$I$9968,4,FALSE) ->  | D70: =VLOOKUP($B$9&H70,'LISTA TOTAL PROVEEDORES'!$A$3:$I$9968,5,FALSE) ->  | E70: =VLOOKUP($B$9&H70,'LISTA TOTAL PROVEEDORES'!$A$3:$I$9968,6,FALSE) ->  | F70: =VLOOKUP($B$9&H70,'LISTA TOTAL PROVEEDORES'!$A$3:$I$9968,7,FALSE) ->  | G70: =VLOOKUP($B$9&H70,'LISTA TOTAL PROVEEDORES'!$A$3:$I$9968,8,FALSE) ->  | H70: ERROR
B71: =VLOOKUP($B$9&H71,'LISTA TOTAL PROVEEDORES'!$A$3:$I$9968,9,FALSE) ->  | C71: =VLOOKUP($B$9&H71,'LISTA TOTAL PROVEEDORES'!$A$3:$I$9968,4,FALSE) ->  | D71: =VLOOKUP($B$9&H71,'LISTA TOTAL PROVEEDORES'!$A$3:$I$9968,5,FALSE) ->  | E71: =VLOOKUP($B$9&H71,'LISTA TOTAL PROVEEDORES'!$A$3:$I$9968,6,FALSE) ->  | F71: =VLOOKUP($B$9&H71,'LISTA TOTAL PROVEEDORES'!$A$3:$I$9968,7,FALSE) ->  | G71: =VLOOKUP($B$9&H71,'LISTA TOTAL PROVEEDORES'!$A$3:$I$9968,8,FALSE) ->  | H71: ERROR
B72: =VLOOKUP($B$9&H72,'LISTA TOTAL PROVEEDORES'!$A$3:$I$9968,9,FALSE) ->  | C72: =VLOOKUP($B$9&H72,'LISTA TOTAL PROVEEDORES'!$A$3:$I$9968,4,FALSE) ->  | D72: =VLOOKUP($B$9&H72,'LISTA TOTAL PROVEEDORES'!$A$3:$I$9968,5,FALSE) ->  | E72: =VLOOKUP($B$9&H72,'LISTA TOTAL PROVEEDORES'!$A$3:$I$9968,6,FALSE) ->  | F72: =VLOOKUP($B$9&H72,'LISTA TOTAL PROVEEDORES'!$A$3:$I$9968,7,FALSE) ->  | G72: =VLOOKUP($B$9&H72,'LISTA TOTAL PROVEEDORES'!$A$3:$I$9968,8,FALSE) ->  | H72: ERROR
B73: =VLOOKUP($B$9&H73,'LISTA TOTAL PROVEEDORES'!$A$3:$I$9968,9,FALSE) ->  | C73: =VLOOKUP($B$9&H73,'LISTA TOTAL PROVEEDORES'!$A$3:$I$9968,4,FALSE) ->  | D73: =VLOOKUP($B$9&H73,'LISTA TOTAL PROVEEDORES'!$A$3:$I$9968,5,FALSE) ->  | E73: =VLOOKUP($B$9&H73,'LISTA TOTAL PROVEEDORES'!$A$3:$I$9968,6,FALSE) ->  | F73: =VLOOKUP($B$9&H73,'LISTA TOTAL PROVEEDORES'!$A$3:$I$9968,7,FALSE) ->  | G73: =VLOOKUP($B$9&H73,'LISTA TOTAL PROVEEDORES'!$A$3:$I$9968,8,FALSE) ->  | H73: ERROR
B74: =VLOOKUP($B$9&H74,'LISTA TOTAL PROVEEDORES'!$A$3:$I$9968,9,FALSE) ->  | C74: =VLOOKUP($B$9&H74,'LISTA TOTAL PROVEEDORES'!$A$3:$I$9968,4,FALSE) ->  | D74: =VLOOKUP($B$9&H74,'LISTA TOTAL PROVEEDORES'!$A$3:$I$9968,5,FALSE) ->  | E74: =VLOOKUP($B$9&H74,'LISTA TOTAL PROVEEDORES'!$A$3:$I$9968,6,FALSE) ->  | F74: =VLOOKUP($B$9&H74,'LISTA TOTAL PROVEEDORES'!$A$3:$I$9968,7,FALSE) ->  | G74: =VLOOKUP($B$9&H74,'LISTA TOTAL PROVEEDORES'!$A$3:$I$9968,8,FALSE) ->  | H74: ERROR
B75: =VLOOKUP($B$9&H75,'LISTA TOTAL PROVEEDORES'!$A$3:$I$9968,9,FALSE) ->  | C75: =VLOOKUP($B$9&H75,'LISTA TOTAL PROVEEDORES'!$A$3:$I$9968,4,FALSE) ->  | D75: =VLOOKUP($B$9&H75,'LISTA TOTAL PROVEEDORES'!$A$3:$I$9968,5,FALSE) ->  | E75: =VLOOKUP($B$9&H75,'LISTA TOTAL PROVEEDORES'!$A$3:$I$9968,6,FALSE) ->  | F75: =VLOOKUP($B$9&H75,'LISTA TOTAL PROVEEDORES'!$A$3:$I$9968,7,FALSE) ->  | G75: =VLOOKUP($B$9&H75,'LISTA TOTAL PROVEEDORES'!$A$3:$I$9968,8,FALSE) ->  | H75: ERROR
B76: =VLOOKUP($B$9&H76,'LISTA TOTAL PROVEEDORES'!$A$3:$I$9968,9,FALSE) ->  | C76: =VLOOKUP($B$9&H76,'LISTA TOTAL PROVEEDORES'!$A$3:$I$9968,4,FALSE) ->  | D76: =VLOOKUP($B$9&H76,'LISTA TOTAL PROVEEDORES'!$A$3:$I$9968,5,FALSE) ->  | E76: =VLOOKUP($B$9&H76,'LISTA TOTAL PROVEEDORES'!$A$3:$I$9968,6,FALSE) ->  | F76: =VLOOKUP($B$9&H76,'LISTA TOTAL PROVEEDORES'!$A$3:$I$9968,7,FALSE) ->  | G76: =VLOOKUP($B$9&H76,'LISTA TOTAL PROVEEDORES'!$A$3:$I$9968,8,FALSE) ->  | H76: ERROR
B77: =VLOOKUP($B$9&H77,'LISTA TOTAL PROVEEDORES'!$A$3:$I$9968,9,FALSE) ->  | C77: =VLOOKUP($B$9&H77,'LISTA TOTAL PROVEEDORES'!$A$3:$I$9968,4,FALSE) ->  | D77: =VLOOKUP($B$9&H77,'LISTA TOTAL PROVEEDORES'!$A$3:$I$9968,5,FALSE) ->  | E77: =VLOOKUP($B$9&H77,'LISTA TOTAL PROVEEDORES'!$A$3:$I$9968,6,FALSE) ->  | F77: =VLOOKUP($B$9&H77,'LISTA TOTAL PROVEEDORES'!$A$3:$I$9968,7,FALSE) ->  | G77: =VLOOKUP($B$9&H77,'LISTA TOTAL PROVEEDORES'!$A$3:$I$9968,8,FALSE) ->  | H77: ERROR
B78: =VLOOKUP($B$9&H78,'LISTA TOTAL PROVEEDORES'!$A$3:$I$9968,9,FALSE) ->  | C78: =VLOOKUP($B$9&H78,'LISTA TOTAL PROVEEDORES'!$A$3:$I$9968,4,FALSE) ->  | D78: =VLOOKUP($B$9&H78,'LISTA TOTAL PROVEEDORES'!$A$3:$I$9968,5,FALSE) ->  | E78: =VLOOKUP($B$9&H78,'LISTA TOTAL PROVEEDORES'!$A$3:$I$9968,6,FALSE) ->  | F78: =VLOOKUP($B$9&H78,'LISTA TOTAL PROVEEDORES'!$A$3:$I$9968,7,FALSE) ->  | G78: =VLOOKUP($B$9&H78,'LISTA TOTAL PROVEEDORES'!$A$3:$I$9968,8,FALSE) ->  | H78: =+IF(H77<$H$9,H77+1,"ERROR") -> ERROR
B79: =VLOOKUP($B$9&H79,'LISTA TOTAL PROVEEDORES'!$A$3:$I$9968,9,FALSE) ->  | C79: =VLOOKUP($B$9&H79,'LISTA TOTAL PROVEEDORES'!$A$3:$I$9968,4,FALSE) ->  | D79: =VLOOKUP($B$9&H79,'LISTA TOTAL PROVEEDORES'!$A$3:$I$9968,5,FALSE) ->  | E79: =VLOOKUP($B$9&H79,'LISTA TOTAL PROVEEDORES'!$A$3:$I$9968,6,FALSE) ->  | F79: =VLOOKUP($B$9&H79,'LISTA TOTAL PROVEEDORES'!$A$3:$I$9968,7,FALSE) ->  | G79: =VLOOKUP($B$9&H79,'LISTA TOTAL PROVEEDORES'!$A$3:$I$9968,8,FALSE) ->  | H79: ERROR
B80: =VLOOKUP($B$9&H80,'LISTA TOTAL PROVEEDORES'!$A$3:$I$9968,9,FALSE) ->  | C80: =VLOOKUP($B$9&H80,'LISTA TOTAL PROVEEDORES'!$A$3:$I$9968,4,FALSE) ->  | D80: =VLOOKUP($B$9&H80,'LISTA TOTAL PROVEEDORES'!$A$3:$I$9968,5,FALSE) ->  | E80: =VLOOKUP($B$9&H80,'LISTA TOTAL PROVEEDORES'!$A$3:$I$9968,6,FALSE) ->  | F80: =VLOOKUP($B$9&H80,'LISTA TOTAL PROVEEDORES'!$A$3:$I$9968,7,FALSE) ->  | G80: =VLOOKUP($B$9&H80,'LISTA TOTAL PROVEEDORES'!$A$3:$I$9968,8,FALSE) ->  | H80: ERROR
B81: =VLOOKUP($B$9&H81,'LISTA TOTAL PROVEEDORES'!$A$3:$I$9968,9,FALSE) ->  | C81: =VLOOKUP($B$9&H81,'LISTA TOTAL PROVEEDORES'!$A$3:$I$9968,4,FALSE) ->  | D81: =VLOOKUP($B$9&H81,'LISTA TOTAL PROVEEDORES'!$A$3:$I$9968,5,FALSE) ->  | E81: =VLOOKUP($B$9&H81,'LISTA TOTAL PROVEEDORES'!$A$3:$I$9968,6,FALSE) ->  | F81: =VLOOKUP($B$9&H81,'LISTA TOTAL PROVEEDORES'!$A$3:$I$9968,7,FALSE) ->  | G81: =VLOOKUP($B$9&H81,'LISTA TOTAL PROVEEDORES'!$A$3:$I$9968,8,FALSE) ->  | H81: ERROR
B82: =VLOOKUP($B$9&H82,'LISTA TOTAL PROVEEDORES'!$A$3:$I$9968,9,FALSE) ->  | C82: =VLOOKUP($B$9&H82,'LISTA TOTAL PROVEEDORES'!$A$3:$I$9968,4,FALSE) ->  | D82: =VLOOKUP($B$9&H82,'LISTA TOTAL PROVEEDORES'!$A$3:$I$9968,5,FALSE) ->  | E82: =VLOOKUP($B$9&H82,'LISTA TOTAL PROVEEDORES'!$A$3:$I$9968,6,FALSE) ->  | F82: =VLOOKUP($B$9&H82,'LISTA TOTAL PROVEEDORES'!$A$3:$I$9968,7,FALSE) ->  | G82: =VLOOKUP($B$9&H82,'LISTA TOTAL PROVEEDORES'!$A$3:$I$9968,8,FALSE) ->  | H82: ERROR
B83: =VLOOKUP($B$9&H83,'LISTA TOTAL PROVEEDORES'!$A$3:$I$9968,9,FALSE) ->  | C83: =VLOOKUP($B$9&H83,'LISTA TOTAL PROVEEDORES'!$A$3:$I$9968,4,FALSE) ->  | D83: =VLOOKUP($B$9&H83,'LISTA TOTAL PROVEEDORES'!$A$3:$I$9968,5,FALSE) ->  | E83: =VLOOKUP($B$9&H83,'LISTA TOTAL PROVEEDORES'!$A$3:$I$9968,6,FALSE) ->  | F83: =VLOOKUP($B$9&H83,'LISTA TOTAL PROVEEDORES'!$A$3:$I$9968,7,FALSE) ->  | G83: =VLOOKUP($B$9&H83,'LISTA TOTAL PROVEEDORES'!$A$3:$I$9968,8,FALSE) ->  | H83: ERROR
B84: =VLOOKUP($B$9&H84,'LISTA TOTAL PROVEEDORES'!$A$3:$I$9968,9,FALSE) ->  | C84: =VLOOKUP($B$9&H84,'LISTA TOTAL PROVEEDORES'!$A$3:$I$9968,4,FALSE) ->  | D84: =VLOOKUP($B$9&H84,'LISTA TOTAL PROVEEDORES'!$A$3:$I$9968,5,FALSE) ->  | E84: =VLOOKUP($B$9&H84,'LISTA TOTAL PROVEEDORES'!$A$3:$I$9968,6,FALSE) ->  | F84: =VLOOKUP($B$9&H84,'LISTA TOTAL PROVEEDORES'!$A$3:$I$9968,7,FALSE) ->  | G84: =VLOOKUP($B$9&H84,'LISTA TOTAL PROVEEDORES'!$A$3:$I$9968,8,FALSE) ->  | H84: ERROR
B85: =VLOOKUP($B$9&H85,'LISTA TOTAL PROVEEDORES'!$A$3:$I$9968,9,FALSE) ->  | C85: =VLOOKUP($B$9&H85,'LISTA TOTAL PROVEEDORES'!$A$3:$I$9968,4,FALSE) ->  | D85: =VLOOKUP($B$9&H85,'LISTA TOTAL PROVEEDORES'!$A$3:$I$9968,5,FALSE) ->  | E85: =VLOOKUP($B$9&H85,'LISTA TOTAL PROVEEDORES'!$A$3:$I$9968,6,FALSE) ->  | F85: =VLOOKUP($B$9&H85,'LISTA TOTAL PROVEEDORES'!$A$3:$I$9968,7,FALSE) ->  | G85: =VLOOKUP($B$9&H85,'LISTA TOTAL PROVEEDORES'!$A$3:$I$9968,8,FALSE) ->  | H85: ERROR
B86: =VLOOKUP($B$9&H86,'LISTA TOTAL PROVEEDORES'!$A$3:$I$9968,9,FALSE) ->  | C86: =VLOOKUP($B$9&H86,'LISTA TOTAL PROVEEDORES'!$A$3:$I$9968,4,FALSE) ->  | D86: =VLOOKUP($B$9&H86,'LISTA TOTAL PROVEEDORES'!$A$3:$I$9968,5,FALSE) ->  | E86: =VLOOKUP($B$9&H86,'LISTA TOTAL PROVEEDORES'!$A$3:$I$9968,6,FALSE) ->  | F86: =VLOOKUP($B$9&H86,'LISTA TOTAL PROVEEDORES'!$A$3:$I$9968,7,FALSE) ->  | G86: =VLOOKUP($B$9&H86,'LISTA TOTAL PROVEEDORES'!$A$3:$I$9968,8,FALSE) ->  | H86: ERROR
B87: =VLOOKUP($B$9&H87,'LISTA TOTAL PROVEEDORES'!$A$3:$I$9968,9,FALSE) ->  | C87: =VLOOKUP($B$9&H87,'LISTA TOTAL PROVEEDORES'!$A$3:$I$9968,4,FALSE) ->  | D87: =VLOOKUP($B$9&H87,'LISTA TOTAL PROVEEDORES'!$A$3:$I$9968,5,FALSE) ->  | E87: =VLOOKUP($B$9&H87,'LISTA TOTAL PROVEEDORES'!$A$3:$I$9968,6,FALSE) ->  | F87: =VLOOKUP($B$9&H87,'LISTA TOTAL PROVEEDORES'!$A$3:$I$9968,7,FALSE) ->  | G87: =VLOOKUP($B$9&H87,'LISTA TOTAL PROVEEDORES'!$A$3:$I$9968,8,FALSE) ->  | H87: ERROR
B88: =VLOOKUP($B$9&H88,'LISTA TOTAL PROVEEDORES'!$A$3:$I$9968,9,FALSE) ->  | C88: =VLOOKUP($B$9&H88,'LISTA TOTAL PROVEEDORES'!$A$3:$I$9968,4,FALSE) ->  | D88: =VLOOKUP($B$9&H88,'LISTA TOTAL PROVEEDORES'!$A$3:$I$9968,5,FALSE) ->  | E88: =VLOOKUP($B$9&H88,'LISTA TOTAL PROVEEDORES'!$A$3:$I$9968,6,FALSE) ->  | F88: =VLOOKUP($B$9&H88,'LISTA TOTAL PROVEEDORES'!$A$3:$I$9968,7,FALSE) ->  | G88: =VLOOKUP($B$9&H88,'LISTA TOTAL PROVEEDORES'!$A$3:$I$9968,8,FALSE) ->  | H88: ERROR
B89: =VLOOKUP($B$9&H89,'LISTA TOTAL PROVEEDORES'!$A$3:$I$9968,9,FALSE) ->  | C89: =VLOOKUP($B$9&H89,'LISTA TOTAL PROVEEDORES'!$A$3:$I$9968,4,FALSE) ->  | D89: =VLOOKUP($B$9&H89,'LISTA TOTAL PROVEEDORES'!$A$3:$I$9968,5,FALSE) ->  | E89: =VLOOKUP($B$9&H89,'LISTA TOTAL PROVEEDORES'!$A$3:$I$9968,6,FALSE) ->  | F89: =VLOOKUP($B$9&H89,'LISTA TOTAL PROVEEDORES'!$A$3:$I$9968,7,FALSE) ->  | G89: =VLOOKUP($B$9&H89,'LISTA TOTAL PROVEEDORES'!$A$3:$I$9968,8,FALSE) ->  | H89: ERROR
B90: =VLOOKUP($B$9&H90,'LISTA TOTAL PROVEEDORES'!$A$3:$I$9968,9,FALSE) ->  | C90: =VLOOKUP($B$9&H90,'LISTA TOTAL PROVEEDORES'!$A$3:$I$9968,4,FALSE) ->  | D90: =VLOOKUP($B$9&H90,'LISTA TOTAL PROVEEDORES'!$A$3:$I$9968,5,FALSE) ->  | E90: =VLOOKUP($B$9&H90,'LISTA TOTAL PROVEEDORES'!$A$3:$I$9968,6,FALSE) ->  | F90: =VLOOKUP($B$9&H90,'LISTA TOTAL PROVEEDORES'!$A$3:$I$9968,7,FALSE) ->  | G90: =VLOOKUP($B$9&H90,'LISTA TOTAL PROVEEDORES'!$A$3:$I$9968,8,FALSE) ->  | H90: ERROR
B91: =VLOOKUP($B$9&H91,'LISTA TOTAL PROVEEDORES'!$A$3:$I$9968,9,FALSE) ->  | C91: =VLOOKUP($B$9&H91,'LISTA TOTAL PROVEEDORES'!$A$3:$I$9968,4,FALSE) ->  | D91: =VLOOKUP($B$9&H91,'LISTA TOTAL PROVEEDORES'!$A$3:$I$9968,5,FALSE) ->  | E91: =VLOOKUP($B$9&H91,'LISTA TOTAL PROVEEDORES'!$A$3:$I$9968,6,FALSE) ->  | F91: =VLOOKUP($B$9&H91,'LISTA TOTAL PROVEEDORES'!$A$3:$I$9968,7,FALSE) ->  | G91: =VLOOKUP($B$9&H91,'LISTA TOTAL PROVEEDORES'!$A$3:$I$9968,8,FALSE) ->  | H91: ERROR
B92: =VLOOKUP($B$9&H92,'LISTA TOTAL PROVEEDORES'!$A$3:$I$9968,9,FALSE) ->  | C92: =VLOOKUP($B$9&H92,'LISTA TOTAL PROVEEDORES'!$A$3:$I$9968,4,FALSE) ->  | D92: =VLOOKUP($B$9&H92,'LISTA TOTAL PROVEEDORES'!$A$3:$I$9968,5,FALSE) ->  | E92: =VLOOKUP($B$9&H92,'LISTA TOTAL PROVEEDORES'!$A$3:$I$9968,6,FALSE) ->  | F92: =VLOOKUP($B$9&H92,'LISTA TOTAL PROVEEDORES'!$A$3:$I$9968,7,FALSE) ->  | G92: =VLOOKUP($B$9&H92,'LISTA TOTAL PROVEEDORES'!$A$3:$I$9968,8,FALSE) ->  | H92: ERROR
B93: =VLOOKUP($B$9&H93,'LISTA TOTAL PROVEEDORES'!$A$3:$I$9968,9,FALSE) ->  | C93: =VLOOKUP($B$9&H93,'LISTA TOTAL PROVEEDORES'!$A$3:$I$9968,4,FALSE) ->  | D93: =VLOOKUP($B$9&H93,'LISTA TOTAL PROVEEDORES'!$A$3:$I$9968,5,FALSE) ->  | E93: =VLOOKUP($B$9&H93,'LISTA TOTAL PROVEEDORES'!$A$3:$I$9968,6,FALSE) ->  | F93: =VLOOKUP($B$9&H93,'LISTA TOTAL PROVEEDORES'!$A$3:$I$9968,7,FALSE) ->  | G93: =VLOOKUP($B$9&H93,'LISTA TOTAL PROVEEDORES'!$A$3:$I$9968,8,FALSE) ->  | H93: ERROR
B94: =VLOOKUP($B$9&H94,'LISTA TOTAL PROVEEDORES'!$A$3:$I$9968,9,FALSE) ->  | C94: =VLOOKUP($B$9&H94,'LISTA TOTAL PROVEEDORES'!$A$3:$I$9968,4,FALSE) ->  | D94: =VLOOKUP($B$9&H94,'LISTA TOTAL PROVEEDORES'!$A$3:$I$9968,5,FALSE) ->  | E94: =VLOOKUP($B$9&H94,'LISTA TOTAL PROVEEDORES'!$A$3:$I$9968,6,FALSE) ->  | F94: =VLOOKUP($B$9&H94,'LISTA TOTAL PROVEEDORES'!$A$3:$I$9968,7,FALSE) ->  | G94: =VLOOKUP($B$9&H94,'LISTA TOTAL PROVEEDORES'!$A$3:$I$9968,8,FALSE) ->  | H94: ERROR
B95: =VLOOKUP($B$9&H95,'LISTA TOTAL PROVEEDORES'!$A$3:$I$9968,9,FALSE) ->  | C95: =VLOOKUP($B$9&H95,'LISTA TOTAL PROVEEDORES'!$A$3:$I$9968,4,FALSE) ->  | D95: =VLOOKUP($B$9&H95,'LISTA TOTAL PROVEEDORES'!$A$3:$I$9968,5,FALSE) ->  | E95: =VLOOKUP($B$9&H95,'LISTA TOTAL PROVEEDORES'!$A$3:$I$9968,6,FALSE) ->  | F95: =VLOOKUP($B$9&H95,'LISTA TOTAL PROVEEDORES'!$A$3:$I$9968,7,FALSE) ->  | G95: =VLOOKUP($B$9&H95,'LISTA TOTAL PROVEEDORES'!$A$3:$I$9968,8,FALSE) ->  | H95: ERROR
B96: =VLOOKUP($B$9&H96,'LISTA TOTAL PROVEEDORES'!$A$3:$I$9968,9,FALSE) ->  | C96: =VLOOKUP($B$9&H96,'LISTA TOTAL PROVEEDORES'!$A$3:$I$9968,4,FALSE) ->  | D96: =VLOOKUP($B$9&H96,'LISTA TOTAL PROVEEDORES'!$A$3:$I$9968,5,FALSE) ->  | E96: =VLOOKUP($B$9&H96,'LISTA TOTAL PROVEEDORES'!$A$3:$I$9968,6,FALSE) ->  | F96: =VLOOKUP($B$9&H96,'LISTA TOTAL PROVEEDORES'!$A$3:$I$9968,7,FALSE) ->  | G96: =VLOOKUP($B$9&H96,'LISTA TOTAL PROVEEDORES'!$A$3:$I$9968,8,FALSE) ->  | H96: ERROR
B97: =VLOOKUP($B$9&H97,'LISTA TOTAL PROVEEDORES'!$A$3:$I$9968,9,FALSE) ->  | C97: =VLOOKUP($B$9&H97,'LISTA TOTAL PROVEEDORES'!$A$3:$I$9968,4,FALSE) ->  | D97: =VLOOKUP($B$9&H97,'LISTA TOTAL PROVEEDORES'!$A$3:$I$9968,5,FALSE) ->  | E97: =VLOOKUP($B$9&H97,'LISTA TOTAL PROVEEDORES'!$A$3:$I$9968,6,FALSE) ->  | F97: =VLOOKUP($B$9&H97,'LISTA TOTAL PROVEEDORES'!$A$3:$I$9968,7,FALSE) ->  | G97: =VLOOKUP($B$9&H97,'LISTA TOTAL PROVEEDORES'!$A$3:$I$9968,8,FALSE) ->  | H97: ERROR
B98: =VLOOKUP($B$9&H98,'LISTA TOTAL PROVEEDORES'!$A$3:$I$9968,9,FALSE) ->  | C98: =VLOOKUP($B$9&H98,'LISTA TOTAL PROVEEDORES'!$A$3:$I$9968,4,FALSE) ->  | D98: =VLOOKUP($B$9&H98,'LISTA TOTAL PROVEEDORES'!$A$3:$I$9968,5,FALSE) ->  | E98: =VLOOKUP($B$9&H98,'LISTA TOTAL PROVEEDORES'!$A$3:$I$9968,6,FALSE) ->  | F98: =VLOOKUP($B$9&H98,'LISTA TOTAL PROVEEDORES'!$A$3:$I$9968,7,FALSE) ->  | G98: =VLOOKUP($B$9&H98,'LISTA TOTAL PROVEEDORES'!$A$3:$I$9968,8,FALSE) ->  | H98: ERROR
B99: =VLOOKUP($B$9&H99,'LISTA TOTAL PROVEEDORES'!$A$3:$I$9968,9,FALSE) ->  | C99: =VLOOKUP($B$9&H99,'LISTA TOTAL PROVEEDORES'!$A$3:$I$9968,4,FALSE) ->  | D99: =VLOOKUP($B$9&H99,'LISTA TOTAL PROVEEDORES'!$A$3:$I$9968,5,FALSE) ->  | E99: =VLOOKUP($B$9&H99,'LISTA TOTAL PROVEEDORES'!$A$3:$I$9968,6,FALSE) ->  | F99: =VLOOKUP($B$9&H99,'LISTA TOTAL PROVEEDORES'!$A$3:$I$9968,7,FALSE) ->  | G99: =VLOOKUP($B$9&H99,'LISTA TOTAL PROVEEDORES'!$A$3:$I$9968,8,FALSE) ->  | H99: ERROR
B100: =VLOOKUP($B$9&H100,'LISTA TOTAL PROVEEDORES'!$A$3:$I$9968,9,FALSE) ->  | C100: =VLOOKUP($B$9&H100,'LISTA TOTAL PROVEEDORES'!$A$3:$I$9968,4,FALSE) ->  | D100: =VLOOKUP($B$9&H100,'LISTA TOTAL PROVEEDORES'!$A$3:$I$9968,5,FALSE) ->  | E100: =VLOOKUP($B$9&H100,'LISTA TOTAL PROVEEDORES'!$A$3:$I$9968,6,FALSE) ->  | F100: =VLOOKUP($B$9&H100,'LISTA TOTAL PROVEEDORES'!$A$3:$I$9968,7,FALSE) ->  | G100: =VLOOKUP($B$9&H100,'LISTA TOTAL PROVEEDORES'!$A$3:$I$9968,8,FALSE) ->  | H100: ERROR
B101: =VLOOKUP($B$9&H101,'LISTA TOTAL PROVEEDORES'!$A$3:$I$9968,9,FALSE) ->  | C101: =VLOOKUP($B$9&H101,'LISTA TOTAL PROVEEDORES'!$A$3:$I$9968,4,FALSE) ->  | D101: =VLOOKUP($B$9&H101,'LISTA TOTAL PROVEEDORES'!$A$3:$I$9968,5,FALSE) ->  | E101: =VLOOKUP($B$9&H101,'LISTA TOTAL PROVEEDORES'!$A$3:$I$9968,6,FALSE) ->  | F101: =VLOOKUP($B$9&H101,'LISTA TOTAL PROVEEDORES'!$A$3:$I$9968,7,FALSE) ->  | G101: =VLOOKUP($B$9&H101,'LISTA TOTAL PROVEEDORES'!$A$3:$I$9968,8,FALSE) ->  | H101: ERROR
B102: =VLOOKUP($B$9&H102,'LISTA TOTAL PROVEEDORES'!$A$3:$I$9968,9,FALSE) ->  | C102: =VLOOKUP($B$9&H102,'LISTA TOTAL PROVEEDORES'!$A$3:$I$9968,4,FALSE) ->  | D102: =VLOOKUP($B$9&H102,'LISTA TOTAL PROVEEDORES'!$A$3:$I$9968,5,FALSE) ->  | E102: =VLOOKUP($B$9&H102,'LISTA TOTAL PROVEEDORES'!$A$3:$I$9968,6,FALSE) ->  | F102: =VLOOKUP($B$9&H102,'LISTA TOTAL PROVEEDORES'!$A$3:$I$9968,7,FALSE) ->  | G102: =VLOOKUP($B$9&H102,'LISTA TOTAL PROVEEDORES'!$A$3:$I$9968,8,FALSE) ->  | H102: ERROR
B103: =VLOOKUP($B$9&H103,'LISTA TOTAL PROVEEDORES'!$A$3:$I$9968,9,FALSE) ->  | C103: =VLOOKUP($B$9&H103,'LISTA TOTAL PROVEEDORES'!$A$3:$I$9968,4,FALSE) ->  | D103: =VLOOKUP($B$9&H103,'LISTA TOTAL PROVEEDORES'!$A$3:$I$9968,5,FALSE) ->  | E103: =VLOOKUP($B$9&H103,'LISTA TOTAL PROVEEDORES'!$A$3:$I$9968,6,FALSE) ->  | F103: =VLOOKUP($B$9&H103,'LISTA TOTAL PROVEEDORES'!$A$3:$I$9968,7,FALSE) ->  | G103: =VLOOKUP($B$9&H103,'LISTA TOTAL PROVEEDORES'!$A$3:$I$9968,8,FALSE) ->  | H103: ERROR
B104: =VLOOKUP($B$9&H104,'LISTA TOTAL PROVEEDORES'!$A$3:$I$9968,9,FALSE) ->  | C104: =VLOOKUP($B$9&H104,'LISTA TOTAL PROVEEDORES'!$A$3:$I$9968,4,FALSE) ->  | D104: =VLOOKUP($B$9&H104,'LISTA TOTAL PROVEEDORES'!$A$3:$I$9968,5,FALSE) ->  | E104: =VLOOKUP($B$9&H104,'LISTA TOTAL PROVEEDORES'!$A$3:$I$9968,6,FALSE) ->  | F104: =VLOOKUP($B$9&H104,'LISTA TOTAL PROVEEDORES'!$A$3:$I$9968,7,FALSE) ->  | G104: =VLOOKUP($B$9&H104,'LISTA TOTAL PROVEEDORES'!$A$3:$I$9968,8,FALSE) ->  | H104: ERROR
B105: =VLOOKUP($B$9&H105,'LISTA TOTAL PROVEEDORES'!$A$3:$I$9968,9,FALSE) ->  | C105: =VLOOKUP($B$9&H105,'LISTA TOTAL PROVEEDORES'!$A$3:$I$9968,4,FALSE) ->  | D105: =VLOOKUP($B$9&H105,'LISTA TOTAL PROVEEDORES'!$A$3:$I$9968,5,FALSE) ->  | E105: =VLOOKUP($B$9&H105,'LISTA TOTAL PROVEEDORES'!$A$3:$I$9968,6,FALSE) ->  | F105: =VLOOKUP($B$9&H105,'LISTA TOTAL PROVEEDORES'!$A$3:$I$9968,7,FALSE) ->  | G105: =VLOOKUP($B$9&H105,'LISTA TOTAL PROVEEDORES'!$A$3:$I$9968,8,FALSE) ->  | H105: ERROR
B106: =VLOOKUP($B$9&H106,'LISTA TOTAL PROVEEDORES'!$A$3:$I$9968,9,FALSE) ->  | C106: =VLOOKUP($B$9&H106,'LISTA TOTAL PROVEEDORES'!$A$3:$I$9968,4,FALSE) ->  | D106: =VLOOKUP($B$9&H106,'LISTA TOTAL PROVEEDORES'!$A$3:$I$9968,5,FALSE) ->  | E106: =VLOOKUP($B$9&H106,'LISTA TOTAL PROVEEDORES'!$A$3:$I$9968,6,FALSE) ->  | F106: =VLOOKUP($B$9&H106,'LISTA TOTAL PROVEEDORES'!$A$3:$I$9968,7,FALSE) ->  | G106: =VLOOKUP($B$9&H106,'LISTA TOTAL PROVEEDORES'!$A$3:$I$9968,8,FALSE) ->  | H106: ERROR
B107: =VLOOKUP($B$9&H107,'LISTA TOTAL PROVEEDORES'!$A$3:$I$9968,9,FALSE) ->  | C107: =VLOOKUP($B$9&H107,'LISTA TOTAL PROVEEDORES'!$A$3:$I$9968,4,FALSE) ->  | D107: =VLOOKUP($B$9&H107,'LISTA TOTAL PROVEEDORES'!$A$3:$I$9968,5,FALSE) ->  | E107: =VLOOKUP($B$9&H107,'LISTA TOTAL PROVEEDORES'!$A$3:$I$9968,6,FALSE) ->  | F107: =VLOOKUP($B$9&H107,'LISTA TOTAL PROVEEDORES'!$A$3:$I$9968,7,FALSE) ->  | G107: =VLOOKUP($B$9&H107,'LISTA TOTAL PROVEEDORES'!$A$3:$I$9968,8,FALSE) ->  | H107: ERROR
B108: =VLOOKUP($B$9&H108,'LISTA TOTAL PROVEEDORES'!$A$3:$I$9968,9,FALSE) ->  | C108: =VLOOKUP($B$9&H108,'LISTA TOTAL PROVEEDORES'!$A$3:$I$9968,4,FALSE) ->  | D108: =VLOOKUP($B$9&H108,'LISTA TOTAL PROVEEDORES'!$A$3:$I$9968,5,FALSE) ->  | E108: =VLOOKUP($B$9&H108,'LISTA TOTAL PROVEEDORES'!$A$3:$I$9968,6,FALSE) ->  | F108: =VLOOKUP($B$9&H108,'LISTA TOTAL PROVEEDORES'!$A$3:$I$9968,7,FALSE) ->  | G108: =VLOOKUP($B$9&H108,'LISTA TOTAL PROVEEDORES'!$A$3:$I$9968,8,FALSE) ->  | H108: ERROR
B109: =VLOOKUP($B$9&H109,'LISTA TOTAL PROVEEDORES'!$A$3:$I$9968,9,FALSE) ->  | C109: =VLOOKUP($B$9&H109,'LISTA TOTAL PROVEEDORES'!$A$3:$I$9968,4,FALSE) ->  | D109: =VLOOKUP($B$9&H109,'LISTA TOTAL PROVEEDORES'!$A$3:$I$9968,5,FALSE) ->  | E109: =VLOOKUP($B$9&H109,'LISTA TOTAL PROVEEDORES'!$A$3:$I$9968,6,FALSE) ->  | F109: =VLOOKUP($B$9&H109,'LISTA TOTAL PROVEEDORES'!$A$3:$I$9968,7,FALSE) ->  | G109: =VLOOKUP($B$9&H109,'LISTA TOTAL PROVEEDORES'!$A$3:$I$9968,8,FALSE) ->  | H109: ERROR
B110: =VLOOKUP($B$9&H110,'LISTA TOTAL PROVEEDORES'!$A$3:$I$9968,9,FALSE) ->  | C110: =VLOOKUP($B$9&H110,'LISTA TOTAL PROVEEDORES'!$A$3:$I$9968,4,FALSE) ->  | D110: =VLOOKUP($B$9&H110,'LISTA TOTAL PROVEEDORES'!$A$3:$I$9968,5,FALSE) ->  | E110: =VLOOKUP($B$9&H110,'LISTA TOTAL PROVEEDORES'!$A$3:$I$9968,6,FALSE) ->  | F110: =VLOOKUP($B$9&H110,'LISTA TOTAL PROVEEDORES'!$A$3:$I$9968,7,FALSE) ->  | G110: =VLOOKUP($B$9&H110,'LISTA TOTAL PROVEEDORES'!$A$3:$I$9968,8,FALSE) ->  | H110: ERROR
B111: =VLOOKUP($B$9&H111,'LISTA TOTAL PROVEEDORES'!$A$3:$I$9968,9,FALSE) ->  | C111: =VLOOKUP($B$9&H111,'LISTA TOTAL PROVEEDORES'!$A$3:$I$9968,4,FALSE) ->  | D111: =VLOOKUP($B$9&H111,'LISTA TOTAL PROVEEDORES'!$A$3:$I$9968,5,FALSE) ->  | E111: =VLOOKUP($B$9&H111,'LISTA TOTAL PROVEEDORES'!$A$3:$I$9968,6,FALSE) ->  | F111: =VLOOKUP($B$9&H111,'LISTA TOTAL PROVEEDORES'!$A$3:$I$9968,7,FALSE) ->  | G111: =VLOOKUP($B$9&H111,'LISTA TOTAL PROVEEDORES'!$A$3:$I$9968,8,FALSE) ->  | H111: ERROR
B112: =VLOOKUP($B$9&H112,'LISTA TOTAL PROVEEDORES'!$A$3:$I$9968,9,FALSE) ->  | C112: =VLOOKUP($B$9&H112,'LISTA TOTAL PROVEEDORES'!$A$3:$I$9968,4,FALSE) ->  | D112: =VLOOKUP($B$9&H112,'LISTA TOTAL PROVEEDORES'!$A$3:$I$9968,5,FALSE) ->  | E112: =VLOOKUP($B$9&H112,'LISTA TOTAL PROVEEDORES'!$A$3:$I$9968,6,FALSE) ->  | F112: =VLOOKUP($B$9&H112,'LISTA TOTAL PROVEEDORES'!$A$3:$I$9968,7,FALSE) ->  | G112: =VLOOKUP($B$9&H112,'LISTA TOTAL PROVEEDORES'!$A$3:$I$9968,8,FALSE) ->  | H112: ERROR
B113: =VLOOKUP($B$9&H113,'LISTA TOTAL PROVEEDORES'!$A$3:$I$9968,9,FALSE) ->  | C113: =VLOOKUP($B$9&H113,'LISTA TOTAL PROVEEDORES'!$A$3:$I$9968,4,FALSE) ->  | D113: =VLOOKUP($B$9&H113,'LISTA TOTAL PROVEEDORES'!$A$3:$I$9968,5,FALSE) ->  | E113: =VLOOKUP($B$9&H113,'LISTA TOTAL PROVEEDORES'!$A$3:$I$9968,6,FALSE) ->  | F113: =VLOOKUP($B$9&H113,'LISTA TOTAL PROVEEDORES'!$A$3:$I$9968,7,FALSE) ->  | G113: =VLOOKUP($B$9&H113,'LISTA TOTAL PROVEEDORES'!$A$3:$I$9968,8,FALSE) ->  | H113: ERROR
B114: =VLOOKUP($B$9&H114,'LISTA TOTAL PROVEEDORES'!$A$3:$I$9968,9,FALSE) ->  | C114: =VLOOKUP($B$9&H114,'LISTA TOTAL PROVEEDORES'!$A$3:$I$9968,4,FALSE) ->  | D114: =VLOOKUP($B$9&H114,'LISTA TOTAL PROVEEDORES'!$A$3:$I$9968,5,FALSE) ->  | E114: =VLOOKUP($B$9&H114,'LISTA TOTAL PROVEEDORES'!$A$3:$I$9968,6,FALSE) ->  | F114: =VLOOKUP($B$9&H114,'LISTA TOTAL PROVEEDORES'!$A$3:$I$9968,7,FALSE) ->  | G114: =VLOOKUP($B$9&H114,'LISTA TOTAL PROVEEDORES'!$A$3:$I$9968,8,FALSE) ->  | H114: ERROR
B115: =VLOOKUP($B$9&H115,'LISTA TOTAL PROVEEDORES'!$A$3:$I$9968,9,FALSE) ->  | C115: =VLOOKUP($B$9&H115,'LISTA TOTAL PROVEEDORES'!$A$3:$I$9968,4,FALSE) ->  | D115: =VLOOKUP($B$9&H115,'LISTA TOTAL PROVEEDORES'!$A$3:$I$9968,5,FALSE) ->  | E115: =VLOOKUP($B$9&H115,'LISTA TOTAL PROVEEDORES'!$A$3:$I$9968,6,FALSE) ->  | F115: =VLOOKUP($B$9&H115,'LISTA TOTAL PROVEEDORES'!$A$3:$I$9968,7,FALSE) ->  | G115: =VLOOKUP($B$9&H115,'LISTA TOTAL PROVEEDORES'!$A$3:$I$9968,8,FALSE) ->  | H115: ERROR
B116: =VLOOKUP($B$9&H116,'LISTA TOTAL PROVEEDORES'!$A$3:$I$9968,9,FALSE) ->  | C116: =VLOOKUP($B$9&H116,'LISTA TOTAL PROVEEDORES'!$A$3:$I$9968,4,FALSE) ->  | D116: =VLOOKUP($B$9&H116,'LISTA TOTAL PROVEEDORES'!$A$3:$I$9968,5,FALSE) ->  | E116: =VLOOKUP($B$9&H116,'LISTA TOTAL PROVEEDORES'!$A$3:$I$9968,6,FALSE) ->  | F116: =VLOOKUP($B$9&H116,'LISTA TOTAL PROVEEDORES'!$A$3:$I$9968,7,FALSE) ->  | G116: =VLOOKUP($B$9&H116,'LISTA TOTAL PROVEEDORES'!$A$3:$I$9968,8,FALSE) ->  | H116: ERROR
B117: =VLOOKUP($B$9&H117,'LISTA TOTAL PROVEEDORES'!$A$3:$I$9968,9,FALSE) ->  | C117: =VLOOKUP($B$9&H117,'LISTA TOTAL PROVEEDORES'!$A$3:$I$9968,4,FALSE) ->  | D117: =VLOOKUP($B$9&H117,'LISTA TOTAL PROVEEDORES'!$A$3:$I$9968,5,FALSE) ->  | E117: =VLOOKUP($B$9&H117,'LISTA TOTAL PROVEEDORES'!$A$3:$I$9968,6,FALSE) ->  | F117: =VLOOKUP($B$9&H117,'LISTA TOTAL PROVEEDORES'!$A$3:$I$9968,7,FALSE) ->  | G117: =VLOOKUP($B$9&H117,'LISTA TOTAL PROVEEDORES'!$A$3:$I$9968,8,FALSE) ->  | H117: ERROR
B118: =VLOOKUP($B$9&H118,'LISTA TOTAL PROVEEDORES'!$A$3:$I$9968,9,FALSE) ->  | C118: =VLOOKUP($B$9&H118,'LISTA TOTAL PROVEEDORES'!$A$3:$I$9968,4,FALSE) ->  | D118: =VLOOKUP($B$9&H118,'LISTA TOTAL PROVEEDORES'!$A$3:$I$9968,5,FALSE) ->  | E118: =VLOOKUP($B$9&H118,'LISTA TOTAL PROVEEDORES'!$A$3:$I$9968,6,FALSE) ->  | F118: =VLOOKUP($B$9&H118,'LISTA TOTAL PROVEEDORES'!$A$3:$I$9968,7,FALSE) ->  | G118: =VLOOKUP($B$9&H118,'LISTA TOTAL PROVEEDORES'!$A$3:$I$9968,8,FALSE) ->  | H118: ERROR
B119: =VLOOKUP($B$9&H119,'LISTA TOTAL PROVEEDORES'!$A$3:$I$9968,9,FALSE) ->  | C119: =VLOOKUP($B$9&H119,'LISTA TOTAL PROVEEDORES'!$A$3:$I$9968,4,FALSE) ->  | D119: =VLOOKUP($B$9&H119,'LISTA TOTAL PROVEEDORES'!$A$3:$I$9968,5,FALSE) ->  | E119: =VLOOKUP($B$9&H119,'LISTA TOTAL PROVEEDORES'!$A$3:$I$9968,6,FALSE) ->  | F119: =VLOOKUP($B$9&H119,'LISTA TOTAL PROVEEDORES'!$A$3:$I$9968,7,FALSE) ->  | G119: =VLOOKUP($B$9&H119,'LISTA TOTAL PROVEEDORES'!$A$3:$I$9968,8,FALSE) ->  | H119: ERROR
B120: =VLOOKUP($B$9&H120,'LISTA TOTAL PROVEEDORES'!$A$3:$I$9968,9,FALSE) ->  | C120: =VLOOKUP($B$9&H120,'LISTA TOTAL PROVEEDORES'!$A$3:$I$9968,4,FALSE) ->  | D120: =VLOOKUP($B$9&H120,'LISTA TOTAL PROVEEDORES'!$A$3:$I$9968,5,FALSE) ->  | E120: =VLOOKUP($B$9&H120,'LISTA TOTAL PROVEEDORES'!$A$3:$I$9968,6,FALSE) ->  | F120: =VLOOKUP($B$9&H120,'LISTA TOTAL PROVEEDORES'!$A$3:$I$9968,7,FALSE) ->  | G120: =VLOOKUP($B$9&H120,'LISTA TOTAL PROVEEDORES'!$A$3:$I$9968,8,FALSE) ->  | H120: ERROR
B121: =VLOOKUP($B$9&H121,'LISTA TOTAL PROVEEDORES'!$A$3:$I$9968,9,FALSE) ->  | C121: =VLOOKUP($B$9&H121,'LISTA TOTAL PROVEEDORES'!$A$3:$I$9968,4,FALSE) ->  | D121: =VLOOKUP($B$9&H121,'LISTA TOTAL PROVEEDORES'!$A$3:$I$9968,5,FALSE) ->  | E121: =VLOOKUP($B$9&H121,'LISTA TOTAL PROVEEDORES'!$A$3:$I$9968,6,FALSE) ->  | F121: =VLOOKUP($B$9&H121,'LISTA TOTAL PROVEEDORES'!$A$3:$I$9968,7,FALSE) ->  | G121: =VLOOKUP($B$9&H121,'LISTA TOTAL PROVEEDORES'!$A$3:$I$9968,8,FALSE) ->  | H121: ERROR
B122: =VLOOKUP($B$9&H122,'LISTA TOTAL PROVEEDORES'!$A$3:$I$9968,9,FALSE) ->  | C122: =VLOOKUP($B$9&H122,'LISTA TOTAL PROVEEDORES'!$A$3:$I$9968,4,FALSE) ->  | D122: =VLOOKUP($B$9&H122,'LISTA TOTAL PROVEEDORES'!$A$3:$I$9968,5,FALSE) ->  | E122: =VLOOKUP($B$9&H122,'LISTA TOTAL PROVEEDORES'!$A$3:$I$9968,6,FALSE) ->  | F122: =VLOOKUP($B$9&H122,'LISTA TOTAL PROVEEDORES'!$A$3:$I$9968,7,FALSE) ->  | G122: =VLOOKUP($B$9&H122,'LISTA TOTAL PROVEEDORES'!$A$3:$I$9968,8,FALSE) ->  | H122: ERROR
B123: =VLOOKUP($B$9&H123,'LISTA TOTAL PROVEEDORES'!$A$3:$I$9968,9,FALSE) ->  | C123: =VLOOKUP($B$9&H123,'LISTA TOTAL PROVEEDORES'!$A$3:$I$9968,4,FALSE) ->  | D123: =VLOOKUP($B$9&H123,'LISTA TOTAL PROVEEDORES'!$A$3:$I$9968,5,FALSE) ->  | E123: =VLOOKUP($B$9&H123,'LISTA TOTAL PROVEEDORES'!$A$3:$I$9968,6,FALSE) ->  | F123: =VLOOKUP($B$9&H123,'LISTA TOTAL PROVEEDORES'!$A$3:$I$9968,7,FALSE) ->  | G123: =VLOOKUP($B$9&H123,'LISTA TOTAL PROVEEDORES'!$A$3:$I$9968,8,FALSE) ->  | H123: ERROR
B124: =VLOOKUP($B$9&H124,'LISTA TOTAL PROVEEDORES'!$A$3:$I$9968,9,FALSE) ->  | C124: =VLOOKUP($B$9&H124,'LISTA TOTAL PROVEEDORES'!$A$3:$I$9968,4,FALSE) ->  | D124: =VLOOKUP($B$9&H124,'LISTA TOTAL PROVEEDORES'!$A$3:$I$9968,5,FALSE) ->  | E124: =VLOOKUP($B$9&H124,'LISTA TOTAL PROVEEDORES'!$A$3:$I$9968,6,FALSE) ->  | F124: =VLOOKUP($B$9&H124,'LISTA TOTAL PROVEEDORES'!$A$3:$I$9968,7,FALSE) ->  | G124: =VLOOKUP($B$9&H124,'LISTA TOTAL PROVEEDORES'!$A$3:$I$9968,8,FALSE) ->  | H124: ERROR
B125: =VLOOKUP($B$9&H125,'LISTA TOTAL PROVEEDORES'!$A$3:$I$9968,9,FALSE) ->  | C125: =VLOOKUP($B$9&H125,'LISTA TOTAL PROVEEDORES'!$A$3:$I$9968,4,FALSE) ->  | D125: =VLOOKUP($B$9&H125,'LISTA TOTAL PROVEEDORES'!$A$3:$I$9968,5,FALSE) ->  | E125: =VLOOKUP($B$9&H125,'LISTA TOTAL PROVEEDORES'!$A$3:$I$9968,6,FALSE) ->  | F125: =VLOOKUP($B$9&H125,'LISTA TOTAL PROVEEDORES'!$A$3:$I$9968,7,FALSE) ->  | G125: =VLOOKUP($B$9&H125,'LISTA TOTAL PROVEEDORES'!$A$3:$I$9968,8,FALSE) ->  | H125: ERROR
B126: =VLOOKUP($B$9&H126,'LISTA TOTAL PROVEEDORES'!$A$3:$I$9968,9,FALSE) ->  | C126: =VLOOKUP($B$9&H126,'LISTA TOTAL PROVEEDORES'!$A$3:$I$9968,4,FALSE) ->  | D126: =VLOOKUP($B$9&H126,'LISTA TOTAL PROVEEDORES'!$A$3:$I$9968,5,FALSE) ->  | E126: =VLOOKUP($B$9&H126,'LISTA TOTAL PROVEEDORES'!$A$3:$I$9968,6,FALSE) ->  | F126: =VLOOKUP($B$9&H126,'LISTA TOTAL PROVEEDORES'!$A$3:$I$9968,7,FALSE) ->  | G126: =VLOOKUP($B$9&H126,'LISTA TOTAL PROVEEDORES'!$A$3:$I$9968,8,FALSE) ->  | H126: ERROR
B127: =VLOOKUP($B$9&H127,'LISTA TOTAL PROVEEDORES'!$A$3:$I$9968,9,FALSE) ->  | C127: =VLOOKUP($B$9&H127,'LISTA TOTAL PROVEEDORES'!$A$3:$I$9968,4,FALSE) ->  | D127: =VLOOKUP($B$9&H127,'LISTA TOTAL PROVEEDORES'!$A$3:$I$9968,5,FALSE) ->  | E127: =VLOOKUP($B$9&H127,'LISTA TOTAL PROVEEDORES'!$A$3:$I$9968,6,FALSE) ->  | F127: =VLOOKUP($B$9&H127,'LISTA TOTAL PROVEEDORES'!$A$3:$I$9968,7,FALSE) ->  | G127: =VLOOKUP($B$9&H127,'LISTA TOTAL PROVEEDORES'!$A$3:$I$9968,8,FALSE) ->  | H127: ERROR
B128: =VLOOKUP($B$9&H128,'LISTA TOTAL PROVEEDORES'!$A$3:$I$9968,9,FALSE) ->  | C128: =VLOOKUP($B$9&H128,'LISTA TOTAL PROVEEDORES'!$A$3:$I$9968,4,FALSE) ->  | D128: =VLOOKUP($B$9&H128,'LISTA TOTAL PROVEEDORES'!$A$3:$I$9968,5,FALSE) ->  | E128: =VLOOKUP($B$9&H128,'LISTA TOTAL PROVEEDORES'!$A$3:$I$9968,6,FALSE) ->  | F128: =VLOOKUP($B$9&H128,'LISTA TOTAL PROVEEDORES'!$A$3:$I$9968,7,FALSE) ->  | G128: =VLOOKUP($B$9&H128,'LISTA TOTAL PROVEEDORES'!$A$3:$I$9968,8,FALSE) ->  | H128: ERROR
B129: =VLOOKUP($B$9&H129,'LISTA TOTAL PROVEEDORES'!$A$3:$I$9968,9,FALSE) ->  | C129: =VLOOKUP($B$9&H129,'LISTA TOTAL PROVEEDORES'!$A$3:$I$9968,4,FALSE) ->  | D129: =VLOOKUP($B$9&H129,'LISTA TOTAL PROVEEDORES'!$A$3:$I$9968,5,FALSE) ->  | E129: =VLOOKUP($B$9&H129,'LISTA TOTAL PROVEEDORES'!$A$3:$I$9968,6,FALSE) ->  | F129: =VLOOKUP($B$9&H129,'LISTA TOTAL PROVEEDORES'!$A$3:$I$9968,7,FALSE) ->  | G129: =VLOOKUP($B$9&H129,'LISTA TOTAL PROVEEDORES'!$A$3:$I$9968,8,FALSE) ->  | H129: ERROR
B130: =VLOOKUP($B$9&H130,'LISTA TOTAL PROVEEDORES'!$A$3:$I$9968,9,FALSE) ->  | C130: =VLOOKUP($B$9&H130,'LISTA TOTAL PROVEEDORES'!$A$3:$I$9968,4,FALSE) ->  | D130: =VLOOKUP($B$9&H130,'LISTA TOTAL PROVEEDORES'!$A$3:$I$9968,5,FALSE) ->  | E130: =VLOOKUP($B$9&H130,'LISTA TOTAL PROVEEDORES'!$A$3:$I$9968,6,FALSE) ->  | F130: =VLOOKUP($B$9&H130,'LISTA TOTAL PROVEEDORES'!$A$3:$I$9968,7,FALSE) ->  | G130: =VLOOKUP($B$9&H130,'LISTA TOTAL PROVEEDORES'!$A$3:$I$9968,8,FALSE) ->  | H130: ERROR
B131: =VLOOKUP($B$9&H131,'LISTA TOTAL PROVEEDORES'!$A$3:$I$9968,9,FALSE) ->  | C131: =VLOOKUP($B$9&H131,'LISTA TOTAL PROVEEDORES'!$A$3:$I$9968,4,FALSE) ->  | D131: =VLOOKUP($B$9&H131,'LISTA TOTAL PROVEEDORES'!$A$3:$I$9968,5,FALSE) ->  | E131: =VLOOKUP($B$9&H131,'LISTA TOTAL PROVEEDORES'!$A$3:$I$9968,6,FALSE) ->  | F131: =VLOOKUP($B$9&H131,'LISTA TOTAL PROVEEDORES'!$A$3:$I$9968,7,FALSE) ->  | G131: =VLOOKUP($B$9&H131,'LISTA TOTAL PROVEEDORES'!$A$3:$I$9968,8,FALSE) ->  | H131: ERROR
B132: =VLOOKUP($B$9&H132,'LISTA TOTAL PROVEEDORES'!$A$3:$I$9968,9,FALSE) ->  | C132: =VLOOKUP($B$9&H132,'LISTA TOTAL PROVEEDORES'!$A$3:$I$9968,4,FALSE) ->  | D132: =VLOOKUP($B$9&H132,'LISTA TOTAL PROVEEDORES'!$A$3:$I$9968,5,FALSE) ->  | E132: =VLOOKUP($B$9&H132,'LISTA TOTAL PROVEEDORES'!$A$3:$I$9968,6,FALSE) ->  | F132: =VLOOKUP($B$9&H132,'LISTA TOTAL PROVEEDORES'!$A$3:$I$9968,7,FALSE) ->  | G132: =VLOOKUP($B$9&H132,'LISTA TOTAL PROVEEDORES'!$A$3:$I$9968,8,FALSE) ->  | H132: ERROR
B133: =VLOOKUP($B$9&H133,'LISTA TOTAL PROVEEDORES'!$A$3:$I$9968,9,FALSE) ->  | C133: =VLOOKUP($B$9&H133,'LISTA TOTAL PROVEEDORES'!$A$3:$I$9968,4,FALSE) ->  | D133: =VLOOKUP($B$9&H133,'LISTA TOTAL PROVEEDORES'!$A$3:$I$9968,5,FALSE) ->  | E133: =VLOOKUP($B$9&H133,'LISTA TOTAL PROVEEDORES'!$A$3:$I$9968,6,FALSE) ->  | F133: =VLOOKUP($B$9&H133,'LISTA TOTAL PROVEEDORES'!$A$3:$I$9968,7,FALSE) ->  | G133: =VLOOKUP($B$9&H133,'LISTA TOTAL PROVEEDORES'!$A$3:$I$9968,8,FALSE) ->  | H133: ERROR
B134: =VLOOKUP($B$9&H134,'LISTA TOTAL PROVEEDORES'!$A$3:$I$9968,9,FALSE) ->  | C134: =VLOOKUP($B$9&H134,'LISTA TOTAL PROVEEDORES'!$A$3:$I$9968,4,FALSE) ->  | D134: =VLOOKUP($B$9&H134,'LISTA TOTAL PROVEEDORES'!$A$3:$I$9968,5,FALSE) ->  | E134: =VLOOKUP($B$9&H134,'LISTA TOTAL PROVEEDORES'!$A$3:$I$9968,6,FALSE) ->  | F134: =VLOOKUP($B$9&H134,'LISTA TOTAL PROVEEDORES'!$A$3:$I$9968,7,FALSE) ->  | G134: =VLOOKUP($B$9&H134,'LISTA TOTAL PROVEEDORES'!$A$3:$I$9968,8,FALSE) ->  | H134: ERROR
B135: =VLOOKUP($B$9&H135,'LISTA TOTAL PROVEEDORES'!$A$3:$I$9968,9,FALSE) ->  | C135: =VLOOKUP($B$9&H135,'LISTA TOTAL PROVEEDORES'!$A$3:$I$9968,4,FALSE) ->  | D135: =VLOOKUP($B$9&H135,'LISTA TOTAL PROVEEDORES'!$A$3:$I$9968,5,FALSE) ->  | E135: =VLOOKUP($B$9&H135,'LISTA TOTAL PROVEEDORES'!$A$3:$I$9968,6,FALSE) ->  | F135: =VLOOKUP($B$9&H135,'LISTA TOTAL PROVEEDORES'!$A$3:$I$9968,7,FALSE) ->  | G135: =VLOOKUP($B$9&H135,'LISTA TOTAL PROVEEDORES'!$A$3:$I$9968,8,FALSE) ->  | H135: ERROR
B136: =VLOOKUP($B$9&H136,'LISTA TOTAL PROVEEDORES'!$A$3:$I$9968,9,FALSE) ->  | C136: =VLOOKUP($B$9&H136,'LISTA TOTAL PROVEEDORES'!$A$3:$I$9968,4,FALSE) ->  | D136: =VLOOKUP($B$9&H136,'LISTA TOTAL PROVEEDORES'!$A$3:$I$9968,5,FALSE) ->  | E136: =VLOOKUP($B$9&H136,'LISTA TOTAL PROVEEDORES'!$A$3:$I$9968,6,FALSE) ->  | F136: =VLOOKUP($B$9&H136,'LISTA TOTAL PROVEEDORES'!$A$3:$I$9968,7,FALSE) ->  | G136: =VLOOKUP($B$9&H136,'LISTA TOTAL PROVEEDORES'!$A$3:$I$9968,8,FALSE) ->  | H136: ERROR

Sheet Agregados Petreos, Bases y Subb
A9: 1114 | B9: 1102 | C9: =VLOOKUP(B9,'LISTA TOTAL PROVEEDORES'!B3:C9968,2,FALSE) -> AGREGADOS PETREOS, BASES Y SUBBASES GRANULARES | H9: =+COUNTIF('LISTA TOTAL PROVEEDORES'!B3:B9968,B9) -> 17
